Workbook

Sheet 総括表
B2: 【様式１】担い手確保・経営強化支援事業要望地区総括表（Ａ表） | DX2: 要件確認
B3: 地区番号 | C3: 都道府県名 | D3: 市町村名 | E3: 地区名 | F3: 事 業 費 | L3: 推進事務費 | N3: スマート農機等 | T3: 成果目標項目 （単位：経営体） | AD3: 配分基準ポイント ※項目毎に合計ポイントを記入（Ｂ表の地区合計欄のポイントを転記） | DB3: 地区配分基準ポイント（※加点がない場合は入力不要） | DU3: 配分基準ポイント合計（３）＝（１）＋（２） | DV3: 備考
A4: 地区数 | F4: 融資主体型補助事業 | I4: 追加的信用供与事業 | L4: 市町村事務費 | N4: 融資主体型補助事業 | Q4: 追加的信用供与事業 | T4: 必須目標 | U4: 選択目標 | AD4: ①付加価値額の拡大 | BK4: ②経営面積の拡大 | BQ4: ③農産物の価値向上 | BU4: ④農業経営の複合化 | BZ4: ⑤経営管理の高度化 | CF4: ⑥環境配慮の取組 | CH4: ⑦農作業の共同化 | CJ4: ⑧労働時間の縮減（対象：事業実施主体が認める者） | CM4: ⑨輸出の取組 | CQ4: ⑩新規就農者 | CT4: ⑪農業者の育成 | CW4: ⑫女性の取組 | CX4: ⑬関係機関等によるサポート体制の構築 | CY4: ⑭中山間地域での取組 | CZ4: ポイント計 | DA4: 配分基準ポイント平均値（１） | DB4: ①担い手への農地集積 | DF4: ②農地集積割合の増加 | DQ4: ③人・農地プランの実質化の取組 | DS4: ④地区の状況 | DT4: 地区配分基準ポイント計（２）
F5: 経営体数 | G5: 事業費 （円） | H5: 国庫補助金 （円） | I5: 経営体数 | J5: 保証希望融資額 （円） | K5: 国庫補助金 （円） | L5: 事業費 （円） | M5: 国庫補助金 （円） | N5: 経営体数 | O5: 事業費 （円） | P5: 国庫補助金 （円） | Q5: 経営体数 | R5: 保証希望融資額 （円） | S5: 国庫補助金 （円） | T5: 付加価値額の拡大 | U5: ①経営面積の拡大 | V5: ②農産物の価値向上 | W5: ③農業経営の複合化 | X5: ④農業経営の法人化 | Y5: ⑤青色申告の取組 | Z5: ⑥環境配慮の取組 | AA5: ⑦農作業の共同化 | AB5: ⑧労働時間の縮減 | AC5: ⑨輸出の取組 | DB5: 集積率が80%以上 | DF5: 担い手への農地集積率が３年度前より1割以上増加 | DM5: 左記のうち事業実施前年度から増加した農地集積面積の3割以上が機構活用 | DQ5: いずれか一方を記入すること
DB6: 要望調査開始の前月末現在 | DE6: 加点 | DF6: 事業実施３年度前の4月1日現在 | DI6: 要望調査開始の前月末現在 | DL6: 加点 | DM6: 事業実施前年度の4月1日現在 | DP6: 加点 | DQ6: 人・農地プランについて実質化されている又は担い手支援計画承認までに実質化する（2点） | DR6: 人・農地プランの実質化に向けた工程表を作成している又は担い手支援計画の承認までに作成する（1点） | DS6: 中山間地域等直接支払交付金対象地域であり、対象農用地が存在する
AD7: ア 目標年度までの付加価値額の拡大率 | AR7: イ 目標年度までの付加価値額の拡大額 | BK7: ア 経営面積拡大（対象：事業実施主体が認める者以外の者） | BP7: イ 経営面積拡大（対象：事業実施主体が認める者） | BQ7: 事業実施前3年度以内に新品種の導入、栽培管理技術の改善、新たな加工又は販売の取組等により、農産物の価値向上等に取り組んでいる | BU7: ア 土地利用型作物の生産、園芸作物の生産などを組み合わせ、複合的に経営を展開している | BV7: イ-a 事業実施前３年度内に経営面積又は農産物売上高の３割以上の品目転換を行っている | BW7: イ-a 事業実施前３年度内に経営面積又は農産物売上高の３割以上の品目転換を目標年度までに行うこととしている | BX7: イ-b 事業実施前３年度内に経営面積又は農産物売上向上の４割以上の品目転換を行っている | BY7: イ-b 事業実施前３年度内に経営面積又は農産物売上向上の４割以上の品目転換を行うこととしている | BZ7: ア 現在、法人化している | CA7: ア 目標年度までに法人化することとしている | CB7: イ ＧＬＯＢＡＬＧ．Ａ．Ｐ又はＡＳＩＡＧＡＰの認証を取得している | CC7: ウ 青色申告を行っている | CD7: ウ 青色申告を行うこととしている | CE7: エ 農業版ＢＣＰ（事業継続計画）を策定している | CF7: 事業実施前３年度以内に化石燃料を使用しない園芸施設への移行による温室効果ガスの削減等を行っている | CG7: 化石燃料を使用しない園芸施設への移行による温室効果ガスの削減等を目標年度までに行うこととしている | CH7: 自らの経営に係る農作業について他の農業者と共同して農作業を行っている（対象：事業実施主体が認める者） | CI7: 自らの経営に係る農作業について他の農業者と共同して農作業を目標年度までに行うこととしている（対象：事業実施主体が認める者） | CJ7: ａ 目標年度までに10%以上縮減する | CK7: b 目標年度までに20%以上縮減する | CL7: c 目標年度までに50%以上縮減する | CM7: 農産物の輸出を行う | CQ7: 新規就農のポイント加点を受ける | CT7: 農業研修生（国内で農業を生業とする予定の者に限り、外国人技能実習制度に基づく者を除く。）を受け入れている | CW7: ア 女性農業者 イ 代表者が女性であるか、役員若しくは構成員のうち女性が過半を占める法人又は任意組織 ウ 法人又は任意組織 （※ア，イ，ウを記入） | CX7: 経営発展に向けた取組について、農業協同組合・農業協同組合連合会及び農業経営相談所等の支援機関のサポート体制が構築されている（対象：事業実施主体が認める者） | CY7: 導入した機械等を活用する農地等の概ね８割が中山間地域等直接支払交付金実施要領第４の対象地域であり、かつ同要領第４の対象農用地が存在する地域内の農地である（対象：事業実施主体が認める者） | DB7: 地区内全農地面積 | DC7: 担い手に集積された農地面積 | DD7: 集積率 | DF7: 地区内全農地面積 | DG7: 担い手に集積された農地面積 | DH7: 集積率 | DI7: 地区内全農地面積 | DJ7: 担い手に集積された農地面積（ａ） | DK7: 集積率 | DM7: 担い手に集積された農地面積（ｂ） | DN7: 増加した農地集積面積（ａ－ｂ）
A8: =SUM(個別表!G13:G350) -> 5 | AD8: （ア）付加価値額の拡大目標率（対象：事業実施主体が認める者以外の者（⑩新規就農のポイント加点を受ける者を除く。）） | AK8: （イ）付加価値額の拡大目標率（対象：事業実施主体が認める者（⑩新規就農のポイント加点を受ける者を除く。）） | AR8: （ア）付加価値額の拡大額の目標（対象：⑩新規就農のポイント加点を受ける者以外の者であって事業実施主体が認める者以外の者） | AY8: （イ）付加価値額の拡大額の目標（対象：⑩新規就農のポイント加点を受ける者以外の者であって事業実施主体が認める者） | BF8: （イ）付加価値額の目標（対象：⑩新規就農のポイント加点者） | BK8: ａ 農地中間管理機構等からの賃借権等の設定等かつ現状より4ha以上(施設20%､果樹10%)の経営面積の拡大 | BL8: ｂ 農地中間管理機構等からの賃借権等の設定等かつ現状より2ha以上(施設10%､果樹５%)の経営面積の拡大 | BM8: ｃ 農地中間管理機構等からの賃借権等の設定等かつ現状より経営面積の拡大、又は現状より4ha以上(施設20%､果樹10%)の経営面積の拡大 | BN8: ｄ 農地中間管理機構等からの賃借権等の設定等又は現状より2ha(施設10%､果樹５%)以上の経営面積の拡大 | BO8: ｅ アからエ以外の経営体で目標年度に現状より経営面積の拡大 | BP8: 経営面積の拡大を行うこととしている | BR8: うち事業実施主体が認める者である場合 | BS8: うち有機ＪＡＳの認証を受けている | BT8: うち有機ＪＡＳの認証を受ける場合 | CN8: a 現在、農産物の輸出の取組（他者との連携による取組を含む）を行っている。 | CO8: ｂ 輸出事業計画の認定を受けている、又は輸出事業計画に連携者として位置付けられている | CP8: ｃ 目標年度までに農産物売上高の15％以上を輸出に振り向ける | CR8: ａ 50歳までに就農した者である | CS8: ｂ 農業次世代人材投資資金（経営開始型）等の交付期間中に交付終了 | CU8: ａ 就農に向けて必要な技術等を習得できる経営体として都道府県が認めた者である | CV8: ｂ 過去５年以内に独立した認定就農者又は認定農業者（※農業研修生数を記入） | DO8: うち機構活用（新規集積面積） | DX8: ①助成対象者要件ごとの人数
AD9: ａ | AE9: ｂ | AF9: ｃ | AG9: d | AH9: ｅ | AI9: f | AJ9: ｇ | AK9: ａ | AL9: ｂ | AM9: ｃ | AN9: d | AO9: ｅ | AP9: f | AQ9: ｇ | AR9: ａ | AS9: ｂ | AT9: ｃ | AU9: ｄ | AV9: ｅ | AW9: ｆ | AX9: ｇ | AY9: ａ | AZ9: ｂ | BA9: ｃ | BB9: ｄ | BC9: ｅ | BD9: ｆ | BE9: ｇ | BF9: ａ | BG9: ｂ | BH9: ｃ | BI9: ｄ | BJ9: ｅ | DX9: 1 | DY9: 2 | DZ9: 3 | EA9: 4
A10: 市町村番号 | AD10: 現状の付加価値額の10%以上の増加 | AE10: 現状の付加価値額の15%以上の増加 | AF10: 現状の付加価値額の20%以上の増加 | AG10: 現状の付加価値額の30%以上の増加 | AH10: 現状の付加価値額の40%以上の増加 | AI10: 現状の付加価値額の50%以上の増加 | AJ10: 現状の付加価値額の60%以上の増加 | AK10: 現状から３％以上の増加 | AL10: 現状から10％以上の増加 | AM10: 現状から16％以上の増加 | AN10: 現状から21％以上の増加 | AO10: 現状から25％以上の増加 | AP10: 現状から28％以上の増加 | AQ10: 現状から30％以上の増加 | AR10: 100万円以上 | AS10: 150万円以上 | AT10: 300万円以上 | AU10: 400万円以上 | AV10: 650万円以上 | AW10: 1,000万円以上 | AX10: 1,500万円以上 | AY10: 50万円以上 | AZ10: 60万円以上 | BA10: 70万円以上 | BB10: 80万円以上 | BC10: 100万円以上 | BD10: 120万円以上 | BE10: 150万円以上 | BF10: 基準額（目標年度における就農後経過年数×50万円）以上 | BG10: 基準額の10%増し以上 | BH10: 基準額の20%増し以上 | BI10: 基準額の30%増し以上 | BJ10: 基準額の40%増し以上 | DB10: ha | DC10: ha | DD10: ％ | DE10: 1 | DF10: ha | DG10: ha | DH10: ％ | DI10: ha | DJ10: ha | DK10: ％ | DL10: 1 | DM10: ha | DN10: ha | DO10: ha | DP10: 1 | DS10: 0.5 | DX10: 中心経営体であり、農地中間管理機構から賃借権等の設定等を受けた者 | DY10: 中心経営体 | DZ10: 中間管理機構から賃借権等の設定等を受けた者 | EA10: 事業実施主体が認める者 | EB10: プラン作成
F11: =SUBTOTAL(9,F12:F25) -> 6 | G11: =SUBTOTAL(9,G12:G25) -> 184000000 | H11: 81227000 | I11: 3 | J11: 56500000 | K11: 3766000 | L11: 40000 | M11: 20000 | N11: =SUBTOTAL(9,N12:N25) -> 2 | O11: =SUBTOTAL(9,O12:O25) -> 90000000 | P11: 42271000 | Q11: 2 | R11: 39000000 | S11: 2599000 | T11: 6 | U11: 4 | V11: 1 | W11: 1 | X11: 1 | Y11: 1 | Z11: 1 | AA11: 1 | AB11: 1 | AC11: 2
A12: =VLOOKUP($B12,個別表!$C$13:$BP$350,2,FALSE) -> 1 | B12: =IF(ROW()-ROW($B$11)<=$A$8,ROW()-ROW($B$11),0) -> 1 | C12: =VLOOKUP($B12,個別表!$C$13:$BP$350,10,FALSE) -> 北海道 | D12: =VLOOKUP($B12,個別表!$C$13:$BP$350,11,FALSE) -> あ | E12: =VLOOKUP($B12,個別表!$C$13:$BP$350,12,FALSE) -> 甲 | F12: =SUMIF(個別表!$C$13:$C$350,総括表!$B12,個別表!$I$13:$I$350) -> 1 | G12: =SUMIF(個別表!$C$13:$C$350,総括表!$B12,個別表!$AV$13:$AV$350) -> 60000000 | H12: =SUMIF(個別表!$C$13:$C$350,総括表!$B12,個別表!$AX$13:$AX$350) -> 27000000 | I12: =SUMIF(個別表!$C$13:$C$350,総括表!$B12,個別表!$J$13:$J$350) -> 1 | J12: =SUMIF(個別表!$C$13:$C$350,$B12,個別表!$BP$13:$BP$350) -> 29000000 | K12: =IF(J12>0,ROUNDDOWN(J12*1/15,-3),0) -> 1933000 | L12: 40000 | M12: 20000 | N12: =SUMIFS(個別表!$I$13:$I$350,個別表!$C$13:$C$350,$B12,個別表!$AL$13:$AL$350,1) -> 1 | O12: =SUMIFS(個別表!$AV$13:$AV$350,個別表!$C$13:$C$350,$B12,個別表!$AL$13:$AL$350,1) -> 60000000 | P12: =SUMIFS(個別表!$AW$13:$AW$350,個別表!$C$13:$C$350,$B12,個別表!$AL$13:$AL$350,1) -> 27271000 | Q12: =SUMIFS(個別表!$J$13:$J$350,個別表!$C$13:$C$350,$B12,個別表!$AL$13:$AL$350,1) -> 1 | R12: =SUMIFS(個別表!$BP$13:$BP$350,個別表!$C$13:$C$350,$B12,個別表!$AL$13:$AL$350,1) -> 29000000 | S12: =IF(R12>0,ROUNDDOWN(R12*1/15,-3),0) -> 1933000 | T12: =IF($E12>0,SUMIF(個別表!$C$13:$C$350,$B12,個別表!BQ$13:BQ$350),0) -> 1 | U12: =IF($E12>0,SUMIF(個別表!$C$13:$C$350,$B12,個別表!BY$13:BY$350),0) -> 1 | V12: =IF($E12>0,SUMIF(個別表!$C$13:$C$350,$B12,個別表!BZ$13:BZ$350),0) -> 0 | W12: =IF($E12>0,SUMIF(個別表!$C$13:$C$350,$B12,個別表!CA$13:CA$350),0) -> 0 | X12: =IF($E12>0,SUMIF(個別表!$C$13:$C$350,$B12,個別表!CB$13:CB$350),0) -> 0 | Y12: =IF($E12>0,SUMIF(個別表!$C$13:$C$350,$B12,個別表!CC$13:CC$350),0) -> 0 | Z12: =IF($E12>0,SUMIF(個別表!$C$13:$C$350,$B12,個別表!CD$13:CD$350),0) -> 0 | AA12: =IF($E12>0,SUMIF(個別表!$C$13:$C$350,$B12,個別表!CE$13:CE$350),0) -> 0 | AB12: =IF($E12>0,SUMIF(個別表!$C$13:$C$350,$B12,個別表!CF$13:CF$350),0) -> 0 | AC12: =IF($E12>0,SUMIF(個別表!$C$13:$C$350,$B12,個別表!CG$13:CG$350),0) -> 1 | AD12: =IF($E12>0,SUMIF(個別表!$C$13:$C$350,$B12,個別表!GI$13:GI$350),0) -> 0 | AE12: =IF($E12>0,SUMIF(個別表!$C$13:$C$350,$B12,個別表!GJ$13:GJ$350),0) -> 0 | AF12: =IF($E12>0,SUMIF(個別表!$C$13:$C$350,$B12,個別表!GK$13:GK$350),0) -> 0 | AG12: =IF($E12>0,SUMIF(個別表!$C$13:$C$350,$B12,個別表!GL$13:GL$350),0) -> 0 | AH12: =IF($E12>0,SUMIF(個別表!$C$13:$C$350,$B12,個別表!GM$13:GM$350),0) -> 0 | AI12: =IF($E12>0,SUMIF(個別表!$C$13:$C$350,$B12,個別表!GN$13:GN$350),0) -> 0 | AJ12: =IF($E12>0,SUMIF(個別表!$C$13:$C$350,$B12,個別表!GO$13:GO$350),0) -> 7 | AK12: =IF($E12>0,SUMIF(個別表!$C$13:$C$350,$B12,個別表!GP$13:GP$350),0) -> 0 | AL12: =IF($E12>0,SUMIF(個別表!$C$13:$C$350,$B12,個別表!GQ$13:GQ$350),0) -> 0 | AM12: =IF($E12>0,SUMIF(個別表!$C$13:$C$350,$B12,個別表!GR$13:GR$350),0) -> 0 | AN12: =IF($E12>0,SUMIF(個別表!$C$13:$C$350,$B12,個別表!GS$13:GS$350),0) -> 0 | AO12: =IF($E12>0,SUMIF(個別表!$C$13:$C$350,$B12,個別表!GT$13:GT$350),0) -> 0 | AP12: =IF($E12>0,SUMIF(個別表!$C$13:$C$350,$B12,個別表!GU$13:GU$350),0) -> 0 | AQ12: =IF($E12>0,SUMIF(個別表!$C$13:$C$350,$B12,個別表!GV$13:GV$350),0) -> 0 | AR12: =IF($E12>0,SUMIF(個別表!$C$13:$C$350,$B12,個別表!GW$13:GW$350),0) -> 0 | AS12: =IF($E12>0,SUMIF(個別表!$C$13:$C$350,$B12,個別表!GX$13:GX$350),0) -> 0 | AT12: =IF($E12>0,SUMIF(個別表!$C$13:$C$350,$B12,個別表!GY$13:GY$350),0) -> 0 | AU12: =IF($E12>0,SUMIF(個別表!$C$13:$C$350,$B12,個別表!GZ$13:GZ$350),0) -> 0 | AV12: =IF($E12>0,SUMIF(個別表!$C$13:$C$350,$B12,個別表!HA$13:HA$350),0) -> 5 | AW12: =IF($E12>0,SUMIF(個別表!$C$13:$C$350,$B12,個別表!HB$13:HB$350),0) -> 0 | AX12: =IF($E12>0,SUMIF(個別表!$C$13:$C$350,$B12,個別表!HC$13:HC$350),0) -> 0 | AY12: =IF($E12>0,SUMIF(個別表!$C$13:$C$350,$B12,個別表!HD$13:HD$350),0) -> 0 | AZ12: =IF($E12>0,SUMIF(個別表!$C$13:$C$350,$B12,個別表!HE$13:HE$350),0) -> 0 | BA12: =IF($E12>0,SUMIF(個別表!$C$13:$C$350,$B12,個別表!HF$13:HF$350),0) -> 0 | BB12: =IF($E12>0,SUMIF(個別表!$C$13:$C$350,$B12,個別表!HG$13:HG$350),0) -> 0 | BC12: =IF($E12>0,SUMIF(個別表!$C$13:$C$350,$B12,個別表!HH$13:HH$350),0) -> 0 | BD12: =IF($E12>0,SUMIF(個別表!$C$13:$C$350,$B12,個別表!HI$13:HI$350),0) -> 0 | BE12: =IF($E12>0,SUMIF(個別表!$C$13:$C$350,$B12,個別表!HJ$13:HJ$350),0) -> 0 | BF12: =IF($E12>0,SUMIF(個別表!$C$13:$C$350,$B12,個別表!HK$13:HK$350),0) -> 0 | BG12: =IF($E12>0,SUMIF(個別表!$C$13:$C$350,$B12,個別表!HL$13:HL$350),0) -> 0 | BH12: =IF($E12>0,SUMIF(個別表!$C$13:$C$350,$B12,個別表!HM$13:HM$350),0) -> 0 | BI12: =IF($E12>0,SUMIF(個別表!$C$13:$C$350,$B12,個別表!HN$13:HN$350),0) -> 0 | BJ12: =IF($E12>0,SUMIF(個別表!$C$13:$C$350,$B12,個別表!HO$13:HO$350),0) -> 0 | BK12: =IF($E12>0,SUMIF(個別表!$C$13:$C$350,$B12,個別表!HP$13:HP$350),0) -> 0 | BL12: =IF($E12>0,SUMIF(個別表!$C$13:$C$350,$B12,個別表!HQ$13:HQ$350),0) -> 4 | BM12: =IF($E12>0,SUMIF(個別表!$C$13:$C$350,$B12,個別表!HR$13:HR$350),0) -> 0 | BN12: =IF($E12>0,SUMIF(個別表!$C$13:$C$350,$B12,個別表!HS$13:HS$350),0) -> 0 | BO12: =IF($E12>0,SUMIF(個別表!$C$13:$C$350,$B12,個別表!HT$13:HT$350),0) -> 0 | BP12: =IF($E12>0,SUMIF(個別表!$C$13:$C$350,$B12,個別表!HU$13:HU$350),0) -> 0 | BQ12: =IF($E12>0,SUMIF(個別表!$C$13:$C$350,$B12,個別表!HV$13:HV$350),0) -> 0 | BR12: =IF($E12>0,SUMIF(個別表!$C$13:$C$350,$B12,個別表!HW$13:HW$350),0) -> 0 | BS12: =IF($E12>0,SUMIF(個別表!$C$13:$C$350,$B12,個別表!HX$13:HX$350),0) -> 0 | BT12: =IF($E12>0,SUMIF(個別表!$C$13:$C$350,$B12,個別表!HY$13:HY$350),0) -> 0 | BU12: =IF($E12>0,SUMIF(個別表!$C$13:$C$350,$B12,個別表!HZ$13:HZ$350),0) -> 0 | BV12: =IF($E12>0,SUMIF(個別表!$C$13:$C$350,$B12,個別表!IA$13:IA$350),0) -> 0 | BW12: =IF($E12>0,SUMIF(個別表!$C$13:$C$350,$B12,個別表!IB$13:IB$350),0) -> 0 | BX12: =IF($E12>0,SUMIF(個別表!$C$13:$C$350,$B12,個別表!IC$13:IC$350),0) -> 0 | BY12: =IF($E12>0,SUMIF(個別表!$C$13:$C$350,$B12,個別表!ID$13:ID$350),0) -> 0 | BZ12: =IF($E12>0,SUMIF(個別表!$C$13:$C$350,$B12,個別表!IE$13:IE$350),0) -> 2 | CA12: =IF($E12>0,SUMIF(個別表!$C$13:$C$350,$B12,個別表!IF$13:IF$350),0) -> 0 | CB12: =IF($E12>0,SUMIF(個別表!$C$13:$C$350,$B12,個別表!IG$13:IG$350),0) -> 0 | CC12: =IF($E12>0,SUMIF(個別表!$C$13:$C$350,$B12,個別表!IH$13:IH$350),0) -> 1 | CD12: =IF($E12>0,SUMIF(個別表!$C$13:$C$350,$B12,個別表!II$13:II$350),0) -> 0 | CE12: =IF($E12>0,SUMIF(個別表!$C$13:$C$350,$B12,個別表!IJ$13:IJ$350),0) -> 1 | CF12: =IF($E12>0,SUMIF(個別表!$C$13:$C$350,$B12,個別表!IK$13:IK$350),0) -> 0 | CG12: =IF($E12>0,SUMIF(個別表!$C$13:$C$350,$B12,個別表!IL$13:IL$350),0) -> 0 | CH12: =IF($E12>0,SUMIF(個別表!$C$13:$C$350,$B12,個別表!IM$13:IM$350),0) -> 0 | CI12: =IF($E12>0,SUMIF(個別表!$C$13:$C$350,$B12,個別表!IN$13:IN$350),0) -> 0 | CJ12: =IF($E12>0,SUMIF(個別表!$C$13:$C$350,$B12,個別表!IO$13:IO$350),0) -> 0 | CK12: =IF($E12>0,SUMIF(個別表!$C$13:$C$350,$B12,個別表!IP$13:IP$350),0) -> 0 | CL12: =IF($E12>0,SUMIF(個別表!$C$13:$C$350,$B12,個別表!IQ$13:IQ$350),0) -> 0 | CM12: =IF($E12>0,SUMIF(個別表!$C$13:$C$350,$B12,個別表!IR$13:IR$350),0) -> 1 | CN12: =IF($E12>0,SUMIF(個別表!$C$13:$C$350,$B12,個別表!IS$13:IS$350),0) -> 1 | CO12: =IF($E12>0,SUMIF(個別表!$C$13:$C$350,$B12,個別表!IT$13:IT$350),0) -> 0 | CP12: =IF($E12>0,SUMIF(個別表!$C$13:$C$350,$B12,個別表!IU$13:IU$350),0) -> 0 | CQ12: =IF($E12>0,SUMIF(個別表!$C$13:$C$350,$B12,個別表!IV$13:IV$350),0) -> 0 | CR12: =IF($E12>0,SUMIF(個別表!$C$13:$C$350,$B12,個別表!IW$13:IW$350),0) -> 0 | CS12: =IF($E12>0,SUMIF(個別表!$C$13:$C$350,$B12,個別表!IX$13:IX$350),0) -> 0 | CT12: =IF($E12>0,SUMIF(個別表!$C$13:$C$350,$B12,個別表!IY$13:IY$350),0) -> 3 | CU12: =IF($E12>0,SUMIF(個別表!$C$13:$C$350,$B12,個別表!IZ$13:IZ$350),0) -> 0 | CV12: =IF($E12>0,SUMIF(個別表!$C$13:$C$350,$B12,個別表!JA$13:JA$350),0) -> 3 | CW12: =IF($E12>0,SUMIF(個別表!$C$13:$C$350,$B12,個別表!JB$13:JB$350),0) -> 0 | CX12: =IF($E12>0,SUMIF(個別表!$C$13:$C$350,$B12,個別表!JC$13:JC$350),0) -> 0 | CY12: =IF($E12>0,SUMIF(個別表!$C$13:$C$350,$B12,個別表!JD$13:JD$350),0) -> 0 | CZ12: =SUM(AD12:CY12) -> 28 | DA12: =IF(F12>0,CZ12/F12,0) -> 28 | DB12: 10 | DC12: 8 | DD12: =IF(DC12>0,ROUNDDOWN(DC12/DB12,3),0) -> 0.8 | DE12: =IF(DD12>=0.8,1,0) -> 1 | DF12: 10 | DG12: 7 | DH12: =IF(DG12>0,ROUNDDOWN(DG12/DF12,3),0) -> 0.7 | DI12: 10 | DJ12: 8 | DK12: =IF(DJ12>0,ROUNDDOWN(DJ12/DI12,3),0) -> 0.8 | DL12: =IF(AND(DH12>0,DK12>0),IF(DK12-DH12>=0.1,1,0),0) -> 1 | DM12: 7.5 | DN12: =IF(DM12>0,DJ12-DM12,0) -> 0.5 | DO12: 0.15 | DP12: =IF(DN12>0,IF(DO12/DN12>=0.3,1,0),0) -> 1 | DQ12: 2 | DT12: =SUM(DE12,DL12,DP12:DS12) -> 5 | DU12: =SUM(DA12,DT12) -> 33 | DX12: =IF($E12>0,COUNTIFS(個別表!$C$13:$C$350,$B12,個別表!$I$13:$I$350,1,個別表!$V$13:$V$350,DX$9),0) -> 1 | DY12: =IF($E12>0,COUNTIFS(個別表!$C$13:$C$350,$B12,個別表!$I$13:$I$350,1,個別表!$V$13:$V$350,DY$9),0) -> 0 | DZ12: =IF($E12>0,COUNTIFS(個別表!$C$13:$C$350,$B12,個別表!$I$13:$I$350,1,個別表!$V$13:$V$350,DZ$9),0) -> 0 | EA12: =IF($E12>0,COUNTIFS(個別表!$C$13:$C$350,$B12,個別表!$I$13:$I$350,1,個別表!$V$13:$V$350,EA$9),0) -> 0 | EB12: =IF(SUM(DX12:DY12,EA12)>0,IF(SUM(DQ12:DR12)>0,"○","×"),"") -> ○
A13: =VLOOKUP($B13,個別表!$C$13:$BP$350,2,FALSE) -> 2 | B13: =IF(ROW()-ROW($B$11)<=$A$8,ROW()-ROW($B$11),0) -> 2 | C13: =VLOOKUP($B13,個別表!$C$13:$BP$350,10,FALSE) -> 北海道 | D13: =VLOOKUP($B13,個別表!$C$13:$BP$350,11,FALSE) -> い | E13: =VLOOKUP($B13,個別表!$C$13:$BP$350,12,FALSE) -> 乙 | F13: =SUMIF(個別表!$C$13:$C$350,総括表!$B13,個別表!$I$13:$I$350) -> 2 | G13: =SUMIF(個別表!$C$13:$C$350,総括表!$B13,個別表!$AV$13:$AV$350) -> 52000000 | H13: =SUMIF(個別表!$C$13:$C$350,総括表!$B13,個別表!$AX$13:$AX$350) -> 23727000 | I13: =SUMIF(個別表!$C$13:$C$350,総括表!$B13,個別表!$J$13:$J$350) -> 0 | J13: =SUMIF(個別表!$C$13:$C$350,$B13,個別表!$BP$13:$BP$350) -> 0 | K13: =IF(J13>0,ROUNDDOWN(J13*1/15,-3),0) -> 0 | N13: =SUMIFS(個別表!$I$13:$I$350,個別表!$C$13:$C$350,$B13,個別表!$AL$13:$AL$350,1) -> 0 | O13: =SUMIFS(個別表!$AV$13:$AV$350,個別表!$C$13:$C$350,$B13,個別表!$AL$13:$AL$350,1) -> 0 | P13: =SUMIFS(個別表!$AW$13:$AW$350,個別表!$C$13:$C$350,$B13,個別表!$AL$13:$AL$350,1) -> 0 | Q13: =SUMIFS(個別表!$J$13:$J$350,個別表!$C$13:$C$350,$B13,個別表!$AL$13:$AL$350,1) -> 0 | R13: =SUMIFS(個別表!$BP$13:$BP$350,個別表!$C$13:$C$350,$B13,個別表!$AL$13:$AL$350,1) -> 0 | S13: =IF(R13>0,ROUNDDOWN(R13*1/15,-3),0) -> 0 | T13: =IF($E13>0,SUMIF(個別表!$C$13:$C$350,$B13,個別表!BQ$13:BQ$350),0) -> 2 | U13: =IF($E13>0,SUMIF(個別表!$C$13:$C$350,$B13,個別表!BY$13:BY$350),0) -> 2 | V13: =IF($E13>0,SUMIF(個別表!$C$13:$C$350,$B13,個別表!BZ$13:BZ$350),0) -> 0 | W13: =IF($E13>0,SUMIF(個別表!$C$13:$C$350,$B13,個別表!CA$13:CA$350),0) -> 0 | X13: =IF($E13>0,SUMIF(個別表!$C$13:$C$350,$B13,個別表!CB$13:CB$350),0) -> 0 | Y13: =IF($E13>0,SUMIF(個別表!$C$13:$C$350,$B13,個別表!CC$13:CC$350),0) -> 1 | Z13: =IF($E13>0,SUMIF(個別表!$C$13:$C$350,$B13,個別表!CD$13:CD$350),0) -> 1 | AA13: =IF($E13>0,SUMIF(個別表!$C$13:$C$350,$B13,個別表!CE$13:CE$350),0) -> 1 | AB13: =IF($E13>0,SUMIF(個別表!$C$13:$C$350,$B13,個別表!CF$13:CF$350),0) -> 1 | AC13: =IF($E13>0,SUMIF(個別表!$C$13:$C$350,$B13,個別表!CG$13:CG$350),0) -> 1 | AD13: =IF($E13>0,SUMIF(個別表!$C$13:$C$350,$B13,個別表!GI$13:GI$350),0) -> 0 | AE13: =IF($E13>0,SUMIF(個別表!$C$13:$C$350,$B13,個別表!GJ$13:GJ$350),0) -> 0 | AF13: =IF($E13>0,SUMIF(個別表!$C$13:$C$350,$B13,個別表!GK$13:GK$350),0) -> 0 | AG13: =IF($E13>0,SUMIF(個別表!$C$13:$C$350,$B13,個別表!GL$13:GL$350),0) -> 0 | AH13: =IF($E13>0,SUMIF(個別表!$C$13:$C$350,$B13,個別表!GM$13:GM$350),0) -> 0 | AI13: =IF($E13>0,SUMIF(個別表!$C$13:$C$350,$B13,個別表!GN$13:GN$350),0) -> 0 | AJ13: =IF($E13>0,SUMIF(個別表!$C$13:$C$350,$B13,個別表!GO$13:GO$350),0) -> 0 | AK13: =IF($E13>0,SUMIF(個別表!$C$13:$C$350,$B13,個別表!GP$13:GP$350),0) -> 1 | AL13: =IF($E13>0,SUMIF(個別表!$C$13:$C$350,$B13,個別表!GQ$13:GQ$350),0) -> 0 | AM13: =IF($E13>0,SUMIF(個別表!$C$13:$C$350,$B13,個別表!GR$13:GR$350),0) -> 0 | AN13: =IF($E13>0,SUMIF(個別表!$C$13:$C$350,$B13,個別表!GS$13:GS$350),0) -> 0 | AO13: =IF($E13>0,SUMIF(個別表!$C$13:$C$350,$B13,個別表!GT$13:GT$350),0) -> 0 | AP13: =IF($E13>0,SUMIF(個別表!$C$13:$C$350,$B13,個別表!GU$13:GU$350),0) -> 0 | AQ13: =IF($E13>0,SUMIF(個別表!$C$13:$C$350,$B13,個別表!GV$13:GV$350),0) -> 0 | AR13: =IF($E13>0,SUMIF(個別表!$C$13:$C$350,$B13,個別表!GW$13:GW$350),0) -> 0 | AS13: =IF($E13>0,SUMIF(個別表!$C$13:$C$350,$B13,個別表!GX$13:GX$350),0) -> 0 | AT13: =IF($E13>0,SUMIF(個別表!$C$13:$C$350,$B13,個別表!GY$13:GY$350),0) -> 0 | AU13: =IF($E13>0,SUMIF(個別表!$C$13:$C$350,$B13,個別表!GZ$13:GZ$350),0) -> 0 | AV13: =IF($E13>0,SUMIF(個別表!$C$13:$C$350,$B13,個別表!HA$13:HA$350),0) -> 0 | AW13: =IF($E13>0,SUMIF(個別表!$C$13:$C$350,$B13,個別表!HB$13:HB$350),0) -> 0 | AX13: =IF($E13>0,SUMIF(個別表!$C$13:$C$350,$B13,個別表!HC$13:HC$350),0) -> 7 | AY13: =IF($E13>0,SUMIF(個別表!$C$13:$C$350,$B13,個別表!HD$13:HD$350),0) -> 1 | AZ13: =IF($E13>0,SUMIF(個別表!$C$13:$C$350,$B13,個別表!HE$13:HE$350),0) -> 0 | BA13: =IF($E13>0,SUMIF(個別表!$C$13:$C$350,$B13,個別表!HF$13:HF$350),0) -> 0 | BB13: =IF($E13>0,SUMIF(個別表!$C$13:$C$350,$B13,個別表!HG$13:HG$350),0) -> 0 | BC13: =IF($E13>0,SUMIF(個別表!$C$13:$C$350,$B13,個別表!HH$13:HH$350),0) -> 0 | BD13: =IF($E13>0,SUMIF(個別表!$C$13:$C$350,$B13,個別表!HI$13:HI$350),0) -> 0 | BE13: =IF($E13>0,SUMIF(個別表!$C$13:$C$350,$B13,個別表!HJ$13:HJ$350),0) -> 0 | BF13: =IF($E13>0,SUMIF(個別表!$C$13:$C$350,$B13,個別表!HK$13:HK$350),0) -> 0 | BG13: =IF($E13>0,SUMIF(個別表!$C$13:$C$350,$B13,個別表!HL$13:HL$350),0) -> 0 | BH13: =IF($E13>0,SUMIF(個別表!$C$13:$C$350,$B13,個別表!HM$13:HM$350),0) -> 0 | BI13: =IF($E13>0,SUMIF(個別表!$C$13:$C$350,$B13,個別表!HN$13:HN$350),0) -> 0 | BJ13: =IF($E13>0,SUMIF(個別表!$C$13:$C$350,$B13,個別表!HO$13:HO$350),0) -> 0 | BK13: =IF($E13>0,SUMIF(個別表!$C$13:$C$350,$B13,個別表!HP$13:HP$350),0) -> 0 | BL13: =IF($E13>0,SUMIF(個別表!$C$13:$C$350,$B13,個別表!HQ$13:HQ$350),0) -> 0 | BM13: =IF($E13>0,SUMIF(個別表!$C$13:$C$350,$B13,個別表!HR$13:HR$350),0) -> 0 | BN13: =IF($E13>0,SUMIF(個別表!$C$13:$C$350,$B13,個別表!HS$13:HS$350),0) -> 0 | BO13: =IF($E13>0,SUMIF(個別表!$C$13:$C$350,$B13,個別表!HT$13:HT$350),0) -> 1 | BP13: =IF($E13>0,SUMIF(個別表!$C$13:$C$350,$B13,個別表!HU$13:HU$350),0) -> 2 | BQ13: =IF($E13>0,SUMIF(個別表!$C$13:$C$350,$B13,個別表!HV$13:HV$350),0) -> 1 | BR13: =IF($E13>0,SUMIF(個別表!$C$13:$C$350,$B13,個別表!HW$13:HW$350),0) -> 1 | BS13: =IF($E13>0,SUMIF(個別表!$C$13:$C$350,$B13,個別表!HX$13:HX$350),0) -> 0 | BT13: =IF($E13>0,SUMIF(個別表!$C$13:$C$350,$B13,個別表!HY$13:HY$350),0) -> 0 | BU13: =IF($E13>0,SUMIF(個別表!$C$13:$C$350,$B13,個別表!HZ$13:HZ$350),0) -> 0 | BV13: =IF($E13>0,SUMIF(個別表!$C$13:$C$350,$B13,個別表!IA$13:IA$350),0) -> 0 | BW13: =IF($E13>0,SUMIF(個別表!$C$13:$C$350,$B13,個別表!IB$13:IB$350),0) -> 0 | BX13: =IF($E13>0,SUMIF(個別表!$C$13:$C$350,$B13,個別表!IC$13:IC$350),0) -> 0 | BY13: =IF($E13>0,SUMIF(個別表!$C$13:$C$350,$B13,個別表!ID$13:ID$350),0) -> 0 | BZ13: =IF($E13>0,SUMIF(個別表!$C$13:$C$350,$B13,個別表!IE$13:IE$350),0) -> 2 | CA13: =IF($E13>0,SUMIF(個別表!$C$13:$C$350,$B13,個別表!IF$13:IF$350),0) -> 0 | CB13: =IF($E13>0,SUMIF(個別表!$C$13:$C$350,$B13,個別表!IG$13:IG$350),0) -> 0 | CC13: =IF($E13>0,SUMIF(個別表!$C$13:$C$350,$B13,個別表!IH$13:IH$350),0) -> 0 | CD13: =IF($E13>0,SUMIF(個別表!$C$13:$C$350,$B13,個別表!II$13:II$350),0) -> 1 | CE13: =IF($E13>0,SUMIF(個別表!$C$13:$C$350,$B13,個別表!IJ$13:IJ$350),0) -> 0 | CF13: =IF($E13>0,SUMIF(個別表!$C$13:$C$350,$B13,個別表!IK$13:IK$350),0) -> 0 | CG13: =IF($E13>0,SUMIF(個別表!$C$13:$C$350,$B13,個別表!IL$13:IL$350),0) -> 1 | CH13: =IF($E13>0,SUMIF(個別表!$C$13:$C$350,$B13,個別表!IM$13:IM$350),0) -> 0 | CI13: =IF($E13>0,SUMIF(個別表!$C$13:$C$350,$B13,個別表!IN$13:IN$350),0) -> 2 | CJ13: =IF($E13>0,SUMIF(個別表!$C$13:$C$350,$B13,個別表!IO$13:IO$350),0) -> 0 | CK13: =IF($E13>0,SUMIF(個別表!$C$13:$C$350,$B13,個別表!IP$13:IP$350),0) -> 2 | CL13: =IF($E13>0,SUMIF(個別表!$C$13:$C$350,$B13,個別表!IQ$13:IQ$350),0) -> 0 | CM13: =IF($E13>0,SUMIF(個別表!$C$13:$C$350,$B13,個別表!IR$13:IR$350),0) -> 1 | CN13: =IF($E13>0,SUMIF(個別表!$C$13:$C$350,$B13,個別表!IS$13:IS$350),0) -> 0 | CO13: =IF($E13>0,SUMIF(個別表!$C$13:$C$350,$B13,個別表!IT$13:IT$350),0) -> 0 | CP13: =IF($E13>0,SUMIF(個別表!$C$13:$C$350,$B13,個別表!IU$13:IU$350),0) -> 0 | CQ13: =IF($E13>0,SUMIF(個別表!$C$13:$C$350,$B13,個別表!IV$13:IV$350),0) -> 0 | CR13: =IF($E13>0,SUMIF(個別表!$C$13:$C$350,$B13,個別表!IW$13:IW$350),0) -> 0 | CS13: =IF($E13>0,SUMIF(個別表!$C$13:$C$350,$B13,個別表!IX$13:IX$350),0) -> 0 | CT13: =IF($E13>0,SUMIF(個別表!$C$13:$C$350,$B13,個別表!IY$13:IY$350),0) -> 3 | CU13: =IF($E13>0,SUMIF(個別表!$C$13:$C$350,$B13,個別表!IZ$13:IZ$350),0) -> 0 | CV13: =IF($E13>0,SUMIF(個別表!$C$13:$C$350,$B13,個別表!JA$13:JA$350),0) -> 2 | CW13: =IF($E13>0,SUMIF(個別表!$C$13:$C$350,$B13,個別表!JB$13:JB$350),0) -> 3 | CX13: =IF($E13>0,SUMIF(個別表!$C$13:$C$350,$B13,個別表!JC$13:JC$350),0) -> 1 | CY13: =IF($E13>0,SUMIF(個別表!$C$13:$C$350,$B13,個別表!JD$13:JD$350),0) -> 0.5 | CZ13: 32.5 | DA13: 16.25 | DD13: =IF(DC13>0,ROUNDDOWN(DC13/DB13,3),0) -> 0 | DE13: =IF(DD13>=0.8,1,0) -> 0 | DF13: 10 | DG13: 5 | DH13: =IF(DG13>0,ROUNDDOWN(DG13/DF13,3),0) -> 0.5 | DI13: 10 | DJ13: 6 | DK13: =IF(DJ13>0,ROUNDDOWN(DJ13/DI13,3),0) -> 0.6 | DL13: =IF(AND(DH13>0,DK13>0),IF(DK13-DH13>=0.1,1,0),0) -> 1 | DM13: 5 | DN13: =IF(DM13>0,DJ13-DM13,0) -> 1 | DO13: 0.5 | DP13: =IF(DN13>0,IF(DO13/DN13>=0.3,1,0),0) -> 1 | DQ13: 2 | DS13: 0.5 | DT13: =SUM(DE13,DL13,DP13:DS13) -> 4.5 | DU13: =SUM(DA13,DT13) -> 20.75 | DX13: =IF($E13>0,COUNTIFS(個別表!$C$13:$C$350,$B13,個別表!$I$13:$I$350,1,個別表!$V$13:$V$350,DX$9),0) -> 0 | DY13: =IF($E13>0,COUNTIFS(個別表!$C$13:$C$350,$B13,個別表!$I$13:$I$350,1,個別表!$V$13:$V$350,DY$9),0) -> 1 | DZ13: =IF($E13>0,COUNTIFS(個別表!$C$13:$C$350,$B13,個別表!$I$13:$I$350,1,個別表!$V$13:$V$350,DZ$9),0) -> 0 | EA13: =IF($E13>0,COUNTIFS(個別表!$C$13:$C$350,$B13,個別表!$I$13:$I$350,1,個別表!$V$13:$V$350,EA$9),0) -> 1 | EB13: =IF(SUM(DX13:DY13,EA13)>0,IF(SUM(DQ13:DR13)>0,"○","×"),"") -> ○
A14: =VLOOKUP($B14,個別表!$C$13:$BP$350,2,FALSE) -> 3 | B14: 3 | C14: =VLOOKUP($B14,個別表!$C$13:$BP$350,10,FALSE) -> 青森県 | D14: =VLOOKUP($B14,個別表!$C$13:$BP$350,11,FALSE) -> う | E14: =VLOOKUP($B14,個別表!$C$13:$BP$350,12,FALSE) -> 丙 | F14: =SUMIF(個別表!$C$13:$C$350,総括表!$B14,個別表!$I$13:$I$350) -> 1 | G14: =SUMIF(個別表!$C$13:$C$350,総括表!$B14,個別表!$AV$13:$AV$350) -> 7000000 | H14: =SUMIF(個別表!$C$13:$C$350,総括表!$B14,個別表!$AX$13:$AX$350) -> 3000000 | I14: =SUMIF(個別表!$C$13:$C$350,総括表!$B14,個別表!$J$13:$J$350) -> 0 | J14: =SUMIF(個別表!$C$13:$C$350,$B14,個別表!$BP$13:$BP$350) -> 0 | K14: 0 | N14: =SUMIFS(個別表!$I$13:$I$350,個別表!$C$13:$C$350,$B14,個別表!$AL$13:$AL$350,1) -> 0 | O14: =SUMIFS(個別表!$AV$13:$AV$350,個別表!$C$13:$C$350,$B14,個別表!$AL$13:$AL$350,1) -> 0 | P14: =SUMIFS(個別表!$AW$13:$AW$350,個別表!$C$13:$C$350,$B14,個別表!$AL$13:$AL$350,1) -> 0 | Q14: =SUMIFS(個別表!$J$13:$J$350,個別表!$C$13:$C$350,$B14,個別表!$AL$13:$AL$350,1) -> 0 | R14: =SUMIFS(個別表!$BP$13:$BP$350,個別表!$C$13:$C$350,$B14,個別表!$AL$13:$AL$350,1) -> 0 | S14: 0 | T14: =IF($E14>0,SUMIF(個別表!$C$13:$C$350,$B14,個別表!BQ$13:BQ$350),0) -> 1 | U14: =IF($E14>0,SUMIF(個別表!$C$13:$C$350,$B14,個別表!BY$13:BY$350),0) -> 0 | V14: =IF($E14>0,SUMIF(個別表!$C$13:$C$350,$B14,個別表!BZ$13:BZ$350),0) -> 0 | W14: =IF($E14>0,SUMIF(個別表!$C$13:$C$350,$B14,個別表!CA$13:CA$350),0) -> 0 | X14: =IF($E14>0,SUMIF(個別表!$C$13:$C$350,$B14,個別表!CB$13:CB$350),0) -> 0 | Y14: =IF($E14>0,SUMIF(個別表!$C$13:$C$350,$B14,個別表!CC$13:CC$350),0) -> 0 | Z14: =IF($E14>0,SUMIF(個別表!$C$13:$C$350,$B14,個別表!CD$13:CD$350),0) -> 0 | AA14: =IF($E14>0,SUMIF(個別表!$C$13:$C$350,$B14,個別表!CE$13:CE$350),0) -> 0 | AB14: =IF($E14>0,SUMIF(個別表!$C$13:$C$350,$B14,個別表!CF$13:CF$350),0) -> 0 | AC14: =IF($E14>0,SUMIF(個別表!$C$13:$C$350,$B14,個別表!CG$13:CG$350),0) -> 0 | AD14: =IF($E14>0,SUMIF(個別表!$C$13:$C$350,$B14,個別表!GI$13:GI$350),0) -> 0 | AE14: =IF($E14>0,SUMIF(個別表!$C$13:$C$350,$B14,個別表!GJ$13:GJ$350),0) -> 0 | AF14: =IF($E14>0,SUMIF(個別表!$C$13:$C$350,$B14,個別表!GK$13:GK$350),0) -> 0 | AG14: =IF($E14>0,SUMIF(個別表!$C$13:$C$350,$B14,個別表!GL$13:GL$350),0) -> 0 | AH14: =IF($E14>0,SUMIF(個別表!$C$13:$C$350,$B14,個別表!GM$13:GM$350),0) -> 0 | AI14: =IF($E14>0,SUMIF(個別表!$C$13:$C$350,$B14,個別表!GN$13:GN$350),0) -> 0 | AJ14: =IF($E14>0,SUMIF(個別表!$C$13:$C$350,$B14,個別表!GO$13:GO$350),0) -> 0 | AK14: =IF($E14>0,SUMIF(個別表!$C$13:$C$350,$B14,個別表!GP$13:GP$350),0) -> 0 | AL14: =IF($E14>0,SUMIF(個別表!$C$13:$C$350,$B14,個別表!GQ$13:GQ$350),0) -> 0 | AM14: =IF($E14>0,SUMIF(個別表!$C$13:$C$350,$B14,個別表!GR$13:GR$350),0) -> 0 | AN14: =IF($E14>0,SUMIF(個別表!$C$13:$C$350,$B14,個別表!GS$13:GS$350),0) -> 0 | AO14: =IF($E14>0,SUMIF(個別表!$C$13:$C$350,$B14,個別表!GT$13:GT$350),0) -> 0 | AP14: =IF($E14>0,SUMIF(個別表!$C$13:$C$350,$B14,個別表!GU$13:GU$350),0) -> 0 | AQ14: =IF($E14>0,SUMIF(個別表!$C$13:$C$350,$B14,個別表!GV$13:GV$350),0) -> 0 | AR14: =IF($E14>0,SUMIF(個別表!$C$13:$C$350,$B14,個別表!GW$13:GW$350),0) -> 0 | AS14: =IF($E14>0,SUMIF(個別表!$C$13:$C$350,$B14,個別表!GX$13:GX$350),0) -> 0 | AT14: =IF($E14>0,SUMIF(個別表!$C$13:$C$350,$B14,個別表!GY$13:GY$350),0) -> 0 | AU14: =IF($E14>0,SUMIF(個別表!$C$13:$C$350,$B14,個別表!GZ$13:GZ$350),0) -> 0 | AV14: =IF($E14>0,SUMIF(個別表!$C$13:$C$350,$B14,個別表!HA$13:HA$350),0) -> 0 | AW14: =IF($E14>0,SUMIF(個別表!$C$13:$C$350,$B14,個別表!HB$13:HB$350),0) -> 0 | AX14: =IF($E14>0,SUMIF(個別表!$C$13:$C$350,$B14,個別表!HC$13:HC$350),0) -> 7 | AY14: =IF($E14>0,SUMIF(個別表!$C$13:$C$350,$B14,個別表!HD$13:HD$350),0) -> 0 | AZ14: =IF($E14>0,SUMIF(個別表!$C$13:$C$350,$B14,個別表!HE$13:HE$350),0) -> 0 | BA14: =IF($E14>0,SUMIF(個別表!$C$13:$C$350,$B14,個別表!HF$13:HF$350),0) -> 0 | BB14: =IF($E14>0,SUMIF(個別表!$C$13:$C$350,$B14,個別表!HG$13:HG$350),0) -> 0 | BC14: =IF($E14>0,SUMIF(個別表!$C$13:$C$350,$B14,個別表!HH$13:HH$350),0) -> 0 | BD14: =IF($E14>0,SUMIF(個別表!$C$13:$C$350,$B14,個別表!HI$13:HI$350),0) -> 0 | BE14: =IF($E14>0,SUMIF(個別表!$C$13:$C$350,$B14,個別表!HJ$13:HJ$350),0) -> 0 | BF14: =IF($E14>0,SUMIF(個別表!$C$13:$C$350,$B14,個別表!HK$13:HK$350),0) -> 0 | BG14: =IF($E14>0,SUMIF(個別表!$C$13:$C$350,$B14,個別表!HL$13:HL$350),0) -> 0 | BH14: =IF($E14>0,SUMIF(個別表!$C$13:$C$350,$B14,個別表!HM$13:HM$350),0) -> 0 | BI14: =IF($E14>0,SUMIF(個別表!$C$13:$C$350,$B14,個別表!HN$13:HN$350),0) -> 0 | BJ14: =IF($E14>0,SUMIF(個別表!$C$13:$C$350,$B14,個別表!HO$13:HO$350),0) -> 0 | BK14: =IF($E14>0,SUMIF(個別表!$C$13:$C$350,$B14,個別表!HP$13:HP$350),0) -> 0 | BL14: =IF($E14>0,SUMIF(個別表!$C$13:$C$350,$B14,個別表!HQ$13:HQ$350),0) -> 0 | BM14: =IF($E14>0,SUMIF(個別表!$C$13:$C$350,$B14,個別表!HR$13:HR$350),0) -> 0 | BN14: =IF($E14>0,SUMIF(個別表!$C$13:$C$350,$B14,個別表!HS$13:HS$350),0) -> 0 | BO14: =IF($E14>0,SUMIF(個別表!$C$13:$C$350,$B14,個別表!HT$13:HT$350),0) -> 0 | BP14: =IF($E14>0,SUMIF(個別表!$C$13:$C$350,$B14,個別表!HU$13:HU$350),0) -> 0 | BQ14: =IF($E14>0,SUMIF(個別表!$C$13:$C$350,$B14,個別表!HV$13:HV$350),0) -> 1 | BR14: =IF($E14>0,SUMIF(個別表!$C$13:$C$350,$B14,個別表!HW$13:HW$350),0) -> 0 | BS14: =IF($E14>0,SUMIF(個別表!$C$13:$C$350,$B14,個別表!HX$13:HX$350),0) -> 1 | BT14: =IF($E14>0,SUMIF(個別表!$C$13:$C$350,$B14,個別表!HY$13:HY$350),0) -> 0 | BU14: =IF($E14>0,SUMIF(個別表!$C$13:$C$350,$B14,個別表!HZ$13:HZ$350),0) -> 1 | BV14: =IF($E14>0,SUMIF(個別表!$C$13:$C$350,$B14,個別表!IA$13:IA$350),0) -> 0 | BW14: =IF($E14>0,SUMIF(個別表!$C$13:$C$350,$B14,個別表!IB$13:IB$350),0) -> 0 | BX14: =IF($E14>0,SUMIF(個別表!$C$13:$C$350,$B14,個別表!IC$13:IC$350),0) -> 0 | BY14: =IF($E14>0,SUMIF(個別表!$C$13:$C$350,$B14,個別表!ID$13:ID$350),0) -> 0 | BZ14: =IF($E14>0,SUMIF(個別表!$C$13:$C$350,$B14,個別表!IE$13:IE$350),0) -> 0 | CA14: =IF($E14>0,SUMIF(個別表!$C$13:$C$350,$B14,個別表!IF$13:IF$350),0) -> 0 | CB14: =IF($E14>0,SUMIF(個別表!$C$13:$C$350,$B14,個別表!IG$13:IG$350),0) -> 1 | CC14: =IF($E14>0,SUMIF(個別表!$C$13:$C$350,$B14,個別表!IH$13:IH$350),0) -> 1 | CD14: =IF($E14>0,SUMIF(個別表!$C$13:$C$350,$B14,個別表!II$13:II$350),0) -> 0 | CE14: =IF($E14>0,SUMIF(個別表!$C$13:$C$350,$B14,個別表!IJ$13:IJ$350),0) -> 0 | CF14: =IF($E14>0,SUMIF(個別表!$C$13:$C$350,$B14,個別表!IK$13:IK$350),0) -> 0 | CG14: =IF($E14>0,SUMIF(個別表!$C$13:$C$350,$B14,個別表!IL$13:IL$350),0) -> 0 | CH14: =IF($E14>0,SUMIF(個別表!$C$13:$C$350,$B14,個別表!IM$13:IM$350),0) -> 0 | CI14: =IF($E14>0,SUMIF(個別表!$C$13:$C$350,$B14,個別表!IN$13:IN$350),0) -> 0 | CJ14: =IF($E14>0,SUMIF(個別表!$C$13:$C$350,$B14,個別表!IO$13:IO$350),0) -> 0 | CK14: =IF($E14>0,SUMIF(個別表!$C$13:$C$350,$B14,個別表!IP$13:IP$350),0) -> 0 | CL14: =IF($E14>0,SUMIF(個別表!$C$13:$C$350,$B14,個別表!IQ$13:IQ$350),0) -> 0 | CM14: =IF($E14>0,SUMIF(個別表!$C$13:$C$350,$B14,個別表!IR$13:IR$350),0) -> 0 | CN14: =IF($E14>0,SUMIF(個別表!$C$13:$C$350,$B14,個別表!IS$13:IS$350),0) -> 0 | CO14: =IF($E14>0,SUMIF(個別表!$C$13:$C$350,$B14,個別表!IT$13:IT$350),0) -> 0 | CP14: =IF($E14>0,SUMIF(個別表!$C$13:$C$350,$B14,個別表!IU$13:IU$350),0) -> 0 | CQ14: =IF($E14>0,SUMIF(個別表!$C$13:$C$350,$B14,個別表!IV$13:IV$350),0) -> 0 | CR14: =IF($E14>0,SUMIF(個別表!$C$13:$C$350,$B14,個別表!IW$13:IW$350),0) -> 0 | CS14: =IF($E14>0,SUMIF(個別表!$C$13:$C$350,$B14,個別表!IX$13:IX$350),0) -> 0 | CT14: =IF($E14>0,SUMIF(個別表!$C$13:$C$350,$B14,個別表!IY$13:IY$350),0) -> 0 | CU14: =IF($E14>0,SUMIF(個別表!$C$13:$C$350,$B14,個別表!IZ$13:IZ$350),0) -> 0 | CV14: =IF($E14>0,SUMIF(個別表!$C$13:$C$350,$B14,個別表!JA$13:JA$350),0) -> 0 | CW14: =IF($E14>0,SUMIF(個別表!$C$13:$C$350,$B14,個別表!JB$13:JB$350),0) -> 0 | CX14: =IF($E14>0,SUMIF(個別表!$C$13:$C$350,$B14,個別表!JC$13:JC$350),0) -> 0 | CY14: =IF($E14>0,SUMIF(個別表!$C$13:$C$350,$B14,個別表!JD$13:JD$350),0) -> 0 | CZ14: 12 | DA14: 12 | DD14: 0 | DE14: 0 | DH14: 0 | DK14: 0 | DL14: 0 | DN14: 0 | DP14: 0 | DR14: 1 | DT14: 1 | DU14: 13 | DX14: =IF($E14>0,COUNTIFS(個別表!$C$13:$C$350,$B14,個別表!$I$13:$I$350,1,個別表!$V$13:$V$350,DX$9),0) -> 0 | DY14: =IF($E14>0,COUNTIFS(個別表!$C$13:$C$350,$B14,個別表!$I$13:$I$350,1,個別表!$V$13:$V$350,DY$9),0) -> 1 | DZ14: =IF($E14>0,COUNTIFS(個別表!$C$13:$C$350,$B14,個別表!$I$13:$I$350,1,個別表!$V$13:$V$350,DZ$9),0) -> 0 | EA14: =IF($E14>0,COUNTIFS(個別表!$C$13:$C$350,$B14,個別表!$I$13:$I$350,1,個別表!$V$13:$V$350,EA$9),0) -> 0 | EB14: ○
A15: =VLOOKUP($B15,個別表!$C$13:$BP$350,2,FALSE) -> 3 | B15: 4 | C15: =VLOOKUP($B15,個別表!$C$13:$BP$350,10,FALSE) -> 青森県 | D15: =VLOOKUP($B15,個別表!$C$13:$BP$350,11,FALSE) -> う | E15: =VLOOKUP($B15,個別表!$C$13:$BP$350,12,FALSE) -> 丁 | F15: =SUMIF(個別表!$C$13:$C$350,総括表!$B15,個別表!$I$13:$I$350) -> 1 | G15: =SUMIF(個別表!$C$13:$C$350,総括表!$B15,個別表!$AV$13:$AV$350) -> 25000000 | H15: =SUMIF(個別表!$C$13:$C$350,総括表!$B15,個別表!$AX$13:$AX$350) -> 12500000 | I15: =SUMIF(個別表!$C$13:$C$350,総括表!$B15,個別表!$J$13:$J$350) -> 1 | J15: =SUMIF(個別表!$C$13:$C$350,$B15,個別表!$BP$13:$BP$350) -> 12500000 | K15: 833000 | N15: =SUMIFS(個別表!$I$13:$I$350,個別表!$C$13:$C$350,$B15,個別表!$AL$13:$AL$350,1) -> 0 | O15: =SUMIFS(個別表!$AV$13:$AV$350,個別表!$C$13:$C$350,$B15,個別表!$AL$13:$AL$350,1) -> 0 | P15: =SUMIFS(個別表!$AW$13:$AW$350,個別表!$C$13:$C$350,$B15,個別表!$AL$13:$AL$350,1) -> 0 | Q15: =SUMIFS(個別表!$J$13:$J$350,個別表!$C$13:$C$350,$B15,個別表!$AL$13:$AL$350,1) -> 0 | R15: =SUMIFS(個別表!$BP$13:$BP$350,個別表!$C$13:$C$350,$B15,個別表!$AL$13:$AL$350,1) -> 0 | S15: 0 | T15: =IF($E15>0,SUMIF(個別表!$C$13:$C$350,$B15,個別表!BQ$13:BQ$350),0) -> 1 | U15: =IF($E15>0,SUMIF(個別表!$C$13:$C$350,$B15,個別表!BY$13:BY$350),0) -> 0 | V15: =IF($E15>0,SUMIF(個別表!$C$13:$C$350,$B15,個別表!BZ$13:BZ$350),0) -> 1 | W15: =IF($E15>0,SUMIF(個別表!$C$13:$C$350,$B15,個別表!CA$13:CA$350),0) -> 0 | X15: =IF($E15>0,SUMIF(個別表!$C$13:$C$350,$B15,個別表!CB$13:CB$350),0) -> 1 | Y15: =IF($E15>0,SUMIF(個別表!$C$13:$C$350,$B15,個別表!CC$13:CC$350),0) -> 0 | Z15: =IF($E15>0,SUMIF(個別表!$C$13:$C$350,$B15,個別表!CD$13:CD$350),0) -> 0 | AA15: =IF($E15>0,SUMIF(個別表!$C$13:$C$350,$B15,個別表!CE$13:CE$350),0) -> 0 | AB15: =IF($E15>0,SUMIF(個別表!$C$13:$C$350,$B15,個別表!CF$13:CF$350),0) -> 0 | AC15: =IF($E15>0,SUMIF(個別表!$C$13:$C$350,$B15,個別表!CG$13:CG$350),0) -> 0 | AD15: =IF($E15>0,SUMIF(個別表!$C$13:$C$350,$B15,個別表!GI$13:GI$350),0) -> 0 | AE15: =IF($E15>0,SUMIF(個別表!$C$13:$C$350,$B15,個別表!GJ$13:GJ$350),0) -> 0 | AF15: =IF($E15>0,SUMIF(個別表!$C$13:$C$350,$B15,個別表!GK$13:GK$350),0) -> 0 | AG15: =IF($E15>0,SUMIF(個別表!$C$13:$C$350,$B15,個別表!GL$13:GL$350),0) -> 0 | AH15: =IF($E15>0,SUMIF(個別表!$C$13:$C$350,$B15,個別表!GM$13:GM$350),0) -> 0 | AI15: =IF($E15>0,SUMIF(個別表!$C$13:$C$350,$B15,個別表!GN$13:GN$350),0) -> 6 | AJ15: =IF($E15>0,SUMIF(個別表!$C$13:$C$350,$B15,個別表!GO$13:GO$350),0) -> 0 | AK15: =IF($E15>0,SUMIF(個別表!$C$13:$C$350,$B15,個別表!GP$13:GP$350),0) -> 0 | AL15: =IF($E15>0,SUMIF(個別表!$C$13:$C$350,$B15,個別表!GQ$13:GQ$350),0) -> 0 | AM15: =IF($E15>0,SUMIF(個別表!$C$13:$C$350,$B15,個別表!GR$13:GR$350),0) -> 0 | AN15: =IF($E15>0,SUMIF(個別表!$C$13:$C$350,$B15,個別表!GS$13:GS$350),0) -> 0 | AO15: =IF($E15>0,SUMIF(個別表!$C$13:$C$350,$B15,個別表!GT$13:GT$350),0) -> 0 | AP15: =IF($E15>0,SUMIF(個別表!$C$13:$C$350,$B15,個別表!GU$13:GU$350),0) -> 0 | AQ15: =IF($E15>0,SUMIF(個別表!$C$13:$C$350,$B15,個別表!GV$13:GV$350),0) -> 0 | AR15: =IF($E15>0,SUMIF(個別表!$C$13:$C$350,$B15,個別表!GW$13:GW$350),0) -> 0 | AS15: =IF($E15>0,SUMIF(個別表!$C$13:$C$350,$B15,個別表!GX$13:GX$350),0) -> 0 | AT15: =IF($E15>0,SUMIF(個別表!$C$13:$C$350,$B15,個別表!GY$13:GY$350),0) -> 0 | AU15: =IF($E15>0,SUMIF(個別表!$C$13:$C$350,$B15,個別表!GZ$13:GZ$350),0) -> 0 | AV15: =IF($E15>0,SUMIF(個別表!$C$13:$C$350,$B15,個別表!HA$13:HA$350),0) -> 0 | AW15: =IF($E15>0,SUMIF(個別表!$C$13:$C$350,$B15,個別表!HB$13:HB$350),0) -> 6 | AX15: =IF($E15>0,SUMIF(個別表!$C$13:$C$350,$B15,個別表!HC$13:HC$350),0) -> 0 | AY15: =IF($E15>0,SUMIF(個別表!$C$13:$C$350,$B15,個別表!HD$13:HD$350),0) -> 0 | AZ15: =IF($E15>0,SUMIF(個別表!$C$13:$C$350,$B15,個別表!HE$13:HE$350),0) -> 0 | BA15: =IF($E15>0,SUMIF(個別表!$C$13:$C$350,$B15,個別表!HF$13:HF$350),0) -> 0 | BB15: =IF($E15>0,SUMIF(個別表!$C$13:$C$350,$B15,個別表!HG$13:HG$350),0) -> 0 | BC15: =IF($E15>0,SUMIF(個別表!$C$13:$C$350,$B15,個別表!HH$13:HH$350),0) -> 0 | BD15: =IF($E15>0,SUMIF(個別表!$C$13:$C$350,$B15,個別表!HI$13:HI$350),0) -> 0 | BE15: =IF($E15>0,SUMIF(個別表!$C$13:$C$350,$B15,個別表!HJ$13:HJ$350),0) -> 0 | BF15: =IF($E15>0,SUMIF(個別表!$C$13:$C$350,$B15,個別表!HK$13:HK$350),0) -> 0 | BG15: =IF($E15>0,SUMIF(個別表!$C$13:$C$350,$B15,個別表!HL$13:HL$350),0) -> 0 | BH15: =IF($E15>0,SUMIF(個別表!$C$13:$C$350,$B15,個別表!HM$13:HM$350),0) -> 0 | BI15: =IF($E15>0,SUMIF(個別表!$C$13:$C$350,$B15,個別表!HN$13:HN$350),0) -> 0 | BJ15: =IF($E15>0,SUMIF(個別表!$C$13:$C$350,$B15,個別表!HO$13:HO$350),0) -> 0 | BK15: =IF($E15>0,SUMIF(個別表!$C$13:$C$350,$B15,個別表!HP$13:HP$350),0) -> 0 | BL15: =IF($E15>0,SUMIF(個別表!$C$13:$C$350,$B15,個別表!HQ$13:HQ$350),0) -> 0 | BM15: =IF($E15>0,SUMIF(個別表!$C$13:$C$350,$B15,個別表!HR$13:HR$350),0) -> 0 | BN15: =IF($E15>0,SUMIF(個別表!$C$13:$C$350,$B15,個別表!HS$13:HS$350),0) -> 0 | BO15: =IF($E15>0,SUMIF(個別表!$C$13:$C$350,$B15,個別表!HT$13:HT$350),0) -> 0 | BP15: =IF($E15>0,SUMIF(個別表!$C$13:$C$350,$B15,個別表!HU$13:HU$350),0) -> 0 | BQ15: =IF($E15>0,SUMIF(個別表!$C$13:$C$350,$B15,個別表!HV$13:HV$350),0) -> 1 | BR15: =IF($E15>0,SUMIF(個別表!$C$13:$C$350,$B15,個別表!HW$13:HW$350),0) -> 0 | BS15: =IF($E15>0,SUMIF(個別表!$C$13:$C$350,$B15,個別表!HX$13:HX$350),0) -> 0 | BT15: =IF($E15>0,SUMIF(個別表!$C$13:$C$350,$B15,個別表!HY$13:HY$350),0) -> 1 | BU15: =IF($E15>0,SUMIF(個別表!$C$13:$C$350,$B15,個別表!HZ$13:HZ$350),0) -> 0 | BV15: =IF($E15>0,SUMIF(個別表!$C$13:$C$350,$B15,個別表!IA$13:IA$350),0) -> 0 | BW15: =IF($E15>0,SUMIF(個別表!$C$13:$C$350,$B15,個別表!IB$13:IB$350),0) -> 0 | BX15: =IF($E15>0,SUMIF(個別表!$C$13:$C$350,$B15,個別表!IC$13:IC$350),0) -> 0 | BY15: =IF($E15>0,SUMIF(個別表!$C$13:$C$350,$B15,個別表!ID$13:ID$350),0) -> 0 | BZ15: =IF($E15>0,SUMIF(個別表!$C$13:$C$350,$B15,個別表!IE$13:IE$350),0) -> 0 | CA15: =IF($E15>0,SUMIF(個別表!$C$13:$C$350,$B15,個別表!IF$13:IF$350),0) -> 2 | CB15: =IF($E15>0,SUMIF(個別表!$C$13:$C$350,$B15,個別表!IG$13:IG$350),0) -> 0 | CC15: =IF($E15>0,SUMIF(個別表!$C$13:$C$350,$B15,個別表!IH$13:IH$350),0) -> 0 | CD15: =IF($E15>0,SUMIF(個別表!$C$13:$C$350,$B15,個別表!II$13:II$350),0) -> 0 | CE15: =IF($E15>0,SUMIF(個別表!$C$13:$C$350,$B15,個別表!IJ$13:IJ$350),0) -> 0 | CF15: =IF($E15>0,SUMIF(個別表!$C$13:$C$350,$B15,個別表!IK$13:IK$350),0) -> 0 | CG15: =IF($E15>0,SUMIF(個別表!$C$13:$C$350,$B15,個別表!IL$13:IL$350),0) -> 0 | CH15: =IF($E15>0,SUMIF(個別表!$C$13:$C$350,$B15,個別表!IM$13:IM$350),0) -> 0 | CI15: =IF($E15>0,SUMIF(個別表!$C$13:$C$350,$B15,個別表!IN$13:IN$350),0) -> 0 | CJ15: =IF($E15>0,SUMIF(個別表!$C$13:$C$350,$B15,個別表!IO$13:IO$350),0) -> 0 | CK15: =IF($E15>0,SUMIF(個別表!$C$13:$C$350,$B15,個別表!IP$13:IP$350),0) -> 0 | CL15: =IF($E15>0,SUMIF(個別表!$C$13:$C$350,$B15,個別表!IQ$13:IQ$350),0) -> 0 | CM15: =IF($E15>0,SUMIF(個別表!$C$13:$C$350,$B15,個別表!IR$13:IR$350),0) -> 0 | CN15: =IF($E15>0,SUMIF(個別表!$C$13:$C$350,$B15,個別表!IS$13:IS$350),0) -> 0 | CO15: =IF($E15>0,SUMIF(個別表!$C$13:$C$350,$B15,個別表!IT$13:IT$350),0) -> 0 | CP15: =IF($E15>0,SUMIF(個別表!$C$13:$C$350,$B15,個別表!IU$13:IU$350),0) -> 0 | CQ15: =IF($E15>0,SUMIF(個別表!$C$13:$C$350,$B15,個別表!IV$13:IV$350),0) -> 0 | CR15: =IF($E15>0,SUMIF(個別表!$C$13:$C$350,$B15,個別表!IW$13:IW$350),0) -> 0 | CS15: =IF($E15>0,SUMIF(個別表!$C$13:$C$350,$B15,個別表!IX$13:IX$350),0) -> 0 | CT15: =IF($E15>0,SUMIF(個別表!$C$13:$C$350,$B15,個別表!IY$13:IY$350),0) -> 0 | CU15: =IF($E15>0,SUMIF(個別表!$C$13:$C$350,$B15,個別表!IZ$13:IZ$350),0) -> 0 | CV15: =IF($E15>0,SUMIF(個別表!$C$13:$C$350,$B15,個別表!JA$13:JA$350),0) -> 0 | CW15: =IF($E15>0,SUMIF(個別表!$C$13:$C$350,$B15,個別表!JB$13:JB$350),0) -> 0 | CX15: =IF($E15>0,SUMIF(個別表!$C$13:$C$350,$B15,個別表!JC$13:JC$350),0) -> 0 | CY15: =IF($E15>0,SUMIF(個別表!$C$13:$C$350,$B15,個別表!JD$13:JD$350),0) -> 0 | CZ15: 16 | DA15: 16 | DD15: 0 | DE15: 0 | DH15: 0 | DK15: 0 | DL15: 0 | DN15: 0 | DP15: 0 | DQ15: 2 | DS15: 0.5 | DT15: 2.5 | DU15: 18.5 | DX15: =IF($E15>0,COUNTIFS(個別表!$C$13:$C$350,$B15,個別表!$I$13:$I$350,1,個別表!$V$13:$V$350,DX$9),0) -> 0 | DY15: =IF($E15>0,COUNTIFS(個別表!$C$13:$C$350,$B15,個別表!$I$13:$I$350,1,個別表!$V$13:$V$350,DY$9),0) -> 1 | DZ15: =IF($E15>0,COUNTIFS(個別表!$C$13:$C$350,$B15,個別表!$I$13:$I$350,1,個別表!$V$13:$V$350,DZ$9),0) -> 0 | EA15: =IF($E15>0,COUNTIFS(個別表!$C$13:$C$350,$B15,個別表!$I$13:$I$350,1,個別表!$V$13:$V$350,EA$9),0) -> 0 | EB15: ○
A16: =VLOOKUP($B16,個別表!$C$13:$BP$350,2,FALSE) -> 4 | B16: 5 | C16: =VLOOKUP($B16,個別表!$C$13:$BP$350,10,FALSE) -> 埼玉県 | D16: =VLOOKUP($B16,個別表!$C$13:$BP$350,11,FALSE) -> え | E16: =VLOOKUP($B16,個別表!$C$13:$BP$350,12,FALSE) -> 戊 | F16: =SUMIF(個別表!$C$13:$C$350,総括表!$B16,個別表!$I$13:$I$350) -> 1 | G16: =SUMIF(個別表!$C$13:$C$350,総括表!$B16,個別表!$AV$13:$AV$350) -> 40000000 | H16: =SUMIF(個別表!$C$13:$C$350,総括表!$B16,個別表!$AX$13:$AX$350) -> 15000000 | I16: =SUMIF(個別表!$C$13:$C$350,総括表!$B16,個別表!$J$13:$J$350) -> 1 | J16: =SUMIF(個別表!$C$13:$C$350,$B16,個別表!$BP$13:$BP$350) -> 15000000 | K16: 1000000 | N16: =SUMIFS(個別表!$I$13:$I$350,個別表!$C$13:$C$350,$B16,個別表!$AL$13:$AL$350,1) -> 1 | O16: =SUMIFS(個別表!$AV$13:$AV$350,個別表!$C$13:$C$350,$B16,個別表!$AL$13:$AL$350,1) -> 30000000 | P16: =SUMIFS(個別表!$AW$13:$AW$350,個別表!$C$13:$C$350,$B16,個別表!$AL$13:$AL$350,1) -> 15000000 | Q16: =SUMIFS(個別表!$J$13:$J$350,個別表!$C$13:$C$350,$B16,個別表!$AL$13:$AL$350,1) -> 1 | R16: =SUMIFS(個別表!$BP$13:$BP$350,個別表!$C$13:$C$350,$B16,個別表!$AL$13:$AL$350,1) -> 10000000 | S16: 666000 | T16: =IF($E16>0,SUMIF(個別表!$C$13:$C$350,$B16,個別表!BQ$13:BQ$350),0) -> 1 | U16: =IF($E16>0,SUMIF(個別表!$C$13:$C$350,$B16,個別表!BY$13:BY$350),0) -> 1 | V16: =IF($E16>0,SUMIF(個別表!$C$13:$C$350,$B16,個別表!BZ$13:BZ$350),0) -> 0 | W16: =IF($E16>0,SUMIF(個別表!$C$13:$C$350,$B16,個別表!CA$13:CA$350),0) -> 1 | X16: =IF($E16>0,SUMIF(個別表!$C$13:$C$350,$B16,個別表!CB$13:CB$350),0) -> 0 | Y16: =IF($E16>0,SUMIF(個別表!$C$13:$C$350,$B16,個別表!CC$13:CC$350),0) -> 0 | Z16: =IF($E16>0,SUMIF(個別表!$C$13:$C$350,$B16,個別表!CD$13:CD$350),0) -> 0 | AA16: =IF($E16>0,SUMIF(個別表!$C$13:$C$350,$B16,個別表!CE$13:CE$350),0) -> 0 | AB16: =IF($E16>0,SUMIF(個別表!$C$13:$C$350,$B16,個別表!CF$13:CF$350),0) -> 0 | AC16: =IF($E16>0,SUMIF(個別表!$C$13:$C$350,$B16,個別表!CG$13:CG$350),0) -> 0 | AD16: =IF($E16>0,SUMIF(個別表!$C$13:$C$350,$B16,個別表!GI$13:GI$350),0) -> 0 | AE16: =IF($E16>0,SUMIF(個別表!$C$13:$C$350,$B16,個別表!GJ$13:GJ$350),0) -> 0 | AF16: =IF($E16>0,SUMIF(個別表!$C$13:$C$350,$B16,個別表!GK$13:GK$350),0) -> 0 | AG16: =IF($E16>0,SUMIF(個別表!$C$13:$C$350,$B16,個別表!GL$13:GL$350),0) -> 0 | AH16: =IF($E16>0,SUMIF(個別表!$C$13:$C$350,$B16,個別表!GM$13:GM$350),0) -> 0 | AI16: =IF($E16>0,SUMIF(個別表!$C$13:$C$350,$B16,個別表!GN$13:GN$350),0) -> 0 | AJ16: =IF($E16>0,SUMIF(個別表!$C$13:$C$350,$B16,個別表!GO$13:GO$350),0) -> 0 | AK16: =IF($E16>0,SUMIF(個別表!$C$13:$C$350,$B16,個別表!GP$13:GP$350),0) -> 0 | AL16: =IF($E16>0,SUMIF(個別表!$C$13:$C$350,$B16,個別表!GQ$13:GQ$350),0) -> 0 | AM16: =IF($E16>0,SUMIF(個別表!$C$13:$C$350,$B16,個別表!GR$13:GR$350),0) -> 0 | AN16: =IF($E16>0,SUMIF(個別表!$C$13:$C$350,$B16,個別表!GS$13:GS$350),0) -> 0 | AO16: =IF($E16>0,SUMIF(個別表!$C$13:$C$350,$B16,個別表!GT$13:GT$350),0) -> 0 | AP16: =IF($E16>0,SUMIF(個別表!$C$13:$C$350,$B16,個別表!GU$13:GU$350),0) -> 0 | AQ16: =IF($E16>0,SUMIF(個別表!$C$13:$C$350,$B16,個別表!GV$13:GV$350),0) -> 0 | AR16: =IF($E16>0,SUMIF(個別表!$C$13:$C$350,$B16,個別表!GW$13:GW$350),0) -> 0 | AS16: =IF($E16>0,SUMIF(個別表!$C$13:$C$350,$B16,個別表!GX$13:GX$350),0) -> 0 | AT16: =IF($E16>0,SUMIF(個別表!$C$13:$C$350,$B16,個別表!GY$13:GY$350),0) -> 0 | AU16: =IF($E16>0,SUMIF(個別表!$C$13:$C$350,$B16,個別表!GZ$13:GZ$350),0) -> 0 | AV16: =IF($E16>0,SUMIF(個別表!$C$13:$C$350,$B16,個別表!HA$13:HA$350),0) -> 0 | AW16: =IF($E16>0,SUMIF(個別表!$C$13:$C$350,$B16,個別表!HB$13:HB$350),0) -> 0 | AX16: =IF($E16>0,SUMIF(個別表!$C$13:$C$350,$B16,個別表!HC$13:HC$350),0) -> 0 | AY16: =IF($E16>0,SUMIF(個別表!$C$13:$C$350,$B16,個別表!HD$13:HD$350),0) -> 0 | AZ16: =IF($E16>0,SUMIF(個別表!$C$13:$C$350,$B16,個別表!HE$13:HE$350),0) -> 0 | BA16: =IF($E16>0,SUMIF(個別表!$C$13:$C$350,$B16,個別表!HF$13:HF$350),0) -> 0 | BB16: =IF($E16>0,SUMIF(個別表!$C$13:$C$350,$B16,個別表!HG$13:HG$350),0) -> 0 | BC16: =IF($E16>0,SUMIF(個別表!$C$13:$C$350,$B16,個別表!HH$13:HH$350),0) -> 0 | BD16: =IF($E16>0,SUMIF(個別表!$C$13:$C$350,$B16,個別表!HI$13:HI$350),0) -> 0 | BE16: =IF($E16>0,SUMIF(個別表!$C$13:$C$350,$B16,個別表!HJ$13:HJ$350),0) -> 0 | BF16: =IF($E16>0,SUMIF(個別表!$C$13:$C$350,$B16,個別表!HK$13:HK$350),0) -> 0 | BG16: =IF($E16>0,SUMIF(個別表!$C$13:$C$350,$B16,個別表!HL$13:HL$350),0) -> 0 | BH16: =IF($E16>0,SUMIF(個別表!$C$13:$C$350,$B16,個別表!HM$13:HM$350),0) -> 0 | BI16: =IF($E16>0,SUMIF(個別表!$C$13:$C$350,$B16,個別表!HN$13:HN$350),0) -> 0 | BJ16: =IF($E16>0,SUMIF(個別表!$C$13:$C$350,$B16,個別表!HO$13:HO$350),0) -> 6 | BK16: =IF($E16>0,SUMIF(個別表!$C$13:$C$350,$B16,個別表!HP$13:HP$350),0) -> 5 | BL16: =IF($E16>0,SUMIF(個別表!$C$13:$C$350,$B16,個別表!HQ$13:HQ$350),0) -> 0 | BM16: =IF($E16>0,SUMIF(個別表!$C$13:$C$350,$B16,個別表!HR$13:HR$350),0) -> 0 | BN16: =IF($E16>0,SUMIF(個別表!$C$13:$C$350,$B16,個別表!HS$13:HS$350),0) -> 0 | BO16: =IF($E16>0,SUMIF(個別表!$C$13:$C$350,$B16,個別表!HT$13:HT$350),0) -> 0 | BP16: =IF($E16>0,SUMIF(個別表!$C$13:$C$350,$B16,個別表!HU$13:HU$350),0) -> 0 | BQ16: =IF($E16>0,SUMIF(個別表!$C$13:$C$350,$B16,個別表!HV$13:HV$350),0) -> 0 | BR16: =IF($E16>0,SUMIF(個別表!$C$13:$C$350,$B16,個別表!HW$13:HW$350),0) -> 0 | BS16: =IF($E16>0,SUMIF(個別表!$C$13:$C$350,$B16,個別表!HX$13:HX$350),0) -> 0 | BT16: =IF($E16>0,SUMIF(個別表!$C$13:$C$350,$B16,個別表!HY$13:HY$350),0) -> 0 | BU16: =IF($E16>0,SUMIF(個別表!$C$13:$C$350,$B16,個別表!HZ$13:HZ$350),0) -> 0 | BV16: =IF($E16>0,SUMIF(個別表!$C$13:$C$350,$B16,個別表!IA$13:IA$350),0) -> 0 | BW16: =IF($E16>0,SUMIF(個別表!$C$13:$C$350,$B16,個別表!IB$13:IB$350),0) -> 1 | BX16: =IF($E16>0,SUMIF(個別表!$C$13:$C$350,$B16,個別表!IC$13:IC$350),0) -> 0 | BY16: =IF($E16>0,SUMIF(個別表!$C$13:$C$350,$B16,個別表!ID$13:ID$350),0) -> 0 | BZ16: =IF($E16>0,SUMIF(個別表!$C$13:$C$350,$B16,個別表!IE$13:IE$350),0) -> 0 | CA16: =IF($E16>0,SUMIF(個別表!$C$13:$C$350,$B16,個別表!IF$13:IF$350),0) -> 0 | CB16: =IF($E16>0,SUMIF(個別表!$C$13:$C$350,$B16,個別表!IG$13:IG$350),0) -> 0 | CC16: =IF($E16>0,SUMIF(個別表!$C$13:$C$350,$B16,個別表!IH$13:IH$350),0) -> 0 | CD16: =IF($E16>0,SUMIF(個別表!$C$13:$C$350,$B16,個別表!II$13:II$350),0) -> 0 | CE16: =IF($E16>0,SUMIF(個別表!$C$13:$C$350,$B16,個別表!IJ$13:IJ$350),0) -> 0 | CF16: =IF($E16>0,SUMIF(個別表!$C$13:$C$350,$B16,個別表!IK$13:IK$350),0) -> 0 | CG16: =IF($E16>0,SUMIF(個別表!$C$13:$C$350,$B16,個別表!IL$13:IL$350),0) -> 0 | CH16: =IF($E16>0,SUMIF(個別表!$C$13:$C$350,$B16,個別表!IM$13:IM$350),0) -> 0 | CI16: =IF($E16>0,SUMIF(個別表!$C$13:$C$350,$B16,個別表!IN$13:IN$350),0) -> 0 | CJ16: =IF($E16>0,SUMIF(個別表!$C$13:$C$350,$B16,個別表!IO$13:IO$350),0) -> 0 | CK16: =IF($E16>0,SUMIF(個別表!$C$13:$C$350,$B16,個別表!IP$13:IP$350),0) -> 0 | CL16: =IF($E16>0,SUMIF(個別表!$C$13:$C$350,$B16,個別表!IQ$13:IQ$350),0) -> 0 | CM16: =IF($E16>0,SUMIF(個別表!$C$13:$C$350,$B16,個別表!IR$13:IR$350),0) -> 0 | CN16: =IF($E16>0,SUMIF(個別表!$C$13:$C$350,$B16,個別表!IS$13:IS$350),0) -> 0 | CO16: =IF($E16>0,SUMIF(個別表!$C$13:$C$350,$B16,個別表!IT$13:IT$350),0) -> 0 | CP16: =IF($E16>0,SUMIF(個別表!$C$13:$C$350,$B16,個別表!IU$13:IU$350),0) -> 0 | CQ16: =IF($E16>0,SUMIF(個別表!$C$13:$C$350,$B16,個別表!IV$13:IV$350),0) -> 2 | CR16: =IF($E16>0,SUMIF(個別表!$C$13:$C$350,$B16,個別表!IW$13:IW$350),0) -> 3 | CS16: =IF($E16>0,SUMIF(個別表!$C$13:$C$350,$B16,個別表!IX$13:IX$350),0) -> 0 | CT16: =IF($E16>0,SUMIF(個別表!$C$13:$C$350,$B16,個別表!IY$13:IY$350),0) -> 0 | CU16: =IF($E16>0,SUMIF(個別表!$C$13:$C$350,$B16,個別表!IZ$13:IZ$350),0) -> 0 | CV16: =IF($E16>0,SUMIF(個別表!$C$13:$C$350,$B16,個別表!JA$13:JA$350),0) -> 0 | CW16: =IF($E16>0,SUMIF(個別表!$C$13:$C$350,$B16,個別表!JB$13:JB$350),0) -> 0 | CX16: =IF($E16>0,SUMIF(個別表!$C$13:$C$350,$B16,個別表!JC$13:JC$350),0) -> 0 | CY16: =IF($E16>0,SUMIF(個別表!$C$13:$C$350,$B16,個別表!JD$13:JD$350),0) -> 0 | CZ16: 17 | DA16: 17 | DB16: 5 | DC16: 4 | DD16: 0.8 | DE16: 1 | DF16: 5 | DG16: 1 | DH16: 0.2 | DI16: 5 | DJ16: 4 | DK16: 0.8 | DL16: 1 | DM16: 1.5 | DN16: 2.5 | DO16: 2.5 | DP16: 1 | DT16: 3 | DU16: 20 | DX16: =IF($E16>0,COUNTIFS(個別表!$C$13:$C$350,$B16,個別表!$I$13:$I$350,1,個別表!$V$13:$V$350,DX$9),0) -> 0 | DY16: =IF($E16>0,COUNTIFS(個別表!$C$13:$C$350,$B16,個別表!$I$13:$I$350,1,個別表!$V$13:$V$350,DY$9),0) -> 0 | DZ16: =IF($E16>0,COUNTIFS(個別表!$C$13:$C$350,$B16,個別表!$I$13:$I$350,1,個別表!$V$13:$V$350,DZ$9),0) -> 1 | EA16: =IF($E16>0,COUNTIFS(個別表!$C$13:$C$350,$B16,個別表!$I$13:$I$350,1,個別表!$V$13:$V$350,EA$9),0) -> 0 | EB16: =IF(SUM(DX16:DY16,EA16)>0,IF(SUM(DQ16:DR16)>0,"○","×"),"") -> 
A17: =VLOOKUP($B17,個別表!$C$13:$BP$350,2,FALSE) -> 0 | B17: 0 | C17: =VLOOKUP($B17,個別表!$C$13:$BP$350,10,FALSE) -> 0 | D17: =VLOOKUP($B17,個別表!$C$13:$BP$350,11,FALSE) -> 0 | E17: =VLOOKUP($B17,個別表!$C$13:$BP$350,12,FALSE) -> 0 | F17: =SUMIF(個別表!$C$13:$C$350,総括表!$B17,個別表!$I$13:$I$350) -> 0 | G17: =SUMIF(個別表!$C$13:$C$350,総括表!$B17,個別表!$AV$13:$AV$350) -> 0 | H17: =SUMIF(個別表!$C$13:$C$350,総括表!$B17,個別表!$AX$13:$AX$350) -> 0 | I17: =SUMIF(個別表!$C$13:$C$350,総括表!$B17,個別表!$J$13:$J$350) -> 0 | J17: =SUMIF(個別表!$C$13:$C$350,$B17,個別表!$BP$13:$BP$350) -> 0 | K17: 0 | N17: =SUMIFS(個別表!$I$13:$I$350,個別表!$C$13:$C$350,$B17,個別表!$AL$13:$AL$350,1) -> 0 | O17: =SUMIFS(個別表!$AV$13:$AV$350,個別表!$C$13:$C$350,$B17,個別表!$AL$13:$AL$350,1) -> 0 | P17: =SUMIFS(個別表!$AW$13:$AW$350,個別表!$C$13:$C$350,$B17,個別表!$AL$13:$AL$350,1) -> 0 | Q17: =SUMIFS(個別表!$J$13:$J$350,個別表!$C$13:$C$350,$B17,個別表!$AL$13:$AL$350,1) -> 0 | R17: =SUMIFS(個別表!$BP$13:$BP$350,個別表!$C$13:$C$350,$B17,個別表!$AL$13:$AL$350,1) -> 0 | S17: 0 | T17: =IF($E17>0,SUMIF(個別表!$C$13:$C$350,$B17,個別表!BQ$13:BQ$350),0) -> 0 | U17: =IF($E17>0,SUMIF(個別表!$C$13:$C$350,$B17,個別表!BY$13:BY$350),0) -> 0 | V17: =IF($E17>0,SUMIF(個別表!$C$13:$C$350,$B17,個別表!BZ$13:BZ$350),0) -> 0 | W17: =IF($E17>0,SUMIF(個別表!$C$13:$C$350,$B17,個別表!CA$13:CA$350),0) -> 0 | X17: =IF($E17>0,SUMIF(個別表!$C$13:$C$350,$B17,個別表!CB$13:CB$350),0) -> 0 | Y17: =IF($E17>0,SUMIF(個別表!$C$13:$C$350,$B17,個別表!CC$13:CC$350),0) -> 0 | Z17: =IF($E17>0,SUMIF(個別表!$C$13:$C$350,$B17,個別表!CD$13:CD$350),0) -> 0 | AA17: =IF($E17>0,SUMIF(個別表!$C$13:$C$350,$B17,個別表!CE$13:CE$350),0) -> 0 | AB17: =IF($E17>0,SUMIF(個別表!$C$13:$C$350,$B17,個別表!CF$13:CF$350),0) -> 0 | AC17: =IF($E17>0,SUMIF(個別表!$C$13:$C$350,$B17,個別表!CG$13:CG$350),0) -> 0 | AD17: =IF($E17>0,SUMIF(個別表!$C$13:$C$350,$B17,個別表!GI$13:GI$350),0) -> 0 | AE17: =IF($E17>0,SUMIF(個別表!$C$13:$C$350,$B17,個別表!GJ$13:GJ$350),0) -> 0 | AF17: =IF($E17>0,SUMIF(個別表!$C$13:$C$350,$B17,個別表!GK$13:GK$350),0) -> 0 | AG17: =IF($E17>0,SUMIF(個別表!$C$13:$C$350,$B17,個別表!GL$13:GL$350),0) -> 0 | AH17: =IF($E17>0,SUMIF(個別表!$C$13:$C$350,$B17,個別表!GM$13:GM$350),0) -> 0 | AI17: =IF($E17>0,SUMIF(個別表!$C$13:$C$350,$B17,個別表!GN$13:GN$350),0) -> 0 | AJ17: =IF($E17>0,SUMIF(個別表!$C$13:$C$350,$B17,個別表!GO$13:GO$350),0) -> 0 | AK17: =IF($E17>0,SUMIF(個別表!$C$13:$C$350,$B17,個別表!GP$13:GP$350),0) -> 0 | AL17: =IF($E17>0,SUMIF(個別表!$C$13:$C$350,$B17,個別表!GQ$13:GQ$350),0) -> 0 | AM17: =IF($E17>0,SUMIF(個別表!$C$13:$C$350,$B17,個別表!GR$13:GR$350),0) -> 0 | AN17: =IF($E17>0,SUMIF(個別表!$C$13:$C$350,$B17,個別表!GS$13:GS$350),0) -> 0 | AO17: =IF($E17>0,SUMIF(個別表!$C$13:$C$350,$B17,個別表!GT$13:GT$350),0) -> 0 | AP17: =IF($E17>0,SUMIF(個別表!$C$13:$C$350,$B17,個別表!GU$13:GU$350),0) -> 0 | AQ17: =IF($E17>0,SUMIF(個別表!$C$13:$C$350,$B17,個別表!GV$13:GV$350),0) -> 0 | AR17: =IF($E17>0,SUMIF(個別表!$C$13:$C$350,$B17,個別表!GW$13:GW$350),0) -> 0 | AS17: =IF($E17>0,SUMIF(個別表!$C$13:$C$350,$B17,個別表!GX$13:GX$350),0) -> 0 | AT17: =IF($E17>0,SUMIF(個別表!$C$13:$C$350,$B17,個別表!GY$13:GY$350),0) -> 0 | AU17: =IF($E17>0,SUMIF(個別表!$C$13:$C$350,$B17,個別表!GZ$13:GZ$350),0) -> 0 | AV17: =IF($E17>0,SUMIF(個別表!$C$13:$C$350,$B17,個別表!HA$13:HA$350),0) -> 0 | AW17: =IF($E17>0,SUMIF(個別表!$C$13:$C$350,$B17,個別表!HB$13:HB$350),0) -> 0 | AX17: =IF($E17>0,SUMIF(個別表!$C$13:$C$350,$B17,個別表!HC$13:HC$350),0) -> 0 | AY17: =IF($E17>0,SUMIF(個別表!$C$13:$C$350,$B17,個別表!HD$13:HD$350),0) -> 0 | AZ17: =IF($E17>0,SUMIF(個別表!$C$13:$C$350,$B17,個別表!HE$13:HE$350),0) -> 0 | BA17: =IF($E17>0,SUMIF(個別表!$C$13:$C$350,$B17,個別表!HF$13:HF$350),0) -> 0 | BB17: =IF($E17>0,SUMIF(個別表!$C$13:$C$350,$B17,個別表!HG$13:HG$350),0) -> 0 | BC17: =IF($E17>0,SUMIF(個別表!$C$13:$C$350,$B17,個別表!HH$13:HH$350),0) -> 0 | BD17: =IF($E17>0,SUMIF(個別表!$C$13:$C$350,$B17,個別表!HI$13:HI$350),0) -> 0 | BE17: =IF($E17>0,SUMIF(個別表!$C$13:$C$350,$B17,個別表!HJ$13:HJ$350),0) -> 0 | BF17: =IF($E17>0,SUMIF(個別表!$C$13:$C$350,$B17,個別表!HK$13:HK$350),0) -> 0 | BG17: =IF($E17>0,SUMIF(個別表!$C$13:$C$350,$B17,個別表!HL$13:HL$350),0) -> 0 | BH17: =IF($E17>0,SUMIF(個別表!$C$13:$C$350,$B17,個別表!HM$13:HM$350),0) -> 0 | BI17: =IF($E17>0,SUMIF(個別表!$C$13:$C$350,$B17,個別表!HN$13:HN$350),0) -> 0 | BJ17: =IF($E17>0,SUMIF(個別表!$C$13:$C$350,$B17,個別表!HO$13:HO$350),0) -> 0 | BK17: =IF($E17>0,SUMIF(個別表!$C$13:$C$350,$B17,個別表!HP$13:HP$350),0) -> 0 | BL17: =IF($E17>0,SUMIF(個別表!$C$13:$C$350,$B17,個別表!HQ$13:HQ$350),0) -> 0 | BM17: =IF($E17>0,SUMIF(個別表!$C$13:$C$350,$B17,個別表!HR$13:HR$350),0) -> 0 | BN17: =IF($E17>0,SUMIF(個別表!$C$13:$C$350,$B17,個別表!HS$13:HS$350),0) -> 0 | BO17: =IF($E17>0,SUMIF(個別表!$C$13:$C$350,$B17,個別表!HT$13:HT$350),0) -> 0 | BP17: =IF($E17>0,SUMIF(個別表!$C$13:$C$350,$B17,個別表!HU$13:HU$350),0) -> 0 | BQ17: =IF($E17>0,SUMIF(個別表!$C$13:$C$350,$B17,個別表!HV$13:HV$350),0) -> 0 | BR17: =IF($E17>0,SUMIF(個別表!$C$13:$C$350,$B17,個別表!HW$13:HW$350),0) -> 0 | BS17: =IF($E17>0,SUMIF(個別表!$C$13:$C$350,$B17,個別表!HX$13:HX$350),0) -> 0 | BT17: =IF($E17>0,SUMIF(個別表!$C$13:$C$350,$B17,個別表!HY$13:HY$350),0) -> 0 | BU17: =IF($E17>0,SUMIF(個別表!$C$13:$C$350,$B17,個別表!HZ$13:HZ$350),0) -> 0 | BV17: =IF($E17>0,SUMIF(個別表!$C$13:$C$350,$B17,個別表!IA$13:IA$350),0) -> 0 | BW17: =IF($E17>0,SUMIF(個別表!$C$13:$C$350,$B17,個別表!IB$13:IB$350),0) -> 0 | BX17: =IF($E17>0,SUMIF(個別表!$C$13:$C$350,$B17,個別表!IC$13:IC$350),0) -> 0 | BY17: =IF($E17>0,SUMIF(個別表!$C$13:$C$350,$B17,個別表!ID$13:ID$350),0) -> 0 | BZ17: =IF($E17>0,SUMIF(個別表!$C$13:$C$350,$B17,個別表!IE$13:IE$350),0) -> 0 | CA17: =IF($E17>0,SUMIF(個別表!$C$13:$C$350,$B17,個別表!IF$13:IF$350),0) -> 0 | CB17: =IF($E17>0,SUMIF(個別表!$C$13:$C$350,$B17,個別表!IG$13:IG$350),0) -> 0 | CC17: =IF($E17>0,SUMIF(個別表!$C$13:$C$350,$B17,個別表!IH$13:IH$350),0) -> 0 | CD17: =IF($E17>0,SUMIF(個別表!$C$13:$C$350,$B17,個別表!II$13:II$350),0) -> 0 | CE17: =IF($E17>0,SUMIF(個別表!$C$13:$C$350,$B17,個別表!IJ$13:IJ$350),0) -> 0 | CF17: =IF($E17>0,SUMIF(個別表!$C$13:$C$350,$B17,個別表!IK$13:IK$350),0) -> 0 | CG17: =IF($E17>0,SUMIF(個別表!$C$13:$C$350,$B17,個別表!IL$13:IL$350),0) -> 0 | CH17: =IF($E17>0,SUMIF(個別表!$C$13:$C$350,$B17,個別表!IM$13:IM$350),0) -> 0 | CI17: =IF($E17>0,SUMIF(個別表!$C$13:$C$350,$B17,個別表!IN$13:IN$350),0) -> 0 | CJ17: =IF($E17>0,SUMIF(個別表!$C$13:$C$350,$B17,個別表!IO$13:IO$350),0) -> 0 | CK17: =IF($E17>0,SUMIF(個別表!$C$13:$C$350,$B17,個別表!IP$13:IP$350),0) -> 0 | CL17: =IF($E17>0,SUMIF(個別表!$C$13:$C$350,$B17,個別表!IQ$13:IQ$350),0) -> 0 | CM17: =IF($E17>0,SUMIF(個別表!$C$13:$C$350,$B17,個別表!IR$13:IR$350),0) -> 0 | CN17: =IF($E17>0,SUMIF(個別表!$C$13:$C$350,$B17,個別表!IS$13:IS$350),0) -> 0 | CO17: =IF($E17>0,SUMIF(個別表!$C$13:$C$350,$B17,個別表!IT$13:IT$350),0) -> 0 | CP17: =IF($E17>0,SUMIF(個別表!$C$13:$C$350,$B17,個別表!IU$13:IU$350),0) -> 0 | CQ17: =IF($E17>0,SUMIF(個別表!$C$13:$C$350,$B17,個別表!IV$13:IV$350),0) -> 0 | CR17: =IF($E17>0,SUMIF(個別表!$C$13:$C$350,$B17,個別表!IW$13:IW$350),0) -> 0 | CS17: =IF($E17>0,SUMIF(個別表!$C$13:$C$350,$B17,個別表!IX$13:IX$350),0) -> 0 | CT17: =IF($E17>0,SUMIF(個別表!$C$13:$C$350,$B17,個別表!IY$13:IY$350),0) -> 0 | CU17: =IF($E17>0,SUMIF(個別表!$C$13:$C$350,$B17,個別表!IZ$13:IZ$350),0) -> 0 | CV17: =IF($E17>0,SUMIF(個別表!$C$13:$C$350,$B17,個別表!JA$13:JA$350),0) -> 0 | CW17: =IF($E17>0,SUMIF(個別表!$C$13:$C$350,$B17,個別表!JB$13:JB$350),0) -> 0 | CX17: =IF($E17>0,SUMIF(個別表!$C$13:$C$350,$B17,個別表!JC$13:JC$350),0) -> 0 | CY17: =IF($E17>0,SUMIF(個別表!$C$13:$C$350,$B17,個別表!JD$13:JD$350),0) -> 0 | CZ17: 0 | DA17: 0 | DD17: 0 | DE17: 0 | DH17: 0 | DK17: 0 | DL17: 0 | DN17: 0 | DP17: 0 | DT17: 0 | DU17: 0 | DX17: =IF($E17>0,COUNTIFS(個別表!$C$13:$C$350,$B17,個別表!$I$13:$I$350,1,個別表!$V$13:$V$350,DX$9),0) -> 0 | DY17: =IF($E17>0,COUNTIFS(個別表!$C$13:$C$350,$B17,個別表!$I$13:$I$350,1,個別表!$V$13:$V$350,DY$9),0) -> 0 | DZ17: =IF($E17>0,COUNTIFS(個別表!$C$13:$C$350,$B17,個別表!$I$13:$I$350,1,個別表!$V$13:$V$350,DZ$9),0) -> 0 | EA17: =IF($E17>0,COUNTIFS(個別表!$C$13:$C$350,$B17,個別表!$I$13:$I$350,1,個別表!$V$13:$V$350,EA$9),0) -> 0
A18: =VLOOKUP($B18,個別表!$C$13:$BP$350,2,FALSE) -> 0 | B18: 0 | C18: =VLOOKUP($B18,個別表!$C$13:$BP$350,10,FALSE) -> 0 | D18: =VLOOKUP($B18,個別表!$C$13:$BP$350,11,FALSE) -> 0 | E18: =VLOOKUP($B18,個別表!$C$13:$BP$350,12,FALSE) -> 0 | F18: =SUMIF(個別表!$C$13:$C$350,総括表!$B18,個別表!$I$13:$I$350) -> 0 | G18: =SUMIF(個別表!$C$13:$C$350,総括表!$B18,個別表!$AV$13:$AV$350) -> 0 | H18: =SUMIF(個別表!$C$13:$C$350,総括表!$B18,個別表!$AX$13:$AX$350) -> 0 | I18: =SUMIF(個別表!$C$13:$C$350,総括表!$B18,個別表!$J$13:$J$350) -> 0 | J18: =SUMIF(個別表!$C$13:$C$350,$B18,個別表!$BP$13:$BP$350) -> 0 | K18: 0 | N18: =SUMIFS(個別表!$I$13:$I$350,個別表!$C$13:$C$350,$B18,個別表!$AL$13:$AL$350,1) -> 0 | O18: =SUMIFS(個別表!$AV$13:$AV$350,個別表!$C$13:$C$350,$B18,個別表!$AL$13:$AL$350,1) -> 0 | P18: =SUMIFS(個別表!$AW$13:$AW$350,個別表!$C$13:$C$350,$B18,個別表!$AL$13:$AL$350,1) -> 0 | Q18: =SUMIFS(個別表!$J$13:$J$350,個別表!$C$13:$C$350,$B18,個別表!$AL$13:$AL$350,1) -> 0 | R18: =SUMIFS(個別表!$BP$13:$BP$350,個別表!$C$13:$C$350,$B18,個別表!$AL$13:$AL$350,1) -> 0 | S18: 0 | T18: =IF($E18>0,SUMIF(個別表!$C$13:$C$350,$B18,個別表!BQ$13:BQ$350),0) -> 0 | U18: =IF($E18>0,SUMIF(個別表!$C$13:$C$350,$B18,個別表!BY$13:BY$350),0) -> 0 | V18: =IF($E18>0,SUMIF(個別表!$C$13:$C$350,$B18,個別表!BZ$13:BZ$350),0) -> 0 | W18: =IF($E18>0,SUMIF(個別表!$C$13:$C$350,$B18,個別表!CA$13:CA$350),0) -> 0 | X18: =IF($E18>0,SUMIF(個別表!$C$13:$C$350,$B18,個別表!CB$13:CB$350),0) -> 0 | Y18: =IF($E18>0,SUMIF(個別表!$C$13:$C$350,$B18,個別表!CC$13:CC$350),0) -> 0 | Z18: =IF($E18>0,SUMIF(個別表!$C$13:$C$350,$B18,個別表!CD$13:CD$350),0) -> 0 | AA18: =IF($E18>0,SUMIF(個別表!$C$13:$C$350,$B18,個別表!CE$13:CE$350),0) -> 0 | AB18: =IF($E18>0,SUMIF(個別表!$C$13:$C$350,$B18,個別表!CF$13:CF$350),0) -> 0 | AC18: =IF($E18>0,SUMIF(個別表!$C$13:$C$350,$B18,個別表!CG$13:CG$350),0) -> 0 | AD18: =IF($E18>0,SUMIF(個別表!$C$13:$C$350,$B18,個別表!GI$13:GI$350),0) -> 0 | AE18: =IF($E18>0,SUMIF(個別表!$C$13:$C$350,$B18,個別表!GJ$13:GJ$350),0) -> 0 | AF18: =IF($E18>0,SUMIF(個別表!$C$13:$C$350,$B18,個別表!GK$13:GK$350),0) -> 0 | AG18: =IF($E18>0,SUMIF(個別表!$C$13:$C$350,$B18,個別表!GL$13:GL$350),0) -> 0 | AH18: =IF($E18>0,SUMIF(個別表!$C$13:$C$350,$B18,個別表!GM$13:GM$350),0) -> 0 | AI18: =IF($E18>0,SUMIF(個別表!$C$13:$C$350,$B18,個別表!GN$13:GN$350),0) -> 0 | AJ18: =IF($E18>0,SUMIF(個別表!$C$13:$C$350,$B18,個別表!GO$13:GO$350),0) -> 0 | AK18: =IF($E18>0,SUMIF(個別表!$C$13:$C$350,$B18,個別表!GP$13:GP$350),0) -> 0 | AL18: =IF($E18>0,SUMIF(個別表!$C$13:$C$350,$B18,個別表!GQ$13:GQ$350),0) -> 0 | AM18: =IF($E18>0,SUMIF(個別表!$C$13:$C$350,$B18,個別表!GR$13:GR$350),0) -> 0 | AN18: =IF($E18>0,SUMIF(個別表!$C$13:$C$350,$B18,個別表!GS$13:GS$350),0) -> 0 | AO18: =IF($E18>0,SUMIF(個別表!$C$13:$C$350,$B18,個別表!GT$13:GT$350),0) -> 0 | AP18: =IF($E18>0,SUMIF(個別表!$C$13:$C$350,$B18,個別表!GU$13:GU$350),0) -> 0 | AQ18: =IF($E18>0,SUMIF(個別表!$C$13:$C$350,$B18,個別表!GV$13:GV$350),0) -> 0 | AR18: =IF($E18>0,SUMIF(個別表!$C$13:$C$350,$B18,個別表!GW$13:GW$350),0) -> 0 | AS18: =IF($E18>0,SUMIF(個別表!$C$13:$C$350,$B18,個別表!GX$13:GX$350),0) -> 0 | AT18: =IF($E18>0,SUMIF(個別表!$C$13:$C$350,$B18,個別表!GY$13:GY$350),0) -> 0 | AU18: =IF($E18>0,SUMIF(個別表!$C$13:$C$350,$B18,個別表!GZ$13:GZ$350),0) -> 0 | AV18: =IF($E18>0,SUMIF(個別表!$C$13:$C$350,$B18,個別表!HA$13:HA$350),0) -> 0 | AW18: =IF($E18>0,SUMIF(個別表!$C$13:$C$350,$B18,個別表!HB$13:HB$350),0) -> 0 | AX18: =IF($E18>0,SUMIF(個別表!$C$13:$C$350,$B18,個別表!HC$13:HC$350),0) -> 0 | AY18: =IF($E18>0,SUMIF(個別表!$C$13:$C$350,$B18,個別表!HD$13:HD$350),0) -> 0 | AZ18: =IF($E18>0,SUMIF(個別表!$C$13:$C$350,$B18,個別表!HE$13:HE$350),0) -> 0 | BA18: =IF($E18>0,SUMIF(個別表!$C$13:$C$350,$B18,個別表!HF$13:HF$350),0) -> 0 | BB18: =IF($E18>0,SUMIF(個別表!$C$13:$C$350,$B18,個別表!HG$13:HG$350),0) -> 0 | BC18: =IF($E18>0,SUMIF(個別表!$C$13:$C$350,$B18,個別表!HH$13:HH$350),0) -> 0 | BD18: =IF($E18>0,SUMIF(個別表!$C$13:$C$350,$B18,個別表!HI$13:HI$350),0) -> 0 | BE18: =IF($E18>0,SUMIF(個別表!$C$13:$C$350,$B18,個別表!HJ$13:HJ$350),0) -> 0 | BF18: =IF($E18>0,SUMIF(個別表!$C$13:$C$350,$B18,個別表!HK$13:HK$350),0) -> 0 | BG18: =IF($E18>0,SUMIF(個別表!$C$13:$C$350,$B18,個別表!HL$13:HL$350),0) -> 0 | BH18: =IF($E18>0,SUMIF(個別表!$C$13:$C$350,$B18,個別表!HM$13:HM$350),0) -> 0 | BI18: =IF($E18>0,SUMIF(個別表!$C$13:$C$350,$B18,個別表!HN$13:HN$350),0) -> 0 | BJ18: =IF($E18>0,SUMIF(個別表!$C$13:$C$350,$B18,個別表!HO$13:HO$350),0) -> 0 | BK18: =IF($E18>0,SUMIF(個別表!$C$13:$C$350,$B18,個別表!HP$13:HP$350),0) -> 0 | BL18: =IF($E18>0,SUMIF(個別表!$C$13:$C$350,$B18,個別表!HQ$13:HQ$350),0) -> 0 | BM18: =IF($E18>0,SUMIF(個別表!$C$13:$C$350,$B18,個別表!HR$13:HR$350),0) -> 0 | BN18: =IF($E18>0,SUMIF(個別表!$C$13:$C$350,$B18,個別表!HS$13:HS$350),0) -> 0 | BO18: =IF($E18>0,SUMIF(個別表!$C$13:$C$350,$B18,個別表!HT$13:HT$350),0) -> 0 | BP18: =IF($E18>0,SUMIF(個別表!$C$13:$C$350,$B18,個別表!HU$13:HU$350),0) -> 0 | BQ18: =IF($E18>0,SUMIF(個別表!$C$13:$C$350,$B18,個別表!HV$13:HV$350),0) -> 0 | BR18: =IF($E18>0,SUMIF(個別表!$C$13:$C$350,$B18,個別表!HW$13:HW$350),0) -> 0 | BS18: =IF($E18>0,SUMIF(個別表!$C$13:$C$350,$B18,個別表!HX$13:HX$350),0) -> 0 | BT18: =IF($E18>0,SUMIF(個別表!$C$13:$C$350,$B18,個別表!HY$13:HY$350),0) -> 0 | BU18: =IF($E18>0,SUMIF(個別表!$C$13:$C$350,$B18,個別表!HZ$13:HZ$350),0) -> 0 | BV18: =IF($E18>0,SUMIF(個別表!$C$13:$C$350,$B18,個別表!IA$13:IA$350),0) -> 0 | BW18: =IF($E18>0,SUMIF(個別表!$C$13:$C$350,$B18,個別表!IB$13:IB$350),0) -> 0 | BX18: =IF($E18>0,SUMIF(個別表!$C$13:$C$350,$B18,個別表!IC$13:IC$350),0) -> 0 | BY18: =IF($E18>0,SUMIF(個別表!$C$13:$C$350,$B18,個別表!ID$13:ID$350),0) -> 0 | BZ18: =IF($E18>0,SUMIF(個別表!$C$13:$C$350,$B18,個別表!IE$13:IE$350),0) -> 0 | CA18: =IF($E18>0,SUMIF(個別表!$C$13:$C$350,$B18,個別表!IF$13:IF$350),0) -> 0 | CB18: =IF($E18>0,SUMIF(個別表!$C$13:$C$350,$B18,個別表!IG$13:IG$350),0) -> 0 | CC18: =IF($E18>0,SUMIF(個別表!$C$13:$C$350,$B18,個別表!IH$13:IH$350),0) -> 0 | CD18: =IF($E18>0,SUMIF(個別表!$C$13:$C$350,$B18,個別表!II$13:II$350),0) -> 0 | CE18: =IF($E18>0,SUMIF(個別表!$C$13:$C$350,$B18,個別表!IJ$13:IJ$350),0) -> 0 | CF18: =IF($E18>0,SUMIF(個別表!$C$13:$C$350,$B18,個別表!IK$13:IK$350),0) -> 0 | CG18: =IF($E18>0,SUMIF(個別表!$C$13:$C$350,$B18,個別表!IL$13:IL$350),0) -> 0 | CH18: =IF($E18>0,SUMIF(個別表!$C$13:$C$350,$B18,個別表!IM$13:IM$350),0) -> 0 | CI18: =IF($E18>0,SUMIF(個別表!$C$13:$C$350,$B18,個別表!IN$13:IN$350),0) -> 0 | CJ18: =IF($E18>0,SUMIF(個別表!$C$13:$C$350,$B18,個別表!IO$13:IO$350),0) -> 0 | CK18: =IF($E18>0,SUMIF(個別表!$C$13:$C$350,$B18,個別表!IP$13:IP$350),0) -> 0 | CL18: =IF($E18>0,SUMIF(個別表!$C$13:$C$350,$B18,個別表!IQ$13:IQ$350),0) -> 0 | CM18: =IF($E18>0,SUMIF(個別表!$C$13:$C$350,$B18,個別表!IR$13:IR$350),0) -> 0 | CN18: =IF($E18>0,SUMIF(個別表!$C$13:$C$350,$B18,個別表!IS$13:IS$350),0) -> 0 | CO18: =IF($E18>0,SUMIF(個別表!$C$13:$C$350,$B18,個別表!IT$13:IT$350),0) -> 0 | CP18: =IF($E18>0,SUMIF(個別表!$C$13:$C$350,$B18,個別表!IU$13:IU$350),0) -> 0 | CQ18: =IF($E18>0,SUMIF(個別表!$C$13:$C$350,$B18,個別表!IV$13:IV$350),0) -> 0 | CR18: =IF($E18>0,SUMIF(個別表!$C$13:$C$350,$B18,個別表!IW$13:IW$350),0) -> 0 | CS18: =IF($E18>0,SUMIF(個別表!$C$13:$C$350,$B18,個別表!IX$13:IX$350),0) -> 0 | CT18: =IF($E18>0,SUMIF(個別表!$C$13:$C$350,$B18,個別表!IY$13:IY$350),0) -> 0 | CU18: =IF($E18>0,SUMIF(個別表!$C$13:$C$350,$B18,個別表!IZ$13:IZ$350),0) -> 0 | CV18: =IF($E18>0,SUMIF(個別表!$C$13:$C$350,$B18,個別表!JA$13:JA$350),0) -> 0 | CW18: =IF($E18>0,SUMIF(個別表!$C$13:$C$350,$B18,個別表!JB$13:JB$350),0) -> 0 | CX18: =IF($E18>0,SUMIF(個別表!$C$13:$C$350,$B18,個別表!JC$13:JC$350),0) -> 0 | CY18: =IF($E18>0,SUMIF(個別表!$C$13:$C$350,$B18,個別表!JD$13:JD$350),0) -> 0 | CZ18: 0 | DA18: 0 | DD18: 0 | DE18: 0 | DH18: 0 | DK18: 0 | DL18: 0 | DN18: 0 | DP18: 0 | DT18: 0 | DU18: 0 | DX18: =IF($E18>0,COUNTIFS(個別表!$C$13:$C$350,$B18,個別表!$I$13:$I$350,1,個別表!$V$13:$V$350,DX$9),0) -> 0 | DY18: =IF($E18>0,COUNTIFS(個別表!$C$13:$C$350,$B18,個別表!$I$13:$I$350,1,個別表!$V$13:$V$350,DY$9),0) -> 0 | DZ18: =IF($E18>0,COUNTIFS(個別表!$C$13:$C$350,$B18,個別表!$I$13:$I$350,1,個別表!$V$13:$V$350,DZ$9),0) -> 0 | EA18: =IF($E18>0,COUNTIFS(個別表!$C$13:$C$350,$B18,個別表!$I$13:$I$350,1,個別表!$V$13:$V$350,EA$9),0) -> 0
A19: =VLOOKUP($B19,個別表!$C$13:$BP$350,2,FALSE) -> 0 | B19: 0 | C19: =VLOOKUP($B19,個別表!$C$13:$BP$350,10,FALSE) -> 0 | D19: =VLOOKUP($B19,個別表!$C$13:$BP$350,11,FALSE) -> 0 | E19: =VLOOKUP($B19,個別表!$C$13:$BP$350,12,FALSE) -> 0 | F19: =SUMIF(個別表!$C$13:$C$350,総括表!$B19,個別表!$I$13:$I$350) -> 0 | G19: =SUMIF(個別表!$C$13:$C$350,総括表!$B19,個別表!$AV$13:$AV$350) -> 0 | H19: =SUMIF(個別表!$C$13:$C$350,総括表!$B19,個別表!$AX$13:$AX$350) -> 0 | I19: =SUMIF(個別表!$C$13:$C$350,総括表!$B19,個別表!$J$13:$J$350) -> 0 | J19: =SUMIF(個別表!$C$13:$C$350,$B19,個別表!$BP$13:$BP$350) -> 0 | K19: 0 | N19: =SUMIFS(個別表!$I$13:$I$350,個別表!$C$13:$C$350,$B19,個別表!$AL$13:$AL$350,1) -> 0 | O19: =SUMIFS(個別表!$AV$13:$AV$350,個別表!$C$13:$C$350,$B19,個別表!$AL$13:$AL$350,1) -> 0 | P19: =SUMIFS(個別表!$AW$13:$AW$350,個別表!$C$13:$C$350,$B19,個別表!$AL$13:$AL$350,1) -> 0 | Q19: =SUMIFS(個別表!$J$13:$J$350,個別表!$C$13:$C$350,$B19,個別表!$AL$13:$AL$350,1) -> 0 | R19: =SUMIFS(個別表!$BP$13:$BP$350,個別表!$C$13:$C$350,$B19,個別表!$AL$13:$AL$350,1) -> 0 | S19: 0 | T19: =IF($E19>0,SUMIF(個別表!$C$13:$C$350,$B19,個別表!BQ$13:BQ$350),0) -> 0 | U19: =IF($E19>0,SUMIF(個別表!$C$13:$C$350,$B19,個別表!BY$13:BY$350),0) -> 0 | V19: =IF($E19>0,SUMIF(個別表!$C$13:$C$350,$B19,個別表!BZ$13:BZ$350),0) -> 0 | W19: =IF($E19>0,SUMIF(個別表!$C$13:$C$350,$B19,個別表!CA$13:CA$350),0) -> 0 | X19: =IF($E19>0,SUMIF(個別表!$C$13:$C$350,$B19,個別表!CB$13:CB$350),0) -> 0 | Y19: =IF($E19>0,SUMIF(個別表!$C$13:$C$350,$B19,個別表!CC$13:CC$350),0) -> 0 | Z19: =IF($E19>0,SUMIF(個別表!$C$13:$C$350,$B19,個別表!CD$13:CD$350),0) -> 0 | AA19: =IF($E19>0,SUMIF(個別表!$C$13:$C$350,$B19,個別表!CE$13:CE$350),0) -> 0 | AB19: =IF($E19>0,SUMIF(個別表!$C$13:$C$350,$B19,個別表!CF$13:CF$350),0) -> 0 | AC19: =IF($E19>0,SUMIF(個別表!$C$13:$C$350,$B19,個別表!CG$13:CG$350),0) -> 0 | AD19: =IF($E19>0,SUMIF(個別表!$C$13:$C$350,$B19,個別表!GI$13:GI$350),0) -> 0 | AE19: =IF($E19>0,SUMIF(個別表!$C$13:$C$350,$B19,個別表!GJ$13:GJ$350),0) -> 0 | AF19: =IF($E19>0,SUMIF(個別表!$C$13:$C$350,$B19,個別表!GK$13:GK$350),0) -> 0 | AG19: =IF($E19>0,SUMIF(個別表!$C$13:$C$350,$B19,個別表!GL$13:GL$350),0) -> 0 | AH19: =IF($E19>0,SUMIF(個別表!$C$13:$C$350,$B19,個別表!GM$13:GM$350),0) -> 0 | AI19: =IF($E19>0,SUMIF(個別表!$C$13:$C$350,$B19,個別表!GN$13:GN$350),0) -> 0 | AJ19: =IF($E19>0,SUMIF(個別表!$C$13:$C$350,$B19,個別表!GO$13:GO$350),0) -> 0 | AK19: =IF($E19>0,SUMIF(個別表!$C$13:$C$350,$B19,個別表!GP$13:GP$350),0) -> 0 | AL19: =IF($E19>0,SUMIF(個別表!$C$13:$C$350,$B19,個別表!GQ$13:GQ$350),0) -> 0 | AM19: =IF($E19>0,SUMIF(個別表!$C$13:$C$350,$B19,個別表!GR$13:GR$350),0) -> 0 | AN19: =IF($E19>0,SUMIF(個別表!$C$13:$C$350,$B19,個別表!GS$13:GS$350),0) -> 0 | AO19: =IF($E19>0,SUMIF(個別表!$C$13:$C$350,$B19,個別表!GT$13:GT$350),0) -> 0 | AP19: =IF($E19>0,SUMIF(個別表!$C$13:$C$350,$B19,個別表!GU$13:GU$350),0) -> 0 | AQ19: =IF($E19>0,SUMIF(個別表!$C$13:$C$350,$B19,個別表!GV$13:GV$350),0) -> 0 | AR19: =IF($E19>0,SUMIF(個別表!$C$13:$C$350,$B19,個別表!GW$13:GW$350),0) -> 0 | AS19: =IF($E19>0,SUMIF(個別表!$C$13:$C$350,$B19,個別表!GX$13:GX$350),0) -> 0 | AT19: =IF($E19>0,SUMIF(個別表!$C$13:$C$350,$B19,個別表!GY$13:GY$350),0) -> 0 | AU19: =IF($E19>0,SUMIF(個別表!$C$13:$C$350,$B19,個別表!GZ$13:GZ$350),0) -> 0 | AV19: =IF($E19>0,SUMIF(個別表!$C$13:$C$350,$B19,個別表!HA$13:HA$350),0) -> 0 | AW19: =IF($E19>0,SUMIF(個別表!$C$13:$C$350,$B19,個別表!HB$13:HB$350),0) -> 0 | AX19: =IF($E19>0,SUMIF(個別表!$C$13:$C$350,$B19,個別表!HC$13:HC$350),0) -> 0 | AY19: =IF($E19>0,SUMIF(個別表!$C$13:$C$350,$B19,個別表!HD$13:HD$350),0) -> 0 | AZ19: =IF($E19>0,SUMIF(個別表!$C$13:$C$350,$B19,個別表!HE$13:HE$350),0) -> 0 | BA19: =IF($E19>0,SUMIF(個別表!$C$13:$C$350,$B19,個別表!HF$13:HF$350),0) -> 0 | BB19: =IF($E19>0,SUMIF(個別表!$C$13:$C$350,$B19,個別表!HG$13:HG$350),0) -> 0 | BC19: =IF($E19>0,SUMIF(個別表!$C$13:$C$350,$B19,個別表!HH$13:HH$350),0) -> 0 | BD19: =IF($E19>0,SUMIF(個別表!$C$13:$C$350,$B19,個別表!HI$13:HI$350),0) -> 0 | BE19: =IF($E19>0,SUMIF(個別表!$C$13:$C$350,$B19,個別表!HJ$13:HJ$350),0) -> 0 | BF19: =IF($E19>0,SUMIF(個別表!$C$13:$C$350,$B19,個別表!HK$13:HK$350),0) -> 0 | BG19: =IF($E19>0,SUMIF(個別表!$C$13:$C$350,$B19,個別表!HL$13:HL$350),0) -> 0 | BH19: =IF($E19>0,SUMIF(個別表!$C$13:$C$350,$B19,個別表!HM$13:HM$350),0) -> 0 | BI19: =IF($E19>0,SUMIF(個別表!$C$13:$C$350,$B19,個別表!HN$13:HN$350),0) -> 0 | BJ19: =IF($E19>0,SUMIF(個別表!$C$13:$C$350,$B19,個別表!HO$13:HO$350),0) -> 0 | BK19: =IF($E19>0,SUMIF(個別表!$C$13:$C$350,$B19,個別表!HP$13:HP$350),0) -> 0 | BL19: =IF($E19>0,SUMIF(個別表!$C$13:$C$350,$B19,個別表!HQ$13:HQ$350),0) -> 0 | BM19: =IF($E19>0,SUMIF(個別表!$C$13:$C$350,$B19,個別表!HR$13:HR$350),0) -> 0 | BN19: =IF($E19>0,SUMIF(個別表!$C$13:$C$350,$B19,個別表!HS$13:HS$350),0) -> 0 | BO19: =IF($E19>0,SUMIF(個別表!$C$13:$C$350,$B19,個別表!HT$13:HT$350),0) -> 0 | BP19: =IF($E19>0,SUMIF(個別表!$C$13:$C$350,$B19,個別表!HU$13:HU$350),0) -> 0 | BQ19: =IF($E19>0,SUMIF(個別表!$C$13:$C$350,$B19,個別表!HV$13:HV$350),0) -> 0 | BR19: =IF($E19>0,SUMIF(個別表!$C$13:$C$350,$B19,個別表!HW$13:HW$350),0) -> 0 | BS19: =IF($E19>0,SUMIF(個別表!$C$13:$C$350,$B19,個別表!HX$13:HX$350),0) -> 0 | BT19: =IF($E19>0,SUMIF(個別表!$C$13:$C$350,$B19,個別表!HY$13:HY$350),0) -> 0 | BU19: =IF($E19>0,SUMIF(個別表!$C$13:$C$350,$B19,個別表!HZ$13:HZ$350),0) -> 0 | BV19: =IF($E19>0,SUMIF(個別表!$C$13:$C$350,$B19,個別表!IA$13:IA$350),0) -> 0 | BW19: =IF($E19>0,SUMIF(個別表!$C$13:$C$350,$B19,個別表!IB$13:IB$350),0) -> 0 | BX19: =IF($E19>0,SUMIF(個別表!$C$13:$C$350,$B19,個別表!IC$13:IC$350),0) -> 0 | BY19: =IF($E19>0,SUMIF(個別表!$C$13:$C$350,$B19,個別表!ID$13:ID$350),0) -> 0 | BZ19: =IF($E19>0,SUMIF(個別表!$C$13:$C$350,$B19,個別表!IE$13:IE$350),0) -> 0 | CA19: =IF($E19>0,SUMIF(個別表!$C$13:$C$350,$B19,個別表!IF$13:IF$350),0) -> 0 | CB19: =IF($E19>0,SUMIF(個別表!$C$13:$C$350,$B19,個別表!IG$13:IG$350),0) -> 0 | CC19: =IF($E19>0,SUMIF(個別表!$C$13:$C$350,$B19,個別表!IH$13:IH$350),0) -> 0 | CD19: =IF($E19>0,SUMIF(個別表!$C$13:$C$350,$B19,個別表!II$13:II$350),0) -> 0 | CE19: =IF($E19>0,SUMIF(個別表!$C$13:$C$350,$B19,個別表!IJ$13:IJ$350),0) -> 0 | CF19: =IF($E19>0,SUMIF(個別表!$C$13:$C$350,$B19,個別表!IK$13:IK$350),0) -> 0 | CG19: =IF($E19>0,SUMIF(個別表!$C$13:$C$350,$B19,個別表!IL$13:IL$350),0) -> 0 | CH19: =IF($E19>0,SUMIF(個別表!$C$13:$C$350,$B19,個別表!IM$13:IM$350),0) -> 0 | CI19: =IF($E19>0,SUMIF(個別表!$C$13:$C$350,$B19,個別表!IN$13:IN$350),0) -> 0 | CJ19: =IF($E19>0,SUMIF(個別表!$C$13:$C$350,$B19,個別表!IO$13:IO$350),0) -> 0 | CK19: =IF($E19>0,SUMIF(個別表!$C$13:$C$350,$B19,個別表!IP$13:IP$350),0) -> 0 | CL19: =IF($E19>0,SUMIF(個別表!$C$13:$C$350,$B19,個別表!IQ$13:IQ$350),0) -> 0 | CM19: =IF($E19>0,SUMIF(個別表!$C$13:$C$350,$B19,個別表!IR$13:IR$350),0) -> 0 | CN19: =IF($E19>0,SUMIF(個別表!$C$13:$C$350,$B19,個別表!IS$13:IS$350),0) -> 0 | CO19: =IF($E19>0,SUMIF(個別表!$C$13:$C$350,$B19,個別表!IT$13:IT$350),0) -> 0 | CP19: =IF($E19>0,SUMIF(個別表!$C$13:$C$350,$B19,個別表!IU$13:IU$350),0) -> 0 | CQ19: =IF($E19>0,SUMIF(個別表!$C$13:$C$350,$B19,個別表!IV$13:IV$350),0) -> 0 | CR19: =IF($E19>0,SUMIF(個別表!$C$13:$C$350,$B19,個別表!IW$13:IW$350),0) -> 0 | CS19: =IF($E19>0,SUMIF(個別表!$C$13:$C$350,$B19,個別表!IX$13:IX$350),0) -> 0 | CT19: =IF($E19>0,SUMIF(個別表!$C$13:$C$350,$B19,個別表!IY$13:IY$350),0) -> 0 | CU19: =IF($E19>0,SUMIF(個別表!$C$13:$C$350,$B19,個別表!IZ$13:IZ$350),0) -> 0 | CV19: =IF($E19>0,SUMIF(個別表!$C$13:$C$350,$B19,個別表!JA$13:JA$350),0) -> 0 | CW19: =IF($E19>0,SUMIF(個別表!$C$13:$C$350,$B19,個別表!JB$13:JB$350),0) -> 0 | CX19: =IF($E19>0,SUMIF(個別表!$C$13:$C$350,$B19,個別表!JC$13:JC$350),0) -> 0 | CY19: =IF($E19>0,SUMIF(個別表!$C$13:$C$350,$B19,個別表!JD$13:JD$350),0) -> 0 | CZ19: 0 | DA19: 0 | DD19: 0 | DE19: 0 | DH19: 0 | DK19: 0 | DL19: 0 | DN19: 0 | DP19: 0 | DT19: 0 | DU19: 0 | DX19: =IF($E19>0,COUNTIFS(個別表!$C$13:$C$350,$B19,個別表!$I$13:$I$350,1,個別表!$V$13:$V$350,DX$9),0) -> 0 | DY19: =IF($E19>0,COUNTIFS(個別表!$C$13:$C$350,$B19,個別表!$I$13:$I$350,1,個別表!$V$13:$V$350,DY$9),0) -> 0 | DZ19: =IF($E19>0,COUNTIFS(個別表!$C$13:$C$350,$B19,個別表!$I$13:$I$350,1,個別表!$V$13:$V$350,DZ$9),0) -> 0 | EA19: =IF($E19>0,COUNTIFS(個別表!$C$13:$C$350,$B19,個別表!$I$13:$I$350,1,個別表!$V$13:$V$350,EA$9),0) -> 0
A20: =VLOOKUP($B20,個別表!$C$13:$BP$350,2,FALSE) -> 0 | B20: 0 | C20: =VLOOKUP($B20,個別表!$C$13:$BP$350,10,FALSE) -> 0 | D20: =VLOOKUP($B20,個別表!$C$13:$BP$350,11,FALSE) -> 0 | E20: =VLOOKUP($B20,個別表!$C$13:$BP$350,12,FALSE) -> 0 | F20: =SUMIF(個別表!$C$13:$C$350,総括表!$B20,個別表!$I$13:$I$350) -> 0 | G20: =SUMIF(個別表!$C$13:$C$350,総括表!$B20,個別表!$AV$13:$AV$350) -> 0 | H20: =SUMIF(個別表!$C$13:$C$350,総括表!$B20,個別表!$AX$13:$AX$350) -> 0 | I20: =SUMIF(個別表!$C$13:$C$350,総括表!$B20,個別表!$J$13:$J$350) -> 0 | J20: =SUMIF(個別表!$C$13:$C$350,$B20,個別表!$BP$13:$BP$350) -> 0 | K20: 0 | N20: =SUMIFS(個別表!$I$13:$I$350,個別表!$C$13:$C$350,$B20,個別表!$AL$13:$AL$350,1) -> 0 | O20: =SUMIFS(個別表!$AV$13:$AV$350,個別表!$C$13:$C$350,$B20,個別表!$AL$13:$AL$350,1) -> 0 | P20: =SUMIFS(個別表!$AW$13:$AW$350,個別表!$C$13:$C$350,$B20,個別表!$AL$13:$AL$350,1) -> 0 | Q20: =SUMIFS(個別表!$J$13:$J$350,個別表!$C$13:$C$350,$B20,個別表!$AL$13:$AL$350,1) -> 0 | R20: =SUMIFS(個別表!$BP$13:$BP$350,個別表!$C$13:$C$350,$B20,個別表!$AL$13:$AL$350,1) -> 0 | S20: 0 | T20: =IF($E20>0,SUMIF(個別表!$C$13:$C$350,$B20,個別表!BQ$13:BQ$350),0) -> 0 | U20: =IF($E20>0,SUMIF(個別表!$C$13:$C$350,$B20,個別表!BY$13:BY$350),0) -> 0 | V20: =IF($E20>0,SUMIF(個別表!$C$13:$C$350,$B20,個別表!BZ$13:BZ$350),0) -> 0 | W20: =IF($E20>0,SUMIF(個別表!$C$13:$C$350,$B20,個別表!CA$13:CA$350),0) -> 0 | X20: =IF($E20>0,SUMIF(個別表!$C$13:$C$350,$B20,個別表!CB$13:CB$350),0) -> 0 | Y20: =IF($E20>0,SUMIF(個別表!$C$13:$C$350,$B20,個別表!CC$13:CC$350),0) -> 0 | Z20: =IF($E20>0,SUMIF(個別表!$C$13:$C$350,$B20,個別表!CD$13:CD$350),0) -> 0 | AA20: =IF($E20>0,SUMIF(個別表!$C$13:$C$350,$B20,個別表!CE$13:CE$350),0) -> 0 | AB20: =IF($E20>0,SUMIF(個別表!$C$13:$C$350,$B20,個別表!CF$13:CF$350),0) -> 0 | AC20: =IF($E20>0,SUMIF(個別表!$C$13:$C$350,$B20,個別表!CG$13:CG$350),0) -> 0 | AD20: =IF($E20>0,SUMIF(個別表!$C$13:$C$350,$B20,個別表!GI$13:GI$350),0) -> 0 | AE20: =IF($E20>0,SUMIF(個別表!$C$13:$C$350,$B20,個別表!GJ$13:GJ$350),0) -> 0 | AF20: =IF($E20>0,SUMIF(個別表!$C$13:$C$350,$B20,個別表!GK$13:GK$350),0) -> 0 | AG20: =IF($E20>0,SUMIF(個別表!$C$13:$C$350,$B20,個別表!GL$13:GL$350),0) -> 0 | AH20: =IF($E20>0,SUMIF(個別表!$C$13:$C$350,$B20,個別表!GM$13:GM$350),0) -> 0 | AI20: =IF($E20>0,SUMIF(個別表!$C$13:$C$350,$B20,個別表!GN$13:GN$350),0) -> 0 | AJ20: =IF($E20>0,SUMIF(個別表!$C$13:$C$350,$B20,個別表!GO$13:GO$350),0) -> 0 | AK20: =IF($E20>0,SUMIF(個別表!$C$13:$C$350,$B20,個別表!GP$13:GP$350),0) -> 0 | AL20: =IF($E20>0,SUMIF(個別表!$C$13:$C$350,$B20,個別表!GQ$13:GQ$350),0) -> 0 | AM20: =IF($E20>0,SUMIF(個別表!$C$13:$C$350,$B20,個別表!GR$13:GR$350),0) -> 0 | AN20: =IF($E20>0,SUMIF(個別表!$C$13:$C$350,$B20,個別表!GS$13:GS$350),0) -> 0 | AO20: =IF($E20>0,SUMIF(個別表!$C$13:$C$350,$B20,個別表!GT$13:GT$350),0) -> 0 | AP20: =IF($E20>0,SUMIF(個別表!$C$13:$C$350,$B20,個別表!GU$13:GU$350),0) -> 0 | AQ20: =IF($E20>0,SUMIF(個別表!$C$13:$C$350,$B20,個別表!GV$13:GV$350),0) -> 0 | AR20: =IF($E20>0,SUMIF(個別表!$C$13:$C$350,$B20,個別表!GW$13:GW$350),0) -> 0 | AS20: =IF($E20>0,SUMIF(個別表!$C$13:$C$350,$B20,個別表!GX$13:GX$350),0) -> 0 | AT20: =IF($E20>0,SUMIF(個別表!$C$13:$C$350,$B20,個別表!GY$13:GY$350),0) -> 0 | AU20: =IF($E20>0,SUMIF(個別表!$C$13:$C$350,$B20,個別表!GZ$13:GZ$350),0) -> 0 | AV20: =IF($E20>0,SUMIF(個別表!$C$13:$C$350,$B20,個別表!HA$13:HA$350),0) -> 0 | AW20: =IF($E20>0,SUMIF(個別表!$C$13:$C$350,$B20,個別表!HB$13:HB$350),0) -> 0 | AX20: =IF($E20>0,SUMIF(個別表!$C$13:$C$350,$B20,個別表!HC$13:HC$350),0) -> 0 | AY20: =IF($E20>0,SUMIF(個別表!$C$13:$C$350,$B20,個別表!HD$13:HD$350),0) -> 0 | AZ20: =IF($E20>0,SUMIF(個別表!$C$13:$C$350,$B20,個別表!HE$13:HE$350),0) -> 0 | BA20: =IF($E20>0,SUMIF(個別表!$C$13:$C$350,$B20,個別表!HF$13:HF$350),0) -> 0 | BB20: =IF($E20>0,SUMIF(個別表!$C$13:$C$350,$B20,個別表!HG$13:HG$350),0) -> 0 | BC20: =IF($E20>0,SUMIF(個別表!$C$13:$C$350,$B20,個別表!HH$13:HH$350),0) -> 0 | BD20: =IF($E20>0,SUMIF(個別表!$C$13:$C$350,$B20,個別表!HI$13:HI$350),0) -> 0 | BE20: =IF($E20>0,SUMIF(個別表!$C$13:$C$350,$B20,個別表!HJ$13:HJ$350),0) -> 0 | BF20: =IF($E20>0,SUMIF(個別表!$C$13:$C$350,$B20,個別表!HK$13:HK$350),0) -> 0 | BG20: =IF($E20>0,SUMIF(個別表!$C$13:$C$350,$B20,個別表!HL$13:HL$350),0) -> 0 | BH20: =IF($E20>0,SUMIF(個別表!$C$13:$C$350,$B20,個別表!HM$13:HM$350),0) -> 0 | BI20: =IF($E20>0,SUMIF(個別表!$C$13:$C$350,$B20,個別表!HN$13:HN$350),0) -> 0 | BJ20: =IF($E20>0,SUMIF(個別表!$C$13:$C$350,$B20,個別表!HO$13:HO$350),0) -> 0 | BK20: =IF($E20>0,SUMIF(個別表!$C$13:$C$350,$B20,個別表!HP$13:HP$350),0) -> 0 | BL20: =IF($E20>0,SUMIF(個別表!$C$13:$C$350,$B20,個別表!HQ$13:HQ$350),0) -> 0 | BM20: =IF($E20>0,SUMIF(個別表!$C$13:$C$350,$B20,個別表!HR$13:HR$350),0) -> 0 | BN20: =IF($E20>0,SUMIF(個別表!$C$13:$C$350,$B20,個別表!HS$13:HS$350),0) -> 0 | BO20: =IF($E20>0,SUMIF(個別表!$C$13:$C$350,$B20,個別表!HT$13:HT$350),0) -> 0 | BP20: =IF($E20>0,SUMIF(個別表!$C$13:$C$350,$B20,個別表!HU$13:HU$350),0) -> 0 | BQ20: =IF($E20>0,SUMIF(個別表!$C$13:$C$350,$B20,個別表!HV$13:HV$350),0) -> 0 | BR20: =IF($E20>0,SUMIF(個別表!$C$13:$C$350,$B20,個別表!HW$13:HW$350),0) -> 0 | BS20: =IF($E20>0,SUMIF(個別表!$C$13:$C$350,$B20,個別表!HX$13:HX$350),0) -> 0 | BT20: =IF($E20>0,SUMIF(個別表!$C$13:$C$350,$B20,個別表!HY$13:HY$350),0) -> 0 | BU20: =IF($E20>0,SUMIF(個別表!$C$13:$C$350,$B20,個別表!HZ$13:HZ$350),0) -> 0 | BV20: =IF($E20>0,SUMIF(個別表!$C$13:$C$350,$B20,個別表!IA$13:IA$350),0) -> 0 | BW20: =IF($E20>0,SUMIF(個別表!$C$13:$C$350,$B20,個別表!IB$13:IB$350),0) -> 0 | BX20: =IF($E20>0,SUMIF(個別表!$C$13:$C$350,$B20,個別表!IC$13:IC$350),0) -> 0 | BY20: =IF($E20>0,SUMIF(個別表!$C$13:$C$350,$B20,個別表!ID$13:ID$350),0) -> 0 | BZ20: =IF($E20>0,SUMIF(個別表!$C$13:$C$350,$B20,個別表!IE$13:IE$350),0) -> 0 | CA20: =IF($E20>0,SUMIF(個別表!$C$13:$C$350,$B20,個別表!IF$13:IF$350),0) -> 0 | CB20: =IF($E20>0,SUMIF(個別表!$C$13:$C$350,$B20,個別表!IG$13:IG$350),0) -> 0 | CC20: =IF($E20>0,SUMIF(個別表!$C$13:$C$350,$B20,個別表!IH$13:IH$350),0) -> 0 | CD20: =IF($E20>0,SUMIF(個別表!$C$13:$C$350,$B20,個別表!II$13:II$350),0) -> 0 | CE20: =IF($E20>0,SUMIF(個別表!$C$13:$C$350,$B20,個別表!IJ$13:IJ$350),0) -> 0 | CF20: =IF($E20>0,SUMIF(個別表!$C$13:$C$350,$B20,個別表!IK$13:IK$350),0) -> 0 | CG20: =IF($E20>0,SUMIF(個別表!$C$13:$C$350,$B20,個別表!IL$13:IL$350),0) -> 0 | CH20: =IF($E20>0,SUMIF(個別表!$C$13:$C$350,$B20,個別表!IM$13:IM$350),0) -> 0 | CI20: =IF($E20>0,SUMIF(個別表!$C$13:$C$350,$B20,個別表!IN$13:IN$350),0) -> 0 | CJ20: =IF($E20>0,SUMIF(個別表!$C$13:$C$350,$B20,個別表!IO$13:IO$350),0) -> 0 | CK20: =IF($E20>0,SUMIF(個別表!$C$13:$C$350,$B20,個別表!IP$13:IP$350),0) -> 0 | CL20: =IF($E20>0,SUMIF(個別表!$C$13:$C$350,$B20,個別表!IQ$13:IQ$350),0) -> 0 | CM20: =IF($E20>0,SUMIF(個別表!$C$13:$C$350,$B20,個別表!IR$13:IR$350),0) -> 0 | CN20: =IF($E20>0,SUMIF(個別表!$C$13:$C$350,$B20,個別表!IS$13:IS$350),0) -> 0 | CO20: =IF($E20>0,SUMIF(個別表!$C$13:$C$350,$B20,個別表!IT$13:IT$350),0) -> 0 | CP20: =IF($E20>0,SUMIF(個別表!$C$13:$C$350,$B20,個別表!IU$13:IU$350),0) -> 0 | CQ20: =IF($E20>0,SUMIF(個別表!$C$13:$C$350,$B20,個別表!IV$13:IV$350),0) -> 0 | CR20: =IF($E20>0,SUMIF(個別表!$C$13:$C$350,$B20,個別表!IW$13:IW$350),0) -> 0 | CS20: =IF($E20>0,SUMIF(個別表!$C$13:$C$350,$B20,個別表!IX$13:IX$350),0) -> 0 | CT20: =IF($E20>0,SUMIF(個別表!$C$13:$C$350,$B20,個別表!IY$13:IY$350),0) -> 0 | CU20: =IF($E20>0,SUMIF(個別表!$C$13:$C$350,$B20,個別表!IZ$13:IZ$350),0) -> 0 | CV20: =IF($E20>0,SUMIF(個別表!$C$13:$C$350,$B20,個別表!JA$13:JA$350),0) -> 0 | CW20: =IF($E20>0,SUMIF(個別表!$C$13:$C$350,$B20,個別表!JB$13:JB$350),0) -> 0 | CX20: =IF($E20>0,SUMIF(個別表!$C$13:$C$350,$B20,個別表!JC$13:JC$350),0) -> 0 | CY20: =IF($E20>0,SUMIF(個別表!$C$13:$C$350,$B20,個別表!JD$13:JD$350),0) -> 0 | CZ20: 0 | DA20: 0 | DD20: 0 | DE20: 0 | DH20: 0 | DK20: 0 | DL20: 0 | DN20: 0 | DP20: 0 | DT20: 0 | DU20: 0 | DX20: =IF($E20>0,COUNTIFS(個別表!$C$13:$C$350,$B20,個別表!$I$13:$I$350,1,個別表!$V$13:$V$350,DX$9),0) -> 0 | DY20: =IF($E20>0,COUNTIFS(個別表!$C$13:$C$350,$B20,個別表!$I$13:$I$350,1,個別表!$V$13:$V$350,DY$9),0) -> 0 | DZ20: =IF($E20>0,COUNTIFS(個別表!$C$13:$C$350,$B20,個別表!$I$13:$I$350,1,個別表!$V$13:$V$350,DZ$9),0) -> 0 | EA20: =IF($E20>0,COUNTIFS(個別表!$C$13:$C$350,$B20,個別表!$I$13:$I$350,1,個別表!$V$13:$V$350,EA$9),0) -> 0
A21: =VLOOKUP($B21,個別表!$C$13:$BP$350,2,FALSE) -> 0 | B21: 0 | C21: =VLOOKUP($B21,個別表!$C$13:$BP$350,10,FALSE) -> 0 | D21: =VLOOKUP($B21,個別表!$C$13:$BP$350,11,FALSE) -> 0 | E21: =VLOOKUP($B21,個別表!$C$13:$BP$350,12,FALSE) -> 0 | F21: =SUMIF(個別表!$C$13:$C$350,総括表!$B21,個別表!$I$13:$I$350) -> 0 | G21: =SUMIF(個別表!$C$13:$C$350,総括表!$B21,個別表!$AV$13:$AV$350) -> 0 | H21: =SUMIF(個別表!$C$13:$C$350,総括表!$B21,個別表!$AX$13:$AX$350) -> 0 | I21: =SUMIF(個別表!$C$13:$C$350,総括表!$B21,個別表!$J$13:$J$350) -> 0 | J21: =SUMIF(個別表!$C$13:$C$350,$B21,個別表!$BP$13:$BP$350) -> 0 | K21: 0 | N21: =SUMIFS(個別表!$I$13:$I$350,個別表!$C$13:$C$350,$B21,個別表!$AL$13:$AL$350,1) -> 0 | O21: =SUMIFS(個別表!$AV$13:$AV$350,個別表!$C$13:$C$350,$B21,個別表!$AL$13:$AL$350,1) -> 0 | P21: =SUMIFS(個別表!$AW$13:$AW$350,個別表!$C$13:$C$350,$B21,個別表!$AL$13:$AL$350,1) -> 0 | Q21: =SUMIFS(個別表!$J$13:$J$350,個別表!$C$13:$C$350,$B21,個別表!$AL$13:$AL$350,1) -> 0 | R21: =SUMIFS(個別表!$BP$13:$BP$350,個別表!$C$13:$C$350,$B21,個別表!$AL$13:$AL$350,1) -> 0 | S21: 0 | T21: =IF($E21>0,SUMIF(個別表!$C$13:$C$350,$B21,個別表!BQ$13:BQ$350),0) -> 0 | U21: =IF($E21>0,SUMIF(個別表!$C$13:$C$350,$B21,個別表!BY$13:BY$350),0) -> 0 | V21: =IF($E21>0,SUMIF(個別表!$C$13:$C$350,$B21,個別表!BZ$13:BZ$350),0) -> 0 | W21: =IF($E21>0,SUMIF(個別表!$C$13:$C$350,$B21,個別表!CA$13:CA$350),0) -> 0 | X21: =IF($E21>0,SUMIF(個別表!$C$13:$C$350,$B21,個別表!CB$13:CB$350),0) -> 0 | Y21: =IF($E21>0,SUMIF(個別表!$C$13:$C$350,$B21,個別表!CC$13:CC$350),0) -> 0 | Z21: =IF($E21>0,SUMIF(個別表!$C$13:$C$350,$B21,個別表!CD$13:CD$350),0) -> 0 | AA21: =IF($E21>0,SUMIF(個別表!$C$13:$C$350,$B21,個別表!CE$13:CE$350),0) -> 0 | AB21: =IF($E21>0,SUMIF(個別表!$C$13:$C$350,$B21,個別表!CF$13:CF$350),0) -> 0 | AC21: =IF($E21>0,SUMIF(個別表!$C$13:$C$350,$B21,個別表!CG$13:CG$350),0) -> 0 | AD21: =IF($E21>0,SUMIF(個別表!$C$13:$C$350,$B21,個別表!GI$13:GI$350),0) -> 0 | AE21: =IF($E21>0,SUMIF(個別表!$C$13:$C$350,$B21,個別表!GJ$13:GJ$350),0) -> 0 | AF21: =IF($E21>0,SUMIF(個別表!$C$13:$C$350,$B21,個別表!GK$13:GK$350),0) -> 0 | AG21: =IF($E21>0,SUMIF(個別表!$C$13:$C$350,$B21,個別表!GL$13:GL$350),0) -> 0 | AH21: =IF($E21>0,SUMIF(個別表!$C$13:$C$350,$B21,個別表!GM$13:GM$350),0) -> 0 | AI21: =IF($E21>0,SUMIF(個別表!$C$13:$C$350,$B21,個別表!GN$13:GN$350),0) -> 0 | AJ21: =IF($E21>0,SUMIF(個別表!$C$13:$C$350,$B21,個別表!GO$13:GO$350),0) -> 0 | AK21: =IF($E21>0,SUMIF(個別表!$C$13:$C$350,$B21,個別表!GP$13:GP$350),0) -> 0 | AL21: =IF($E21>0,SUMIF(個別表!$C$13:$C$350,$B21,個別表!GQ$13:GQ$350),0) -> 0 | AM21: =IF($E21>0,SUMIF(個別表!$C$13:$C$350,$B21,個別表!GR$13:GR$350),0) -> 0 | AN21: =IF($E21>0,SUMIF(個別表!$C$13:$C$350,$B21,個別表!GS$13:GS$350),0) -> 0 | AO21: =IF($E21>0,SUMIF(個別表!$C$13:$C$350,$B21,個別表!GT$13:GT$350),0) -> 0 | AP21: =IF($E21>0,SUMIF(個別表!$C$13:$C$350,$B21,個別表!GU$13:GU$350),0) -> 0 | AQ21: =IF($E21>0,SUMIF(個別表!$C$13:$C$350,$B21,個別表!GV$13:GV$350),0) -> 0 | AR21: =IF($E21>0,SUMIF(個別表!$C$13:$C$350,$B21,個別表!GW$13:GW$350),0) -> 0 | AS21: =IF($E21>0,SUMIF(個別表!$C$13:$C$350,$B21,個別表!GX$13:GX$350),0) -> 0 | AT21: =IF($E21>0,SUMIF(個別表!$C$13:$C$350,$B21,個別表!GY$13:GY$350),0) -> 0 | AU21: =IF($E21>0,SUMIF(個別表!$C$13:$C$350,$B21,個別表!GZ$13:GZ$350),0) -> 0 | AV21: =IF($E21>0,SUMIF(個別表!$C$13:$C$350,$B21,個別表!HA$13:HA$350),0) -> 0 | AW21: =IF($E21>0,SUMIF(個別表!$C$13:$C$350,$B21,個別表!HB$13:HB$350),0) -> 0 | AX21: =IF($E21>0,SUMIF(個別表!$C$13:$C$350,$B21,個別表!HC$13:HC$350),0) -> 0 | AY21: =IF($E21>0,SUMIF(個別表!$C$13:$C$350,$B21,個別表!HD$13:HD$350),0) -> 0 | AZ21: =IF($E21>0,SUMIF(個別表!$C$13:$C$350,$B21,個別表!HE$13:HE$350),0) -> 0 | BA21: =IF($E21>0,SUMIF(個別表!$C$13:$C$350,$B21,個別表!HF$13:HF$350),0) -> 0 | BB21: =IF($E21>0,SUMIF(個別表!$C$13:$C$350,$B21,個別表!HG$13:HG$350),0) -> 0 | BC21: =IF($E21>0,SUMIF(個別表!$C$13:$C$350,$B21,個別表!HH$13:HH$350),0) -> 0 | BD21: =IF($E21>0,SUMIF(個別表!$C$13:$C$350,$B21,個別表!HI$13:HI$350),0) -> 0 | BE21: =IF($E21>0,SUMIF(個別表!$C$13:$C$350,$B21,個別表!HJ$13:HJ$350),0) -> 0 | BF21: =IF($E21>0,SUMIF(個別表!$C$13:$C$350,$B21,個別表!HK$13:HK$350),0) -> 0 | BG21: =IF($E21>0,SUMIF(個別表!$C$13:$C$350,$B21,個別表!HL$13:HL$350),0) -> 0 | BH21: =IF($E21>0,SUMIF(個別表!$C$13:$C$350,$B21,個別表!HM$13:HM$350),0) -> 0 | BI21: =IF($E21>0,SUMIF(個別表!$C$13:$C$350,$B21,個別表!HN$13:HN$350),0) -> 0 | BJ21: =IF($E21>0,SUMIF(個別表!$C$13:$C$350,$B21,個別表!HO$13:HO$350),0) -> 0 | BK21: =IF($E21>0,SUMIF(個別表!$C$13:$C$350,$B21,個別表!HP$13:HP$350),0) -> 0 | BL21: =IF($E21>0,SUMIF(個別表!$C$13:$C$350,$B21,個別表!HQ$13:HQ$350),0) -> 0 | BM21: =IF($E21>0,SUMIF(個別表!$C$13:$C$350,$B21,個別表!HR$13:HR$350),0) -> 0 | BN21: =IF($E21>0,SUMIF(個別表!$C$13:$C$350,$B21,個別表!HS$13:HS$350),0) -> 0 | BO21: =IF($E21>0,SUMIF(個別表!$C$13:$C$350,$B21,個別表!HT$13:HT$350),0) -> 0 | BP21: =IF($E21>0,SUMIF(個別表!$C$13:$C$350,$B21,個別表!HU$13:HU$350),0) -> 0 | BQ21: =IF($E21>0,SUMIF(個別表!$C$13:$C$350,$B21,個別表!HV$13:HV$350),0) -> 0 | BR21: =IF($E21>0,SUMIF(個別表!$C$13:$C$350,$B21,個別表!HW$13:HW$350),0) -> 0 | BS21: =IF($E21>0,SUMIF(個別表!$C$13:$C$350,$B21,個別表!HX$13:HX$350),0) -> 0 | BT21: =IF($E21>0,SUMIF(個別表!$C$13:$C$350,$B21,個別表!HY$13:HY$350),0) -> 0 | BU21: =IF($E21>0,SUMIF(個別表!$C$13:$C$350,$B21,個別表!HZ$13:HZ$350),0) -> 0 | BV21: =IF($E21>0,SUMIF(個別表!$C$13:$C$350,$B21,個別表!IA$13:IA$350),0) -> 0 | BW21: =IF($E21>0,SUMIF(個別表!$C$13:$C$350,$B21,個別表!IB$13:IB$350),0) -> 0 | BX21: =IF($E21>0,SUMIF(個別表!$C$13:$C$350,$B21,個別表!IC$13:IC$350),0) -> 0 | BY21: =IF($E21>0,SUMIF(個別表!$C$13:$C$350,$B21,個別表!ID$13:ID$350),0) -> 0 | BZ21: =IF($E21>0,SUMIF(個別表!$C$13:$C$350,$B21,個別表!IE$13:IE$350),0) -> 0 | CA21: =IF($E21>0,SUMIF(個別表!$C$13:$C$350,$B21,個別表!IF$13:IF$350),0) -> 0 | CB21: =IF($E21>0,SUMIF(個別表!$C$13:$C$350,$B21,個別表!IG$13:IG$350),0) -> 0 | CC21: =IF($E21>0,SUMIF(個別表!$C$13:$C$350,$B21,個別表!IH$13:IH$350),0) -> 0 | CD21: =IF($E21>0,SUMIF(個別表!$C$13:$C$350,$B21,個別表!II$13:II$350),0) -> 0 | CE21: =IF($E21>0,SUMIF(個別表!$C$13:$C$350,$B21,個別表!IJ$13:IJ$350),0) -> 0 | CF21: =IF($E21>0,SUMIF(個別表!$C$13:$C$350,$B21,個別表!IK$13:IK$350),0) -> 0 | CG21: =IF($E21>0,SUMIF(個別表!$C$13:$C$350,$B21,個別表!IL$13:IL$350),0) -> 0 | CH21: =IF($E21>0,SUMIF(個別表!$C$13:$C$350,$B21,個別表!IM$13:IM$350),0) -> 0 | CI21: =IF($E21>0,SUMIF(個別表!$C$13:$C$350,$B21,個別表!IN$13:IN$350),0) -> 0 | CJ21: =IF($E21>0,SUMIF(個別表!$C$13:$C$350,$B21,個別表!IO$13:IO$350),0) -> 0 | CK21: =IF($E21>0,SUMIF(個別表!$C$13:$C$350,$B21,個別表!IP$13:IP$350),0) -> 0 | CL21: =IF($E21>0,SUMIF(個別表!$C$13:$C$350,$B21,個別表!IQ$13:IQ$350),0) -> 0 | CM21: =IF($E21>0,SUMIF(個別表!$C$13:$C$350,$B21,個別表!IR$13:IR$350),0) -> 0 | CN21: =IF($E21>0,SUMIF(個別表!$C$13:$C$350,$B21,個別表!IS$13:IS$350),0) -> 0 | CO21: =IF($E21>0,SUMIF(個別表!$C$13:$C$350,$B21,個別表!IT$13:IT$350),0) -> 0 | CP21: =IF($E21>0,SUMIF(個別表!$C$13:$C$350,$B21,個別表!IU$13:IU$350),0) -> 0 | CQ21: =IF($E21>0,SUMIF(個別表!$C$13:$C$350,$B21,個別表!IV$13:IV$350),0) -> 0 | CR21: =IF($E21>0,SUMIF(個別表!$C$13:$C$350,$B21,個別表!IW$13:IW$350),0) -> 0 | CS21: =IF($E21>0,SUMIF(個別表!$C$13:$C$350,$B21,個別表!IX$13:IX$350),0) -> 0 | CT21: =IF($E21>0,SUMIF(個別表!$C$13:$C$350,$B21,個別表!IY$13:IY$350),0) -> 0 | CU21: =IF($E21>0,SUMIF(個別表!$C$13:$C$350,$B21,個別表!IZ$13:IZ$350),0) -> 0 | CV21: =IF($E21>0,SUMIF(個別表!$C$13:$C$350,$B21,個別表!JA$13:JA$350),0) -> 0 | CW21: =IF($E21>0,SUMIF(個別表!$C$13:$C$350,$B21,個別表!JB$13:JB$350),0) -> 0 | CX21: =IF($E21>0,SUMIF(個別表!$C$13:$C$350,$B21,個別表!JC$13:JC$350),0) -> 0 | CY21: =IF($E21>0,SUMIF(個別表!$C$13:$C$350,$B21,個別表!JD$13:JD$350),0) -> 0 | CZ21: 0 | DA21: 0 | DD21: 0 | DE21: 0 | DH21: 0 | DK21: 0 | DL21: 0 | DN21: 0 | DP21: 0 | DT21: 0 | DU21: 0 | DX21: =IF($E21>0,COUNTIFS(個別表!$C$13:$C$350,$B21,個別表!$I$13:$I$350,1,個別表!$V$13:$V$350,DX$9),0) -> 0 | DY21: =IF($E21>0,COUNTIFS(個別表!$C$13:$C$350,$B21,個別表!$I$13:$I$350,1,個別表!$V$13:$V$350,DY$9),0) -> 0 | DZ21: =IF($E21>0,COUNTIFS(個別表!$C$13:$C$350,$B21,個別表!$I$13:$I$350,1,個別表!$V$13:$V$350,DZ$9),0) -> 0 | EA21: =IF($E21>0,COUNTIFS(個別表!$C$13:$C$350,$B21,個別表!$I$13:$I$350,1,個別表!$V$13:$V$350,EA$9),0) -> 0
A22: =VLOOKUP($B22,個別表!$C$13:$BP$350,2,FALSE) -> 0 | B22: 0 | C22: =VLOOKUP($B22,個別表!$C$13:$BP$350,10,FALSE) -> 0 | D22: =VLOOKUP($B22,個別表!$C$13:$BP$350,11,FALSE) -> 0 | E22: =VLOOKUP($B22,個別表!$C$13:$BP$350,12,FALSE) -> 0 | F22: =SUMIF(個別表!$C$13:$C$350,総括表!$B22,個別表!$I$13:$I$350) -> 0 | G22: =SUMIF(個別表!$C$13:$C$350,総括表!$B22,個別表!$AV$13:$AV$350) -> 0 | H22: =SUMIF(個別表!$C$13:$C$350,総括表!$B22,個別表!$AX$13:$AX$350) -> 0 | I22: =SUMIF(個別表!$C$13:$C$350,総括表!$B22,個別表!$J$13:$J$350) -> 0 | J22: =SUMIF(個別表!$C$13:$C$350,$B22,個別表!$BP$13:$BP$350) -> 0 | K22: 0 | N22: =SUMIFS(個別表!$I$13:$I$350,個別表!$C$13:$C$350,$B22,個別表!$AL$13:$AL$350,1) -> 0 | O22: =SUMIFS(個別表!$AV$13:$AV$350,個別表!$C$13:$C$350,$B22,個別表!$AL$13:$AL$350,1) -> 0 | P22: =SUMIFS(個別表!$AW$13:$AW$350,個別表!$C$13:$C$350,$B22,個別表!$AL$13:$AL$350,1) -> 0 | Q22: =SUMIFS(個別表!$J$13:$J$350,個別表!$C$13:$C$350,$B22,個別表!$AL$13:$AL$350,1) -> 0 | R22: =SUMIFS(個別表!$BP$13:$BP$350,個別表!$C$13:$C$350,$B22,個別表!$AL$13:$AL$350,1) -> 0 | S22: 0 | T22: =IF($E22>0,SUMIF(個別表!$C$13:$C$350,$B22,個別表!BQ$13:BQ$350),0) -> 0 | U22: =IF($E22>0,SUMIF(個別表!$C$13:$C$350,$B22,個別表!BY$13:BY$350),0) -> 0 | V22: =IF($E22>0,SUMIF(個別表!$C$13:$C$350,$B22,個別表!BZ$13:BZ$350),0) -> 0 | W22: =IF($E22>0,SUMIF(個別表!$C$13:$C$350,$B22,個別表!CA$13:CA$350),0) -> 0 | X22: =IF($E22>0,SUMIF(個別表!$C$13:$C$350,$B22,個別表!CB$13:CB$350),0) -> 0 | Y22: =IF($E22>0,SUMIF(個別表!$C$13:$C$350,$B22,個別表!CC$13:CC$350),0) -> 0 | Z22: =IF($E22>0,SUMIF(個別表!$C$13:$C$350,$B22,個別表!CD$13:CD$350),0) -> 0 | AA22: =IF($E22>0,SUMIF(個別表!$C$13:$C$350,$B22,個別表!CE$13:CE$350),0) -> 0 | AB22: =IF($E22>0,SUMIF(個別表!$C$13:$C$350,$B22,個別表!CF$13:CF$350),0) -> 0 | AC22: =IF($E22>0,SUMIF(個別表!$C$13:$C$350,$B22,個別表!CG$13:CG$350),0) -> 0 | AD22: =IF($E22>0,SUMIF(個別表!$C$13:$C$350,$B22,個別表!GI$13:GI$350),0) -> 0 | AE22: =IF($E22>0,SUMIF(個別表!$C$13:$C$350,$B22,個別表!GJ$13:GJ$350),0) -> 0 | AF22: =IF($E22>0,SUMIF(個別表!$C$13:$C$350,$B22,個別表!GK$13:GK$350),0) -> 0 | AG22: =IF($E22>0,SUMIF(個別表!$C$13:$C$350,$B22,個別表!GL$13:GL$350),0) -> 0 | AH22: =IF($E22>0,SUMIF(個別表!$C$13:$C$350,$B22,個別表!GM$13:GM$350),0) -> 0 | AI22: =IF($E22>0,SUMIF(個別表!$C$13:$C$350,$B22,個別表!GN$13:GN$350),0) -> 0 | AJ22: =IF($E22>0,SUMIF(個別表!$C$13:$C$350,$B22,個別表!GO$13:GO$350),0) -> 0 | AK22: =IF($E22>0,SUMIF(個別表!$C$13:$C$350,$B22,個別表!GP$13:GP$350),0) -> 0 | AL22: =IF($E22>0,SUMIF(個別表!$C$13:$C$350,$B22,個別表!GQ$13:GQ$350),0) -> 0 | AM22: =IF($E22>0,SUMIF(個別表!$C$13:$C$350,$B22,個別表!GR$13:GR$350),0) -> 0 | AN22: =IF($E22>0,SUMIF(個別表!$C$13:$C$350,$B22,個別表!GS$13:GS$350),0) -> 0 | AO22: =IF($E22>0,SUMIF(個別表!$C$13:$C$350,$B22,個別表!GT$13:GT$350),0) -> 0 | AP22: =IF($E22>0,SUMIF(個別表!$C$13:$C$350,$B22,個別表!GU$13:GU$350),0) -> 0 | AQ22: =IF($E22>0,SUMIF(個別表!$C$13:$C$350,$B22,個別表!GV$13:GV$350),0) -> 0 | AR22: =IF($E22>0,SUMIF(個別表!$C$13:$C$350,$B22,個別表!GW$13:GW$350),0) -> 0 | AS22: =IF($E22>0,SUMIF(個別表!$C$13:$C$350,$B22,個別表!GX$13:GX$350),0) -> 0 | AT22: =IF($E22>0,SUMIF(個別表!$C$13:$C$350,$B22,個別表!GY$13:GY$350),0) -> 0 | AU22: =IF($E22>0,SUMIF(個別表!$C$13:$C$350,$B22,個別表!GZ$13:GZ$350),0) -> 0 | AV22: =IF($E22>0,SUMIF(個別表!$C$13:$C$350,$B22,個別表!HA$13:HA$350),0) -> 0 | AW22: =IF($E22>0,SUMIF(個別表!$C$13:$C$350,$B22,個別表!HB$13:HB$350),0) -> 0 | AX22: =IF($E22>0,SUMIF(個別表!$C$13:$C$350,$B22,個別表!HC$13:HC$350),0) -> 0 | AY22: =IF($E22>0,SUMIF(個別表!$C$13:$C$350,$B22,個別表!HD$13:HD$350),0) -> 0 | AZ22: =IF($E22>0,SUMIF(個別表!$C$13:$C$350,$B22,個別表!HE$13:HE$350),0) -> 0 | BA22: =IF($E22>0,SUMIF(個別表!$C$13:$C$350,$B22,個別表!HF$13:HF$350),0) -> 0 | BB22: =IF($E22>0,SUMIF(個別表!$C$13:$C$350,$B22,個別表!HG$13:HG$350),0) -> 0 | BC22: =IF($E22>0,SUMIF(個別表!$C$13:$C$350,$B22,個別表!HH$13:HH$350),0) -> 0 | BD22: =IF($E22>0,SUMIF(個別表!$C$13:$C$350,$B22,個別表!HI$13:HI$350),0) -> 0 | BE22: =IF($E22>0,SUMIF(個別表!$C$13:$C$350,$B22,個別表!HJ$13:HJ$350),0) -> 0 | BF22: =IF($E22>0,SUMIF(個別表!$C$13:$C$350,$B22,個別表!HK$13:HK$350),0) -> 0 | BG22: =IF($E22>0,SUMIF(個別表!$C$13:$C$350,$B22,個別表!HL$13:HL$350),0) -> 0 | BH22: =IF($E22>0,SUMIF(個別表!$C$13:$C$350,$B22,個別表!HM$13:HM$350),0) -> 0 | BI22: =IF($E22>0,SUMIF(個別表!$C$13:$C$350,$B22,個別表!HN$13:HN$350),0) -> 0 | BJ22: =IF($E22>0,SUMIF(個別表!$C$13:$C$350,$B22,個別表!HO$13:HO$350),0) -> 0 | BK22: =IF($E22>0,SUMIF(個別表!$C$13:$C$350,$B22,個別表!HP$13:HP$350),0) -> 0 | BL22: =IF($E22>0,SUMIF(個別表!$C$13:$C$350,$B22,個別表!HQ$13:HQ$350),0) -> 0 | BM22: =IF($E22>0,SUMIF(個別表!$C$13:$C$350,$B22,個別表!HR$13:HR$350),0) -> 0 | BN22: =IF($E22>0,SUMIF(個別表!$C$13:$C$350,$B22,個別表!HS$13:HS$350),0) -> 0 | BO22: =IF($E22>0,SUMIF(個別表!$C$13:$C$350,$B22,個別表!HT$13:HT$350),0) -> 0 | BP22: =IF($E22>0,SUMIF(個別表!$C$13:$C$350,$B22,個別表!HU$13:HU$350),0) -> 0 | BQ22: =IF($E22>0,SUMIF(個別表!$C$13:$C$350,$B22,個別表!HV$13:HV$350),0) -> 0 | BR22: =IF($E22>0,SUMIF(個別表!$C$13:$C$350,$B22,個別表!HW$13:HW$350),0) -> 0 | BS22: =IF($E22>0,SUMIF(個別表!$C$13:$C$350,$B22,個別表!HX$13:HX$350),0) -> 0 | BT22: =IF($E22>0,SUMIF(個別表!$C$13:$C$350,$B22,個別表!HY$13:HY$350),0) -> 0 | BU22: =IF($E22>0,SUMIF(個別表!$C$13:$C$350,$B22,個別表!HZ$13:HZ$350),0) -> 0 | BV22: =IF($E22>0,SUMIF(個別表!$C$13:$C$350,$B22,個別表!IA$13:IA$350),0) -> 0 | BW22: =IF($E22>0,SUMIF(個別表!$C$13:$C$350,$B22,個別表!IB$13:IB$350),0) -> 0 | BX22: =IF($E22>0,SUMIF(個別表!$C$13:$C$350,$B22,個別表!IC$13:IC$350),0) -> 0 | BY22: =IF($E22>0,SUMIF(個別表!$C$13:$C$350,$B22,個別表!ID$13:ID$350),0) -> 0 | BZ22: =IF($E22>0,SUMIF(個別表!$C$13:$C$350,$B22,個別表!IE$13:IE$350),0) -> 0 | CA22: =IF($E22>0,SUMIF(個別表!$C$13:$C$350,$B22,個別表!IF$13:IF$350),0) -> 0 | CB22: =IF($E22>0,SUMIF(個別表!$C$13:$C$350,$B22,個別表!IG$13:IG$350),0) -> 0 | CC22: =IF($E22>0,SUMIF(個別表!$C$13:$C$350,$B22,個別表!IH$13:IH$350),0) -> 0 | CD22: =IF($E22>0,SUMIF(個別表!$C$13:$C$350,$B22,個別表!II$13:II$350),0) -> 0 | CE22: =IF($E22>0,SUMIF(個別表!$C$13:$C$350,$B22,個別表!IJ$13:IJ$350),0) -> 0 | CF22: =IF($E22>0,SUMIF(個別表!$C$13:$C$350,$B22,個別表!IK$13:IK$350),0) -> 0 | CG22: =IF($E22>0,SUMIF(個別表!$C$13:$C$350,$B22,個別表!IL$13:IL$350),0) -> 0 | CH22: =IF($E22>0,SUMIF(個別表!$C$13:$C$350,$B22,個別表!IM$13:IM$350),0) -> 0 | CI22: =IF($E22>0,SUMIF(個別表!$C$13:$C$350,$B22,個別表!IN$13:IN$350),0) -> 0 | CJ22: =IF($E22>0,SUMIF(個別表!$C$13:$C$350,$B22,個別表!IO$13:IO$350),0) -> 0 | CK22: =IF($E22>0,SUMIF(個別表!$C$13:$C$350,$B22,個別表!IP$13:IP$350),0) -> 0 | CL22: =IF($E22>0,SUMIF(個別表!$C$13:$C$350,$B22,個別表!IQ$13:IQ$350),0) -> 0 | CM22: =IF($E22>0,SUMIF(個別表!$C$13:$C$350,$B22,個別表!IR$13:IR$350),0) -> 0 | CN22: =IF($E22>0,SUMIF(個別表!$C$13:$C$350,$B22,個別表!IS$13:IS$350),0) -> 0 | CO22: =IF($E22>0,SUMIF(個別表!$C$13:$C$350,$B22,個別表!IT$13:IT$350),0) -> 0 | CP22: =IF($E22>0,SUMIF(個別表!$C$13:$C$350,$B22,個別表!IU$13:IU$350),0) -> 0 | CQ22: =IF($E22>0,SUMIF(個別表!$C$13:$C$350,$B22,個別表!IV$13:IV$350),0) -> 0 | CR22: =IF($E22>0,SUMIF(個別表!$C$13:$C$350,$B22,個別表!IW$13:IW$350),0) -> 0 | CS22: =IF($E22>0,SUMIF(個別表!$C$13:$C$350,$B22,個別表!IX$13:IX$350),0) -> 0 | CT22: =IF($E22>0,SUMIF(個別表!$C$13:$C$350,$B22,個別表!IY$13:IY$350),0) -> 0 | CU22: =IF($E22>0,SUMIF(個別表!$C$13:$C$350,$B22,個別表!IZ$13:IZ$350),0) -> 0 | CV22: =IF($E22>0,SUMIF(個別表!$C$13:$C$350,$B22,個別表!JA$13:JA$350),0) -> 0 | CW22: =IF($E22>0,SUMIF(個別表!$C$13:$C$350,$B22,個別表!JB$13:JB$350),0) -> 0 | CX22: =IF($E22>0,SUMIF(個別表!$C$13:$C$350,$B22,個別表!JC$13:JC$350),0) -> 0 | CY22: =IF($E22>0,SUMIF(個別表!$C$13:$C$350,$B22,個別表!JD$13:JD$350),0) -> 0 | CZ22: 0 | DA22: 0 | DD22: 0 | DE22: 0 | DH22: 0 | DK22: 0 | DL22: 0 | DN22: 0 | DP22: 0 | DT22: 0 | DU22: 0 | DX22: =IF($E22>0,COUNTIFS(個別表!$C$13:$C$350,$B22,個別表!$I$13:$I$350,1,個別表!$V$13:$V$350,DX$9),0) -> 0 | DY22: =IF($E22>0,COUNTIFS(個別表!$C$13:$C$350,$B22,個別表!$I$13:$I$350,1,個別表!$V$13:$V$350,DY$9),0) -> 0 | DZ22: =IF($E22>0,COUNTIFS(個別表!$C$13:$C$350,$B22,個別表!$I$13:$I$350,1,個別表!$V$13:$V$350,DZ$9),0) -> 0 | EA22: =IF($E22>0,COUNTIFS(個別表!$C$13:$C$350,$B22,個別表!$I$13:$I$350,1,個別表!$V$13:$V$350,EA$9),0) -> 0
A23: =VLOOKUP($B23,個別表!$C$13:$BP$350,2,FALSE) -> 0 | B23: 0 | C23: =VLOOKUP($B23,個別表!$C$13:$BP$350,10,FALSE) -> 0 | D23: =VLOOKUP($B23,個別表!$C$13:$BP$350,11,FALSE) -> 0 | E23: =VLOOKUP($B23,個別表!$C$13:$BP$350,12,FALSE) -> 0 | F23: =SUMIF(個別表!$C$13:$C$350,総括表!$B23,個別表!$I$13:$I$350) -> 0 | G23: =SUMIF(個別表!$C$13:$C$350,総括表!$B23,個別表!$AV$13:$AV$350) -> 0 | H23: =SUMIF(個別表!$C$13:$C$350,総括表!$B23,個別表!$AX$13:$AX$350) -> 0 | I23: =SUMIF(個別表!$C$13:$C$350,総括表!$B23,個別表!$J$13:$J$350) -> 0 | J23: =SUMIF(個別表!$C$13:$C$350,$B23,個別表!$BP$13:$BP$350) -> 0 | K23: 0 | N23: =SUMIFS(個別表!$I$13:$I$350,個別表!$C$13:$C$350,$B23,個別表!$AL$13:$AL$350,1) -> 0 | O23: =SUMIFS(個別表!$AV$13:$AV$350,個別表!$C$13:$C$350,$B23,個別表!$AL$13:$AL$350,1) -> 0 | P23: =SUMIFS(個別表!$AW$13:$AW$350,個別表!$C$13:$C$350,$B23,個別表!$AL$13:$AL$350,1) -> 0 | Q23: =SUMIFS(個別表!$J$13:$J$350,個別表!$C$13:$C$350,$B23,個別表!$AL$13:$AL$350,1) -> 0 | R23: =SUMIFS(個別表!$BP$13:$BP$350,個別表!$C$13:$C$350,$B23,個別表!$AL$13:$AL$350,1) -> 0 | S23: 0 | T23: =IF($E23>0,SUMIF(個別表!$C$13:$C$350,$B23,個別表!BQ$13:BQ$350),0) -> 0 | U23: =IF($E23>0,SUMIF(個別表!$C$13:$C$350,$B23,個別表!BY$13:BY$350),0) -> 0 | V23: =IF($E23>0,SUMIF(個別表!$C$13:$C$350,$B23,個別表!BZ$13:BZ$350),0) -> 0 | W23: =IF($E23>0,SUMIF(個別表!$C$13:$C$350,$B23,個別表!CA$13:CA$350),0) -> 0 | X23: =IF($E23>0,SUMIF(個別表!$C$13:$C$350,$B23,個別表!CB$13:CB$350),0) -> 0 | Y23: =IF($E23>0,SUMIF(個別表!$C$13:$C$350,$B23,個別表!CC$13:CC$350),0) -> 0 | Z23: =IF($E23>0,SUMIF(個別表!$C$13:$C$350,$B23,個別表!CD$13:CD$350),0) -> 0 | AA23: =IF($E23>0,SUMIF(個別表!$C$13:$C$350,$B23,個別表!CE$13:CE$350),0) -> 0 | AB23: =IF($E23>0,SUMIF(個別表!$C$13:$C$350,$B23,個別表!CF$13:CF$350),0) -> 0 | AC23: =IF($E23>0,SUMIF(個別表!$C$13:$C$350,$B23,個別表!CG$13:CG$350),0) -> 0 | AD23: =IF($E23>0,SUMIF(個別表!$C$13:$C$350,$B23,個別表!GI$13:GI$350),0) -> 0 | AE23: =IF($E23>0,SUMIF(個別表!$C$13:$C$350,$B23,個別表!GJ$13:GJ$350),0) -> 0 | AF23: =IF($E23>0,SUMIF(個別表!$C$13:$C$350,$B23,個別表!GK$13:GK$350),0) -> 0 | AG23: =IF($E23>0,SUMIF(個別表!$C$13:$C$350,$B23,個別表!GL$13:GL$350),0) -> 0 | AH23: =IF($E23>0,SUMIF(個別表!$C$13:$C$350,$B23,個別表!GM$13:GM$350),0) -> 0 | AI23: =IF($E23>0,SUMIF(個別表!$C$13:$C$350,$B23,個別表!GN$13:GN$350),0) -> 0 | AJ23: =IF($E23>0,SUMIF(個別表!$C$13:$C$350,$B23,個別表!GO$13:GO$350),0) -> 0 | AK23: =IF($E23>0,SUMIF(個別表!$C$13:$C$350,$B23,個別表!GP$13:GP$350),0) -> 0 | AL23: =IF($E23>0,SUMIF(個別表!$C$13:$C$350,$B23,個別表!GQ$13:GQ$350),0) -> 0 | AM23: =IF($E23>0,SUMIF(個別表!$C$13:$C$350,$B23,個別表!GR$13:GR$350),0) -> 0 | AN23: =IF($E23>0,SUMIF(個別表!$C$13:$C$350,$B23,個別表!GS$13:GS$350),0) -> 0 | AO23: =IF($E23>0,SUMIF(個別表!$C$13:$C$350,$B23,個別表!GT$13:GT$350),0) -> 0 | AP23: =IF($E23>0,SUMIF(個別表!$C$13:$C$350,$B23,個別表!GU$13:GU$350),0) -> 0 | AQ23: =IF($E23>0,SUMIF(個別表!$C$13:$C$350,$B23,個別表!GV$13:GV$350),0) -> 0 | AR23: =IF($E23>0,SUMIF(個別表!$C$13:$C$350,$B23,個別表!GW$13:GW$350),0) -> 0 | AS23: =IF($E23>0,SUMIF(個別表!$C$13:$C$350,$B23,個別表!GX$13:GX$350),0) -> 0 | AT23: =IF($E23>0,SUMIF(個別表!$C$13:$C$350,$B23,個別表!GY$13:GY$350),0) -> 0 | AU23: =IF($E23>0,SUMIF(個別表!$C$13:$C$350,$B23,個別表!GZ$13:GZ$350),0) -> 0 | AV23: =IF($E23>0,SUMIF(個別表!$C$13:$C$350,$B23,個別表!HA$13:HA$350),0) -> 0 | AW23: =IF($E23>0,SUMIF(個別表!$C$13:$C$350,$B23,個別表!HB$13:HB$350),0) -> 0 | AX23: =IF($E23>0,SUMIF(個別表!$C$13:$C$350,$B23,個別表!HC$13:HC$350),0) -> 0 | AY23: =IF($E23>0,SUMIF(個別表!$C$13:$C$350,$B23,個別表!HD$13:HD$350),0) -> 0 | AZ23: =IF($E23>0,SUMIF(個別表!$C$13:$C$350,$B23,個別表!HE$13:HE$350),0) -> 0 | BA23: =IF($E23>0,SUMIF(個別表!$C$13:$C$350,$B23,個別表!HF$13:HF$350),0) -> 0 | BB23: =IF($E23>0,SUMIF(個別表!$C$13:$C$350,$B23,個別表!HG$13:HG$350),0) -> 0 | BC23: =IF($E23>0,SUMIF(個別表!$C$13:$C$350,$B23,個別表!HH$13:HH$350),0) -> 0 | BD23: =IF($E23>0,SUMIF(個別表!$C$13:$C$350,$B23,個別表!HI$13:HI$350),0) -> 0 | BE23: =IF($E23>0,SUMIF(個別表!$C$13:$C$350,$B23,個別表!HJ$13:HJ$350),0) -> 0 | BF23: =IF($E23>0,SUMIF(個別表!$C$13:$C$350,$B23,個別表!HK$13:HK$350),0) -> 0 | BG23: =IF($E23>0,SUMIF(個別表!$C$13:$C$350,$B23,個別表!HL$13:HL$350),0) -> 0 | BH23: =IF($E23>0,SUMIF(個別表!$C$13:$C$350,$B23,個別表!HM$13:HM$350),0) -> 0 | BI23: =IF($E23>0,SUMIF(個別表!$C$13:$C$350,$B23,個別表!HN$13:HN$350),0) -> 0 | BJ23: =IF($E23>0,SUMIF(個別表!$C$13:$C$350,$B23,個別表!HO$13:HO$350),0) -> 0 | BK23: =IF($E23>0,SUMIF(個別表!$C$13:$C$350,$B23,個別表!HP$13:HP$350),0) -> 0 | BL23: =IF($E23>0,SUMIF(個別表!$C$13:$C$350,$B23,個別表!HQ$13:HQ$350),0) -> 0 | BM23: =IF($E23>0,SUMIF(個別表!$C$13:$C$350,$B23,個別表!HR$13:HR$350),0) -> 0 | BN23: =IF($E23>0,SUMIF(個別表!$C$13:$C$350,$B23,個別表!HS$13:HS$350),0) -> 0 | BO23: =IF($E23>0,SUMIF(個別表!$C$13:$C$350,$B23,個別表!HT$13:HT$350),0) -> 0 | BP23: =IF($E23>0,SUMIF(個別表!$C$13:$C$350,$B23,個別表!HU$13:HU$350),0) -> 0 | BQ23: =IF($E23>0,SUMIF(個別表!$C$13:$C$350,$B23,個別表!HV$13:HV$350),0) -> 0 | BR23: =IF($E23>0,SUMIF(個別表!$C$13:$C$350,$B23,個別表!HW$13:HW$350),0) -> 0 | BS23: =IF($E23>0,SUMIF(個別表!$C$13:$C$350,$B23,個別表!HX$13:HX$350),0) -> 0 | BT23: =IF($E23>0,SUMIF(個別表!$C$13:$C$350,$B23,個別表!HY$13:HY$350),0) -> 0 | BU23: =IF($E23>0,SUMIF(個別表!$C$13:$C$350,$B23,個別表!HZ$13:HZ$350),0) -> 0 | BV23: =IF($E23>0,SUMIF(個別表!$C$13:$C$350,$B23,個別表!IA$13:IA$350),0) -> 0 | BW23: =IF($E23>0,SUMIF(個別表!$C$13:$C$350,$B23,個別表!IB$13:IB$350),0) -> 0 | BX23: =IF($E23>0,SUMIF(個別表!$C$13:$C$350,$B23,個別表!IC$13:IC$350),0) -> 0 | BY23: =IF($E23>0,SUMIF(個別表!$C$13:$C$350,$B23,個別表!ID$13:ID$350),0) -> 0 | BZ23: =IF($E23>0,SUMIF(個別表!$C$13:$C$350,$B23,個別表!IE$13:IE$350),0) -> 0 | CA23: =IF($E23>0,SUMIF(個別表!$C$13:$C$350,$B23,個別表!IF$13:IF$350),0) -> 0 | CB23: =IF($E23>0,SUMIF(個別表!$C$13:$C$350,$B23,個別表!IG$13:IG$350),0) -> 0 | CC23: =IF($E23>0,SUMIF(個別表!$C$13:$C$350,$B23,個別表!IH$13:IH$350),0) -> 0 | CD23: =IF($E23>0,SUMIF(個別表!$C$13:$C$350,$B23,個別表!II$13:II$350),0) -> 0 | CE23: =IF($E23>0,SUMIF(個別表!$C$13:$C$350,$B23,個別表!IJ$13:IJ$350),0) -> 0 | CF23: =IF($E23>0,SUMIF(個別表!$C$13:$C$350,$B23,個別表!IK$13:IK$350),0) -> 0 | CG23: =IF($E23>0,SUMIF(個別表!$C$13:$C$350,$B23,個別表!IL$13:IL$350),0) -> 0 | CH23: =IF($E23>0,SUMIF(個別表!$C$13:$C$350,$B23,個別表!IM$13:IM$350),0) -> 0 | CI23: =IF($E23>0,SUMIF(個別表!$C$13:$C$350,$B23,個別表!IN$13:IN$350),0) -> 0 | CJ23: =IF($E23>0,SUMIF(個別表!$C$13:$C$350,$B23,個別表!IO$13:IO$350),0) -> 0 | CK23: =IF($E23>0,SUMIF(個別表!$C$13:$C$350,$B23,個別表!IP$13:IP$350),0) -> 0 | CL23: =IF($E23>0,SUMIF(個別表!$C$13:$C$350,$B23,個別表!IQ$13:IQ$350),0) -> 0 | CM23: =IF($E23>0,SUMIF(個別表!$C$13:$C$350,$B23,個別表!IR$13:IR$350),0) -> 0 | CN23: =IF($E23>0,SUMIF(個別表!$C$13:$C$350,$B23,個別表!IS$13:IS$350),0) -> 0 | CO23: =IF($E23>0,SUMIF(個別表!$C$13:$C$350,$B23,個別表!IT$13:IT$350),0) -> 0 | CP23: =IF($E23>0,SUMIF(個別表!$C$13:$C$350,$B23,個別表!IU$13:IU$350),0) -> 0 | CQ23: =IF($E23>0,SUMIF(個別表!$C$13:$C$350,$B23,個別表!IV$13:IV$350),0) -> 0 | CR23: =IF($E23>0,SUMIF(個別表!$C$13:$C$350,$B23,個別表!IW$13:IW$350),0) -> 0 | CS23: =IF($E23>0,SUMIF(個別表!$C$13:$C$350,$B23,個別表!IX$13:IX$350),0) -> 0 | CT23: =IF($E23>0,SUMIF(個別表!$C$13:$C$350,$B23,個別表!IY$13:IY$350),0) -> 0 | CU23: =IF($E23>0,SUMIF(個別表!$C$13:$C$350,$B23,個別表!IZ$13:IZ$350),0) -> 0 | CV23: =IF($E23>0,SUMIF(個別表!$C$13:$C$350,$B23,個別表!JA$13:JA$350),0) -> 0 | CW23: =IF($E23>0,SUMIF(個別表!$C$13:$C$350,$B23,個別表!JB$13:JB$350),0) -> 0 | CX23: =IF($E23>0,SUMIF(個別表!$C$13:$C$350,$B23,個別表!JC$13:JC$350),0) -> 0 | CY23: =IF($E23>0,SUMIF(個別表!$C$13:$C$350,$B23,個別表!JD$13:JD$350),0) -> 0 | CZ23: 0 | DA23: 0 | DD23: 0 | DE23: 0 | DH23: 0 | DK23: 0 | DL23: 0 | DN23: 0 | DP23: 0 | DT23: 0 | DU23: 0 | DX23: =IF($E23>0,COUNTIFS(個別表!$C$13:$C$350,$B23,個別表!$I$13:$I$350,1,個別表!$V$13:$V$350,DX$9),0) -> 0 | DY23: =IF($E23>0,COUNTIFS(個別表!$C$13:$C$350,$B23,個別表!$I$13:$I$350,1,個別表!$V$13:$V$350,DY$9),0) -> 0 | DZ23: =IF($E23>0,COUNTIFS(個別表!$C$13:$C$350,$B23,個別表!$I$13:$I$350,1,個別表!$V$13:$V$350,DZ$9),0) -> 0 | EA23: =IF($E23>0,COUNTIFS(個別表!$C$13:$C$350,$B23,個別表!$I$13:$I$350,1,個別表!$V$13:$V$350,EA$9),0) -> 0
A24: =VLOOKUP($B24,個別表!$C$13:$BP$350,2,FALSE) -> 0 | B24: 0 | C24: =VLOOKUP($B24,個別表!$C$13:$BP$350,10,FALSE) -> 0 | D24: =VLOOKUP($B24,個別表!$C$13:$BP$350,11,FALSE) -> 0 | E24: =VLOOKUP($B24,個別表!$C$13:$BP$350,12,FALSE) -> 0 | F24: =SUMIF(個別表!$C$13:$C$350,総括表!$B24,個別表!$I$13:$I$350) -> 0 | G24: =SUMIF(個別表!$C$13:$C$350,総括表!$B24,個別表!$AV$13:$AV$350) -> 0 | H24: =SUMIF(個別表!$C$13:$C$350,総括表!$B24,個別表!$AX$13:$AX$350) -> 0 | I24: =SUMIF(個別表!$C$13:$C$350,総括表!$B24,個別表!$J$13:$J$350) -> 0 | J24: =SUMIF(個別表!$C$13:$C$350,$B24,個別表!$BP$13:$BP$350) -> 0 | K24: 0 | N24: =SUMIFS(個別表!$I$13:$I$350,個別表!$C$13:$C$350,$B24,個別表!$AL$13:$AL$350,1) -> 0 | O24: =SUMIFS(個別表!$AV$13:$AV$350,個別表!$C$13:$C$350,$B24,個別表!$AL$13:$AL$350,1) -> 0 | P24: =SUMIFS(個別表!$AW$13:$AW$350,個別表!$C$13:$C$350,$B24,個別表!$AL$13:$AL$350,1) -> 0 | Q24: =SUMIFS(個別表!$J$13:$J$350,個別表!$C$13:$C$350,$B24,個別表!$AL$13:$AL$350,1) -> 0 | R24: =SUMIFS(個別表!$BP$13:$BP$350,個別表!$C$13:$C$350,$B24,個別表!$AL$13:$AL$350,1) -> 0 | S24: 0 | T24: =IF($E24>0,SUMIF(個別表!$C$13:$C$350,$B24,個別表!BQ$13:BQ$350),0) -> 0 | U24: =IF($E24>0,SUMIF(個別表!$C$13:$C$350,$B24,個別表!BY$13:BY$350),0) -> 0 | V24: =IF($E24>0,SUMIF(個別表!$C$13:$C$350,$B24,個別表!BZ$13:BZ$350),0) -> 0 | W24: =IF($E24>0,SUMIF(個別表!$C$13:$C$350,$B24,個別表!CA$13:CA$350),0) -> 0 | X24: =IF($E24>0,SUMIF(個別表!$C$13:$C$350,$B24,個別表!CB$13:CB$350),0) -> 0 | Y24: =IF($E24>0,SUMIF(個別表!$C$13:$C$350,$B24,個別表!CC$13:CC$350),0) -> 0 | Z24: =IF($E24>0,SUMIF(個別表!$C$13:$C$350,$B24,個別表!CD$13:CD$350),0) -> 0 | AA24: =IF($E24>0,SUMIF(個別表!$C$13:$C$350,$B24,個別表!CE$13:CE$350),0) -> 0 | AB24: =IF($E24>0,SUMIF(個別表!$C$13:$C$350,$B24,個別表!CF$13:CF$350),0) -> 0 | AC24: =IF($E24>0,SUMIF(個別表!$C$13:$C$350,$B24,個別表!CG$13:CG$350),0) -> 0 | AD24: =IF($E24>0,SUMIF(個別表!$C$13:$C$350,$B24,個別表!GI$13:GI$350),0) -> 0 | AE24: =IF($E24>0,SUMIF(個別表!$C$13:$C$350,$B24,個別表!GJ$13:GJ$350),0) -> 0 | AF24: =IF($E24>0,SUMIF(個別表!$C$13:$C$350,$B24,個別表!GK$13:GK$350),0) -> 0 | AG24: =IF($E24>0,SUMIF(個別表!$C$13:$C$350,$B24,個別表!GL$13:GL$350),0) -> 0 | AH24: =IF($E24>0,SUMIF(個別表!$C$13:$C$350,$B24,個別表!GM$13:GM$350),0) -> 0 | AI24: =IF($E24>0,SUMIF(個別表!$C$13:$C$350,$B24,個別表!GN$13:GN$350),0) -> 0 | AJ24: =IF($E24>0,SUMIF(個別表!$C$13:$C$350,$B24,個別表!GO$13:GO$350),0) -> 0 | AK24: =IF($E24>0,SUMIF(個別表!$C$13:$C$350,$B24,個別表!GP$13:GP$350),0) -> 0 | AL24: =IF($E24>0,SUMIF(個別表!$C$13:$C$350,$B24,個別表!GQ$13:GQ$350),0) -> 0 | AM24: =IF($E24>0,SUMIF(個別表!$C$13:$C$350,$B24,個別表!GR$13:GR$350),0) -> 0 | AN24: =IF($E24>0,SUMIF(個別表!$C$13:$C$350,$B24,個別表!GS$13:GS$350),0) -> 0 | AO24: =IF($E24>0,SUMIF(個別表!$C$13:$C$350,$B24,個別表!GT$13:GT$350),0) -> 0 | AP24: =IF($E24>0,SUMIF(個別表!$C$13:$C$350,$B24,個別表!GU$13:GU$350),0) -> 0 | AQ24: =IF($E24>0,SUMIF(個別表!$C$13:$C$350,$B24,個別表!GV$13:GV$350),0) -> 0 | AR24: =IF($E24>0,SUMIF(個別表!$C$13:$C$350,$B24,個別表!GW$13:GW$350),0) -> 0 | AS24: =IF($E24>0,SUMIF(個別表!$C$13:$C$350,$B24,個別表!GX$13:GX$350),0) -> 0 | AT24: =IF($E24>0,SUMIF(個別表!$C$13:$C$350,$B24,個別表!GY$13:GY$350),0) -> 0 | AU24: =IF($E24>0,SUMIF(個別表!$C$13:$C$350,$B24,個別表!GZ$13:GZ$350),0) -> 0 | AV24: =IF($E24>0,SUMIF(個別表!$C$13:$C$350,$B24,個別表!HA$13:HA$350),0) -> 0 | AW24: =IF($E24>0,SUMIF(個別表!$C$13:$C$350,$B24,個別表!HB$13:HB$350),0) -> 0 | AX24: =IF($E24>0,SUMIF(個別表!$C$13:$C$350,$B24,個別表!HC$13:HC$350),0) -> 0 | AY24: =IF($E24>0,SUMIF(個別表!$C$13:$C$350,$B24,個別表!HD$13:HD$350),0) -> 0 | AZ24: =IF($E24>0,SUMIF(個別表!$C$13:$C$350,$B24,個別表!HE$13:HE$350),0) -> 0 | BA24: =IF($E24>0,SUMIF(個別表!$C$13:$C$350,$B24,個別表!HF$13:HF$350),0) -> 0 | BB24: =IF($E24>0,SUMIF(個別表!$C$13:$C$350,$B24,個別表!HG$13:HG$350),0) -> 0 | BC24: =IF($E24>0,SUMIF(個別表!$C$13:$C$350,$B24,個別表!HH$13:HH$350),0) -> 0 | BD24: =IF($E24>0,SUMIF(個別表!$C$13:$C$350,$B24,個別表!HI$13:HI$350),0) -> 0 | BE24: =IF($E24>0,SUMIF(個別表!$C$13:$C$350,$B24,個別表!HJ$13:HJ$350),0) -> 0 | BF24: =IF($E24>0,SUMIF(個別表!$C$13:$C$350,$B24,個別表!HK$13:HK$350),0) -> 0 | BG24: =IF($E24>0,SUMIF(個別表!$C$13:$C$350,$B24,個別表!HL$13:HL$350),0) -> 0 | BH24: =IF($E24>0,SUMIF(個別表!$C$13:$C$350,$B24,個別表!HM$13:HM$350),0) -> 0 | BI24: =IF($E24>0,SUMIF(個別表!$C$13:$C$350,$B24,個別表!HN$13:HN$350),0) -> 0 | BJ24: =IF($E24>0,SUMIF(個別表!$C$13:$C$350,$B24,個別表!HO$13:HO$350),0) -> 0 | BK24: =IF($E24>0,SUMIF(個別表!$C$13:$C$350,$B24,個別表!HP$13:HP$350),0) -> 0 | BL24: =IF($E24>0,SUMIF(個別表!$C$13:$C$350,$B24,個別表!HQ$13:HQ$350),0) -> 0 | BM24: =IF($E24>0,SUMIF(個別表!$C$13:$C$350,$B24,個別表!HR$13:HR$350),0) -> 0 | BN24: =IF($E24>0,SUMIF(個別表!$C$13:$C$350,$B24,個別表!HS$13:HS$350),0) -> 0 | BO24: =IF($E24>0,SUMIF(個別表!$C$13:$C$350,$B24,個別表!HT$13:HT$350),0) -> 0 | BP24: =IF($E24>0,SUMIF(個別表!$C$13:$C$350,$B24,個別表!HU$13:HU$350),0) -> 0 | BQ24: =IF($E24>0,SUMIF(個別表!$C$13:$C$350,$B24,個別表!HV$13:HV$350),0) -> 0 | BR24: =IF($E24>0,SUMIF(個別表!$C$13:$C$350,$B24,個別表!HW$13:HW$350),0) -> 0 | BS24: =IF($E24>0,SUMIF(個別表!$C$13:$C$350,$B24,個別表!HX$13:HX$350),0) -> 0 | BT24: =IF($E24>0,SUMIF(個別表!$C$13:$C$350,$B24,個別表!HY$13:HY$350),0) -> 0 | BU24: =IF($E24>0,SUMIF(個別表!$C$13:$C$350,$B24,個別表!HZ$13:HZ$350),0) -> 0 | BV24: =IF($E24>0,SUMIF(個別表!$C$13:$C$350,$B24,個別表!IA$13:IA$350),0) -> 0 | BW24: =IF($E24>0,SUMIF(個別表!$C$13:$C$350,$B24,個別表!IB$13:IB$350),0) -> 0 | BX24: =IF($E24>0,SUMIF(個別表!$C$13:$C$350,$B24,個別表!IC$13:IC$350),0) -> 0 | BY24: =IF($E24>0,SUMIF(個別表!$C$13:$C$350,$B24,個別表!ID$13:ID$350),0) -> 0 | BZ24: =IF($E24>0,SUMIF(個別表!$C$13:$C$350,$B24,個別表!IE$13:IE$350),0) -> 0 | CA24: =IF($E24>0,SUMIF(個別表!$C$13:$C$350,$B24,個別表!IF$13:IF$350),0) -> 0 | CB24: =IF($E24>0,SUMIF(個別表!$C$13:$C$350,$B24,個別表!IG$13:IG$350),0) -> 0 | CC24: =IF($E24>0,SUMIF(個別表!$C$13:$C$350,$B24,個別表!IH$13:IH$350),0) -> 0 | CD24: =IF($E24>0,SUMIF(個別表!$C$13:$C$350,$B24,個別表!II$13:II$350),0) -> 0 | CE24: =IF($E24>0,SUMIF(個別表!$C$13:$C$350,$B24,個別表!IJ$13:IJ$350),0) -> 0 | CF24: =IF($E24>0,SUMIF(個別表!$C$13:$C$350,$B24,個別表!IK$13:IK$350),0) -> 0 | CG24: =IF($E24>0,SUMIF(個別表!$C$13:$C$350,$B24,個別表!IL$13:IL$350),0) -> 0 | CH24: =IF($E24>0,SUMIF(個別表!$C$13:$C$350,$B24,個別表!IM$13:IM$350),0) -> 0 | CI24: =IF($E24>0,SUMIF(個別表!$C$13:$C$350,$B24,個別表!IN$13:IN$350),0) -> 0 | CJ24: =IF($E24>0,SUMIF(個別表!$C$13:$C$350,$B24,個別表!IO$13:IO$350),0) -> 0 | CK24: =IF($E24>0,SUMIF(個別表!$C$13:$C$350,$B24,個別表!IP$13:IP$350),0) -> 0 | CL24: =IF($E24>0,SUMIF(個別表!$C$13:$C$350,$B24,個別表!IQ$13:IQ$350),0) -> 0 | CM24: =IF($E24>0,SUMIF(個別表!$C$13:$C$350,$B24,個別表!IR$13:IR$350),0) -> 0 | CN24: =IF($E24>0,SUMIF(個別表!$C$13:$C$350,$B24,個別表!IS$13:IS$350),0) -> 0 | CO24: =IF($E24>0,SUMIF(個別表!$C$13:$C$350,$B24,個別表!IT$13:IT$350),0) -> 0 | CP24: =IF($E24>0,SUMIF(個別表!$C$13:$C$350,$B24,個別表!IU$13:IU$350),0) -> 0 | CQ24: =IF($E24>0,SUMIF(個別表!$C$13:$C$350,$B24,個別表!IV$13:IV$350),0) -> 0 | CR24: =IF($E24>0,SUMIF(個別表!$C$13:$C$350,$B24,個別表!IW$13:IW$350),0) -> 0 | CS24: =IF($E24>0,SUMIF(個別表!$C$13:$C$350,$B24,個別表!IX$13:IX$350),0) -> 0 | CT24: =IF($E24>0,SUMIF(個別表!$C$13:$C$350,$B24,個別表!IY$13:IY$350),0) -> 0 | CU24: =IF($E24>0,SUMIF(個別表!$C$13:$C$350,$B24,個別表!IZ$13:IZ$350),0) -> 0 | CV24: =IF($E24>0,SUMIF(個別表!$C$13:$C$350,$B24,個別表!JA$13:JA$350),0) -> 0 | CW24: =IF($E24>0,SUMIF(個別表!$C$13:$C$350,$B24,個別表!JB$13:JB$350),0) -> 0 | CX24: =IF($E24>0,SUMIF(個別表!$C$13:$C$350,$B24,個別表!JC$13:JC$350),0) -> 0 | CY24: =IF($E24>0,SUMIF(個別表!$C$13:$C$350,$B24,個別表!JD$13:JD$350),0) -> 0 | CZ24: 0 | DA24: 0 | DD24: 0 | DE24: 0 | DH24: 0 | DK24: 0 | DL24: 0 | DN24: 0 | DP24: 0 | DT24: 0 | DU24: 0 | DX24: =IF($E24>0,COUNTIFS(個別表!$C$13:$C$350,$B24,個別表!$I$13:$I$350,1,個別表!$V$13:$V$350,DX$9),0) -> 0 | DY24: =IF($E24>0,COUNTIFS(個別表!$C$13:$C$350,$B24,個別表!$I$13:$I$350,1,個別表!$V$13:$V$350,DY$9),0) -> 0 | DZ24: =IF($E24>0,COUNTIFS(個別表!$C$13:$C$350,$B24,個別表!$I$13:$I$350,1,個別表!$V$13:$V$350,DZ$9),0) -> 0 | EA24: =IF($E24>0,COUNTIFS(個別表!$C$13:$C$350,$B24,個別表!$I$13:$I$350,1,個別表!$V$13:$V$350,EA$9),0) -> 0
A25: =VLOOKUP($B25,個別表!$C$13:$BP$350,2,FALSE) -> 0 | B25: 0 | C25: =VLOOKUP($B25,個別表!$C$13:$BP$350,10,FALSE) -> 0 | D25: =VLOOKUP($B25,個別表!$C$13:$BP$350,11,FALSE) -> 0 | E25: =VLOOKUP($B25,個別表!$C$13:$BP$350,12,FALSE) -> 0 | F25: =SUMIF(個別表!$C$13:$C$350,総括表!$B25,個別表!$I$13:$I$350) -> 0 | G25: =SUMIF(個別表!$C$13:$C$350,総括表!$B25,個別表!$AV$13:$AV$350) -> 0 | H25: =SUMIF(個別表!$C$13:$C$350,総括表!$B25,個別表!$AX$13:$AX$350) -> 0 | I25: =SUMIF(個別表!$C$13:$C$350,総括表!$B25,個別表!$J$13:$J$350) -> 0 | J25: =SUMIF(個別表!$C$13:$C$350,$B25,個別表!$BP$13:$BP$350) -> 0 | K25: 0 | N25: =SUMIFS(個別表!$I$13:$I$350,個別表!$C$13:$C$350,$B25,個別表!$AL$13:$AL$350,1) -> 0 | O25: =SUMIFS(個別表!$AV$13:$AV$350,個別表!$C$13:$C$350,$B25,個別表!$AL$13:$AL$350,1) -> 0 | P25: =SUMIFS(個別表!$AW$13:$AW$350,個別表!$C$13:$C$350,$B25,個別表!$AL$13:$AL$350,1) -> 0 | Q25: =SUMIFS(個別表!$J$13:$J$350,個別表!$C$13:$C$350,$B25,個別表!$AL$13:$AL$350,1) -> 0 | R25: =SUMIFS(個別表!$BP$13:$BP$350,個別表!$C$13:$C$350,$B25,個別表!$AL$13:$AL$350,1) -> 0 | S25: 0 | T25: =IF($E25>0,SUMIF(個別表!$C$13:$C$350,$B25,個別表!BQ$13:BQ$350),0) -> 0 | U25: =IF($E25>0,SUMIF(個別表!$C$13:$C$350,$B25,個別表!BY$13:BY$350),0) -> 0 | V25: =IF($E25>0,SUMIF(個別表!$C$13:$C$350,$B25,個別表!BZ$13:BZ$350),0) -> 0 | W25: =IF($E25>0,SUMIF(個別表!$C$13:$C$350,$B25,個別表!CA$13:CA$350),0) -> 0 | X25: =IF($E25>0,SUMIF(個別表!$C$13:$C$350,$B25,個別表!CB$13:CB$350),0) -> 0 | Y25: =IF($E25>0,SUMIF(個別表!$C$13:$C$350,$B25,個別表!CC$13:CC$350),0) -> 0 | Z25: =IF($E25>0,SUMIF(個別表!$C$13:$C$350,$B25,個別表!CD$13:CD$350),0) -> 0 | AA25: =IF($E25>0,SUMIF(個別表!$C$13:$C$350,$B25,個別表!CE$13:CE$350),0) -> 0 | AB25: =IF($E25>0,SUMIF(個別表!$C$13:$C$350,$B25,個別表!CF$13:CF$350),0) -> 0 | AC25: =IF($E25>0,SUMIF(個別表!$C$13:$C$350,$B25,個別表!CG$13:CG$350),0) -> 0 | AD25: =IF($E25>0,SUMIF(個別表!$C$13:$C$350,$B25,個別表!GI$13:GI$350),0) -> 0 | AE25: =IF($E25>0,SUMIF(個別表!$C$13:$C$350,$B25,個別表!GJ$13:GJ$350),0) -> 0 | AF25: =IF($E25>0,SUMIF(個別表!$C$13:$C$350,$B25,個別表!GK$13:GK$350),0) -> 0 | AG25: =IF($E25>0,SUMIF(個別表!$C$13:$C$350,$B25,個別表!GL$13:GL$350),0) -> 0 | AH25: =IF($E25>0,SUMIF(個別表!$C$13:$C$350,$B25,個別表!GM$13:GM$350),0) -> 0 | AI25: =IF($E25>0,SUMIF(個別表!$C$13:$C$350,$B25,個別表!GN$13:GN$350),0) -> 0 | AJ25: =IF($E25>0,SUMIF(個別表!$C$13:$C$350,$B25,個別表!GO$13:GO$350),0) -> 0 | AK25: =IF($E25>0,SUMIF(個別表!$C$13:$C$350,$B25,個別表!GP$13:GP$350),0) -> 0 | AL25: =IF($E25>0,SUMIF(個別表!$C$13:$C$350,$B25,個別表!GQ$13:GQ$350),0) -> 0 | AM25: =IF($E25>0,SUMIF(個別表!$C$13:$C$350,$B25,個別表!GR$13:GR$350),0) -> 0 | AN25: =IF($E25>0,SUMIF(個別表!$C$13:$C$350,$B25,個別表!GS$13:GS$350),0) -> 0 | AO25: =IF($E25>0,SUMIF(個別表!$C$13:$C$350,$B25,個別表!GT$13:GT$350),0) -> 0 | AP25: =IF($E25>0,SUMIF(個別表!$C$13:$C$350,$B25,個別表!GU$13:GU$350),0) -> 0 | AQ25: =IF($E25>0,SUMIF(個別表!$C$13:$C$350,$B25,個別表!GV$13:GV$350),0) -> 0 | AR25: =IF($E25>0,SUMIF(個別表!$C$13:$C$350,$B25,個別表!GW$13:GW$350),0) -> 0 | AS25: =IF($E25>0,SUMIF(個別表!$C$13:$C$350,$B25,個別表!GX$13:GX$350),0) -> 0 | AT25: =IF($E25>0,SUMIF(個別表!$C$13:$C$350,$B25,個別表!GY$13:GY$350),0) -> 0 | AU25: =IF($E25>0,SUMIF(個別表!$C$13:$C$350,$B25,個別表!GZ$13:GZ$350),0) -> 0 | AV25: =IF($E25>0,SUMIF(個別表!$C$13:$C$350,$B25,個別表!HA$13:HA$350),0) -> 0 | AW25: =IF($E25>0,SUMIF(個別表!$C$13:$C$350,$B25,個別表!HB$13:HB$350),0) -> 0 | AX25: =IF($E25>0,SUMIF(個別表!$C$13:$C$350,$B25,個別表!HC$13:HC$350),0) -> 0 | AY25: =IF($E25>0,SUMIF(個別表!$C$13:$C$350,$B25,個別表!HD$13:HD$350),0) -> 0 | AZ25: =IF($E25>0,SUMIF(個別表!$C$13:$C$350,$B25,個別表!HE$13:HE$350),0) -> 0 | BA25: =IF($E25>0,SUMIF(個別表!$C$13:$C$350,$B25,個別表!HF$13:HF$350),0) -> 0 | BB25: =IF($E25>0,SUMIF(個別表!$C$13:$C$350,$B25,個別表!HG$13:HG$350),0) -> 0 | BC25: =IF($E25>0,SUMIF(個別表!$C$13:$C$350,$B25,個別表!HH$13:HH$350),0) -> 0 | BD25: =IF($E25>0,SUMIF(個別表!$C$13:$C$350,$B25,個別表!HI$13:HI$350),0) -> 0 | BE25: =IF($E25>0,SUMIF(個別表!$C$13:$C$350,$B25,個別表!HJ$13:HJ$350),0) -> 0 | BF25: =IF($E25>0,SUMIF(個別表!$C$13:$C$350,$B25,個別表!HK$13:HK$350),0) -> 0 | BG25: =IF($E25>0,SUMIF(個別表!$C$13:$C$350,$B25,個別表!HL$13:HL$350),0) -> 0 | BH25: =IF($E25>0,SUMIF(個別表!$C$13:$C$350,$B25,個別表!HM$13:HM$350),0) -> 0 | BI25: =IF($E25>0,SUMIF(個別表!$C$13:$C$350,$B25,個別表!HN$13:HN$350),0) -> 0 | BJ25: =IF($E25>0,SUMIF(個別表!$C$13:$C$350,$B25,個別表!HO$13:HO$350),0) -> 0 | BK25: =IF($E25>0,SUMIF(個別表!$C$13:$C$350,$B25,個別表!HP$13:HP$350),0) -> 0 | BL25: =IF($E25>0,SUMIF(個別表!$C$13:$C$350,$B25,個別表!HQ$13:HQ$350),0) -> 0 | BM25: =IF($E25>0,SUMIF(個別表!$C$13:$C$350,$B25,個別表!HR$13:HR$350),0) -> 0 | BN25: =IF($E25>0,SUMIF(個別表!$C$13:$C$350,$B25,個別表!HS$13:HS$350),0) -> 0 | BO25: =IF($E25>0,SUMIF(個別表!$C$13:$C$350,$B25,個別表!HT$13:HT$350),0) -> 0 | BP25: =IF($E25>0,SUMIF(個別表!$C$13:$C$350,$B25,個別表!HU$13:HU$350),0) -> 0 | BQ25: =IF($E25>0,SUMIF(個別表!$C$13:$C$350,$B25,個別表!HV$13:HV$350),0) -> 0 | BR25: =IF($E25>0,SUMIF(個別表!$C$13:$C$350,$B25,個別表!HW$13:HW$350),0) -> 0 | BS25: =IF($E25>0,SUMIF(個別表!$C$13:$C$350,$B25,個別表!HX$13:HX$350),0) -> 0 | BT25: =IF($E25>0,SUMIF(個別表!$C$13:$C$350,$B25,個別表!HY$13:HY$350),0) -> 0 | BU25: =IF($E25>0,SUMIF(個別表!$C$13:$C$350,$B25,個別表!HZ$13:HZ$350),0) -> 0 | BV25: =IF($E25>0,SUMIF(個別表!$C$13:$C$350,$B25,個別表!IA$13:IA$350),0) -> 0 | BW25: =IF($E25>0,SUMIF(個別表!$C$13:$C$350,$B25,個別表!IB$13:IB$350),0) -> 0 | BX25: =IF($E25>0,SUMIF(個別表!$C$13:$C$350,$B25,個別表!IC$13:IC$350),0) -> 0 | BY25: =IF($E25>0,SUMIF(個別表!$C$13:$C$350,$B25,個別表!ID$13:ID$350),0) -> 0 | BZ25: =IF($E25>0,SUMIF(個別表!$C$13:$C$350,$B25,個別表!IE$13:IE$350),0) -> 0 | CA25: =IF($E25>0,SUMIF(個別表!$C$13:$C$350,$B25,個別表!IF$13:IF$350),0) -> 0 | CB25: =IF($E25>0,SUMIF(個別表!$C$13:$C$350,$B25,個別表!IG$13:IG$350),0) -> 0 | CC25: =IF($E25>0,SUMIF(個別表!$C$13:$C$350,$B25,個別表!IH$13:IH$350),0) -> 0 | CD25: =IF($E25>0,SUMIF(個別表!$C$13:$C$350,$B25,個別表!II$13:II$350),0) -> 0 | CE25: =IF($E25>0,SUMIF(個別表!$C$13:$C$350,$B25,個別表!IJ$13:IJ$350),0) -> 0 | CF25: =IF($E25>0,SUMIF(個別表!$C$13:$C$350,$B25,個別表!IK$13:IK$350),0) -> 0 | CG25: =IF($E25>0,SUMIF(個別表!$C$13:$C$350,$B25,個別表!IL$13:IL$350),0) -> 0 | CH25: =IF($E25>0,SUMIF(個別表!$C$13:$C$350,$B25,個別表!IM$13:IM$350),0) -> 0 | CI25: =IF($E25>0,SUMIF(個別表!$C$13:$C$350,$B25,個別表!IN$13:IN$350),0) -> 0 | CJ25: =IF($E25>0,SUMIF(個別表!$C$13:$C$350,$B25,個別表!IO$13:IO$350),0) -> 0 | CK25: =IF($E25>0,SUMIF(個別表!$C$13:$C$350,$B25,個別表!IP$13:IP$350),0) -> 0 | CL25: =IF($E25>0,SUMIF(個別表!$C$13:$C$350,$B25,個別表!IQ$13:IQ$350),0) -> 0 | CM25: =IF($E25>0,SUMIF(個別表!$C$13:$C$350,$B25,個別表!IR$13:IR$350),0) -> 0 | CN25: =IF($E25>0,SUMIF(個別表!$C$13:$C$350,$B25,個別表!IS$13:IS$350),0) -> 0 | CO25: =IF($E25>0,SUMIF(個別表!$C$13:$C$350,$B25,個別表!IT$13:IT$350),0) -> 0 | CP25: =IF($E25>0,SUMIF(個別表!$C$13:$C$350,$B25,個別表!IU$13:IU$350),0) -> 0 | CQ25: =IF($E25>0,SUMIF(個別表!$C$13:$C$350,$B25,個別表!IV$13:IV$350),0) -> 0 | CR25: =IF($E25>0,SUMIF(個別表!$C$13:$C$350,$B25,個別表!IW$13:IW$350),0) -> 0 | CS25: =IF($E25>0,SUMIF(個別表!$C$13:$C$350,$B25,個別表!IX$13:IX$350),0) -> 0 | CT25: =IF($E25>0,SUMIF(個別表!$C$13:$C$350,$B25,個別表!IY$13:IY$350),0) -> 0 | CU25: =IF($E25>0,SUMIF(個別表!$C$13:$C$350,$B25,個別表!IZ$13:IZ$350),0) -> 0 | CV25: =IF($E25>0,SUMIF(個別表!$C$13:$C$350,$B25,個別表!JA$13:JA$350),0) -> 0 | CW25: =IF($E25>0,SUMIF(個別表!$C$13:$C$350,$B25,個別表!JB$13:JB$350),0) -> 0 | CX25: =IF($E25>0,SUMIF(個別表!$C$13:$C$350,$B25,個別表!JC$13:JC$350),0) -> 0 | CY25: =IF($E25>0,SUMIF(個別表!$C$13:$C$350,$B25,個別表!JD$13:JD$350),0) -> 0 | CZ25: 0 | DA25: 0 | DD25: 0 | DE25: 0 | DH25: 0 | DK25: 0 | DL25: 0 | DN25: 0 | DP25: 0 | DT25: 0 | DU25: 0 | DX25: =IF($E25>0,COUNTIFS(個別表!$C$13:$C$350,$B25,個別表!$I$13:$I$350,1,個別表!$V$13:$V$350,DX$9),0) -> 0 | DY25: =IF($E25>0,COUNTIFS(個別表!$C$13:$C$350,$B25,個別表!$I$13:$I$350,1,個別表!$V$13:$V$350,DY$9),0) -> 0 | DZ25: =IF($E25>0,COUNTIFS(個別表!$C$13:$C$350,$B25,個別表!$I$13:$I$350,1,個別表!$V$13:$V$350,DZ$9),0) -> 0 | EA25: =IF($E25>0,COUNTIFS(個別表!$C$13:$C$350,$B25,個別表!$I$13:$I$350,1,個別表!$V$13:$V$350,EA$9),0) -> 0
B27: 合計 | F27: =SUBTOTAL(9,F12:F25) -> 6 | G27: =SUBTOTAL(9,G12:G25) -> 184000000 | H27: 81227000 | I27: 3 | J27: 56500000 | K27: 3766000 | L27: 40000 | M27: 20000 | N27: =SUBTOTAL(9,N12:N25) -> 2 | O27: =SUBTOTAL(9,O12:O25) -> 90000000 | P27: 42271000 | Q27: 2 | R27: 39000000 | S27: 2599000
F28: 市町村附帯事務費 | G28: =L27 -> 40000 | H28: =M27 -> 20000 | I28: 0.4％以内
F29: 都道府県附帯事務費 | I29: 1.7％以内

Sheet 個別表
A1: 1 | B1: 2 | C1: 3 | D1: 4 | E1: 5 | F1: 6 | G1: 7 | H1: 8 | I1: 9 | J1: 10 | K1: 11 | L1: 12 | M1: 13 | N1: 14 | O1: 15 | P1: 16 | Q1: 17 | R1: 18 | S1: 19 | T1: 20 | U1: 21 | V1: 22 | W1: 23 | X1: 24 | Y1: 25 | Z1: 26 | AA1: 27 | AB1: 28 | AC1: 29 | AD1: 30 | AE1: 31 | AF1: 32 | AG1: 33 | AH1: 34 | AI1: 35 | AJ1: 36 | AK1: 37 | AL1: 38 | AM1: 39 | AN1: 40 | AO1: 41 | AP1: 42 | AQ1: 43 | AR1: 44 | AS1: 45 | AT1: 46 | AU1: 47 | AV1: 48 | AW1: 49 | AX1: 50 | AY1: 51 | AZ1: 52 | BA1: 53 | BB1: 54 | BC1: 55 | BD1: 56 | BE1: 57 | BF1: 58 | BG1: 59 | BH1: 60 | BI1: 61 | BJ1: 62 | BK1: 63 | BL1: 64 | BM1: 65 | BN1: 66 | BO1: 67 | BP1: 68 | BQ1: 69 | BR1: 70 | BS1: 71 | BT1: 72 | BU1: 73 | BV1: 74 | BW1: 75 | BX1: 76 | BY1: 77 | BZ1: 78 | CA1: 79 | CB1: 80 | CC1: 81 | CD1: 82 | CE1: 83 | CF1: 84 | CG1: 85 | CH1: 86 | CI1: 87 | CJ1: 88 | CK1: 89 | CL1: 90 | CM1: 91 | CN1: 92 | CO1: 93 | CP1: 94 | CQ1: 95 | CR1: 96 | CS1: 97 | CT1: 98 | CU1: 99 | CV1: 100 | CW1: 101 | CX1: 102 | CY1: 103 | CZ1: 104 | DA1: 105 | DB1: 106 | DC1: 107 | DD1: 108 | DE1: 109 | DF1: 110 | DG1: 111 | DH1: 112 | DI1: 113 | DJ1: 114 | DK1: 115 | DL1: 116 | DM1: 117 | DN1: 118 | DO1: 119 | DP1: 120 | DQ1: 121 | DR1: 122 | DS1: 123 | DT1: 124 | DU1: 125 | DV1: 126 | DW1: 127 | DX1: 128 | DY1: 129 | DZ1: 130 | EA1: 131 | EB1: 132 | EC1: 133 | ED1: 134 | EE1: 135 | EF1: 136 | EG1: 137 | EH1: 138 | EI1: 139 | EJ1: 140 | EK1: 141 | EL1: 142 | EM1: 143 | EN1: 144 | EO1: 145 | EP1: 146 | EQ1: 147 | ER1: 148 | ES1: 149 | ET1: 150 | EU1: 151 | EV1: 152 | EW1: 153 | EX1: 154 | EY1: 155 | EZ1: 156 | FA1: 157 | FB1: 158 | FC1: 159 | FD1: 160 | FE1: 161 | FF1: 162 | FG1: 163 | FH1: 164 | FI1: 165 | FJ1: 166 | FK1: 167 | FL1: 168 | FM1: 169 | FN1: 170 | FO1: 171 | FP1: 172 | FQ1: 173 | FR1: 174 | FS1: 175 | FT1: 176 | FU1: 177 | FV1: 178 | FW1: 179 | FX1: 180 | FY1: 181 | FZ1: 182 | GA1: 183 | GB1: 184 | GC1: 185 | GD1: 186 | GE1: 187 | GF1: 188 | GG1: 189 | GH1: 190 | GI1: 191 | GJ1: 192 | GK1: 193 | GL1: 194 | GM1: 195 | GN1: 196 | GO1: 197 | GP1: 198 | GQ1: 199 | GR1: 200 | GS1: 201 | GT1: 202 | GU1: 203 | GV1: 204 | GW1: 205 | GX1: 206 | GY1: 207 | GZ1: 208 | HA1: 209 | HB1: 210 | HC1: 211 | HD1: 212 | HE1: 213 | HF1: 214 | HG1: 215 | HH1: 216 | HI1: 217 | HJ1: 218 | HK1: 219 | HL1: 220 | HM1: 221 | HN1: 222 | HO1: 223 | HP1: 224 | HQ1: 225 | HR1: 226 | HS1: 227 | HT1: 228 | HU1: 229 | HV1: 230 | HW1: 231 | HX1: 232 | HY1: 233 | HZ1: 234 | IA1: 235 | IB1: 236 | IC1: 237 | ID1: 238 | IE1: 239 | IF1: 240 | IG1: 241 | IH1: 242 | II1: 243 | IJ1: 244 | IK1: 245 | IL1: 246 | IM1: 247 | IN1: 248 | IO1: 249 | IP1: 250 | IQ1: 251 | IR1: 252 | IS1: 253 | IT1: 254 | IU1: 255 | IV1: 256 | IW1: 257 | IX1: 258 | IY1: 259 | IZ1: 260 | JA1: 261 | JB1: 262 | JC1: 263 | JD1: 264 | JE1: 265 | JF1: 266 | JG1: 267 | JH1: 268 | JI1: 269 | JJ1: 270 | JK1: 271 | JL1: 272 | JM1: 273 | JN1: 274 | JO1: 275 | JP1: 276 | JQ1: 277 | JR1: 278 | JS1: 279 | JT1: 280 | JU1: 281 | JV1: 282 | JW1: 283 | JX1: 284 | JY1: 285 | JZ1: 286 | KA1: 287 | KB1: 288 | KC1: 289 | KD1: 290 | KE1: 291 | KF1: 292 | KG1: 293 | KH1: 294 | KI1: 295 | KJ1: 296 | KK1: 297 | KL1: 298 | KM1: 299 | KN1: 300 | KO1: 301
CH2: 0.1 | CI2: 0.15 | CJ2: 0.2 | CK2: 0.3 | CL2: 0.4 | CM2: 0.5 | CN2: 0.6 | CO2: 0.03 | CP2: 0.1 | CQ2: 0.16 | CR2: 0.21 | CS2: 0.25 | CT2: 0.28 | CU2: 0.3 | CV2: 1000000 | CW2: 1500000 | CX2: 3000000 | CY2: 4000000 | CZ2: 6500000 | DA2: 10000000 | DB2: 15000000 | DC2: 500000 | DD2: 600000 | DE2: 700000 | DF2: 800000 | DG2: 1000000 | DH2: 1200000 | DI2: 1500000
L3: 別紙様式第３号別添１
L4: 融資主体型補助事業実施内容（内訳） | FE4: 経営面積等入力 | GI4: ポイント算出 | JE4: ポイント集計
L5: 都道府県名 | M5: 市町村名 | N5: 地区名（人・農地プラン名） | O5: 農業地域類型コード（第1次分類）を入力 | P5: 農業地域類型 （複数類型が該当する場合、主となる地域類型を選択） | Q5: 助成対象者毎の実施内容 | BQ5: 成果目標の設定状況 （目標設定している項目に「1」を記入。） | CH5: 配分基準項目 （該当する項目に「1」を記入（⑪ｂ，⑫以外）） | FE5: 配分基準項目 ②経営面積の拡大 ア～オの分類（入力により区分を②経営面積の拡大の該当欄に表示。実態に応じて必要な場合は手入力も可） | GI5: 1 | GJ5: 2 | GK5: 3 | GL5: 4 | GM5: 5 | GN5: 6 | GO5: 7 | GP5: 1 | GQ5: 2 | GR5: 3 | GS5: 4 | GT5: 5 | GU5: 6 | GV5: 7 | GW5: 1 | GX5: 2 | GY5: 3 | GZ5: 4 | HA5: 5 | HB5: 6 | HC5: 7 | HD5: 1 | HE5: 2 | HF5: 3 | HG5: 4 | HH5: 5 | HI5: 6 | HJ5: 7 | HK5: 2 | HL5: 3 | HM5: 4 | HN5: 5 | HO5: 6 | HP5: 5 | HQ5: 4 | HR5: 3 | HS5: 2 | HT5: 1 | HU5: 2 | HV5: 1 | HW5: 1 | HX5: 1 | HY5: 1 | HZ5: 1 | IA5: 1 | IB5: 1 | IC5: 2 | ID5: 2 | IE5: 2 | IF5: 2 | IG5: 1 | IH5: 1 | II5: 1 | IJ5: 1 | IK5: 1 | IL5: 1 | IM5: 2 | IN5: 2 | IO5: 1 | IP5: 2 | IQ5: 3 | IR5: 1 | IS5: 1 | IT5: 1 | IU5: 1 | IV5: 2 | IW5: 3 | IX5: 1 | IY5: 3 | IZ5: 1 | JA5: 1 | JB5: 3 | JC5: 1 | JD5: 0.5
Q6: 地区毎の助成対象者の整理番号(合計は経営体数) | R6: 助成対象者名 | S6: 年代（任意） | V6: 対象者区分 （整理番号は融資主体型補助事業整理番号表（以下「番号表」という。）を参照） | X6: 補助上限額 （整理番号は番号表を参照） | Z6: 農業者の詳細 （整理番号は番号表を参照） | AE6: 整備内容 （整理番号は番号表を参照） | AG6: 中古、新品の別等（中古の場合は「１」を記入） | AJ6: スマート農機等（対象となる機械等の種類の番号を記する） | AQ6: 被災等に備えた措置 | AU6: 本則の課税事業者は「1」、簡易課税事業者又は課税事業者でない場合は｢2｣を記入 | BN6: 融資概要
AH7: 助成対象者毎の事業内容の整理番号（合計は件数） | AI7: 事業内容（機械等名、規模、台数等） | AM7: 規模決定の根拠 | AN7: 着工（契約）予定年月日 | AO7: 竣工予定年月日 | AP7: 機械等の保管・設置・施工住所 | AY7: 対象経営体負担 | BA7: 地方公共団体等 | BK7: 金融機関 （「整理番号」は番号表を参照） | BM7: 金融（資金）種類 （整理番号は番号表を参照） | BO7: 機関保証活用状況 （活用する場合「1」を記入） | BQ7: 必須目標 | BY7: 選択目標 | CH7: ①付加価値額の拡大 | DO7: ②経営面積の拡大 | DU7: ③農産物の価値向上 | DY7: ④農業経営の複合化 | ED7: ⑤経営管理の高度化 | EJ7: ⑥環境配慮の取組 | EL7: ⑦農作業の共同化 | EN7: ⑧労働時間の縮減（対象：事業実施主体が認める者） | EQ7: ⑨輸出の取組 | EU7: ⑩新規就農者 | EX7: ⑪農業者の育成 | FA7: ⑫女性の取組 | FB7: ⑬関係機関等によるサポート体制の構築 | FC7: ⑭中山間地域での取組 | FE7: 特定助成対象者以外の者にあってはア、特定助成対象者にあってはイのいずれかの取組に該当していること。 | GI7: ①付加価値額の拡大 | HP7: ②経営面積の拡大 | HV7: ③農産物の価値向上 | HZ7: ④農業経営の複合化 | IE7: ⑤経営管理の高度化 | IK7: ⑥環境配慮の取組 | IM7: ⑦農作業の共同化 | IO7: ⑧労働時間の縮減（対象：事業実施主体が認める者） | IR7: ⑨輸出の取組 | IV7: ⑩新規就農者 | IY7: ⑪農業者の育成 | JB7: ⑫女性の取組 | JC7: ⑬関係機関等によるサポート体制の構築 | JD7: ⑭中山間地域での取組
AI8: ※○台、馬力・○条刈り、○棟○㎡等 | AQ8: 加入保険等の種類等 | AS8: 保険会社等の名称 | AT8: 保険加入年月日 | AV8: 事業費 （円） | AW8: スマート農機要望額 （円） | AX8: 助成金 （円） | AY8: 融資 （円） | AZ8: 自己資金 （円） | BA8: 都道府県 （円） | BB8: 市町村 （円） | BC8: その他 （円） | BD8: 配分積算額 （本省入力欄） | BE8: 助成率（％） | BF8: 融資率（％） | BG8: 担保措置の有無（該当の場合｢1｣を記入） | BH8: 耐用年数（年） | BI8: 備 考 | BQ8: 付加価値額（円）の拡大 | BY8: ①経営面積の拡大 | BZ8: ②農産物の価値向上 | CA8: ③農業経営の複合化 | CB8: ④農業経営の法人化 | CC8: ⑤青色申告の取組 | CD8: ⑥環境配慮の取組 | CE8: ⑦農作業の共同化 | CF8: ⑧労働時間の縮減 | CG8: ⑨輸出の取組 | CH8: ア 付加価値額の拡大率の目標ポイント | CV8: イ 付加価値額の拡大額の目標ポイント | DO8: ア 経営面積拡大（対象：事業実施主体が認める者以外の者） | DT8: イ 経営面積拡大（対象：事業実施主体が認める者） | DU8: 事業実施前3年度以内に新品種の導入、栽培管理技術の改善、新たな加工又は販売の取組等により、農産物の価値向上等に取り組んでいる | DY8: ア 土地利用型作物の生産、園芸作物の生産などを組み合わせ、複合的に経営を展開している | DZ8: イ-a 事業実施前３年度内に経営面積又は農産物売上高の３割以上の品目転換を行っている | EA8: イ-a 事業実施前３年度内に経営面積又は農産物売上高の３割以上の品目転換を目標年度までに行うこととしている | EB8: イ-b 事業実施前３年度内に経営面積又は農産物売上向上の４割以上の品目転換を行っている | EC8: イ-b 事業実施前３年度内に経営面積又は農産物売上向上の４割以上の品目転換を行うこととしている | ED8: ア 現在、法人化している | EE8: ア 目標年度までに法人化することとしている | EF8: イ ＧＬＯＢＡＬＧ．Ａ．Ｐ又はＡＳＩＡＧＡＰの認証を取得している | EG8: ウ 青色申告を行っている | EH8: ウ 青色申告を行うこととしている | EI8: エ 農業版ＢＣＰ（事業継続計画）を策定している | EJ8: 事業実施前３年度以内に化石燃料を使用しない園芸施設への移行による温室効果ガスの削減等を行っている | EK8: 化石燃料を使用しない園芸施設への移行による温室効果ガスの削減等を目標年度までに行うこととしている | EL8: 自らの経営に係る農作業について他の農業者と共同して農作業を行っている（対象：事業実施主体が認める者） | EM8: 自らの経営に係る農作業について他の農業者と共同して農作業を目標年度までに行うこととしている（対象：事業実施主体が認める者） | EN8: ａ 目標年度までに10%以上縮減する | EO8: b 目標年度までに20%以上縮減する | EP8: c 目標年度までに50%以上縮減する | EQ8: 農産物の輸出を行う | EU8: 新規就農のポイント加点を受ける | EX8: 農業研修生（国内で農業を生業とする予定の者に限り、外国人技能実習制度に基づく者を除く。）を受け入れている | FA8: ア 女性農業者 イ 代表者が女性又は役員若しくは構成員のうち女性が過半を占める ウ 区分経理を行っており、女性が当該部門の責任者 （※ア，イ，ウを記入） | FB8: 経営発展に向けた取組について、農協等の支援機関のサポート体制が構築されている（対象：事業実施主体が認める者） | FC8: 機械等を活用する農地等の概ね８割が中山間地域等直接支払交付金実施要領第４の対象、かつ対象農が存在する地域内の農地（対象：事業実施主体が認める者） | FE8: 特定助成対象者 | FF8: 農地中間管理機構からの賃借件等の設定等 | FQ8: 区分に応じた加点の整理表 | GI8: ア 付加価値額の拡大率の目標ポイント | GW8: イ 付加価値額の拡大額の目標ポイント | HP8: ア 経営面積拡大（対象：事業実施主体が認める者以外の者） | HU8: イ 経営面積拡大（対象：事業実施主体が認める者） | HV8: 事業実施前3年度以内に新品種の導入、栽培管理技術の改善、新たな加工又は販売の取組等により、農産物の価値向上等に取り組んでいる | HZ8: ア 土地利用型作物の生産、園芸作物の生産などを組み合わせ、複合的に経営を展開している | IA8: イ-a 事業実施前３年度内に経営面積又は農産物売上高の３割以上の品目転換を行っている | IB8: イ-a 事業実施前３年度内に経営面積又は農産物売上高の３割以上の品目転換を目標年度までに行うこととしている | IC8: イ-b 事業実施前３年度内に経営面積又は農産物売上向上の４割以上の品目転換を行っている | ID8: イ-b 事業実施前３年度内に経営面積又は農産物売上向上の４割以上の品目転換を行うこととしている | IE8: ア 現在、法人化している | IF8: ア 目標年度までに法人化することとしている | IG8: イ ＧＬＯＢＡＬＧ．Ａ．Ｐ又はＡＳＩＡＧＡＰの認証を取得している | IH8: ウ 青色申告を行っている | II8: ウ 青色申告を行うこととしている | IJ8: エ 農業版ＢＣＰ（事業継続計画）を策定している | IK8: 事業実施前３年度以内に化石燃料を使用しない園芸施設への移行による温室効果ガスの削減等を行っている | IL8: 化石燃料を使用しない園芸施設への移行による温室効果ガスの削減等を目標年度までに行うこととしている | IM8: 自らの経営に係る農作業について他の農業者と共同して農作業を行っている（対象：事業実施主体が認める者） | IN8: 自らの経営に係る農作業について他の農業者と共同して農作業を目標年度までに行うこととしている（対象：事業実施主体が認める者） | IO8: ａ 目標年度までに10%以上縮減する | IP8: b 目標年度までに20%以上縮減する | IQ8: c 目標年度までに50%以上縮減する | IR8: 農産物の輸出を行う | IV8: 新規就農のポイント加点を受ける | IY8: 農業研修生（国内で農業を生業とする予定の者に限り、外国人技能実習制度に基づく者を除く。）を受け入れている | JB8: ア 女性農業者 イ 代表者が女性又は役員若しくは構成員のうち女性が過半を占める ウ 区分経理を行っており、女性が当該部門の責任者 （※ア，イ，ウを記入） | JC8: 経営発展に向けた取組について、農協等の支援機関のサポート体制が構築されている（対象：事業実施主体が認める者） | JD8: 機械等を活用する農地等の概ね８割が中山間地域等直接支払交付金実施要領第４の対象、かつ対象農が存在する地域内の農地（対象：事業実施主体が認める者） | JI8: 要件確認
S9: 個人経営の場合のみ１０代単位で記載 | T9: 住所 | U9: 代表者名（法人等の場合） | V9: 整理番号 | W9: （確認用） | X9: 整理番号 | Y9: （確認用） | Z9: 認定農業者等の区分 | AC9: 対象者区分 （整理番号は融資主体型補助事業整理番号表（以下「番号表」という。）を参照） | AE9: 整理番号 | AF9: （確認用） | AQ9: 整理番号 | AR9: （確認用） | BK9: 整理番号 | BL9: （確認用） | BM9: 整理番号 | BN9: （確認用） | BO9: 追加的信用供与事業活用の有無 | CH9: （ア）付加価値額の拡大率の目標ポイント（対象：事業実施主体が認める者以外の者（⑩新規就農のポイント加点を受ける者を除く。）） | CO9: （イ）付加価値額の拡大率の目標ポイント（対象：事業実施主体が認める者（新規就農のポイントを受ける者を除く。）） | CV9: （ア）付加価値額の拡大額の目標（対象：⑩新規就農のポイント加点を受ける者以外の者であって事業実施主体が認める者以外の者） | DC9: （イ）付加価値額の拡大額の目標（対象：⑩新規就農のポイント加点を受ける者以外の者であって事業実施主体が認める者） | DJ9: （ウ）付加価値額の目標（対象：⑩新規就農のポイント加点を受ける者） | DO9: ａ 農地中間管理機構等からの賃借権等の設定等かつ現状より4ha以上(施設20%､果樹10%)の経営面積の拡大 | DP9: ｂ 農地中間管理機構等からの賃借権等の設定等かつ現状より2ha以上(施設10%､果樹５%)の経営面積の拡大 | DQ9: ｃ 農地中間管理機構等からの賃借権等の設定等かつ現状より経営面積の拡大、又は現状より4ha以上(施設20%､果樹10%)の経営面積の拡大 | DR9: ｄ 農地中間管理機構等からの賃借権等の設定等又は現状より2ha(施設10%､果樹５%)以上の経営面積の拡大 | DS9: ｅ aからd以外の経営体で目標年度に現状より経営面積の拡大 | DT9: 経営面積の拡大を行うこととしている | DV9: うち事業実施主体が認める者である場合 | DW9: うち有機ＪＡＳの認証を受けている | DX9: うち有機ＪＡＳの認証を受ける場合 | ER9: a 現在、農産物の輸出の取組（他者との連携による取組を含む）を行っている。 | ES9: ｂ 輸出事業計画の認定を受けている、又は輸出事業計画に連携者として位置付けられている | ET9: ｃ 目標年度までに農産物売上高の15％以上を輸出に振り向ける | EV9: ａ 50歳までに就農した者である | EW9: ｂ 農業次世代人材投資資金（経営開始型）等の交付期間中に交付終了 | EY9: ａ 就農に向けて必要な技術等を習得できる経営体として都道府県が認めた者である | EZ9: ｂ 過去５年以内に独立した認定就農者又は認定農業者（※農業研修生数を記入） | FG9: 現状面積 (ha) | FH9: 目標面積 (ha) | FI9: 拡大面積 (ha) | FJ9: 拡大率 （％） | FL9: 面積拡大を 行う区分 | FQ9: ア | GG9: イ | GI9: （ア）付加価値額の拡大目標率（対象：事業実施主体が認める者以外の者） | GP9: （イ）付加価値額の拡大率の目標ポイント（対象：事業実施主体が認める者） | GW9: （ア）付加価値額の拡大額の目標（対象：⑩新規就農のポイント加点を受ける者以外の者であって事業実施主体が認める者以外の者） | HD9: （イ）付加価値額の拡大額の目標（対象：⑩新規就農のポイント加点を受ける者以外の者であって事業実施主体が認める者） | HK9: （ウ）付加価値額の拡大額の目標（対象：⑩新規就農のポイント加点を受ける者） | HP9: ａ 農地中間管理機構等からの賃借権等の設定等かつ現状より4ha以上(施設20%､果樹10%)の経営面積の拡大 | HQ9: ｂ 農地中間管理機構等からの賃借権等の設定等かつ現状より2ha以上(施設10%､果樹５%)の経営面積の拡大 | HR9: ｃ 農地中間管理機構等からの賃借権等の設定等かつ現状より経営面積の拡大、又は現状より4ha以上(施設20%､果樹10%)の経営面積の拡大 | HS9: ｄ 農地中間管理機構等からの賃借権等の設定等又は現状より2ha(施設10%､果樹５%)以上の経営面積の拡大 | HT9: ｅ アからエ以外の経営体で目標年度に現状より経営面積の拡大 | HU9: 経営面積の拡大を行うこととしている | HW9: うち事業実施主体が認める者である場合 | HX9: うち有機ＪＡＳの認証を受けている | HY9: うち有機ＪＡＳの認証を受ける場合 | IS9: a 現在、農産物の輸出の取組（他者との連携による取組を含む）を行っている。 | IT9: ｂ 輸出事業計画の認定を受けている、又は輸出事業計画に連携者として位置付けられている | IU9: ｃ 目標年度までに農産物売上高の15％以上を輸出に振り向ける | IW9: ａ 50歳までに就農した者である | IX9: ｂ 農業次世代人材投資資金（経営開始型）等の交付期間中に交付終了 | IZ9: ａ 就農に向けて必要な技術等を習得できる経営体として都道府県が認めた者である | JA9: ｂ 過去５年以内に独立した認定就農者又は認定農業者（※農業研修生数を記入） | JI9: 事業実施主体が認める者 | JJ9: 融資活用（認める者除く） | JK9: 事業費50万円以上 | JL9: 耐用年数5~20年（△はプラマイ2割・基盤整備の一部・中古） | JM9: 共済等加入 | JN9: 必須目標（△は現状無し＝新規就農or記載漏れ？） | JO9: 選択目標 | JY9: 要件確認 | JZ9: 事業費算出 | KG9: 機械ごと上限確認 | KK9: 対象者ごと上限確認 | KL9: 総合確認 | KP9: R4年度に完了する可能性がある場合
Z10: 整理番号 | AA10: （確認用） | AB10: 法人、法人以外の別 | AC10: 整理番号 | AD10: （確認用） | AK10: （確認用） | CH10: ａ | CI10: ｂ | CJ10: ｃ | CK10: d | CL10: ｅ | CM10: f | CN10: ｇ | CO10: ａ | CP10: ｂ | CQ10: ｃ | CR10: d | CS10: ｅ | CT10: f | CU10: ｇ | CV10: ａ | CW10: ｂ | CX10: ｃ | CY10: ｄ | CZ10: ｅ | DA10: ｆ | DB10: ｇ | DC10: ａ | DD10: ｂ | DE10: ｃ | DF10: ｄ | DG10: ｅ | DH10: ｆ | DI10: ｇ | DJ10: ａ | DK10: ｂ | DL10: ｃ | DM10: ｄ | DN10: ｅ | FK10: 整理番号：営農類型の整理番号を準用 | FQ10: 土地利用 | FV10: 畜産 | FW10: 施設園芸 | GB10: 果樹 | GG10: 特定助成対象者 | GI10: ａ | GJ10: ｂ | GK10: ｃ | GL10: d | GM10: ｅ | GN10: f | GO10: ｇ | GP10: ａ | GQ10: ｂ | GR10: ｃ | GS10: d | GT10: ｅ | GU10: f | GV10: ｇ | GW10: ａ | GX10: ｂ | GY10: ｃ | GZ10: ｄ | HA10: ｅ | HB10: ｆ | HC10: ｇ | HD10: ａ | HE10: ｂ | HF10: ｃ | HG10: ｄ | HH10: ｅ | HI10: ｆ | HJ10: ｇ | HK10: ａ | HL10: ｂ | HM10: ｃ | HN10: ｄ | HO10: ｅ | JO10: 経営面積 | JQ10: 価値向上（JAS） | JR10: 複合化 | JS10: 法人化 | JT10: 青色申告 | JU10: 環境配慮 | JV10: 共同化 | JW10: 労働時間 | JX10: 輸出 | JZ10: 課税区分 | KA10: 事業費 | KB10: 事業費（除税） | KC10: 上限確認 | KF10: 機械ごと限度額 | KH10: 対象者ごと上限（法人3000万円、法人以外1500万円、認める者100万円） | KI10: 対象者ごとスマート助成金 | KJ10: 対象者ごと助成金
A11: データ行個別番号（参考） | B11: 都道府県個別番号 | C11: 地区個別番号 | D11: 市町村個別番号 | E11: 対象者個別番号 | F11: うち信用供与 | G11: 地区先頭行 | H11: 市町村先頭行 | I11: 対象者先頭行 | J11: うち信用供与 | K11: 行番号 | AL11: 集計用 | BP11: 保証希望 融資額(円) | BR11: 現状 | BS11: 現状 年度 | BT11: 1年度目 | BU11: 2年度目 | BV11: 3年度目 | BW11: 拡大率 | BX11: 拡大額 | CH11: 現状の付加価値額の10%以上の増加 | CI11: 現状の付加価値額の15%以上の増加 | CJ11: 現状の付加価値額の20%以上の増加 | CK11: 現状の付加価値額の30%以上の増加 | CL11: 現状の付加価値額の40%以上の増加 | CM11: 現状の付加価値額の50%以上の増加 | CN11: 現状の付加価値額の60%以上の増加 | CO11: 現状から３％以上の増加 | CP11: 現状から10％以上の増加 | CQ11: 現状から16％以上の増加 | CR11: 現状から21％以上の増加 | CS11: 現状から25％以上の増加 | CT11: 現状から28％以上の増加 | CU11: 現状から30％以上の増加 | CV11: 100万円以上 | CW11: 150万円以上 | CX11: 300万円以上 | CY11: 400万円以上 | CZ11: 650万円以上 | DA11: 1,000万円以上 | DB11: 1,500万円以上 | DC11: 50万円以上 | DD11: 60万円以上 | DE11: 70万円以上 | DF11: 80万円以上 | DG11: 100万円以上 | DH11: 120万円以上 | DI11: 150万円以上 | DJ11: 基準額（目標年度における就農後経過年数×50万円）以上 | DK11: 基準額の10%増し以上 | DL11: 基準額の20%増し以上 | DM11: 基準額の30%増し以上 | DN11: 基準額の40%増し以上 | FL11: 1土地利用 | FM11: 2施設 | FN11: 3果樹 | FO11: 4畜産・養鶏 | FP11: 集計用 | FQ11: a | FR11: b | FS11: c | FT11: d | FU11: e | FV11: e | FW11: a | FX11: b | FY11: c | FZ11: d | GA11: e | GB11: a | GC11: b | GD11: c | GE11: d | GF11: e | GI11: 現状の付加価値額の10%以上の増加 | GJ11: 現状の付加価値額の15%以上の増加 | GK11: 現状の付加価値額の20%以上の増加 | GL11: 現状の付加価値額の30%以上の増加 | GM11: 現状の付加価値額の40%以上の増加 | GN11: 現状の付加価値額の50%以上の増加 | GO11: 現状の付加価値額の60%以上の増加 | GP11: 現状から３％以上の増加 | GQ11: 現状から10％以上の増加 | GR11: 現状から16％以上の増加 | GS11: 現状から21％以上の増加 | GT11: 現状から25％以上の増加 | GU11: 現状から28％以上の増加 | GV11: 現状から30％以上の増加 | GW11: 100万円以上 | GX11: 150万円以上 | GY11: 300万円以上 | GZ11: 400万円以上 | HA11: 650万円以上 | HB11: 1,000万円以上 | HC11: 1,500万円以上 | HD11: 50万円以上 | HE11: 60万円以上 | HF11: 70万円以上 | HG11: 80万円以上 | HH11: 100万円以上 | HI11: 120万円以上 | HJ11: 150万円以上 | HK11: 基準額（目標年度における就農後経過年数×50万円）以上 | HL11: 基準額の10%増し以上 | HM11: 基準額の20%増し以上 | HN11: 基準額の30%増し以上 | HO11: 基準額の40%増し以上 | JE11: 合計 | JF11: 地区合計 | JG11: 地区人数 | JH11: 地区平均 | JO11: 目標未設定 | JP11: 面積未記入 | KC11: （ア）事業費＊1/2 | KD11: （イ）融資額（認める者除く） | KE11: （ウ）融資及び地公体控除 | KN11: 地区個別番号 | KO11: 市町村個別番号 | KP11: 着工（契約予定年月日 | KQ11: 竣工予定年月日
G12: =SUBTOTAL(9,G$13:G$350) -> 5 | H12: =SUBTOTAL(9,H$13:H$350) -> 4 | I12: =SUBTOTAL(9,I$13:I$350) -> 6 | J12: =SUBTOTAL(9,J$13:J$350) -> 3
A13: =D13*1000000+C13*10000+Q13*100+AH13 -> 1010101 | B13: =IF(L13<>"",IF(L13<>L12,B12+1,B12),0) -> 1 | C13: =IF(N13<>"",IF(N13<>N12,C12+1,C12),0) -> 1 | D13: =IF(M13<>"",IF(M13<>M12,D12+1,D12),0) -> 1 | E13: =IF(R13<>"",IF(OR(R13<>R12,N13<>N12),E12+1,E12),0) -> 1 | F13: =IF(BP13>0,E13,0) -> 1 | G13: =IF(N13<>"",IF(N13<>N12,1,0),0) -> 1 | H13: =IF(M13<>"",IF(M13<>M12,1,0),0) -> 1 | I13: =IF(R13<>"",IF(R13<>R12,1,0),0) -> 1 | J13: =IF(AND(I13=1,SUMIF($E$13:$E$350,E13,$F$13:$F$350)>0),1,0) -> 1 | K13: =ROW()-ROW($K$12) -> 1 | L13: 北海道 | M13: あ | N13: 甲 | O13: 2 | P13: =IF(O13<>"",VLOOKUP(O13,整理番号表!$Z$17:$AA$20,2,FALSE),) -> 平地農業地域 | Q13: =IF(R13<>"",IF(N13<>N12,1,IF(R13<>R12,Q12+1,Q12)),) -> 1 | R13: 法人A | T13: 北海道 | U13: a | V13: 1 | W13: =IF(V13<>0,VLOOKUP(V13,整理番号表!$B$6:$L$13,2,FALSE),) -> 中心経営体であり、農地中間管理機構から賃借権等の設定等を受けた者 | X13: =IF(V13<>0,IF(V13=4,2,1),) -> 1 | Y13: =IF(X13<>0,VLOOKUP(X13,整理番号表!$B$16:$C$18,2,FALSE),) -> 1,500万円（法人3,000万円） | Z13: 1 | AA13: =IF(Z13<>0,VLOOKUP(Z13,整理番号表!$B$22:$C$29,2,FALSE),) -> 認定農業者 | AB13: 法人 | AC13: 1 | AD13: =IF(AC13<>0,VLOOKUP(AC13,整理番号表!$B$32:$G$60,2,FALSE),) -> 水田作 | AE13: 1 | AF13: =IF(AE13<>0,VLOOKUP(AE13,整理番号表!$P$5:$R$39,2,FALSE),) -> トラクター | AH13: =IF(AI13<>"",IF(OR(U13<>U12,R13<>R12),1,AH12+1),0) -> 1 | AI13: クローラトラクター 135ps 1台 自動操舵機能付き | AJ13: ① | AK13: =IF(AJ13<>"",VLOOKUP(AJ13,整理番号表!$Z$6:$AA$14,2,FALSE),"") -> 農業用機械の自動操舵システム | AL13: =IF(AJ13<>0,1,) -> 1 | AM13: 規模決定根拠資料 | AN13: 2022-03-03 | AO13: 2022-03-03 | AP13: ○○町1-1-1 | AQ13: 2 | AR13: =IF(AQ13<>0,VLOOKUP(AQ13,整理番号表!$P$43:$Q$49,2,FALSE),) -> 農機具共済 | AS13: 北海道農機共済 | AT13: 2022-03-03 | AU13: 1 | AV13: 40000000 | AW13: =IF(AL13=1,IF(KC13>0,MIN(ROUNDDOWN(KC13,-3),IF(AND(X13=1,AB13="法人"),30000000,IF(AND(X13=1,AB13="法人以外"),15000000,IF(X13=2,1000000,0)))),0),0) -> 18181000 | AX13: =IF(KF13>0,ROUNDDOWN(KF13,-3),0) -> 18000000 | AY13: 18000000 | AZ13: =AV13-SUM(AX13,AY13,BA13,BB13,BC13) -> 4000000 | BD13: =IF(I13=1,MIN(KH13,KJ13),0) -> 27000000 | BE13: =IF(AV13<>0,AX13/AV13,) -> 0.45 | BF13: =IF(AV13<>0,AY13/AV13,) -> 0.45 | BH13: 7 | BI13: =IF(AX13>0,IF(AU13=1,ROUNDDOWN(AV13*10/110,0),IF(AU13=2,"該当なし","含税額")),0) -> 3636363 | BJ13: =IF(AX13>0,IF(AU13<>1," ",IF(AU13=1,ROUNDDOWN(ROUNDDOWN((AX13/(AV13-BI13)),5)*BI13,0))),0) -> 1799963 | BK13: 1 | BL13: =IF(BK13<>0,VLOOKUP(BK13,整理番号表!$T$5:$U$16,2,FALSE),) -> 農協 | BM13: 1 | BN13: =IF(BM13<>0,VLOOKUP(BM13,整理番号表!$T$22:$U$30,2,FALSE),) -> 近代化資金 | BO13: 1 | BP13: =IF(BO13=1,AY13,) -> 18000000 | BQ13: =IF(AND(R13<>"",I13=1),1,"") -> 1 | BR13: 10000000 | BS13: 2 | BT13: 11000000 | BU13: 13000000 | BV13: 17000000 | BW13: =IF(BS13=2,ROUNDDOWN((BV13-BR13)/ABS(BR13),2),IF(BS13=1,ROUNDDOWN((BV13-BR13)/ABS(BR13)*3/4,2),"")) -> 0.7 | BX13: =IF(BR13>0,IF(BS13=2,ROUNDDOWN((BV13-BR13),0),IF(BS13=1,ROUNDDOWN((BV13-BR13)*3/4,0),"")),IF(BV13>0,BV13,0)) -> 7000000 | BY13: 1 | CG13: 1 | CH13: =IF(OR($BR13<=0,$BV13<=0),0,IF(AND($X13=1,$I13=1,$EU13<>1,CH$2<=$BW13,$BW13<CI$2),1,)) -> 0 | CI13: 0 | CJ13: 0 | CK13: 0 | CL13: 0 | CM13: 0 | CN13: =IF(OR($BR13<=0,$BV13<=0),0,IF(AND($X13=1,$I13=1,$EU13<>1,CN$2<=$BW13),1,)) -> 1 | CO13: =IF(OR($BR13<=0,$BV13<=0),0,IF(AND($X13=2,$I13=1,$EU13<>1,CO$2<=$BW13,$BW13<CP$2),1,)) -> 0 | CP13: 0 | CQ13: 0 | CR13: 0 | CS13: 0 | CT13: 0 | CU13: =IF(OR($BR13<=0,$BV13<=0),0,IF(AND($X13=2,$I13=1,$EU13<>1,CU$2<=$BW13),1,)) -> 0 | CV13: =IF($BV13<0,0,IF(AND($X13=1,$I13=1,$EU13<>1,CV$2<=$BX13,$BX13<CW$2),1,)) -> 0 | CW13: 0 | CX13: 0 | CY13: 0 | CZ13: 1 | DA13: 0 | DB13: =IF($BV13<0,0,IF(AND($X13=1,$I13=1,$EU13<>1,DB$2<=$BX13),1,)) -> 0 | DC13: =IF($BV13<0,0,IF(AND($X13=2,$I13=1,$EU13<>1,DC$2<=$BX13,$BX13<DD$2),1,)) -> 0 | DD13: 0 | DE13: 0 | DF13: 0 | DG13: 0 | DH13: 0 | DI13: =IF($BV13<0,0,IF(AND($X13=2,$I13=1,$EU13<>1,DI$2<=$BX13),1,)) -> 0 | DO13: =SUM(FQ13,FW13,GB13) -> 0 | DP13: =SUM(FR13,FX13,GC13) -> 1 | DQ13: 0 | DR13: 0 | DS13: =SUM(FU13,FV13,GA13,GF13) -> 0 | DT13: =GG13 -> 0 | DV13: =IF(AND(DU13=1,X13=2),1,0) -> 0 | ED13: =IF(AND(I13=1,AB13="法人"),1,) -> 1 | EG13: 1 | EI13: 1 | EQ13: 1 | ER13: 1 | EX13: 1 | EZ13: 5 | FE13: =IF(X13=2,1,) -> 0 | FF13: =IF(AND(I13=1,OR(V13=1,V13=3)),1,) -> 1 | FG13: 40 | FH13: 43 | FI13: =IF(AND(I13=1,FG13<>FH13),FH13-FG13,0) -> 3 | FJ13: =IF(AND(I13=1,FG13>0),ROUNDDOWN(FI13/FG13,2),0) -> 0.07 | FK13: =IF(I13=1,AC13,) -> 1 | FL13: =IF(OR(AND(1<=$FK13,$FK13<=3),$FK13=6),VLOOKUP($FK13,整理番号表!$B$32:$G$60,2,FALSE),) -> 水田作 | FM13: =IF(OR($FK13=4,$FK13=7),VLOOKUP($FK13,整理番号表!$B$32:$G$60,2,FALSE),) -> 0 | FN13: =IF($FK13=5,VLOOKUP($FK13,整理番号表!$B$32:$G$60,2,FALSE),) -> 0 | FO13: =IF(AND(8<=$FK13,$FK13<=13),VLOOKUP($FK13,整理番号表!$B$32:$G$60,2,FALSE),) -> 0 | FP13: =IF(FL13<>0,1,IF(FM13<>0,2,IF(FN13<>0,3,IF(FO13<>0,4,)))) -> 1 | FQ13: =IF(AND(FE13<>1,$FP13=1,$FF13=1,$FI13>=4),1,) -> 0 | FR13: =IF(AND(FE13<>1,$FP13=1,SUM($FQ13:FQ13)=0,$FF13=1,$FI13>=2),1,) -> 1 | FS13: =IF(AND(FE13<>1,$FP13=1,SUM($FQ13:FR13)=0,OR(AND($FF13=1,$FI13>0),$FI13>=4)),1,) -> 0 | FT13: =IF(AND(FE13<>1,$FP13=1,SUM($FQ13:FS13)=0,OR($FF13=1,$FI13>=2)),1,) -> 0 | FU13: =IF(AND(FE13<>1,$FP13=1,SUM($FQ13:FT13)=0,$FI13>0),1,) -> 0 | FV13: =IF(AND(FE13<>1,$FP13=4,$FI13>0),1,) -> 0 | FW13: =IF(AND(FE13<>1,$FP13=2,$FF13=1,$FJ13>=0.2),1,) -> 0 | FX13: =IF(AND(FE13<>1,$FP13=2,SUM($FW13:FW13)=0,$FF13=1,$FJ13>=0.1),1,) -> 0 | FY13: =IF(AND(FE13<>1,$FP13=2,SUM($FW13:FX13)=0,OR(AND($FF13=1,$FI13>0),$FJ13>=0.2)),1,) -> 0 | FZ13: =IF(AND(FE13<>1,$FP13=2,SUM($FW13:FY13)=0,OR($FF13=1,$FJ13>=0.1)),1,) -> 0 | GA13: =IF(AND(FE13<>1,$FP13=2,SUM($FW13:FZ13)=0,$FI13>0),1,) -> 0 | GB13: =IF(AND(FE13<>1,$FP13=3,$FF13=1,$FJ13>=0.1),1,) -> 0 | GC13: =IF(AND(FE13<>1,$FP13=3,SUM($GB13:GB13)=0,AND($FF13=1,$FJ13>=0.05)),1,) -> 0 | GD13: =IF(AND(FE13<>1,$FP13=3,SUM($GB13:GC13)=0,OR(AND($FF13=1,$FI13>0),$FJ13>=0.1)),1,) -> 0 | GE13: =IF(AND(FE13<>1,$FP13=3,SUM($GB13:GD13)=0,OR($FF13=1,$FJ13>=0.05)),1,) -> 0 | GF13: =IF(AND(FE13<>1,$FP13=3,SUM($GB13:GE13)=0,$FI13>0),1,) -> 0 | GG13: =IF(AND($FE13=1,$FI13>0),1,) -> 0 | GI13: =IF($I13=1,CH13*GI$5,0) -> 0 | GJ13: =IF($I13=1,CI13*GJ$5,0) -> 0 | GK13: 0 | GL13: 0 | GM13: 0 | GN13: 0 | GO13: 7 | GP13: 0 | GQ13: 0 | GR13: 0 | GS13: 0 | GT13: 0 | GU13: 0 | GV13: 0 | GW13: 0 | GX13: 0 | GY13: 0 | GZ13: 0 | HA13: 5 | HB13: =IF($I13=1,DA13*HB$5,0) -> 0 | HC13: 0 | HD13: 0 | HE13: 0 | HF13: 0 | HG13: 0 | HH13: 0 | HI13: 0 | HJ13: 0 | HK13: 0 | HL13: 0 | HM13: 0 | HN13: 0 | HO13: 0 | HP13: 0 | HQ13: 4 | HR13: =IF($I13=1,DQ13*HR$5,0) -> 0 | HS13: 0 | HT13: 0 | HU13: 0 | HV13: 0 | HW13: 0 | HX13: 0 | HY13: 0 | HZ13: 0 | IA13: 0 | IB13: 0 | IC13: 0 | ID13: 0 | IE13: 2 | IF13: 0 | IG13: 0 | IH13: =IF($I13=1,EG13*IH$5,0) -> 1 | II13: 0 | IJ13: 1 | IK13: 0 | IL13: 0 | IM13: 0 | IN13: 0 | IO13: 0 | IP13: 0 | IQ13: 0 | IR13: 1 | IS13: 1 | IT13: 0 | IU13: 0 | IV13: 0 | IW13: 0 | IX13: =IF($I13=1,EW13*IX$5,0) -> 0 | IY13: 3 | IZ13: 0 | JA13: =IF($I13=1,IF($EZ13>=3,3,$EZ13*JA$5),0) -> 3 | JB13: =IF($I13=1,IF(FA13<>"",JB$5,0),0) -> 0 | JC13: =IF($I13=1,FB13*JC$5,0) -> 0 | JD13: 0 | JE13: =SUM(GI13:JD13) -> 28 | JF13: =IF(G13=1,SUMIF($C$13:$C$350,C13,$JE$13:$JE$350),0) -> 28 | JG13: =IF(G13=1,SUMIF($C$13:$C$350,C13,$I$13:$I$350),0) -> 1 | JH13: =IF(JG13>0,JF13/JG13,0) -> 28 | JI13: =IF(X13=2,1,0) -> 0 | JJ13: =IF(AI13<>"",IF(X13=2,"認",IF(AND(X13=1,AY13>0),"○","×")),"") -> ○ | JK13: =IF(AI13<>"",IF(AV13>=500000,"○","×"),"") -> ○ | JL13: =IF(AI13<>"",IF(AND(5<=BH13,BH13<=20),"○",IF(OR(AND(4<=BH13,BH13<=24),OR(AE13=30,AE13=31),AG13=1),"△","×")),"") -> ○ | JM13: =IF(AI13<>"",IF(AT13>0,"○","×"),"") -> ○ | JN13: =IF(I13=1,IF(BR13=0,"△",IF(OR(AND(X13=1,BW13>=0.1),AND(X13=2,BW13>0)),"○","×")),"") -> ○ | JO13: =IF(SUM(DO13:DT13)>0,IF(BY13=1,"○","×"),"") -> ○ | JP13: =IF(BY13=1,IF(AND(FI13>0,FJ13>0),"○","×"),"") -> ○ | JQ13: =IF(SUM(DX13)>0,IF(BZ13=1,"○","×"),"") ->  | JR13: =IF(SUM(EA13,EC13)>0,IF(CA13=1,"○","×"),"") ->  | JS13: =IF(SUM(EE13)>0,IF(CB13=1,"○","×"),"") ->  | JT13: =IF(SUM(EH13)>0,IF(CC13=1,"○","×"),"") ->  | JU13: =IF(SUM(EK13)>0,IF(CD13=1,"○","×"),"") ->  | JV13: =IF(SUM(EM13)>0,IF(CE13=1,"○","×"),"") ->  | JW13: =IF(SUM(EN13:EP13)>0,IF(CF13=1,"○","×"),"") ->  | JX13: =IF(EQ13=1,IF(CG13=1,"○","×"),"") -> ○ | JY13: =IF(COUNTIF(JJ13:JX13,"×")>=1,"×","○") -> ○ | JZ13: =AU13 -> 1 | KA13: =AV13 -> 40000000 | KB13: =IF(JZ13=1,ROUNDUP(KA13*100/110,0),KA13) -> 36363637 | KC13: =ROUNDDOWN(KB13*1/2,0) -> 18181818 | KD13: =IF(X13=2,"認める者",AY13) -> 18000000 | KE13: =AV13-SUM(AY13,BA13:BC13) -> 22000000 | KF13: =IF(X13=1,MIN(KC13:KE13),IF(X13=2,MIN(KC13,KE13),0)) -> 18000000 | KG13: =IF(AX13<=KF13,"○","×") -> ○ | KH13: =IF(I13=1,IF(X13=2,1000000,IF(AND(X13=1,AB13="法人"),30000000,IF(AND(X13=1,AB13="法人以外"),15000000,0))),0) -> 30000000 | KI13: =IF(I13=1,SUMIF($E$13:$E$350,E13,$AW$13:$AW$350),0) -> 27271000 | KJ13: =IF(I13=1,SUMIF($E$13:$E$350,E13,$AX$13:$AX$350),0) -> 27000000 | KK13: =IF(OR(AND(KJ13>0,KH13<KJ13),AND(KI13>0,KH13<KI13)),"×","○") -> ○ | KL13: =IF(OR(JY13="×",KG13="×",KK13="×"),"×","○") -> ○ | KN13: =C13 -> 1 | KO13: =D13 -> 1
A14: =D14*1000000+C14*10000+Q14*100+AH14 -> 1010102 | B14: =IF(L14<>"",IF(L14<>L13,B13+1,B13),0) -> 1 | C14: =IF(N14<>"",IF(N14<>N13,C13+1,C13),0) -> 1 | D14: =IF(M14<>"",IF(M14<>M13,D13+1,D13),0) -> 1 | E14: =IF(R14<>"",IF(OR(R14<>R13,N14<>N13),E13+1,E13),0) -> 1 | F14: =IF(BP14>0,E14,0) -> 1 | G14: =IF(N14<>"",IF(N14<>N13,1,0),0) -> 0 | H14: =IF(M14<>"",IF(M14<>M13,1,0),0) -> 0 | I14: =IF(R14<>"",IF(R14<>R13,1,0),0) -> 0 | J14: 0 | K14: =ROW()-ROW($K$12) -> 2 | L14: 北海道 | M14: あ | N14: 甲 | O14: 2 | P14: =IF(O14<>"",VLOOKUP(O14,整理番号表!$Z$17:$AA$20,2,FALSE),) -> 平地農業地域 | Q14: =IF(R14<>"",IF(N14<>N13,1,IF(R14<>R13,Q13+1,Q13)),) -> 1 | R14: 法人A | T14: 北海道 | U14: a | V14: 1 | W14: =IF(V14<>0,VLOOKUP(V14,整理番号表!$B$6:$L$13,2,FALSE),) -> 中心経営体であり、農地中間管理機構から賃借権等の設定等を受けた者 | X14: =IF(V14<>0,IF(V14=4,2,1),) -> 1 | Y14: =IF(X14<>0,VLOOKUP(X14,整理番号表!$B$16:$C$18,2,FALSE),) -> 1,500万円（法人3,000万円） | Z14: 1 | AA14: =IF(Z14<>0,VLOOKUP(Z14,整理番号表!$B$22:$C$29,2,FALSE),) -> 認定農業者 | AB14: 法人 | AC14: 1 | AD14: =IF(AC14<>0,VLOOKUP(AC14,整理番号表!$B$32:$G$60,2,FALSE),) -> 水田作 | AE14: 6 | AF14: =IF(AE14<>0,VLOOKUP(AE14,整理番号表!$P$5:$R$39,2,FALSE),) -> アタッチメント | AH14: =IF(AI14<>"",IF(OR(U14<>U13,R14<>R13),1,AH13+1),0) -> 2 | AI14: グレンドリル 4m 1台 | AJ14: ② | AK14: =IF(AJ14<>"",VLOOKUP(AJ14,整理番号表!$Z$6:$AA$14,2,FALSE),"") -> 土壌センサー搭載型可変施肥田植機 | AL14: =IF(AJ14<>0,1,) -> 1 | AM14: 規模決定根拠資料 | AN14: 2022-03-03 | AO14: 2022-03-03 | AP14: ○○町1-1-1 | AQ14: 2 | AR14: =IF(AQ14<>0,VLOOKUP(AQ14,整理番号表!$P$43:$Q$49,2,FALSE),) -> 農機具共済 | AS14: 北海道農機共済 | AT14: 2022-03-03 | AU14: 1 | AV14: 20000000 | AW14: =IF(AL14=1,IF(KC14>0,MIN(ROUNDDOWN(KC14,-3),IF(AND(X14=1,AB14="法人"),30000000,IF(AND(X14=1,AB14="法人以外"),15000000,IF(X14=2,1000000,0)))),0),0) -> 9090000 | AX14: 9000000 | AY14: 11000000 | AZ14: =AV14-SUM(AX14,AY14,BA14,BB14,BC14) -> 0 | BD14: =IF(I14=1,MIN(KH14,KJ14),0) -> 0 | BE14: =IF(AV14<>0,AX14/AV14,) -> 0.45 | BF14: =IF(AV14<>0,AY14/AV14,) -> 0.55 | BH14: 7 | BI14: =IF(AX14>0,IF(AU14=1,ROUNDDOWN(AV14*10/110,0),IF(AU14=2,"該当なし","含税額")),0) -> 1818181 | BJ14: =IF(AX14>0,IF(AU14<>1," ",IF(AU14=1,ROUNDDOWN(ROUNDDOWN((AX14/(AV14-BI14)),5)*BI14,0))),0) -> 899981 | BK14: 1 | BL14: =IF(BK14<>0,VLOOKUP(BK14,整理番号表!$T$5:$U$16,2,FALSE),) -> 農協 | BM14: 1 | BN14: =IF(BM14<>0,VLOOKUP(BM14,整理番号表!$T$22:$U$30,2,FALSE),) -> 近代化資金 | BO14: 1 | BP14: =IF(BO14=1,AY14,) -> 11000000 | BQ14: =IF(AND(R14<>"",I14=1),1,"") ->  | BW14: =IF(BS14=2,ROUNDDOWN((BV14-BR14)/ABS(BR14),2),IF(BS14=1,ROUNDDOWN((BV14-BR14)/ABS(BR14)*3/4,2),"")) ->  | BX14: =IF(BR14>0,IF(BS14=2,ROUNDDOWN((BV14-BR14),0),IF(BS14=1,ROUNDDOWN((BV14-BR14)*3/4,0),"")),IF(BV14>0,BV14,0)) -> 0 | CH14: 0 | CI14: 0 | CJ14: 0 | CK14: 0 | CL14: 0 | CM14: 0 | CN14: =IF(OR($BR14<=0,$BV14<=0),0,IF(AND($X14=1,$I14=1,$EU14<>1,CN$2<=$BW14),1,)) -> 0 | CO14: 0 | CP14: 0 | CQ14: 0 | CR14: 0 | CS14: 0 | CT14: 0 | CU14: =IF(OR($BR14<=0,$BV14<=0),0,IF(AND($X14=2,$I14=1,$EU14<>1,CU$2<=$BW14),1,)) -> 0 | CV14: 0 | CW14: 0 | CX14: 0 | CY14: 0 | CZ14: 0 | DA14: 0 | DB14: =IF($BV14<0,0,IF(AND($X14=1,$I14=1,$EU14<>1,DB$2<=$BX14),1,)) -> 0 | DC14: 0 | DD14: 0 | DE14: 0 | DF14: 0 | DG14: 0 | DH14: 0 | DI14: =IF($BV14<0,0,IF(AND($X14=2,$I14=1,$EU14<>1,DI$2<=$BX14),1,)) -> 0 | DO14: =SUM(FQ14,FW14,GB14) -> 0 | DP14: =SUM(FR14,FX14,GC14) -> 0 | DQ14: =SUM(FS14,FY14,GD14) -> 0 | DR14: =SUM(FT14,FZ14,GE14) -> 0 | DS14: =SUM(FU14,FV14,GA14,GF14) -> 0 | DT14: =GG14 -> 0 | DV14: =IF(AND(DU14=1,X14=2),1,0) -> 0 | ED14: 0 | FE14: =IF(X14=2,1,) -> 0 | FF14: =IF(AND(I14=1,OR(V14=1,V14=3)),1,) -> 0 | FI14: =IF(AND(I14=1,FG14<>FH14),FH14-FG14,0) -> 0 | FJ14: =IF(AND(I14=1,FG14>0),ROUNDDOWN(FI14/FG14,2),0) -> 0 | FK14: =IF(I14=1,AC14,) -> 0 | FL14: =IF(OR(AND(1<=$FK14,$FK14<=3),$FK14=6),VLOOKUP($FK14,整理番号表!$B$32:$G$60,2,FALSE),) -> 0 | FM14: =IF(OR($FK14=4,$FK14=7),VLOOKUP($FK14,整理番号表!$B$32:$G$60,2,FALSE),) -> 0 | FN14: =IF($FK14=5,VLOOKUP($FK14,整理番号表!$B$32:$G$60,2,FALSE),) -> 0 | FO14: =IF(AND(8<=$FK14,$FK14<=13),VLOOKUP($FK14,整理番号表!$B$32:$G$60,2,FALSE),) -> 0 | FP14: =IF(FL14<>0,1,IF(FM14<>0,2,IF(FN14<>0,3,IF(FO14<>0,4,)))) -> 0 | FQ14: =IF(AND(FE14<>1,$FP14=1,$FF14=1,$FI14>=4),1,) -> 0 | FR14: =IF(AND(FE14<>1,$FP14=1,SUM($FQ14:FQ14)=0,$FF14=1,$FI14>=2),1,) -> 0 | FS14: =IF(AND(FE14<>1,$FP14=1,SUM($FQ14:FR14)=0,OR(AND($FF14=1,$FI14>0),$FI14>=4)),1,) -> 0 | FT14: =IF(AND(FE14<>1,$FP14=1,SUM($FQ14:FS14)=0,OR($FF14=1,$FI14>=2)),1,) -> 0 | FU14: =IF(AND(FE14<>1,$FP14=1,SUM($FQ14:FT14)=0,$FI14>0),1,) -> 0 | FV14: =IF(AND(FE14<>1,$FP14=4,$FI14>0),1,) -> 0 | FW14: =IF(AND(FE14<>1,$FP14=2,$FF14=1,$FJ14>=0.2),1,) -> 0 | FX14: =IF(AND(FE14<>1,$FP14=2,SUM($FW14:FW14)=0,$FF14=1,$FJ14>=0.1),1,) -> 0 | FY14: =IF(AND(FE14<>1,$FP14=2,SUM($FW14:FX14)=0,OR(AND($FF14=1,$FI14>0),$FJ14>=0.2)),1,) -> 0 | FZ14: =IF(AND(FE14<>1,$FP14=2,SUM($FW14:FY14)=0,OR($FF14=1,$FJ14>=0.1)),1,) -> 0 | GA14: =IF(AND(FE14<>1,$FP14=2,SUM($FW14:FZ14)=0,$FI14>0),1,) -> 0 | GB14: =IF(AND(FE14<>1,$FP14=3,$FF14=1,$FJ14>=0.1),1,) -> 0 | GC14: =IF(AND(FE14<>1,$FP14=3,SUM($GB14:GB14)=0,AND($FF14=1,$FJ14>=0.05)),1,) -> 0 | GD14: =IF(AND(FE14<>1,$FP14=3,SUM($GB14:GC14)=0,OR(AND($FF14=1,$FI14>0),$FJ14>=0.1)),1,) -> 0 | GE14: =IF(AND(FE14<>1,$FP14=3,SUM($GB14:GD14)=0,OR($FF14=1,$FJ14>=0.05)),1,) -> 0 | GF14: =IF(AND(FE14<>1,$FP14=3,SUM($GB14:GE14)=0,$FI14>0),1,) -> 0 | GG14: =IF(AND($FE14=1,$FI14>0),1,) -> 0 | GI14: =IF($I14=1,CH14*GI$5,0) -> 0 | GJ14: 0 | GK14: 0 | GL14: 0 | GM14: 0 | GN14: 0 | GO14: 0 | GP14: 0 | GQ14: 0 | GR14: 0 | GS14: 0 | GT14: 0 | GU14: 0 | GV14: 0 | GW14: 0 | GX14: 0 | GY14: 0 | GZ14: 0 | HA14: 0 | HB14: 0 | HC14: 0 | HD14: 0 | HE14: 0 | HF14: 0 | HG14: 0 | HH14: 0 | HI14: 0 | HJ14: 0 | HK14: 0 | HL14: 0 | HM14: 0 | HN14: 0 | HO14: 0 | HP14: 0 | HQ14: 0 | HR14: 0 | HS14: 0 | HT14: 0 | HU14: 0 | HV14: 0 | HW14: 0 | HX14: 0 | HY14: 0 | HZ14: 0 | IA14: 0 | IB14: 0 | IC14: 0 | ID14: 0 | IE14: 0 | IF14: 0 | IG14: 0 | IH14: 0 | II14: 0 | IJ14: 0 | IK14: 0 | IL14: 0 | IM14: 0 | IN14: 0 | IO14: 0 | IP14: 0 | IQ14: 0 | IR14: 0 | IS14: 0 | IT14: 0 | IU14: 0 | IV14: 0 | IW14: 0 | IX14: 0 | IY14: 0 | IZ14: 0 | JA14: =IF($I14=1,IF($EZ14>=3,3,$EZ14*JA$5),0) -> 0 | JB14: =IF($I14=1,IF(FA14<>"",JB$5,0),0) -> 0 | JC14: 0 | JD14: 0 | JE14: 0 | JF14: 0 | JG14: 0 | JH14: =IF(JG14>0,JF14/JG14,0) -> 0 | JI14: 0 | JJ14: =IF(AI14<>"",IF(X14=2,"認",IF(AND(X14=1,AY14>0),"○","×")),"") -> ○ | JK14: ○ | JL14: ○ | JM14: ○ | JN14: =IF(I14=1,IF(BR14=0,"△",IF(OR(AND(X14=1,BW14>=0.1),AND(X14=2,BW14>0)),"○","×")),"") ->  | JX14: =IF(EQ14=1,IF(CG14=1,"○","×"),"") ->  | JY14: =IF(COUNTIF(JJ14:JX14,"×")>=1,"×","○") -> ○ | JZ14: 1 | KA14: 20000000 | KB14: =IF(JZ14=1,ROUNDUP(KA14*100/110,0),KA14) -> 18181819 | KC14: =ROUNDDOWN(KB14*1/2,0) -> 9090909 | KD14: =IF(X14=2,"認める者",AY14) -> 11000000 | KE14: 9000000 | KF14: 9000000 | KG14: ○ | KH14: 0 | KI14: 0 | KJ14: 0 | KK14: =IF(OR(AND(KJ14>0,KH14<KJ14),AND(KI14>0,KH14<KI14)),"×","○") -> ○ | KL14: =IF(OR(JY14="×",KG14="×",KK14="×"),"×","○") -> ○ | KN14: =C14 -> 1 | KO14: =D14 -> 1
A15: 2020101 | B15: 1 | C15: =IF(N15<>"",IF(N15<>N14,C14+1,C14),0) -> 2 | D15: 2 | E15: 2 | F15: 0 | G15: 1 | H15: 1 | I15: 1 | J15: 0 | K15: 3 | L15: 北海道 | M15: い | N15: 乙 | O15: 3 | P15: =IF(O15<>"",VLOOKUP(O15,整理番号表!$Z$17:$AA$20,2,FALSE),) -> 中間農業地域 | Q15: 1 | R15: 法人B | T15: 北海道 | U15: b | V15: 2 | W15: =IF(V15<>0,VLOOKUP(V15,整理番号表!$B$6:$L$13,2,FALSE),) -> 中心経営体 | X15: 1 | Y15: =IF(X15<>0,VLOOKUP(X15,整理番号表!$B$16:$C$18,2,FALSE),) -> 1,500万円（法人3,000万円） | Z15: 1 | AA15: =IF(Z15<>0,VLOOKUP(Z15,整理番号表!$B$22:$C$29,2,FALSE),) -> 認定農業者 | AB15: 法人 | AC15: 12 | AD15: =IF(AC15<>0,VLOOKUP(AC15,整理番号表!$B$32:$G$60,2,FALSE),) -> 採卵養鶏 | AE15: 19 | AF15: =IF(AE15<>0,VLOOKUP(AE15,整理番号表!$P$5:$R$39,2,FALSE),) -> 畜舎（養鶏） | AH15: 1 | AI15: 畜舎 512㎡ 1棟 | AK15: =IF(AJ15<>"",VLOOKUP(AJ15,整理番号表!$Z$6:$AA$14,2,FALSE),"") ->  | AL15: 0 | AM15: 規模決定根拠資料 | AN15: 2022-03-03 | AO15: 2022-03-04 | AP15: ○○町1-1-2 | AQ15: 3 | AR15: =IF(AQ15<>0,VLOOKUP(AQ15,整理番号表!$P$43:$Q$49,2,FALSE),) -> 損害保険 | AS15: 北海道損害保険 | AT15: 2022-03-04 | AU15: 1 | AV15: 50000000 | AW15: 0 | AX15: 22727000 | AY15: 25000000 | AZ15: 2273000 | BD15: 22727000 | BE15: 0.45454 | BF15: 0.5 | BG15: 1 | BH15: 19 | BI15: =IF(AX15>0,IF(AU15=1,ROUNDDOWN(AV15*10/110,0),IF(AU15=2,"該当なし","含税額")),0) -> 4545454 | BJ15: 2272681 | BK15: 4 | BL15: =IF(BK15<>0,VLOOKUP(BK15,整理番号表!$T$5:$U$16,2,FALSE),) -> 日本公庫 | BM15: 4 | BN15: =IF(BM15<>0,VLOOKUP(BM15,整理番号表!$T$22:$U$30,2,FALSE),) -> 公庫資金（スーパーＬ）直貸 | BP15: 0 | BQ15: 1 | BR15: -10000000 | BS15: 2 | BT15: 11000000 | BU15: 13000000 | BV15: 17000000 | BW15: 2.7 | BX15: 17000000 | BY15: 1 | CC15: 1 | CD15: 1 | CG15: 1 | CH15: 0 | CI15: 0 | CJ15: 0 | CK15: 0 | CL15: 0 | CM15: 0 | CN15: 0 | CO15: 0 | CP15: 0 | CQ15: 0 | CR15: 0 | CS15: 0 | CT15: 0 | CU15: 0 | CV15: 0 | CW15: 0 | CX15: 0 | CY15: 0 | CZ15: 0 | DA15: 0 | DB15: 1 | DC15: 0 | DD15: 0 | DE15: 0 | DF15: 0 | DG15: 0 | DH15: 0 | DI15: 0 | DO15: 0 | DP15: 0 | DQ15: 0 | DR15: 0 | DS15: 1 | DT15: 0 | DV15: 0 | ED15: 1 | EH15: 1 | EK15: 1 | EQ15: 1 | EX15: 1 | EZ15: 2 | FE15: 0 | FF15: 0 | FG15: 100 | FH15: 120 | FI15: 20 | FJ15: 0.2 | FK15: 12 | FL15: =IF(OR(AND(1<=$FK15,$FK15<=3),$FK15=6),VLOOKUP($FK15,整理番号表!$B$32:$G$60,2,FALSE),) -> 0 | FM15: =IF(OR($FK15=4,$FK15=7),VLOOKUP($FK15,整理番号表!$B$32:$G$60,2,FALSE),) -> 0 | FN15: =IF($FK15=5,VLOOKUP($FK15,整理番号表!$B$32:$G$60,2,FALSE),) -> 0 | FO15: =IF(AND(8<=$FK15,$FK15<=13),VLOOKUP($FK15,整理番号表!$B$32:$G$60,2,FALSE),) -> 採卵養鶏 | FP15: 4 | FQ15: 0 | FR15: =IF(AND(FE15<>1,$FP15=1,SUM($FQ15:FQ15)=0,$FF15=1,$FI15>=2),1,) -> 0 | FS15: =IF(AND(FE15<>1,$FP15=1,SUM($FQ15:FR15)=0,OR(AND($FF15=1,$FI15>0),$FI15>=4)),1,) -> 0 | FT15: =IF(AND(FE15<>1,$FP15=1,SUM($FQ15:FS15)=0,OR($FF15=1,$FI15>=2)),1,) -> 0 | FU15: =IF(AND(FE15<>1,$FP15=1,SUM($FQ15:FT15)=0,$FI15>0),1,) -> 0 | FV15: 1 | FW15: 0 | FX15: =IF(AND(FE15<>1,$FP15=2,SUM($FW15:FW15)=0,$FF15=1,$FJ15>=0.1),1,) -> 0 | FY15: =IF(AND(FE15<>1,$FP15=2,SUM($FW15:FX15)=0,OR(AND($FF15=1,$FI15>0),$FJ15>=0.2)),1,) -> 0 | FZ15: =IF(AND(FE15<>1,$FP15=2,SUM($FW15:FY15)=0,OR($FF15=1,$FJ15>=0.1)),1,) -> 0 | GA15: =IF(AND(FE15<>1,$FP15=2,SUM($FW15:FZ15)=0,$FI15>0),1,) -> 0 | GB15: 0 | GC15: =IF(AND(FE15<>1,$FP15=3,SUM($GB15:GB15)=0,AND($FF15=1,$FJ15>=0.05)),1,) -> 0 | GD15: =IF(AND(FE15<>1,$FP15=3,SUM($GB15:GC15)=0,OR(AND($FF15=1,$FI15>0),$FJ15>=0.1)),1,) -> 0 | GE15: =IF(AND(FE15<>1,$FP15=3,SUM($GB15:GD15)=0,OR($FF15=1,$FJ15>=0.05)),1,) -> 0 | GF15: =IF(AND(FE15<>1,$FP15=3,SUM($GB15:GE15)=0,$FI15>0),1,) -> 0 | GG15: 0 | GI15: 0 | GJ15: 0 | GK15: 0 | GL15: 0 | GM15: 0 | GN15: 0 | GO15: 0 | GP15: 0 | GQ15: 0 | GR15: 0 | GS15: 0 | GT15: 0 | GU15: 0 | GV15: 0 | GW15: 0 | GX15: 0 | GY15: 0 | GZ15: 0 | HA15: 0 | HB15: 0 | HC15: 7 | HD15: 0 | HE15: 0 | HF15: 0 | HG15: 0 | HH15: 0 | HI15: 0 | HJ15: 0 | HK15: 0 | HL15: 0 | HM15: 0 | HN15: 0 | HO15: 0 | HP15: 0 | HQ15: 0 | HR15: 0 | HS15: 0 | HT15: 1 | HU15: 0 | HV15: 0 | HW15: 0 | HX15: 0 | HY15: 0 | HZ15: 0 | IA15: 0 | IB15: 0 | IC15: 0 | ID15: 0 | IE15: 2 | IF15: 0 | IG15: 0 | IH15: 0 | II15: 1 | IJ15: 0 | IK15: 0 | IL15: 1 | IM15: 0 | IN15: 0 | IO15: 0 | IP15: 0 | IQ15: 0 | IR15: 1 | IS15: 0 | IT15: 0 | IU15: 0 | IV15: 0 | IW15: 0 | IX15: 0 | IY15: 3 | IZ15: 0 | JA15: 2 | JB15: 0 | JC15: 0 | JD15: 0 | JE15: 18 | JF15: 32.5 | JG15: 2 | JH15: 16.25 | JI15: 0 | JJ15: ○ | JK15: ○ | JL15: ○ | JM15: ○ | JN15: ○ | JO15: ○ | JP15: ○ | JT15: ○ | JU15: ○ | JX15: ○ | JY15: ○ | JZ15: 1 | KA15: 50000000 | KB15: 45454546 | KC15: 22727273 | KD15: 25000000 | KE15: 25000000 | KF15: 22727273 | KG15: ○ | KH15: 30000000 | KI15: 0 | KJ15: 22727000 | KK15: ○ | KL15: ○ | KN15: 2 | KO15: 2
A16: 2020201 | B16: 1 | C16: =IF(N16<>"",IF(N16<>N15,C15+1,C15),0) -> 2 | D16: 2 | E16: 3 | F16: 0 | G16: 0 | H16: 0 | I16: 1 | J16: 0 | K16: 4 | L16: 北海道 | M16: い | N16: 乙 | O16: 3 | P16: =IF(O16<>"",VLOOKUP(O16,整理番号表!$Z$17:$AA$20,2,FALSE),) -> 中間農業地域 | Q16: 2 | R16: 個人C | T16: 北海道 | V16: 4 | W16: =IF(V16<>0,VLOOKUP(V16,整理番号表!$B$6:$L$13,2,FALSE),) -> 事業実施主体が認める者 | X16: 2 | Y16: =IF(X16<>0,VLOOKUP(X16,整理番号表!$B$16:$C$18,2,FALSE),) -> 100万円 | Z16: 5 | AA16: =IF(Z16<>0,VLOOKUP(Z16,整理番号表!$B$22:$C$29,2,FALSE),) -> 事業実施主体が認める者のうち中心経営体又は認定農業者 | AB16: 法人以外 | AC16: 2 | AD16: =IF(AC16<>0,VLOOKUP(AC16,整理番号表!$B$32:$G$60,2,FALSE),) -> 畑作 | AE16: 1 | AF16: =IF(AE16<>0,VLOOKUP(AE16,整理番号表!$P$5:$R$39,2,FALSE),) -> トラクター | AG16: 1 | AH16: 1 | AI16: トラクター（中古） 108ps 1台 | AK16: =IF(AJ16<>"",VLOOKUP(AJ16,整理番号表!$Z$6:$AA$14,2,FALSE),"") ->  | AL16: 0 | AM16: 規模決定根拠資料 | AN16: 2022-03-03 | AO16: 2022-03-05 | AP16: ○○町1-1-3 | AQ16: 2 | AR16: =IF(AQ16<>0,VLOOKUP(AQ16,整理番号表!$P$43:$Q$49,2,FALSE),) -> 農機具共済 | AS16: 北海道農機共済 | AT16: 2022-03-05 | AV16: 2000000 | AW16: 0 | AX16: 1000000 | AZ16: 1000000 | BD16: 1000000 | BE16: 0.5 | BF16: 0 | BH16: 7(2) | BI16: 含税額 | BL16: =IF(BK16<>0,VLOOKUP(BK16,整理番号表!$T$5:$U$16,2,FALSE),) -> 0 | BN16: =IF(BM16<>0,VLOOKUP(BM16,整理番号表!$T$22:$U$30,2,FALSE),) -> 0 | BP16: 0 | BQ16: 1 | BR16: 7000000 | BS16: 1 | BT16: 7300000 | BU16: 7400000 | BV16: 7720000 | BW16: 0.07 | BX16: 540000 | BY16: 1 | CE16: 1 | CF16: 1 | CH16: 0 | CI16: 0 | CJ16: 0 | CK16: 0 | CL16: 0 | CM16: 0 | CN16: 0 | CO16: 1 | CP16: 0 | CQ16: 0 | CR16: 0 | CS16: 0 | CT16: 0 | CU16: 0 | CV16: 0 | CW16: 0 | CX16: 0 | CY16: 0 | CZ16: 0 | DA16: 0 | DB16: 0 | DC16: 1 | DD16: 0 | DE16: 0 | DF16: 0 | DG16: 0 | DH16: 0 | DI16: 0 | DO16: 0 | DP16: 0 | DQ16: 0 | DR16: 0 | DS16: 0 | DT16: 1 | DU16: 1 | DV16: 1 | ED16: 0 | EM16: 1 | EO16: 1 | FA16: ア | FB16: 1 | FC16: 1 | FE16: 1 | FF16: 0 | FG16: 0.9 | FH16: 1 | FI16: 0.1 | FJ16: 0.11 | FK16: 2 | FL16: =IF(OR(AND(1<=$FK16,$FK16<=3),$FK16=6),VLOOKUP($FK16,整理番号表!$B$32:$G$60,2,FALSE),) -> 畑作 | FM16: =IF(OR($FK16=4,$FK16=7),VLOOKUP($FK16,整理番号表!$B$32:$G$60,2,FALSE),) -> 0 | FN16: =IF($FK16=5,VLOOKUP($FK16,整理番号表!$B$32:$G$60,2,FALSE),) -> 0 | FO16: =IF(AND(8<=$FK16,$FK16<=13),VLOOKUP($FK16,整理番号表!$B$32:$G$60,2,FALSE),) -> 0 | FP16: 1 | FQ16: 0 | FR16: =IF(AND(FE16<>1,$FP16=1,SUM($FQ16:FQ16)=0,$FF16=1,$FI16>=2),1,) -> 0 | FS16: =IF(AND(FE16<>1,$FP16=1,SUM($FQ16:FR16)=0,OR(AND($FF16=1,$FI16>0),$FI16>=4)),1,) -> 0 | FT16: =IF(AND(FE16<>1,$FP16=1,SUM($FQ16:FS16)=0,OR($FF16=1,$FI16>=2)),1,) -> 0 | FU16: =IF(AND(FE16<>1,$FP16=1,SUM($FQ16:FT16)=0,$FI16>0),1,) -> 0 | FV16: 0 | FW16: 0 | FX16: =IF(AND(FE16<>1,$FP16=2,SUM($FW16:FW16)=0,$FF16=1,$FJ16>=0.1),1,) -> 0 | FY16: =IF(AND(FE16<>1,$FP16=2,SUM($FW16:FX16)=0,OR(AND($FF16=1,$FI16>0),$FJ16>=0.2)),1,) -> 0 | FZ16: =IF(AND(FE16<>1,$FP16=2,SUM($FW16:FY16)=0,OR($FF16=1,$FJ16>=0.1)),1,) -> 0 | GA16: =IF(AND(FE16<>1,$FP16=2,SUM($FW16:FZ16)=0,$FI16>0),1,) -> 0 | GB16: 0 | GC16: =IF(AND(FE16<>1,$FP16=3,SUM($GB16:GB16)=0,AND($FF16=1,$FJ16>=0.05)),1,) -> 0 | GD16: =IF(AND(FE16<>1,$FP16=3,SUM($GB16:GC16)=0,OR(AND($FF16=1,$FI16>0),$FJ16>=0.1)),1,) -> 0 | GE16: =IF(AND(FE16<>1,$FP16=3,SUM($GB16:GD16)=0,OR($FF16=1,$FJ16>=0.05)),1,) -> 0 | GF16: =IF(AND(FE16<>1,$FP16=3,SUM($GB16:GE16)=0,$FI16>0),1,) -> 0 | GG16: 1 | GI16: 0 | GJ16: 0 | GK16: 0 | GL16: 0 | GM16: 0 | GN16: 0 | GO16: 0 | GP16: 1 | GQ16: 0 | GR16: 0 | GS16: 0 | GT16: 0 | GU16: 0 | GV16: 0 | GW16: 0 | GX16: 0 | GY16: 0 | GZ16: 0 | HA16: 0 | HB16: 0 | HC16: 0 | HD16: 1 | HE16: 0 | HF16: 0 | HG16: 0 | HH16: 0 | HI16: 0 | HJ16: 0 | HK16: 0 | HL16: 0 | HM16: 0 | HN16: 0 | HO16: 0 | HP16: 0 | HQ16: 0 | HR16: 0 | HS16: 0 | HT16: 0 | HU16: 2 | HV16: 1 | HW16: 1 | HX16: 0 | HY16: 0 | HZ16: 0 | IA16: 0 | IB16: 0 | IC16: 0 | ID16: 0 | IE16: 0 | IF16: 0 | IG16: 0 | IH16: 0 | II16: 0 | IJ16: 0 | IK16: 0 | IL16: 0 | IM16: 0 | IN16: 2 | IO16: 0 | IP16: 2 | IQ16: 0 | IR16: 0 | IS16: 0 | IT16: 0 | IU16: 0 | IV16: 0 | IW16: 0 | IX16: 0 | IY16: 0 | IZ16: 0 | JA16: 0 | JB16: 3 | JC16: 1 | JD16: 0.5 | JE16: 14.5 | JF16: 0 | JG16: 0 | JH16: =IF(JG16>0,JF16/JG16,0) -> 0 | JI16: 1 | JJ16: 認 | JK16: ○ | JL16: △ | JM16: ○ | JN16: ○ | JO16: ○ | JP16: ○ | JV16: ○ | JW16: ○ | JY16: ○ | JZ16: 0 | KA16: 2000000 | KB16: 2000000 | KC16: 1000000 | KD16: 認める者 | KE16: 2000000 | KF16: 1000000 | KG16: ○ | KH16: 1000000 | KI16: 0 | KJ16: 1000000 | KK16: ○ | KL16: ○ | KN16: 2 | KO16: 2
A17: 3030101 | B17: 2 | C17: =IF(N17<>"",IF(N17<>N16,C16+1,C16),0) -> 3 | D17: 3 | E17: 4 | F17: 0 | G17: 1 | H17: 1 | I17: 1 | J17: 0 | K17: 5 | L17: 青森県 | M17: う | N17: 丙 | O17: 2 | P17: =IF(O17<>"",VLOOKUP(O17,整理番号表!$Z$17:$AA$20,2,FALSE),) -> 平地農業地域 | Q17: 1 | R17: 個人D | T17: 青森県 | V17: 2 | W17: =IF(V17<>0,VLOOKUP(V17,整理番号表!$B$6:$L$13,2,FALSE),) -> 中心経営体 | X17: 1 | Y17: =IF(X17<>0,VLOOKUP(X17,整理番号表!$B$16:$C$18,2,FALSE),) -> 1,500万円（法人3,000万円） | Z17: 2 | AA17: =IF(Z17<>0,VLOOKUP(Z17,整理番号表!$B$22:$C$29,2,FALSE),) -> 認定就農者 | AB17: 法人以外 | AC17: 5 | AD17: =IF(AC17<>0,VLOOKUP(AC17,整理番号表!$B$32:$G$60,2,FALSE),) -> 果樹作 | AE17: 12 | AF17: =IF(AE17<>0,VLOOKUP(AE17,整理番号表!$P$5:$R$39,2,FALSE),) -> 果樹棚 | AH17: 1 | AI17: 果樹棚 86a分 | AK17: =IF(AJ17<>"",VLOOKUP(AJ17,整理番号表!$Z$6:$AA$14,2,FALSE),"") ->  | AL17: 0 | AM17: 規模決定根拠資料 | AN17: 2022-03-03 | AO17: 2022-03-06 | AP17: ○○町1-1-4 | AQ17: 4 | AR17: =IF(AQ17<>0,VLOOKUP(AQ17,整理番号表!$P$43:$Q$49,2,FALSE),) -> その他の保険等 | AS17: (株)民間保険 | AT17: 2022-03-06 | AU17: 1 | AV17: 7000000 | AW17: 0 | AX17: 3000000 | AY17: 3000000 | AZ17: 1000000 | BD17: 3000000 | BE17: 0.4285714286 | BF17: 0.4285714286 | BH17: 14 | BI17: 636363 | BJ17: 299994 | BK17: 2 | BL17: =IF(BK17<>0,VLOOKUP(BK17,整理番号表!$T$5:$U$16,2,FALSE),) -> 農協連 | BM17: 2 | BN17: =IF(BM17<>0,VLOOKUP(BM17,整理番号表!$T$22:$U$30,2,FALSE),) -> 青年等就農資金 | BP17: 0 | BQ17: 1 | BS17: 2 | BT17: 5000000 | BU17: 10000000 | BV17: 15000000 | BX17: 15000000 | CH17: 0 | CI17: 0 | CJ17: 0 | CK17: 0 | CL17: 0 | CM17: 0 | CN17: 0 | CO17: 0 | CP17: 0 | CQ17: 0 | CR17: 0 | CS17: 0 | CT17: 0 | CU17: 0 | CV17: 0 | CW17: 0 | CX17: 0 | CY17: 0 | CZ17: 0 | DA17: 0 | DB17: 1 | DC17: 0 | DD17: 0 | DE17: 0 | DF17: 0 | DG17: 0 | DH17: 0 | DI17: 0 | DO17: 0 | DP17: 0 | DQ17: 0 | DR17: 0 | DS17: 0 | DT17: 0 | DU17: 1 | DV17: 0 | DW17: 1 | DY17: 1 | ED17: 0 | EF17: 1 | EG17: 1 | FE17: 0 | FF17: 0 | FG17: 1 | FH17: 1 | FI17: 0 | FJ17: 0 | FK17: 5 | FL17: =IF(OR(AND(1<=$FK17,$FK17<=3),$FK17=6),VLOOKUP($FK17,整理番号表!$B$32:$G$60,2,FALSE),) -> 0 | FM17: =IF(OR($FK17=4,$FK17=7),VLOOKUP($FK17,整理番号表!$B$32:$G$60,2,FALSE),) -> 0 | FN17: =IF($FK17=5,VLOOKUP($FK17,整理番号表!$B$32:$G$60,2,FALSE),) -> 果樹作 | FO17: =IF(AND(8<=$FK17,$FK17<=13),VLOOKUP($FK17,整理番号表!$B$32:$G$60,2,FALSE),) -> 0 | FP17: 3 | FQ17: 0 | FR17: =IF(AND(FE17<>1,$FP17=1,SUM($FQ17:FQ17)=0,$FF17=1,$FI17>=2),1,) -> 0 | FS17: =IF(AND(FE17<>1,$FP17=1,SUM($FQ17:FR17)=0,OR(AND($FF17=1,$FI17>0),$FI17>=4)),1,) -> 0 | FT17: =IF(AND(FE17<>1,$FP17=1,SUM($FQ17:FS17)=0,OR($FF17=1,$FI17>=2)),1,) -> 0 | FU17: =IF(AND(FE17<>1,$FP17=1,SUM($FQ17:FT17)=0,$FI17>0),1,) -> 0 | FV17: 0 | FW17: 0 | FX17: =IF(AND(FE17<>1,$FP17=2,SUM($FW17:FW17)=0,$FF17=1,$FJ17>=0.1),1,) -> 0 | FY17: =IF(AND(FE17<>1,$FP17=2,SUM($FW17:FX17)=0,OR(AND($FF17=1,$FI17>0),$FJ17>=0.2)),1,) -> 0 | FZ17: =IF(AND(FE17<>1,$FP17=2,SUM($FW17:FY17)=0,OR($FF17=1,$FJ17>=0.1)),1,) -> 0 | GA17: =IF(AND(FE17<>1,$FP17=2,SUM($FW17:FZ17)=0,$FI17>0),1,) -> 0 | GB17: 0 | GC17: =IF(AND(FE17<>1,$FP17=3,SUM($GB17:GB17)=0,AND($FF17=1,$FJ17>=0.05)),1,) -> 0 | GD17: =IF(AND(FE17<>1,$FP17=3,SUM($GB17:GC17)=0,OR(AND($FF17=1,$FI17>0),$FJ17>=0.1)),1,) -> 0 | GE17: =IF(AND(FE17<>1,$FP17=3,SUM($GB17:GD17)=0,OR($FF17=1,$FJ17>=0.05)),1,) -> 0 | GF17: =IF(AND(FE17<>1,$FP17=3,SUM($GB17:GE17)=0,$FI17>0),1,) -> 0 | GG17: 0 | GI17: 0 | GJ17: 0 | GK17: 0 | GL17: 0 | GM17: 0 | GN17: 0 | GO17: 0 | GP17: 0 | GQ17: 0 | GR17: 0 | GS17: 0 | GT17: 0 | GU17: 0 | GV17: 0 | GW17: 0 | GX17: 0 | GY17: 0 | GZ17: 0 | HA17: 0 | HB17: 0 | HC17: 7 | HD17: 0 | HE17: 0 | HF17: 0 | HG17: 0 | HH17: 0 | HI17: 0 | HJ17: 0 | HK17: 0 | HL17: 0 | HM17: 0 | HN17: 0 | HO17: 0 | HP17: 0 | HQ17: 0 | HR17: 0 | HS17: 0 | HT17: 0 | HU17: 0 | HV17: 1 | HW17: 0 | HX17: 1 | HY17: 0 | HZ17: 1 | IA17: 0 | IB17: 0 | IC17: 0 | ID17: 0 | IE17: 0 | IF17: 0 | IG17: 1 | IH17: 1 | II17: 0 | IJ17: 0 | IK17: 0 | IL17: 0 | IM17: 0 | IN17: 0 | IO17: 0 | IP17: 0 | IQ17: 0 | IR17: 0 | IS17: 0 | IT17: 0 | IU17: 0 | IV17: 0 | IW17: 0 | IX17: 0 | IY17: 0 | IZ17: 0 | JA17: 0 | JB17: 0 | JC17: 0 | JD17: 0 | JE17: 12 | JF17: 12 | JG17: 1 | JH17: 12 | JI17: 0 | JJ17: ○ | JK17: ○ | JL17: ○ | JM17: ○ | JN17: △ | JY17: ○ | JZ17: 1 | KA17: 7000000 | KB17: 6363637 | KC17: 3181818 | KD17: 3000000 | KE17: 4000000 | KF17: 3000000 | KG17: ○ | KH17: 15000000 | KI17: 0 | KJ17: 3000000 | KK17: ○ | KL17: ○ | KN17: 3 | KO17: 3
A18: 3040101 | B18: 2 | C18: =IF(N18<>"",IF(N18<>N17,C17+1,C17),0) -> 4 | D18: 3 | E18: 5 | F18: 5 | G18: 1 | H18: 0 | I18: 1 | J18: 1 | K18: 6 | L18: 青森県 | M18: う | N18: 丁 | O18: 3 | P18: =IF(O18<>"",VLOOKUP(O18,整理番号表!$Z$17:$AA$20,2,FALSE),) -> 中間農業地域 | Q18: 1 | R18: 組織E | T18: 青森県 | U18: e | V18: 2 | W18: =IF(V18<>0,VLOOKUP(V18,整理番号表!$B$6:$L$13,2,FALSE),) -> 中心経営体 | X18: 1 | Y18: =IF(X18<>0,VLOOKUP(X18,整理番号表!$B$16:$C$18,2,FALSE),) -> 1,500万円（法人3,000万円） | Z18: 3 | AA18: =IF(Z18<>0,VLOOKUP(Z18,整理番号表!$B$22:$C$29,2,FALSE),) -> 集落営農組織（任意組織） | AB18: 法人以外 | AC18: 4 | AD18: =IF(AC18<>0,VLOOKUP(AC18,整理番号表!$B$32:$G$60,2,FALSE),) -> 施設野菜作 | AE18: 9 | AF18: =IF(AE18<>0,VLOOKUP(AE18,整理番号表!$P$5:$R$39,2,FALSE),) -> ハウス | AH18: 1 | AI18: パイプハウス 間口6.3ｍ奥行50m 1棟 | AK18: =IF(AJ18<>"",VLOOKUP(AJ18,整理番号表!$Z$6:$AA$14,2,FALSE),"") ->  | AL18: 0 | AM18: 規模決定根拠資料 | AN18: 2022-03-03 | AO18: 2022-03-07 | AP18: ○○町1-1-5 | AQ18: 1 | AR18: =IF(AQ18<>0,VLOOKUP(AQ18,整理番号表!$P$43:$Q$49,2,FALSE),) -> 園芸施設共済 | AS18: 青森園芸共済 | AT18: 2022-03-07 | AU18: 2 | AV18: 25000000 | AW18: 0 | AX18: 12500000 | AY18: 12500000 | AZ18: 0 | BD18: 12500000 | BE18: 0.5 | BF18: 0.5 | BH18: 10 | BI18: 該当なし | BK18: 8 | BL18: =IF(BK18<>0,VLOOKUP(BK18,整理番号表!$T$5:$U$16,2,FALSE),) -> 銀行 | BM18: 8 | BN18: =IF(BM18<>0,VLOOKUP(BM18,整理番号表!$T$22:$U$30,2,FALSE),) -> 一般資金（プロパー資金） | BO18: 1 | BP18: 12500000 | BQ18: 1 | BR18: 18000000 | BS18: 2 | BT18: 21000000 | BU18: 22000000 | BV18: 28000000 | BW18: 0.55 | BX18: 10000000 | BZ18: 1 | CB18: 1 | CH18: 0 | CI18: 0 | CJ18: 0 | CK18: 0 | CL18: 0 | CM18: 1 | CN18: 0 | CO18: 0 | CP18: 0 | CQ18: 0 | CR18: 0 | CS18: 0 | CT18: 0 | CU18: 0 | CV18: 0 | CW18: 0 | CX18: 0 | CY18: 0 | CZ18: 0 | DA18: 1 | DB18: 0 | DC18: 0 | DD18: 0 | DE18: 0 | DF18: 0 | DG18: 0 | DH18: 0 | DI18: 0 | DO18: 0 | DP18: 0 | DQ18: 0 | DR18: 0 | DS18: 0 | DT18: 0 | DU18: 1 | DV18: 0 | DX18: 1 | ED18: 0 | EE18: 1 | FE18: 0 | FF18: 0 | FG18: 10 | FH18: 10 | FI18: 0 | FJ18: 0 | FK18: 4 | FL18: =IF(OR(AND(1<=$FK18,$FK18<=3),$FK18=6),VLOOKUP($FK18,整理番号表!$B$32:$G$60,2,FALSE),) -> 0 | FM18: =IF(OR($FK18=4,$FK18=7),VLOOKUP($FK18,整理番号表!$B$32:$G$60,2,FALSE),) -> 施設野菜作 | FN18: =IF($FK18=5,VLOOKUP($FK18,整理番号表!$B$32:$G$60,2,FALSE),) -> 0 | FO18: =IF(AND(8<=$FK18,$FK18<=13),VLOOKUP($FK18,整理番号表!$B$32:$G$60,2,FALSE),) -> 0 | FP18: 2 | FQ18: 0 | FR18: =IF(AND(FE18<>1,$FP18=1,SUM($FQ18:FQ18)=0,$FF18=1,$FI18>=2),1,) -> 0 | FS18: =IF(AND(FE18<>1,$FP18=1,SUM($FQ18:FR18)=0,OR(AND($FF18=1,$FI18>0),$FI18>=4)),1,) -> 0 | FT18: =IF(AND(FE18<>1,$FP18=1,SUM($FQ18:FS18)=0,OR($FF18=1,$FI18>=2)),1,) -> 0 | FU18: =IF(AND(FE18<>1,$FP18=1,SUM($FQ18:FT18)=0,$FI18>0),1,) -> 0 | FV18: 0 | FW18: 0 | FX18: =IF(AND(FE18<>1,$FP18=2,SUM($FW18:FW18)=0,$FF18=1,$FJ18>=0.1),1,) -> 0 | FY18: =IF(AND(FE18<>1,$FP18=2,SUM($FW18:FX18)=0,OR(AND($FF18=1,$FI18>0),$FJ18>=0.2)),1,) -> 0 | FZ18: =IF(AND(FE18<>1,$FP18=2,SUM($FW18:FY18)=0,OR($FF18=1,$FJ18>=0.1)),1,) -> 0 | GA18: =IF(AND(FE18<>1,$FP18=2,SUM($FW18:FZ18)=0,$FI18>0),1,) -> 0 | GB18: 0 | GC18: =IF(AND(FE18<>1,$FP18=3,SUM($GB18:GB18)=0,AND($FF18=1,$FJ18>=0.05)),1,) -> 0 | GD18: =IF(AND(FE18<>1,$FP18=3,SUM($GB18:GC18)=0,OR(AND($FF18=1,$FI18>0),$FJ18>=0.1)),1,) -> 0 | GE18: =IF(AND(FE18<>1,$FP18=3,SUM($GB18:GD18)=0,OR($FF18=1,$FJ18>=0.05)),1,) -> 0 | GF18: =IF(AND(FE18<>1,$FP18=3,SUM($GB18:GE18)=0,$FI18>0),1,) -> 0 | GG18: 0 | GI18: 0 | GJ18: 0 | GK18: 0 | GL18: 0 | GM18: 0 | GN18: 6 | GO18: 0 | GP18: 0 | GQ18: 0 | GR18: 0 | GS18: 0 | GT18: 0 | GU18: 0 | GV18: 0 | GW18: 0 | GX18: 0 | GY18: 0 | GZ18: 0 | HA18: 0 | HB18: 6 | HC18: 0 | HD18: 0 | HE18: 0 | HF18: 0 | HG18: 0 | HH18: 0 | HI18: 0 | HJ18: 0 | HK18: 0 | HL18: 0 | HM18: 0 | HN18: 0 | HO18: 0 | HP18: 0 | HQ18: 0 | HR18: 0 | HS18: 0 | HT18: 0 | HU18: 0 | HV18: 1 | HW18: 0 | HX18: 0 | HY18: 1 | HZ18: 0 | IA18: 0 | IB18: 0 | IC18: 0 | ID18: 0 | IE18: 0 | IF18: 2 | IG18: 0 | IH18: 0 | II18: 0 | IJ18: 0 | IK18: 0 | IL18: 0 | IM18: 0 | IN18: 0 | IO18: 0 | IP18: 0 | IQ18: 0 | IR18: 0 | IS18: 0 | IT18: 0 | IU18: 0 | IV18: 0 | IW18: 0 | IX18: 0 | IY18: 0 | IZ18: 0 | JA18: 0 | JB18: 0 | JC18: 0 | JD18: 0 | JE18: =SUM(GI18:JD18) -> 16 | JF18: 16 | JG18: 1 | JH18: =IF(JG18>0,JF18/JG18,0) -> 16 | JI18: =IF(X18=2,1,0) -> 0 | JJ18: ○ | JK18: =IF(AI18<>"",IF(AV18>=500000,"○","×"),"") -> ○ | JL18: =IF(AI18<>"",IF(AND(5<=BH18,BH18<=20),"○",IF(OR(AND(4<=BH18,BH18<=24),OR(AE18=30,AE18=31),AG18=1),"△","×")),"") -> ○ | JM18: =IF(AI18<>"",IF(AT18>0,"○","×"),"") -> ○ | JN18: ○ | JO18: =IF(SUM(DO18:DT18)>0,IF(BY18=1,"○","×"),"") ->  | JP18: =IF(BY18=1,IF(AND(FI18>0,FJ18>0),"○","×"),"") ->  | JQ18: =IF(SUM(DX18)>0,IF(BZ18=1,"○","×"),"") -> ○ | JR18: =IF(SUM(EA18,EC18)>0,IF(CA18=1,"○","×"),"") ->  | JS18: =IF(SUM(EE18)>0,IF(CB18=1,"○","×"),"") -> ○ | JT18: =IF(SUM(EH18)>0,IF(CC18=1,"○","×"),"") ->  | JU18: =IF(SUM(EK18)>0,IF(CD18=1,"○","×"),"") ->  | JV18: =IF(SUM(EM18)>0,IF(CE18=1,"○","×"),"") ->  | JW18: =IF(SUM(EN18:EP18)>0,IF(CF18=1,"○","×"),"") ->  | JY18: =IF(COUNTIF(JJ18:JX18,"×")>=1,"×","○") -> ○ | JZ18: =AU18 -> 2 | KA18: =AV18 -> 25000000 | KB18: =IF(JZ18=1,ROUNDUP(KA18*100/110,0),KA18) -> 25000000 | KC18: =ROUNDDOWN(KB18*1/2,0) -> 12500000 | KD18: 12500000 | KE18: =AV18-SUM(AY18,BA18:BC18) -> 12500000 | KF18: =IF(X18=1,MIN(KC18:KE18),IF(X18=2,MIN(KC18,KE18),0)) -> 12500000 | KG18: =IF(AX18<=KF18,"○","×") -> ○ | KH18: =IF(I18=1,IF(X18=2,1000000,IF(AND(X18=1,AB18="法人"),30000000,IF(AND(X18=1,AB18="法人以外"),15000000,0))),0) -> 15000000 | KI18: 0 | KJ18: 12500000 | KK18: =IF(OR(AND(KJ18>0,KH18<KJ18),AND(KI18>0,KH18<KI18)),"×","○") -> ○ | KL18: =IF(OR(JY18="×",KG18="×",KK18="×"),"×","○") -> ○ | KN18: 4 | KO18: 3
A19: =D19*1000000+C19*10000+Q19*100+AH19 -> 4050101 | B19: =IF(L19<>"",IF(L19<>L18,B18+1,B18),0) -> 3 | C19: =IF(N19<>"",IF(N19<>N18,C18+1,C18),0) -> 5 | D19: =IF(M19<>"",IF(M19<>M18,D18+1,D18),0) -> 4 | E19: =IF(R19<>"",IF(OR(R19<>R18,N19<>N18),E18+1,E18),0) -> 6 | F19: =IF(BP19>0,E19,0) -> 6 | G19: =IF(N19<>"",IF(N19<>N18,1,0),0) -> 1 | H19: =IF(M19<>"",IF(M19<>M18,1,0),0) -> 1 | I19: =IF(R19<>"",IF(R19<>R18,1,0),0) -> 1 | J19: 1 | K19: 7 | L19: 埼玉県 | M19: え | N19: 戊 | O19: 2 | P19: =IF(O19<>"",VLOOKUP(O19,整理番号表!$Z$17:$AA$20,2,FALSE),) -> 平地農業地域 | Q19: 1 | R19: 個人F | T19: 埼玉県 | V19: 3 | W19: =IF(V19<>0,VLOOKUP(V19,整理番号表!$B$6:$L$13,2,FALSE),) -> 中間管理機構から賃借権等の設定等を受けた者 | X19: 1 | Y19: =IF(X19<>0,VLOOKUP(X19,整理番号表!$B$16:$C$18,2,FALSE),) -> 1,500万円（法人3,000万円） | Z19: 2 | AA19: =IF(Z19<>0,VLOOKUP(Z19,整理番号表!$B$22:$C$29,2,FALSE),) -> 認定就農者 | AB19: 法人以外 | AC19: 7 | AD19: =IF(AC19<>0,VLOOKUP(AC19,整理番号表!$B$32:$G$60,2,FALSE),) -> 施設花き | AE19: 9 | AF19: =IF(AE19<>0,VLOOKUP(AE19,整理番号表!$P$5:$R$39,2,FALSE),) -> ハウス | AH19: 1 | AI19: パイプハウス 間口10ｍ奥行50m 1棟 高度環境制御システム付き | AJ19: ⑥ | AK19: =IF(AJ19<>"",VLOOKUP(AJ19,整理番号表!$Z$6:$AA$14,2,FALSE),"") -> 施設園芸の高度環境制御システム | AL19: =IF(AJ19<>0,1,) -> 1 | AM19: 規模決定根拠資料 | AN19: 2022-03-03 | AO19: 2022-03-08 | AP19: ○○町1-1-6 | AQ19: 1 | AR19: =IF(AQ19<>0,VLOOKUP(AQ19,整理番号表!$P$43:$Q$49,2,FALSE),) -> 園芸施設共済 | AS19: 埼玉園芸共済 | AT19: 2022-03-08 | AU19: 2 | AV19: 30000000 | AW19: 15000000 | AX19: 10000000 | AY19: 10000000 | AZ19: =AV19-SUM(AX19,AY19,BA19,BB19,BC19) -> 10000000 | BD19: 15000000 | BE19: =IF(AV19<>0,AX19/AV19,) -> 0.3333333333 | BF19: =IF(AV19<>0,AY19/AV19,) -> 0.3333333333 | BH19: 14 | BI19: =IF(AX19>0,IF(AU19=1,ROUNDDOWN(AV19*10/110,0),IF(AU19=2,"該当なし","含税額")),0) -> 該当なし | BJ19: =IF(AX19>0,IF(AU19<>1," ",IF(AU19=1,ROUNDDOWN(ROUNDDOWN((AX19/(AV19-BI19)),5)*BI19,0))),0) ->  | BK19: 1 | BL19: =IF(BK19<>0,VLOOKUP(BK19,整理番号表!$T$5:$U$16,2,FALSE),) -> 農協 | BM19: 1 | BN19: =IF(BM19<>0,VLOOKUP(BM19,整理番号表!$T$22:$U$30,2,FALSE),) -> 近代化資金 | BO19: 1 | BP19: =IF(BO19=1,AY19,) -> 10000000 | BQ19: 1 | BR19: 3500000 | BS19: 2 | BT19: 3200000 | BU19: 3800000 | BV19: 4400000 | BW19: 0.25 | BX19: 900000 | BY19: 1 | CA19: 1 | CH19: =IF(OR($BR19<=0,$BV19<=0),0,IF(AND($X19=1,$I19=1,$EU19<>1,CH$2<=$BW19,$BW19<CI$2),1,)) -> 0 | CI19: =IF(OR($BR19<=0,$BV19<=0),0,IF(AND($X19=1,$I19=1,$EU19<>1,CI$2<=$BW19,$BW19<CJ$2),1,)) -> 0 | CJ19: =IF(OR($BR19<=0,$BV19<=0),0,IF(AND($X19=1,$I19=1,$EU19<>1,CJ$2<=$BW19,$BW19<CK$2),1,)) -> 0 | CK19: =IF(OR($BR19<=0,$BV19<=0),0,IF(AND($X19=1,$I19=1,$EU19<>1,CK$2<=$BW19,$BW19<CL$2),1,)) -> 0 | CL19: =IF(OR($BR19<=0,$BV19<=0),0,IF(AND($X19=1,$I19=1,$EU19<>1,CL$2<=$BW19,$BW19<CM$2),1,)) -> 0 | CM19: =IF(OR($BR19<=0,$BV19<=0),0,IF(AND($X19=1,$I19=1,$EU19<>1,CM$2<=$BW19,$BW19<CN$2),1,)) -> 0 | CN19: 0 | CO19: =IF(OR($BR19<=0,$BV19<=0),0,IF(AND($X19=2,$I19=1,$EU19<>1,CO$2<=$BW19,$BW19<CP$2),1,)) -> 0 | CP19: =IF(OR($BR19<=0,$BV19<=0),0,IF(AND($X19=2,$I19=1,$EU19<>1,CP$2<=$BW19,$BW19<CQ$2),1,)) -> 0 | CQ19: =IF(OR($BR19<=0,$BV19<=0),0,IF(AND($X19=2,$I19=1,$EU19<>1,CQ$2<=$BW19,$BW19<CR$2),1,)) -> 0 | CR19: =IF(OR($BR19<=0,$BV19<=0),0,IF(AND($X19=2,$I19=1,$EU19<>1,CR$2<=$BW19,$BW19<CS$2),1,)) -> 0 | CS19: =IF(OR($BR19<=0,$BV19<=0),0,IF(AND($X19=2,$I19=1,$EU19<>1,CS$2<=$BW19,$BW19<CT$2),1,)) -> 0 | CT19: =IF(OR($BR19<=0,$BV19<=0),0,IF(AND($X19=2,$I19=1,$EU19<>1,CT$2<=$BW19,$BW19<CU$2),1,)) -> 0 | CU19: 0 | CV19: =IF($BV19<0,0,IF(AND($X19=1,$I19=1,$EU19<>1,CV$2<=$BX19,$BX19<CW$2),1,)) -> 0 | CW19: =IF($BV19<0,0,IF(AND($X19=1,$I19=1,$EU19<>1,CW$2<=$BX19,$BX19<CX$2),1,)) -> 0 | CX19: =IF($BV19<0,0,IF(AND($X19=1,$I19=1,$EU19<>1,CX$2<=$BX19,$BX19<CY$2),1,)) -> 0 | CY19: =IF($BV19<0,0,IF(AND($X19=1,$I19=1,$EU19<>1,CY$2<=$BX19,$BX19<CZ$2),1,)) -> 0 | CZ19: =IF($BV19<0,0,IF(AND($X19=1,$I19=1,$EU19<>1,CZ$2<=$BX19,$BX19<DA$2),1,)) -> 0 | DA19: =IF($BV19<0,0,IF(AND($X19=1,$I19=1,$EU19<>1,DA$2<=$BX19,$BX19<DB$2),1,)) -> 0 | DB19: 0 | DC19: =IF($BV19<0,0,IF(AND($X19=2,$I19=1,$EU19<>1,DC$2<=$BX19,$BX19<DD$2),1,)) -> 0 | DD19: =IF($BV19<0,0,IF(AND($X19=2,$I19=1,$EU19<>1,DD$2<=$BX19,$BX19<DE$2),1,)) -> 0 | DE19: =IF($BV19<0,0,IF(AND($X19=2,$I19=1,$EU19<>1,DE$2<=$BX19,$BX19<DF$2),1,)) -> 0 | DF19: =IF($BV19<0,0,IF(AND($X19=2,$I19=1,$EU19<>1,DF$2<=$BX19,$BX19<DG$2),1,)) -> 0 | DG19: =IF($BV19<0,0,IF(AND($X19=2,$I19=1,$EU19<>1,DG$2<=$BX19,$BX19<DH$2),1,)) -> 0 | DH19: =IF($BV19<0,0,IF(AND($X19=2,$I19=1,$EU19<>1,DH$2<=$BX19,$BX19<DI$2),1,)) -> 0 | DI19: 0 | DN19: 1 | DO19: =SUM(FQ19,FW19,GB19) -> 1 | DP19: =SUM(FR19,FX19,GC19) -> 0 | DQ19: =SUM(FS19,FY19,GD19) -> 0 | DR19: =SUM(FT19,FZ19,GE19) -> 0 | DS19: =SUM(FU19,FV19,GA19,GF19) -> 0 | DT19: =GG19 -> 0 | DV19: 0 | EA19: 1 | ED19: 0 | EU19: 1 | EV19: 1 | FE19: 0 | FF19: 1 | FG19: 0.3 | FH19: 0.4 | FI19: 0.1 | FJ19: 0.33 | FK19: 7 | FL19: =IF(OR(AND(1<=$FK19,$FK19<=3),$FK19=6),VLOOKUP($FK19,整理番号表!$B$32:$G$60,2,FALSE),) -> 0 | FM19: =IF(OR($FK19=4,$FK19=7),VLOOKUP($FK19,整理番号表!$B$32:$G$60,2,FALSE),) -> 施設花き | FN19: =IF($FK19=5,VLOOKUP($FK19,整理番号表!$B$32:$G$60,2,FALSE),) -> 0 | FO19: =IF(AND(8<=$FK19,$FK19<=13),VLOOKUP($FK19,整理番号表!$B$32:$G$60,2,FALSE),) -> 0 | FP19: 2 | FQ19: 0 | FR19: =IF(AND(FE19<>1,$FP19=1,SUM($FQ19:FQ19)=0,$FF19=1,$FI19>=2),1,) -> 0 | FS19: =IF(AND(FE19<>1,$FP19=1,SUM($FQ19:FR19)=0,OR(AND($FF19=1,$FI19>0),$FI19>=4)),1,) -> 0 | FT19: =IF(AND(FE19<>1,$FP19=1,SUM($FQ19:FS19)=0,OR($FF19=1,$FI19>=2)),1,) -> 0 | FU19: =IF(AND(FE19<>1,$FP19=1,SUM($FQ19:FT19)=0,$FI19>0),1,) -> 0 | FV19: 0 | FW19: 1 | FX19: =IF(AND(FE19<>1,$FP19=2,SUM($FW19:FW19)=0,$FF19=1,$FJ19>=0.1),1,) -> 0 | FY19: =IF(AND(FE19<>1,$FP19=2,SUM($FW19:FX19)=0,OR(AND($FF19=1,$FI19>0),$FJ19>=0.2)),1,) -> 0 | FZ19: =IF(AND(FE19<>1,$FP19=2,SUM($FW19:FY19)=0,OR($FF19=1,$FJ19>=0.1)),1,) -> 0 | GA19: =IF(AND(FE19<>1,$FP19=2,SUM($FW19:FZ19)=0,$FI19>0),1,) -> 0 | GB19: 0 | GC19: =IF(AND(FE19<>1,$FP19=3,SUM($GB19:GB19)=0,AND($FF19=1,$FJ19>=0.05)),1,) -> 0 | GD19: =IF(AND(FE19<>1,$FP19=3,SUM($GB19:GC19)=0,OR(AND($FF19=1,$FI19>0),$FJ19>=0.1)),1,) -> 0 | GE19: =IF(AND(FE19<>1,$FP19=3,SUM($GB19:GD19)=0,OR($FF19=1,$FJ19>=0.05)),1,) -> 0 | GF19: =IF(AND(FE19<>1,$FP19=3,SUM($GB19:GE19)=0,$FI19>0),1,) -> 0 | GG19: 0 | GI19: 0 | GJ19: 0 | GK19: 0 | GL19: 0 | GM19: 0 | GN19: 0 | GO19: 0 | GP19: 0 | GQ19: 0 | GR19: 0 | GS19: 0 | GT19: 0 | GU19: 0 | GV19: 0 | GW19: 0 | GX19: 0 | GY19: 0 | GZ19: 0 | HA19: 0 | HB19: 0 | HC19: 0 | HD19: 0 | HE19: 0 | HF19: 0 | HG19: 0 | HH19: 0 | HI19: 0 | HJ19: 0 | HK19: 0 | HL19: 0 | HM19: 0 | HN19: 0 | HO19: 6 | HP19: 5 | HQ19: 0 | HR19: 0 | HS19: 0 | HT19: 0 | HU19: 0 | HV19: 0 | HW19: 0 | HX19: 0 | HY19: 0 | HZ19: 0 | IA19: 0 | IB19: 1 | IC19: 0 | ID19: 0 | IE19: 0 | IF19: 0 | IG19: 0 | IH19: 0 | II19: 0 | IJ19: 0 | IK19: 0 | IL19: 0 | IM19: 0 | IN19: 0 | IO19: 0 | IP19: 0 | IQ19: 0 | IR19: 0 | IS19: 0 | IT19: 0 | IU19: 0 | IV19: 2 | IW19: 3 | IX19: 0 | IY19: 0 | IZ19: 0 | JA19: 0 | JB19: 0 | JC19: 0 | JD19: 0 | JE19: 17 | JF19: 17 | JG19: 1 | JH19: 17 | JI19: 0 | JJ19: ○ | JK19: ○ | JL19: ○ | JM19: ○ | JN19: ○ | JO19: ○ | JP19: ○ | JR19: ○ | JY19: ○ | JZ19: 2 | KA19: 30000000 | KB19: 30000000 | KC19: 15000000 | KD19: 10000000 | KE19: 20000000 | KF19: 10000000 | KG19: ○ | KH19: 15000000 | KI19: 15000000 | KJ19: 15000000 | KK19: ○ | KL19: ○ | KN19: 5 | KO19: 4
A20: 4050102 | B20: 3 | C20: 5 | D20: 4 | E20: 6 | F20: 6 | G20: 0 | H20: 0 | I20: =IF(R20<>"",IF(R20<>R19,1,0),0) -> 0 | J20: 0 | K20: 8 | L20: 埼玉県 | M20: え | N20: 戊 | O20: 2 | P20: =IF(O20<>"",VLOOKUP(O20,整理番号表!$Z$17:$AA$20,2,FALSE),) -> 平地農業地域 | Q20: 1 | R20: 個人F | T20: 埼玉県 | V20: 3 | W20: =IF(V20<>0,VLOOKUP(V20,整理番号表!$B$6:$L$13,2,FALSE),) -> 中間管理機構から賃借権等の設定等を受けた者 | X20: 1 | Y20: =IF(X20<>0,VLOOKUP(X20,整理番号表!$B$16:$C$18,2,FALSE),) -> 1,500万円（法人3,000万円） | Z20: 2 | AA20: =IF(Z20<>0,VLOOKUP(Z20,整理番号表!$B$22:$C$29,2,FALSE),) -> 認定就農者 | AB20: 法人以外 | AC20: 7 | AD20: =IF(AC20<>0,VLOOKUP(AC20,整理番号表!$B$32:$G$60,2,FALSE),) -> 施設花き | AE20: 1 | AF20: =IF(AE20<>0,VLOOKUP(AE20,整理番号表!$P$5:$R$39,2,FALSE),) -> トラクター | AG20: 1 | AH20: 2 | AI20: トラクター（中古） 80ps 1台 | AK20: =IF(AJ20<>"",VLOOKUP(AJ20,整理番号表!$Z$6:$AA$14,2,FALSE),"") ->  | AL20: =IF(AJ20<>0,1,) -> 0 | AM20: 規模決定根拠資料 | AN20: 2022-03-03 | AO20: 2022-03-08 | AP20: ○○町1-1-6 | AQ20: 2 | AR20: =IF(AQ20<>0,VLOOKUP(AQ20,整理番号表!$P$43:$Q$49,2,FALSE),) -> 農機具共済 | AS20: 埼玉農機共済 | AT20: 2022-03-09 | AU20: 2 | AV20: 10000000 | AW20: 0 | AX20: 5000000 | AY20: 5000000 | AZ20: 0 | BD20: 0 | BE20: 0.5 | BF20: 0.5 | BH20: 7(4) | BI20: 該当なし | BK20: 1 | BL20: =IF(BK20<>0,VLOOKUP(BK20,整理番号表!$T$5:$U$16,2,FALSE),) -> 農協 | BM20: 1 | BN20: =IF(BM20<>0,VLOOKUP(BM20,整理番号表!$T$22:$U$30,2,FALSE),) -> 近代化資金 | BO20: 1 | BP20: =IF(BO20=1,AY20,) -> 5000000 | BQ20: =IF(AND(R20<>"",I20=1),1,"") ->  | BW20: =IF(BS20=2,ROUNDDOWN((BV20-BR20)/ABS(BR20),2),IF(BS20=1,ROUNDDOWN((BV20-BR20)/ABS(BR20)*3/4,2),"")) ->  | BX20: 0 | CH20: 0 | CI20: 0 | CJ20: 0 | CK20: 0 | CL20: 0 | CM20: 0 | CN20: 0 | CO20: 0 | CP20: 0 | CQ20: 0 | CR20: 0 | CS20: 0 | CT20: 0 | CU20: 0 | CV20: 0 | CW20: 0 | CX20: 0 | CY20: 0 | CZ20: 0 | DA20: 0 | DB20: 0 | DC20: 0 | DD20: 0 | DE20: 0 | DF20: 0 | DG20: 0 | DH20: 0 | DI20: 0 | DO20: =SUM(FQ20,FW20,GB20) -> 0 | DP20: =SUM(FR20,FX20,GC20) -> 0 | DQ20: =SUM(FS20,FY20,GD20) -> 0 | DR20: =SUM(FT20,FZ20,GE20) -> 0 | DS20: =SUM(FU20,FV20,GA20,GF20) -> 0 | DT20: =GG20 -> 0 | DV20: 0 | ED20: 0 | FE20: 0 | FF20: 0 | FI20: 0 | FJ20: 0 | FK20: 0 | FL20: =IF(OR(AND(1<=$FK20,$FK20<=3),$FK20=6),VLOOKUP($FK20,整理番号表!$B$32:$G$60,2,FALSE),) -> 0 | FM20: =IF(OR($FK20=4,$FK20=7),VLOOKUP($FK20,整理番号表!$B$32:$G$60,2,FALSE),) -> 0 | FN20: =IF($FK20=5,VLOOKUP($FK20,整理番号表!$B$32:$G$60,2,FALSE),) -> 0 | FO20: =IF(AND(8<=$FK20,$FK20<=13),VLOOKUP($FK20,整理番号表!$B$32:$G$60,2,FALSE),) -> 0 | FP20: 0 | FQ20: 0 | FR20: =IF(AND(FE20<>1,$FP20=1,SUM($FQ20:FQ20)=0,$FF20=1,$FI20>=2),1,) -> 0 | FS20: =IF(AND(FE20<>1,$FP20=1,SUM($FQ20:FR20)=0,OR(AND($FF20=1,$FI20>0),$FI20>=4)),1,) -> 0 | FT20: =IF(AND(FE20<>1,$FP20=1,SUM($FQ20:FS20)=0,OR($FF20=1,$FI20>=2)),1,) -> 0 | FU20: =IF(AND(FE20<>1,$FP20=1,SUM($FQ20:FT20)=0,$FI20>0),1,) -> 0 | FV20: 0 | FW20: 0 | FX20: =IF(AND(FE20<>1,$FP20=2,SUM($FW20:FW20)=0,$FF20=1,$FJ20>=0.1),1,) -> 0 | FY20: =IF(AND(FE20<>1,$FP20=2,SUM($FW20:FX20)=0,OR(AND($FF20=1,$FI20>0),$FJ20>=0.2)),1,) -> 0 | FZ20: =IF(AND(FE20<>1,$FP20=2,SUM($FW20:FY20)=0,OR($FF20=1,$FJ20>=0.1)),1,) -> 0 | GA20: =IF(AND(FE20<>1,$FP20=2,SUM($FW20:FZ20)=0,$FI20>0),1,) -> 0 | GB20: 0 | GC20: =IF(AND(FE20<>1,$FP20=3,SUM($GB20:GB20)=0,AND($FF20=1,$FJ20>=0.05)),1,) -> 0 | GD20: =IF(AND(FE20<>1,$FP20=3,SUM($GB20:GC20)=0,OR(AND($FF20=1,$FI20>0),$FJ20>=0.1)),1,) -> 0 | GE20: =IF(AND(FE20<>1,$FP20=3,SUM($GB20:GD20)=0,OR($FF20=1,$FJ20>=0.05)),1,) -> 0 | GF20: =IF(AND(FE20<>1,$FP20=3,SUM($GB20:GE20)=0,$FI20>0),1,) -> 0 | GG20: 0 | GI20: =IF($I20=1,CH20*GI$5,0) -> 0 | GJ20: =IF($I20=1,CI20*GJ$5,0) -> 0 | GK20: =IF($I20=1,CJ20*GK$5,0) -> 0 | GL20: =IF($I20=1,CK20*GL$5,0) -> 0 | GM20: =IF($I20=1,CL20*GM$5,0) -> 0 | GN20: =IF($I20=1,CM20*GN$5,0) -> 0 | GO20: =IF($I20=1,CN20*GO$5,0) -> 0 | GP20: =IF($I20=1,CO20*GP$5,0) -> 0 | GQ20: =IF($I20=1,CP20*GQ$5,0) -> 0 | GR20: =IF($I20=1,CQ20*GR$5,0) -> 0 | GS20: =IF($I20=1,CR20*GS$5,0) -> 0 | GT20: =IF($I20=1,CS20*GT$5,0) -> 0 | GU20: =IF($I20=1,CT20*GU$5,0) -> 0 | GV20: =IF($I20=1,CU20*GV$5,0) -> 0 | GW20: =IF($I20=1,CV20*GW$5,0) -> 0 | GX20: =IF($I20=1,CW20*GX$5,0) -> 0 | GY20: =IF($I20=1,CX20*GY$5,0) -> 0 | GZ20: =IF($I20=1,CY20*GZ$5,0) -> 0 | HA20: =IF($I20=1,CZ20*HA$5,0) -> 0 | HB20: =IF($I20=1,DA20*HB$5,0) -> 0 | HC20: =IF($I20=1,DB20*HC$5,0) -> 0 | HD20: =IF($I20=1,DC20*HD$5,0) -> 0 | HE20: =IF($I20=1,DD20*HE$5,0) -> 0 | HF20: =IF($I20=1,DE20*HF$5,0) -> 0 | HG20: =IF($I20=1,DF20*HG$5,0) -> 0 | HH20: =IF($I20=1,DG20*HH$5,0) -> 0 | HI20: =IF($I20=1,DH20*HI$5,0) -> 0 | HJ20: =IF($I20=1,DI20*HJ$5,0) -> 0 | HK20: =IF($I20=1,DJ20*HK$5,0) -> 0 | HL20: =IF($I20=1,DK20*HL$5,0) -> 0 | HM20: =IF($I20=1,DL20*HM$5,0) -> 0 | HN20: =IF($I20=1,DM20*HN$5,0) -> 0 | HO20: =IF($I20=1,DN20*HO$5,0) -> 0 | HP20: =IF($I20=1,DO20*HP$5,0) -> 0 | HQ20: =IF($I20=1,DP20*HQ$5,0) -> 0 | HR20: =IF($I20=1,DQ20*HR$5,0) -> 0 | HS20: =IF($I20=1,DR20*HS$5,0) -> 0 | HT20: =IF($I20=1,DS20*HT$5,0) -> 0 | HU20: =IF($I20=1,DT20*HU$5,0) -> 0 | HV20: =IF($I20=1,DU20*HV$5,0) -> 0 | HW20: =IF($I20=1,DV20*HW$5,0) -> 0 | HX20: =IF($I20=1,DW20*HX$5,0) -> 0 | HY20: =IF($I20=1,DX20*HY$5,0) -> 0 | HZ20: =IF($I20=1,DY20*HZ$5,0) -> 0 | IA20: =IF($I20=1,DZ20*IA$5,0) -> 0 | IB20: =IF($I20=1,EA20*IB$5,0) -> 0 | IC20: =IF($I20=1,EB20*IC$5,0) -> 0 | ID20: =IF($I20=1,EC20*ID$5,0) -> 0 | IE20: =IF($I20=1,ED20*IE$5,0) -> 0 | IF20: =IF($I20=1,EE20*IF$5,0) -> 0 | IG20: =IF($I20=1,EF20*IG$5,0) -> 0 | IH20: =IF($I20=1,EG20*IH$5,0) -> 0 | II20: =IF($I20=1,EH20*II$5,0) -> 0 | IJ20: =IF($I20=1,EI20*IJ$5,0) -> 0 | IK20: =IF($I20=1,EJ20*IK$5,0) -> 0 | IL20: =IF($I20=1,EK20*IL$5,0) -> 0 | IM20: =IF($I20=1,EL20*IM$5,0) -> 0 | IN20: =IF($I20=1,EM20*IN$5,0) -> 0 | IO20: =IF($I20=1,EN20*IO$5,0) -> 0 | IP20: =IF($I20=1,EO20*IP$5,0) -> 0 | IQ20: =IF($I20=1,EP20*IQ$5,0) -> 0 | IR20: =IF($I20=1,EQ20*IR$5,0) -> 0 | IS20: =IF($I20=1,ER20*IS$5,0) -> 0 | IT20: =IF($I20=1,ES20*IT$5,0) -> 0 | IU20: =IF($I20=1,ET20*IU$5,0) -> 0 | IV20: =IF($I20=1,EU20*IV$5,0) -> 0 | IW20: =IF($I20=1,EV20*IW$5,0) -> 0 | IX20: =IF($I20=1,EW20*IX$5,0) -> 0 | IY20: =IF($I20=1,EX20*IY$5,0) -> 0 | IZ20: =IF($I20=1,EY20*IZ$5,0) -> 0 | JA20: 0 | JB20: =IF($I20=1,IF(FA20<>"",JB$5,0),0) -> 0 | JC20: =IF($I20=1,FB20*JC$5,0) -> 0 | JD20: =IF($I20=1,FC20*JD$5,0) -> 0 | JE20: =SUM(GI20:JD20) -> 0 | JF20: =IF(G20=1,SUMIF($C$13:$C$350,C20,$JE$13:$JE$350),0) -> 0 | JG20: =IF(G20=1,SUMIF($C$13:$C$350,C20,$I$13:$I$350),0) -> 0 | JH20: =IF(JG20>0,JF20/JG20,0) -> 0 | JI20: 0 | JJ20: ○ | JK20: ○ | JL20: △ | JM20: ○ | JY20: ○ | JZ20: 2 | KA20: 10000000 | KB20: 10000000 | KC20: 5000000 | KD20: 5000000 | KE20: 5000000 | KF20: 5000000 | KG20: ○ | KH20: 0 | KI20: 0 | KJ20: 0 | KK20: ○ | KL20: ○ | KN20: 5 | KO20: 4
A21: =D21*1000000+C21*10000+Q21*100+AH21 -> 0 | B21: =IF(L21<>"",IF(L21<>L20,B20+1,B20),0) -> 0 | C21: =IF(N21<>"",IF(N21<>N20,C20+1,C20),0) -> 0 | D21: =IF(M21<>"",IF(M21<>M20,D20+1,D20),0) -> 0 | E21: =IF(R21<>"",IF(OR(R21<>R20,N21<>N20),E20+1,E20),0) -> 0 | F21: =IF(BP21>0,E21,0) -> 0 | G21: =IF(N21<>"",IF(N21<>N20,1,0),0) -> 0 | H21: =IF(M21<>"",IF(M21<>M20,1,0),0) -> 0 | I21: =IF(R21<>"",IF(R21<>R20,1,0),0) -> 0 | J21: =IF(AND(I21=1,SUMIF($E$13:$E$350,E21,$F$13:$F$350)>0),1,0) -> 0 | K21: 9 | P21: =IF(O21<>"",VLOOKUP(O21,整理番号表!$Z$17:$AA$20,2,FALSE),) -> 0 | Q21: =IF(R21<>"",IF(N21<>N20,1,IF(R21<>R20,Q20+1,Q20)),) -> 0 | W21: =IF(V21<>0,VLOOKUP(V21,整理番号表!$B$6:$L$13,2,FALSE),) -> 0 | X21: =IF(V21<>0,IF(V21=4,2,1),) -> 0 | Y21: =IF(X21<>0,VLOOKUP(X21,整理番号表!$B$16:$C$18,2,FALSE),) -> 0 | AA21: =IF(Z21<>0,VLOOKUP(Z21,整理番号表!$B$22:$C$29,2,FALSE),) -> 0 | AD21: =IF(AC21<>0,VLOOKUP(AC21,整理番号表!$B$32:$G$60,2,FALSE),) -> 0 | AF21: =IF(AE21<>0,VLOOKUP(AE21,整理番号表!$P$5:$R$39,2,FALSE),) -> 0 | AH21: 0 | AK21: =IF(AJ21<>"",VLOOKUP(AJ21,整理番号表!$Z$6:$AA$14,2,FALSE),"") ->  | AL21: 0 | AR21: =IF(AQ21<>0,VLOOKUP(AQ21,整理番号表!$P$43:$Q$49,2,FALSE),) -> 0 | AW21: =IF(AL21=1,IF(KC21>0,MIN(ROUNDDOWN(KC21,-3),IF(AND(X21=1,AB21="法人"),30000000,IF(AND(X21=1,AB21="法人以外"),15000000,IF(X21=2,1000000,0)))),0),0) -> 0 | AX21: =IF(KF21>0,ROUNDDOWN(KF21,-3),0) -> 0 | AZ21: 0 | BD21: =IF(I21=1,MIN(KH21,KJ21),0) -> 0 | BE21: =IF(AV21<>0,AX21/AV21,) -> 0 | BF21: =IF(AV21<>0,AY21/AV21,) -> 0 | BI21: =IF(AX21>0,IF(AU21=1,ROUNDDOWN(AV21*10/110,0),IF(AU21=2,"該当なし","含税額")),0) -> 0 | BJ21: =IF(AX21>0,IF(AU21<>1," ",IF(AU21=1,ROUNDDOWN(ROUNDDOWN((AX21/(AV21-BI21)),5)*BI21,0))),0) -> 0 | BL21: =IF(BK21<>0,VLOOKUP(BK21,整理番号表!$T$5:$U$16,2,FALSE),) -> 0 | BN21: =IF(BM21<>0,VLOOKUP(BM21,整理番号表!$T$22:$U$30,2,FALSE),) -> 0 | BP21: 0 | BX21: 0 | CH21: 0 | CI21: 0 | CJ21: 0 | CK21: 0 | CL21: 0 | CM21: 0 | CN21: 0 | CO21: 0 | CP21: 0 | CQ21: 0 | CR21: 0 | CS21: 0 | CT21: 0 | CU21: 0 | CV21: 0 | CW21: 0 | CX21: 0 | CY21: 0 | CZ21: 0 | DA21: 0 | DB21: 0 | DC21: 0 | DD21: 0 | DE21: 0 | DF21: 0 | DG21: 0 | DH21: 0 | DI21: 0 | DO21: 0 | DP21: 0 | DQ21: 0 | DR21: 0 | DS21: 0 | DT21: 0 | DV21: 0 | ED21: 0 | FE21: 0 | FF21: 0 | FI21: 0 | FJ21: 0 | FK21: 0 | FL21: =IF(OR(AND(1<=$FK21,$FK21<=3),$FK21=6),VLOOKUP($FK21,整理番号表!$B$32:$G$60,2,FALSE),) -> 0 | FM21: =IF(OR($FK21=4,$FK21=7),VLOOKUP($FK21,整理番号表!$B$32:$G$60,2,FALSE),) -> 0 | FN21: =IF($FK21=5,VLOOKUP($FK21,整理番号表!$B$32:$G$60,2,FALSE),) -> 0 | FO21: =IF(AND(8<=$FK21,$FK21<=13),VLOOKUP($FK21,整理番号表!$B$32:$G$60,2,FALSE),) -> 0 | FP21: 0 | FQ21: 0 | FR21: =IF(AND(FE21<>1,$FP21=1,SUM($FQ21:FQ21)=0,$FF21=1,$FI21>=2),1,) -> 0 | FS21: =IF(AND(FE21<>1,$FP21=1,SUM($FQ21:FR21)=0,OR(AND($FF21=1,$FI21>0),$FI21>=4)),1,) -> 0 | FT21: =IF(AND(FE21<>1,$FP21=1,SUM($FQ21:FS21)=0,OR($FF21=1,$FI21>=2)),1,) -> 0 | FU21: =IF(AND(FE21<>1,$FP21=1,SUM($FQ21:FT21)=0,$FI21>0),1,) -> 0 | FV21: 0 | FW21: 0 | FX21: =IF(AND(FE21<>1,$FP21=2,SUM($FW21:FW21)=0,$FF21=1,$FJ21>=0.1),1,) -> 0 | FY21: =IF(AND(FE21<>1,$FP21=2,SUM($FW21:FX21)=0,OR(AND($FF21=1,$FI21>0),$FJ21>=0.2)),1,) -> 0 | FZ21: =IF(AND(FE21<>1,$FP21=2,SUM($FW21:FY21)=0,OR($FF21=1,$FJ21>=0.1)),1,) -> 0 | GA21: =IF(AND(FE21<>1,$FP21=2,SUM($FW21:FZ21)=0,$FI21>0),1,) -> 0 | GB21: 0 | GC21: =IF(AND(FE21<>1,$FP21=3,SUM($GB21:GB21)=0,AND($FF21=1,$FJ21>=0.05)),1,) -> 0 | GD21: =IF(AND(FE21<>1,$FP21=3,SUM($GB21:GC21)=0,OR(AND($FF21=1,$FI21>0),$FJ21>=0.1)),1,) -> 0 | GE21: =IF(AND(FE21<>1,$FP21=3,SUM($GB21:GD21)=0,OR($FF21=1,$FJ21>=0.05)),1,) -> 0 | GF21: =IF(AND(FE21<>1,$FP21=3,SUM($GB21:GE21)=0,$FI21>0),1,) -> 0 | GG21: 0 | GI21: 0 | GJ21: 0 | GK21: 0 | GL21: 0 | GM21: 0 | GN21: 0 | GO21: 0 | GP21: 0 | GQ21: 0 | GR21: 0 | GS21: 0 | GT21: 0 | GU21: 0 | GV21: 0 | GW21: 0 | GX21: 0 | GY21: 0 | GZ21: 0 | HA21: 0 | HB21: 0 | HC21: 0 | HD21: 0 | HE21: 0 | HF21: 0 | HG21: 0 | HH21: 0 | HI21: 0 | HJ21: 0 | HK21: 0 | HL21: 0 | HM21: 0 | HN21: 0 | HO21: 0 | HP21: 0 | HQ21: 0 | HR21: 0 | HS21: 0 | HT21: 0 | HU21: 0 | HV21: 0 | HW21: 0 | HX21: 0 | HY21: 0 | HZ21: 0 | IA21: 0 | IB21: 0 | IC21: 0 | ID21: 0 | IE21: 0 | IF21: 0 | IG21: 0 | IH21: 0 | II21: 0 | IJ21: 0 | IK21: 0 | IL21: 0 | IM21: 0 | IN21: 0 | IO21: 0 | IP21: 0 | IQ21: 0 | IR21: 0 | IS21: 0 | IT21: 0 | IU21: 0 | IV21: 0 | IW21: 0 | IX21: 0 | IY21: 0 | IZ21: 0 | JA21: 0 | JB21: 0 | JC21: 0 | JD21: 0 | JE21: 0 | JF21: 0 | JG21: 0 | JH21: 0 | JI21: =IF(X21=2,1,0) -> 0 | JJ21: =IF(AI21<>"",IF(X21=2,"認",IF(AND(X21=1,AY21>0),"○","×")),"") ->  | JK21: =IF(AI21<>"",IF(AV21>=500000,"○","×"),"") ->  | JL21: =IF(AI21<>"",IF(AND(5<=BH21,BH21<=20),"○",IF(OR(AND(4<=BH21,BH21<=24),OR(AE21=30,AE21=31),AG21=1),"△","×")),"") ->  | JM21: =IF(AI21<>"",IF(AT21>0,"○","×"),"") ->  | JN21: =IF(I21=1,IF(BR21=0,"△",IF(OR(AND(X21=1,BW21>=0.1),AND(X21=2,BW21>0)),"○","×")),"") ->  | JO21: =IF(SUM(DO21:DT21)>0,IF(BY21=1,"○","×"),"") ->  | JP21: =IF(BY21=1,IF(AND(FI21>0,FJ21>0),"○","×"),"") ->  | JQ21: =IF(SUM(DX21)>0,IF(BZ21=1,"○","×"),"") ->  | JR21: =IF(SUM(EA21,EC21)>0,IF(CA21=1,"○","×"),"") ->  | JS21: =IF(SUM(EE21)>0,IF(CB21=1,"○","×"),"") ->  | JT21: =IF(SUM(EH21)>0,IF(CC21=1,"○","×"),"") ->  | JU21: =IF(SUM(EK21)>0,IF(CD21=1,"○","×"),"") ->  | JV21: =IF(SUM(EM21)>0,IF(CE21=1,"○","×"),"") ->  | JW21: =IF(SUM(EN21:EP21)>0,IF(CF21=1,"○","×"),"") ->  | JY21: =IF(COUNTIF(JJ21:JX21,"×")>=1,"×","○") -> ○ | JZ21: =AU21 -> 0 | KA21: =AV21 -> 0 | KB21: =IF(JZ21=1,ROUNDUP(KA21*100/110,0),KA21) -> 0 | KC21: =ROUNDDOWN(KB21*1/2,0) -> 0 | KD21: =IF(X21=2,"認める者",AY21) -> 0 | KE21: =AV21-SUM(AY21,BA21:BC21) -> 0 | KF21: =IF(X21=1,MIN(KC21:KE21),IF(X21=2,MIN(KC21,KE21),0)) -> 0 | KG21: =IF(AX21<=KF21,"○","×") -> ○ | KH21: =IF(I21=1,IF(X21=2,1000000,IF(AND(X21=1,AB21="法人"),30000000,IF(AND(X21=1,AB21="法人以外"),15000000,0))),0) -> 0 | KI21: =IF(I21=1,SUMIF($E$13:$E$350,E21,$AW$13:$AW$350),0) -> 0 | KJ21: =IF(I21=1,SUMIF($E$13:$E$350,E21,$AX$13:$AX$350),0) -> 0 | KK21: =IF(OR(AND(KJ21>0,KH21<KJ21),AND(KI21>0,KH21<KI21)),"×","○") -> ○ | KL21: =IF(OR(JY21="×",KG21="×",KK21="×"),"×","○") -> ○ | KN21: =C21 -> 0 | KO21: =D21 -> 0
A22: 0 | B22: 0 | C22: 0 | D22: 0 | E22: 0 | F22: 0 | G22: 0 | H22: 0 | I22: 0 | J22: 0 | K22: 10 | P22: =IF(O22<>"",VLOOKUP(O22,整理番号表!$Z$17:$AA$20,2,FALSE),) -> 0 | Q22: 0 | W22: =IF(V22<>0,VLOOKUP(V22,整理番号表!$B$6:$L$13,2,FALSE),) -> 0 | X22: 0 | Y22: =IF(X22<>0,VLOOKUP(X22,整理番号表!$B$16:$C$18,2,FALSE),) -> 0 | AA22: =IF(Z22<>0,VLOOKUP(Z22,整理番号表!$B$22:$C$29,2,FALSE),) -> 0 | AD22: =IF(AC22<>0,VLOOKUP(AC22,整理番号表!$B$32:$G$60,2,FALSE),) -> 0 | AF22: =IF(AE22<>0,VLOOKUP(AE22,整理番号表!$P$5:$R$39,2,FALSE),) -> 0 | AH22: 0 | AK22: =IF(AJ22<>"",VLOOKUP(AJ22,整理番号表!$Z$6:$AA$14,2,FALSE),"") ->  | AL22: 0 | AR22: =IF(AQ22<>0,VLOOKUP(AQ22,整理番号表!$P$43:$Q$49,2,FALSE),) -> 0 | AW22: 0 | AX22: 0 | AZ22: 0 | BD22: 0 | BE22: 0 | BF22: 0 | BI22: 0 | BJ22: 0 | BL22: =IF(BK22<>0,VLOOKUP(BK22,整理番号表!$T$5:$U$16,2,FALSE),) -> 0 | BN22: =IF(BM22<>0,VLOOKUP(BM22,整理番号表!$T$22:$U$30,2,FALSE),) -> 0 | BP22: 0 | BX22: 0 | CH22: 0 | CI22: 0 | CJ22: 0 | CK22: 0 | CL22: 0 | CM22: 0 | CN22: 0 | CO22: 0 | CP22: 0 | CQ22: 0 | CR22: 0 | CS22: 0 | CT22: 0 | CU22: 0 | CV22: 0 | CW22: 0 | CX22: 0 | CY22: 0 | CZ22: 0 | DA22: 0 | DB22: 0 | DC22: 0 | DD22: 0 | DE22: 0 | DF22: 0 | DG22: 0 | DH22: 0 | DI22: 0 | DO22: 0 | DP22: 0 | DQ22: 0 | DR22: 0 | DS22: 0 | DT22: 0 | DV22: 0 | ED22: 0 | FE22: 0 | FF22: 0 | FI22: 0 | FJ22: 0 | FK22: 0 | FL22: =IF(OR(AND(1<=$FK22,$FK22<=3),$FK22=6),VLOOKUP($FK22,整理番号表!$B$32:$G$60,2,FALSE),) -> 0 | FM22: =IF(OR($FK22=4,$FK22=7),VLOOKUP($FK22,整理番号表!$B$32:$G$60,2,FALSE),) -> 0 | FN22: =IF($FK22=5,VLOOKUP($FK22,整理番号表!$B$32:$G$60,2,FALSE),) -> 0 | FO22: =IF(AND(8<=$FK22,$FK22<=13),VLOOKUP($FK22,整理番号表!$B$32:$G$60,2,FALSE),) -> 0 | FP22: 0 | FQ22: 0 | FR22: =IF(AND(FE22<>1,$FP22=1,SUM($FQ22:FQ22)=0,$FF22=1,$FI22>=2),1,) -> 0 | FS22: =IF(AND(FE22<>1,$FP22=1,SUM($FQ22:FR22)=0,OR(AND($FF22=1,$FI22>0),$FI22>=4)),1,) -> 0 | FT22: =IF(AND(FE22<>1,$FP22=1,SUM($FQ22:FS22)=0,OR($FF22=1,$FI22>=2)),1,) -> 0 | FU22: =IF(AND(FE22<>1,$FP22=1,SUM($FQ22:FT22)=0,$FI22>0),1,) -> 0 | FV22: 0 | FW22: 0 | FX22: =IF(AND(FE22<>1,$FP22=2,SUM($FW22:FW22)=0,$FF22=1,$FJ22>=0.1),1,) -> 0 | FY22: =IF(AND(FE22<>1,$FP22=2,SUM($FW22:FX22)=0,OR(AND($FF22=1,$FI22>0),$FJ22>=0.2)),1,) -> 0 | FZ22: =IF(AND(FE22<>1,$FP22=2,SUM($FW22:FY22)=0,OR($FF22=1,$FJ22>=0.1)),1,) -> 0 | GA22: =IF(AND(FE22<>1,$FP22=2,SUM($FW22:FZ22)=0,$FI22>0),1,) -> 0 | GB22: 0 | GC22: =IF(AND(FE22<>1,$FP22=3,SUM($GB22:GB22)=0,AND($FF22=1,$FJ22>=0.05)),1,) -> 0 | GD22: =IF(AND(FE22<>1,$FP22=3,SUM($GB22:GC22)=0,OR(AND($FF22=1,$FI22>0),$FJ22>=0.1)),1,) -> 0 | GE22: =IF(AND(FE22<>1,$FP22=3,SUM($GB22:GD22)=0,OR($FF22=1,$FJ22>=0.05)),1,) -> 0 | GF22: =IF(AND(FE22<>1,$FP22=3,SUM($GB22:GE22)=0,$FI22>0),1,) -> 0 | GG22: 0 | GI22: 0 | GJ22: 0 | GK22: 0 | GL22: 0 | GM22: 0 | GN22: 0 | GO22: 0 | GP22: 0 | GQ22: 0 | GR22: 0 | GS22: 0 | GT22: 0 | GU22: 0 | GV22: 0 | GW22: 0 | GX22: 0 | GY22: 0 | GZ22: 0 | HA22: 0 | HB22: 0 | HC22: 0 | HD22: 0 | HE22: 0 | HF22: 0 | HG22: 0 | HH22: 0 | HI22: 0 | HJ22: 0 | HK22: 0 | HL22: 0 | HM22: 0 | HN22: 0 | HO22: 0 | HP22: 0 | HQ22: 0 | HR22: 0 | HS22: 0 | HT22: 0 | HU22: 0 | HV22: 0 | HW22: 0 | HX22: 0 | HY22: 0 | HZ22: 0 | IA22: 0 | IB22: 0 | IC22: 0 | ID22: 0 | IE22: 0 | IF22: 0 | IG22: 0 | IH22: 0 | II22: 0 | IJ22: 0 | IK22: 0 | IL22: 0 | IM22: 0 | IN22: 0 | IO22: 0 | IP22: 0 | IQ22: 0 | IR22: 0 | IS22: 0 | IT22: 0 | IU22: 0 | IV22: 0 | IW22: 0 | IX22: 0 | IY22: 0 | IZ22: 0 | JA22: 0 | JB22: 0 | JC22: 0 | JD22: 0 | JE22: 0 | JF22: 0 | JG22: 0 | JH22: 0 | JI22: 0 | JY22: ○ | JZ22: 0 | KA22: 0 | KB22: 0 | KC22: 0 | KD22: 0 | KE22: 0 | KF22: 0 | KG22: ○ | KH22: 0 | KI22: 0 | KJ22: 0 | KK22: ○ | KL22: ○ | KN22: 0 | KO22: 0
A23: 0 | B23: 0 | C23: 0 | D23: 0 | E23: 0 | F23: 0 | G23: 0 | H23: 0 | I23: 0 | J23: 0 | K23: 11 | P23: =IF(O23<>"",VLOOKUP(O23,整理番号表!$Z$17:$AA$20,2,FALSE),) -> 0 | Q23: 0 | W23: =IF(V23<>0,VLOOKUP(V23,整理番号表!$B$6:$L$13,2,FALSE),) -> 0 | X23: 0 | Y23: =IF(X23<>0,VLOOKUP(X23,整理番号表!$B$16:$C$18,2,FALSE),) -> 0 | AA23: =IF(Z23<>0,VLOOKUP(Z23,整理番号表!$B$22:$C$29,2,FALSE),) -> 0 | AD23: =IF(AC23<>0,VLOOKUP(AC23,整理番号表!$B$32:$G$60,2,FALSE),) -> 0 | AF23: =IF(AE23<>0,VLOOKUP(AE23,整理番号表!$P$5:$R$39,2,FALSE),) -> 0 | AH23: 0 | AK23: =IF(AJ23<>"",VLOOKUP(AJ23,整理番号表!$Z$6:$AA$14,2,FALSE),"") ->  | AL23: 0 | AR23: =IF(AQ23<>0,VLOOKUP(AQ23,整理番号表!$P$43:$Q$49,2,FALSE),) -> 0 | AW23: 0 | AX23: 0 | AZ23: 0 | BD23: 0 | BE23: 0 | BF23: 0 | BI23: 0 | BJ23: 0 | BL23: =IF(BK23<>0,VLOOKUP(BK23,整理番号表!$T$5:$U$16,2,FALSE),) -> 0 | BN23: =IF(BM23<>0,VLOOKUP(BM23,整理番号表!$T$22:$U$30,2,FALSE),) -> 0 | BP23: 0 | BX23: 0 | CH23: 0 | CI23: 0 | CJ23: 0 | CK23: 0 | CL23: 0 | CM23: 0 | CN23: 0 | CO23: 0 | CP23: 0 | CQ23: 0 | CR23: 0 | CS23: 0 | CT23: 0 | CU23: 0 | CV23: 0 | CW23: 0 | CX23: 0 | CY23: 0 | CZ23: 0 | DA23: 0 | DB23: 0 | DC23: 0 | DD23: 0 | DE23: 0 | DF23: 0 | DG23: 0 | DH23: 0 | DI23: 0 | DO23: 0 | DP23: 0 | DQ23: 0 | DR23: 0 | DS23: 0 | DT23: 0 | DV23: 0 | ED23: 0 | FE23: 0 | FF23: 0 | FI23: 0 | FJ23: 0 | FK23: 0 | FL23: =IF(OR(AND(1<=$FK23,$FK23<=3),$FK23=6),VLOOKUP($FK23,整理番号表!$B$32:$G$60,2,FALSE),) -> 0 | FM23: =IF(OR($FK23=4,$FK23=7),VLOOKUP($FK23,整理番号表!$B$32:$G$60,2,FALSE),) -> 0 | FN23: =IF($FK23=5,VLOOKUP($FK23,整理番号表!$B$32:$G$60,2,FALSE),) -> 0 | FO23: =IF(AND(8<=$FK23,$FK23<=13),VLOOKUP($FK23,整理番号表!$B$32:$G$60,2,FALSE),) -> 0 | FP23: 0 | FQ23: 0 | FR23: =IF(AND(FE23<>1,$FP23=1,SUM($FQ23:FQ23)=0,$FF23=1,$FI23>=2),1,) -> 0 | FS23: =IF(AND(FE23<>1,$FP23=1,SUM($FQ23:FR23)=0,OR(AND($FF23=1,$FI23>0),$FI23>=4)),1,) -> 0 | FT23: =IF(AND(FE23<>1,$FP23=1,SUM($FQ23:FS23)=0,OR($FF23=1,$FI23>=2)),1,) -> 0 | FU23: =IF(AND(FE23<>1,$FP23=1,SUM($FQ23:FT23)=0,$FI23>0),1,) -> 0 | FV23: 0 | FW23: 0 | FX23: =IF(AND(FE23<>1,$FP23=2,SUM($FW23:FW23)=0,$FF23=1,$FJ23>=0.1),1,) -> 0 | FY23: =IF(AND(FE23<>1,$FP23=2,SUM($FW23:FX23)=0,OR(AND($FF23=1,$FI23>0),$FJ23>=0.2)),1,) -> 0 | FZ23: =IF(AND(FE23<>1,$FP23=2,SUM($FW23:FY23)=0,OR($FF23=1,$FJ23>=0.1)),1,) -> 0 | GA23: =IF(AND(FE23<>1,$FP23=2,SUM($FW23:FZ23)=0,$FI23>0),1,) -> 0 | GB23: 0 | GC23: =IF(AND(FE23<>1,$FP23=3,SUM($GB23:GB23)=0,AND($FF23=1,$FJ23>=0.05)),1,) -> 0 | GD23: =IF(AND(FE23<>1,$FP23=3,SUM($GB23:GC23)=0,OR(AND($FF23=1,$FI23>0),$FJ23>=0.1)),1,) -> 0 | GE23: =IF(AND(FE23<>1,$FP23=3,SUM($GB23:GD23)=0,OR($FF23=1,$FJ23>=0.05)),1,) -> 0 | GF23: =IF(AND(FE23<>1,$FP23=3,SUM($GB23:GE23)=0,$FI23>0),1,) -> 0 | GG23: 0 | GI23: 0 | GJ23: 0 | GK23: 0 | GL23: 0 | GM23: 0 | GN23: 0 | GO23: 0 | GP23: 0 | GQ23: 0 | GR23: 0 | GS23: 0 | GT23: 0 | GU23: 0 | GV23: 0 | GW23: 0 | GX23: 0 | GY23: 0 | GZ23: 0 | HA23: 0 | HB23: 0 | HC23: 0 | HD23: 0 | HE23: 0 | HF23: 0 | HG23: 0 | HH23: 0 | HI23: 0 | HJ23: 0 | HK23: 0 | HL23: 0 | HM23: 0 | HN23: 0 | HO23: 0 | HP23: 0 | HQ23: 0 | HR23: 0 | HS23: 0 | HT23: 0 | HU23: 0 | HV23: 0 | HW23: 0 | HX23: 0 | HY23: 0 | HZ23: 0 | IA23: 0 | IB23: 0 | IC23: 0 | ID23: 0 | IE23: 0 | IF23: 0 | IG23: 0 | IH23: 0 | II23: 0 | IJ23: 0 | IK23: 0 | IL23: 0 | IM23: 0 | IN23: 0 | IO23: 0 | IP23: 0 | IQ23: 0 | IR23: 0 | IS23: 0 | IT23: 0 | IU23: 0 | IV23: 0 | IW23: 0 | IX23: 0 | IY23: 0 | IZ23: 0 | JA23: 0 | JB23: 0 | JC23: 0 | JD23: 0 | JE23: 0 | JF23: 0 | JG23: 0 | JH23: 0 | JI23: 0 | JY23: ○ | JZ23: 0 | KA23: 0 | KB23: 0 | KC23: 0 | KD23: 0 | KE23: 0 | KF23: 0 | KG23: ○ | KH23: 0 | KI23: 0 | KJ23: 0 | KK23: ○ | KL23: ○ | KN23: 0 | KO23: 0
A24: 0 | B24: 0 | C24: 0 | D24: 0 | E24: 0 | F24: 0 | G24: 0 | H24: 0 | I24: 0 | J24: 0 | K24: 12 | P24: =IF(O24<>"",VLOOKUP(O24,整理番号表!$Z$17:$AA$20,2,FALSE),) -> 0 | Q24: 0 | W24: =IF(V24<>0,VLOOKUP(V24,整理番号表!$B$6:$L$13,2,FALSE),) -> 0 | X24: 0 | Y24: =IF(X24<>0,VLOOKUP(X24,整理番号表!$B$16:$C$18,2,FALSE),) -> 0 | AA24: =IF(Z24<>0,VLOOKUP(Z24,整理番号表!$B$22:$C$29,2,FALSE),) -> 0 | AD24: =IF(AC24<>0,VLOOKUP(AC24,整理番号表!$B$32:$G$60,2,FALSE),) -> 0 | AF24: =IF(AE24<>0,VLOOKUP(AE24,整理番号表!$P$5:$R$39,2,FALSE),) -> 0 | AH24: 0 | AK24: =IF(AJ24<>"",VLOOKUP(AJ24,整理番号表!$Z$6:$AA$14,2,FALSE),"") ->  | AL24: 0 | AR24: =IF(AQ24<>0,VLOOKUP(AQ24,整理番号表!$P$43:$Q$49,2,FALSE),) -> 0 | AW24: 0 | AX24: 0 | AZ24: 0 | BD24: 0 | BE24: 0 | BF24: 0 | BI24: 0 | BJ24: 0 | BL24: =IF(BK24<>0,VLOOKUP(BK24,整理番号表!$T$5:$U$16,2,FALSE),) -> 0 | BN24: =IF(BM24<>0,VLOOKUP(BM24,整理番号表!$T$22:$U$30,2,FALSE),) -> 0 | BP24: 0 | BX24: 0 | CH24: 0 | CI24: 0 | CJ24: 0 | CK24: 0 | CL24: 0 | CM24: 0 | CN24: 0 | CO24: 0 | CP24: 0 | CQ24: 0 | CR24: 0 | CS24: 0 | CT24: 0 | CU24: 0 | CV24: 0 | CW24: 0 | CX24: 0 | CY24: 0 | CZ24: 0 | DA24: 0 | DB24: 0 | DC24: 0 | DD24: 0 | DE24: 0 | DF24: 0 | DG24: 0 | DH24: 0 | DI24: 0 | DO24: 0 | DP24: 0 | DQ24: 0 | DR24: 0 | DS24: 0 | DT24: 0 | DV24: 0 | ED24: 0 | FE24: 0 | FF24: 0 | FI24: 0 | FJ24: 0 | FK24: 0 | FL24: =IF(OR(AND(1<=$FK24,$FK24<=3),$FK24=6),VLOOKUP($FK24,整理番号表!$B$32:$G$60,2,FALSE),) -> 0 | FM24: =IF(OR($FK24=4,$FK24=7),VLOOKUP($FK24,整理番号表!$B$32:$G$60,2,FALSE),) -> 0 | FN24: =IF($FK24=5,VLOOKUP($FK24,整理番号表!$B$32:$G$60,2,FALSE),) -> 0 | FO24: =IF(AND(8<=$FK24,$FK24<=13),VLOOKUP($FK24,整理番号表!$B$32:$G$60,2,FALSE),) -> 0 | FP24: 0 | FQ24: 0 | FR24: =IF(AND(FE24<>1,$FP24=1,SUM($FQ24:FQ24)=0,$FF24=1,$FI24>=2),1,) -> 0 | FS24: =IF(AND(FE24<>1,$FP24=1,SUM($FQ24:FR24)=0,OR(AND($FF24=1,$FI24>0),$FI24>=4)),1,) -> 0 | FT24: =IF(AND(FE24<>1,$FP24=1,SUM($FQ24:FS24)=0,OR($FF24=1,$FI24>=2)),1,) -> 0 | FU24: =IF(AND(FE24<>1,$FP24=1,SUM($FQ24:FT24)=0,$FI24>0),1,) -> 0 | FV24: 0 | FW24: 0 | FX24: =IF(AND(FE24<>1,$FP24=2,SUM($FW24:FW24)=0,$FF24=1,$FJ24>=0.1),1,) -> 0 | FY24: =IF(AND(FE24<>1,$FP24=2,SUM($FW24:FX24)=0,OR(AND($FF24=1,$FI24>0),$FJ24>=0.2)),1,) -> 0 | FZ24: =IF(AND(FE24<>1,$FP24=2,SUM($FW24:FY24)=0,OR($FF24=1,$FJ24>=0.1)),1,) -> 0 | GA24: =IF(AND(FE24<>1,$FP24=2,SUM($FW24:FZ24)=0,$FI24>0),1,) -> 0 | GB24: 0 | GC24: =IF(AND(FE24<>1,$FP24=3,SUM($GB24:GB24)=0,AND($FF24=1,$FJ24>=0.05)),1,) -> 0 | GD24: =IF(AND(FE24<>1,$FP24=3,SUM($GB24:GC24)=0,OR(AND($FF24=1,$FI24>0),$FJ24>=0.1)),1,) -> 0 | GE24: =IF(AND(FE24<>1,$FP24=3,SUM($GB24:GD24)=0,OR($FF24=1,$FJ24>=0.05)),1,) -> 0 | GF24: =IF(AND(FE24<>1,$FP24=3,SUM($GB24:GE24)=0,$FI24>0),1,) -> 0 | GG24: 0 | GI24: 0 | GJ24: 0 | GK24: 0 | GL24: 0 | GM24: 0 | GN24: 0 | GO24: 0 | GP24: 0 | GQ24: 0 | GR24: 0 | GS24: 0 | GT24: 0 | GU24: 0 | GV24: 0 | GW24: 0 | GX24: 0 | GY24: 0 | GZ24: 0 | HA24: 0 | HB24: 0 | HC24: 0 | HD24: 0 | HE24: 0 | HF24: 0 | HG24: 0 | HH24: 0 | HI24: 0 | HJ24: 0 | HK24: 0 | HL24: 0 | HM24: 0 | HN24: 0 | HO24: 0 | HP24: 0 | HQ24: 0 | HR24: 0 | HS24: 0 | HT24: 0 | HU24: 0 | HV24: 0 | HW24: 0 | HX24: 0 | HY24: 0 | HZ24: 0 | IA24: 0 | IB24: 0 | IC24: 0 | ID24: 0 | IE24: 0 | IF24: 0 | IG24: 0 | IH24: 0 | II24: 0 | IJ24: 0 | IK24: 0 | IL24: 0 | IM24: 0 | IN24: 0 | IO24: 0 | IP24: 0 | IQ24: 0 | IR24: 0 | IS24: 0 | IT24: 0 | IU24: 0 | IV24: 0 | IW24: 0 | IX24: 0 | IY24: 0 | IZ24: 0 | JA24: 0 | JB24: 0 | JC24: 0 | JD24: 0 | JE24: 0 | JF24: 0 | JG24: 0 | JH24: 0 | JI24: 0 | JY24: ○ | JZ24: 0 | KA24: 0 | KB24: 0 | KC24: 0 | KD24: 0 | KE24: 0 | KF24: 0 | KG24: ○ | KH24: 0 | KI24: 0 | KJ24: 0 | KK24: ○ | KL24: ○ | KN24: 0 | KO24: 0
A25: 0 | B25: 0 | C25: 0 | D25: 0 | E25: 0 | F25: 0 | G25: 0 | H25: 0 | I25: 0 | J25: 0 | K25: 13 | P25: =IF(O25<>"",VLOOKUP(O25,整理番号表!$Z$17:$AA$20,2,FALSE),) -> 0 | Q25: 0 | W25: =IF(V25<>0,VLOOKUP(V25,整理番号表!$B$6:$L$13,2,FALSE),) -> 0 | X25: 0 | Y25: =IF(X25<>0,VLOOKUP(X25,整理番号表!$B$16:$C$18,2,FALSE),) -> 0 | AA25: =IF(Z25<>0,VLOOKUP(Z25,整理番号表!$B$22:$C$29,2,FALSE),) -> 0 | AD25: =IF(AC25<>0,VLOOKUP(AC25,整理番号表!$B$32:$G$60,2,FALSE),) -> 0 | AF25: =IF(AE25<>0,VLOOKUP(AE25,整理番号表!$P$5:$R$39,2,FALSE),) -> 0 | AH25: 0 | AK25: =IF(AJ25<>"",VLOOKUP(AJ25,整理番号表!$Z$6:$AA$14,2,FALSE),"") ->  | AL25: 0 | AR25: =IF(AQ25<>0,VLOOKUP(AQ25,整理番号表!$P$43:$Q$49,2,FALSE),) -> 0 | AW25: 0 | AX25: 0 | AZ25: 0 | BD25: 0 | BE25: 0 | BF25: 0 | BI25: 0 | BJ25: 0 | BL25: =IF(BK25<>0,VLOOKUP(BK25,整理番号表!$T$5:$U$16,2,FALSE),) -> 0 | BN25: =IF(BM25<>0,VLOOKUP(BM25,整理番号表!$T$22:$U$30,2,FALSE),) -> 0 | BP25: 0 | BX25: 0 | CH25: 0 | CI25: 0 | CJ25: 0 | CK25: 0 | CL25: 0 | CM25: 0 | CN25: 0 | CO25: 0 | CP25: 0 | CQ25: 0 | CR25: 0 | CS25: 0 | CT25: 0 | CU25: 0 | CV25: 0 | CW25: 0 | CX25: 0 | CY25: 0 | CZ25: 0 | DA25: 0 | DB25: 0 | DC25: 0 | DD25: 0 | DE25: 0 | DF25: 0 | DG25: 0 | DH25: 0 | DI25: 0 | DO25: 0 | DP25: 0 | DQ25: 0 | DR25: 0 | DS25: 0 | DT25: 0 | DV25: 0 | ED25: 0 | FE25: 0 | FF25: 0 | FI25: 0 | FJ25: 0 | FK25: 0 | FL25: =IF(OR(AND(1<=$FK25,$FK25<=3),$FK25=6),VLOOKUP($FK25,整理番号表!$B$32:$G$60,2,FALSE),) -> 0 | FM25: =IF(OR($FK25=4,$FK25=7),VLOOKUP($FK25,整理番号表!$B$32:$G$60,2,FALSE),) -> 0 | FN25: =IF($FK25=5,VLOOKUP($FK25,整理番号表!$B$32:$G$60,2,FALSE),) -> 0 | FO25: =IF(AND(8<=$FK25,$FK25<=13),VLOOKUP($FK25,整理番号表!$B$32:$G$60,2,FALSE),) -> 0 | FP25: 0 | FQ25: 0 | FR25: =IF(AND(FE25<>1,$FP25=1,SUM($FQ25:FQ25)=0,$FF25=1,$FI25>=2),1,) -> 0 | FS25: =IF(AND(FE25<>1,$FP25=1,SUM($FQ25:FR25)=0,OR(AND($FF25=1,$FI25>0),$FI25>=4)),1,) -> 0 | FT25: =IF(AND(FE25<>1,$FP25=1,SUM($FQ25:FS25)=0,OR($FF25=1,$FI25>=2)),1,) -> 0 | FU25: =IF(AND(FE25<>1,$FP25=1,SUM($FQ25:FT25)=0,$FI25>0),1,) -> 0 | FV25: 0 | FW25: 0 | FX25: =IF(AND(FE25<>1,$FP25=2,SUM($FW25:FW25)=0,$FF25=1,$FJ25>=0.1),1,) -> 0 | FY25: =IF(AND(FE25<>1,$FP25=2,SUM($FW25:FX25)=0,OR(AND($FF25=1,$FI25>0),$FJ25>=0.2)),1,) -> 0 | FZ25: =IF(AND(FE25<>1,$FP25=2,SUM($FW25:FY25)=0,OR($FF25=1,$FJ25>=0.1)),1,) -> 0 | GA25: =IF(AND(FE25<>1,$FP25=2,SUM($FW25:FZ25)=0,$FI25>0),1,) -> 0 | GB25: 0 | GC25: =IF(AND(FE25<>1,$FP25=3,SUM($GB25:GB25)=0,AND($FF25=1,$FJ25>=0.05)),1,) -> 0 | GD25: =IF(AND(FE25<>1,$FP25=3,SUM($GB25:GC25)=0,OR(AND($FF25=1,$FI25>0),$FJ25>=0.1)),1,) -> 0 | GE25: =IF(AND(FE25<>1,$FP25=3,SUM($GB25:GD25)=0,OR($FF25=1,$FJ25>=0.05)),1,) -> 0 | GF25: =IF(AND(FE25<>1,$FP25=3,SUM($GB25:GE25)=0,$FI25>0),1,) -> 0 | GG25: 0 | GI25: 0 | GJ25: 0 | GK25: 0 | GL25: 0 | GM25: 0 | GN25: 0 | GO25: 0 | GP25: 0 | GQ25: 0 | GR25: 0 | GS25: 0 | GT25: 0 | GU25: 0 | GV25: 0 | GW25: 0 | GX25: 0 | GY25: 0 | GZ25: 0 | HA25: 0 | HB25: 0 | HC25: 0 | HD25: 0 | HE25: 0 | HF25: 0 | HG25: 0 | HH25: 0 | HI25: 0 | HJ25: 0 | HK25: 0 | HL25: 0 | HM25: 0 | HN25: 0 | HO25: 0 | HP25: 0 | HQ25: 0 | HR25: 0 | HS25: 0 | HT25: 0 | HU25: 0 | HV25: 0 | HW25: 0 | HX25: 0 | HY25: 0 | HZ25: 0 | IA25: 0 | IB25: 0 | IC25: 0 | ID25: 0 | IE25: 0 | IF25: 0 | IG25: 0 | IH25: 0 | II25: 0 | IJ25: 0 | IK25: 0 | IL25: 0 | IM25: 0 | IN25: 0 | IO25: 0 | IP25: 0 | IQ25: 0 | IR25: 0 | IS25: 0 | IT25: 0 | IU25: 0 | IV25: 0 | IW25: 0 | IX25: 0 | IY25: 0 | IZ25: 0 | JA25: 0 | JB25: 0 | JC25: 0 | JD25: 0 | JE25: 0 | JF25: 0 | JG25: 0 | JH25: 0 | JI25: 0 | JY25: ○ | JZ25: 0 | KA25: 0 | KB25: 0 | KC25: 0 | KD25: 0 | KE25: 0 | KF25: 0 | KG25: ○ | KH25: 0 | KI25: 0 | KJ25: 0 | KK25: ○ | KL25: ○ | KN25: 0 | KO25: 0
A26: 0 | B26: 0 | C26: 0 | D26: 0 | E26: 0 | F26: 0 | G26: 0 | H26: 0 | I26: 0 | J26: 0 | K26: 14 | P26: =IF(O26<>"",VLOOKUP(O26,整理番号表!$Z$17:$AA$20,2,FALSE),) -> 0 | Q26: 0 | W26: =IF(V26<>0,VLOOKUP(V26,整理番号表!$B$6:$L$13,2,FALSE),) -> 0 | X26: 0 | Y26: =IF(X26<>0,VLOOKUP(X26,整理番号表!$B$16:$C$18,2,FALSE),) -> 0 | AA26: =IF(Z26<>0,VLOOKUP(Z26,整理番号表!$B$22:$C$29,2,FALSE),) -> 0 | AD26: =IF(AC26<>0,VLOOKUP(AC26,整理番号表!$B$32:$G$60,2,FALSE),) -> 0 | AF26: =IF(AE26<>0,VLOOKUP(AE26,整理番号表!$P$5:$R$39,2,FALSE),) -> 0 | AH26: 0 | AK26: =IF(AJ26<>"",VLOOKUP(AJ26,整理番号表!$Z$6:$AA$14,2,FALSE),"") ->  | AL26: 0 | AR26: =IF(AQ26<>0,VLOOKUP(AQ26,整理番号表!$P$43:$Q$49,2,FALSE),) -> 0 | AW26: 0 | AX26: 0 | AZ26: 0 | BD26: 0 | BE26: 0 | BF26: 0 | BI26: 0 | BJ26: 0 | BL26: =IF(BK26<>0,VLOOKUP(BK26,整理番号表!$T$5:$U$16,2,FALSE),) -> 0 | BN26: =IF(BM26<>0,VLOOKUP(BM26,整理番号表!$T$22:$U$30,2,FALSE),) -> 0 | BP26: 0 | BX26: 0 | CH26: 0 | CI26: 0 | CJ26: 0 | CK26: 0 | CL26: 0 | CM26: 0 | CN26: 0 | CO26: 0 | CP26: 0 | CQ26: 0 | CR26: 0 | CS26: 0 | CT26: 0 | CU26: 0 | CV26: 0 | CW26: 0 | CX26: 0 | CY26: 0 | CZ26: 0 | DA26: 0 | DB26: 0 | DC26: 0 | DD26: 0 | DE26: 0 | DF26: 0 | DG26: 0 | DH26: 0 | DI26: 0 | DO26: 0 | DP26: 0 | DQ26: 0 | DR26: 0 | DS26: 0 | DT26: 0 | DV26: 0 | ED26: 0 | FE26: 0 | FF26: 0 | FI26: 0 | FJ26: 0 | FK26: 0 | FL26: =IF(OR(AND(1<=$FK26,$FK26<=3),$FK26=6),VLOOKUP($FK26,整理番号表!$B$32:$G$60,2,FALSE),) -> 0 | FM26: =IF(OR($FK26=4,$FK26=7),VLOOKUP($FK26,整理番号表!$B$32:$G$60,2,FALSE),) -> 0 | FN26: =IF($FK26=5,VLOOKUP($FK26,整理番号表!$B$32:$G$60,2,FALSE),) -> 0 | FO26: =IF(AND(8<=$FK26,$FK26<=13),VLOOKUP($FK26,整理番号表!$B$32:$G$60,2,FALSE),) -> 0 | FP26: 0 | FQ26: 0 | FR26: =IF(AND(FE26<>1,$FP26=1,SUM($FQ26:FQ26)=0,$FF26=1,$FI26>=2),1,) -> 0 | FS26: =IF(AND(FE26<>1,$FP26=1,SUM($FQ26:FR26)=0,OR(AND($FF26=1,$FI26>0),$FI26>=4)),1,) -> 0 | FT26: =IF(AND(FE26<>1,$FP26=1,SUM($FQ26:FS26)=0,OR($FF26=1,$FI26>=2)),1,) -> 0 | FU26: =IF(AND(FE26<>1,$FP26=1,SUM($FQ26:FT26)=0,$FI26>0),1,) -> 0 | FV26: 0 | FW26: 0 | FX26: =IF(AND(FE26<>1,$FP26=2,SUM($FW26:FW26)=0,$FF26=1,$FJ26>=0.1),1,) -> 0 | FY26: =IF(AND(FE26<>1,$FP26=2,SUM($FW26:FX26)=0,OR(AND($FF26=1,$FI26>0),$FJ26>=0.2)),1,) -> 0 | FZ26: =IF(AND(FE26<>1,$FP26=2,SUM($FW26:FY26)=0,OR($FF26=1,$FJ26>=0.1)),1,) -> 0 | GA26: =IF(AND(FE26<>1,$FP26=2,SUM($FW26:FZ26)=0,$FI26>0),1,) -> 0 | GB26: 0 | GC26: =IF(AND(FE26<>1,$FP26=3,SUM($GB26:GB26)=0,AND($FF26=1,$FJ26>=0.05)),1,) -> 0 | GD26: =IF(AND(FE26<>1,$FP26=3,SUM($GB26:GC26)=0,OR(AND($FF26=1,$FI26>0),$FJ26>=0.1)),1,) -> 0 | GE26: =IF(AND(FE26<>1,$FP26=3,SUM($GB26:GD26)=0,OR($FF26=1,$FJ26>=0.05)),1,) -> 0 | GF26: =IF(AND(FE26<>1,$FP26=3,SUM($GB26:GE26)=0,$FI26>0),1,) -> 0 | GG26: 0 | GI26: 0 | GJ26: 0 | GK26: 0 | GL26: 0 | GM26: 0 | GN26: 0 | GO26: 0 | GP26: 0 | GQ26: 0 | GR26: 0 | GS26: 0 | GT26: 0 | GU26: 0 | GV26: 0 | GW26: 0 | GX26: 0 | GY26: 0 | GZ26: 0 | HA26: 0 | HB26: 0 | HC26: 0 | HD26: 0 | HE26: 0 | HF26: 0 | HG26: 0 | HH26: 0 | HI26: 0 | HJ26: 0 | HK26: 0 | HL26: 0 | HM26: 0 | HN26: 0 | HO26: 0 | HP26: 0 | HQ26: 0 | HR26: 0 | HS26: 0 | HT26: 0 | HU26: 0 | HV26: 0 | HW26: 0 | HX26: 0 | HY26: 0 | HZ26: 0 | IA26: 0 | IB26: 0 | IC26: 0 | ID26: 0 | IE26: 0 | IF26: 0 | IG26: 0 | IH26: 0 | II26: 0 | IJ26: 0 | IK26: 0 | IL26: 0 | IM26: 0 | IN26: 0 | IO26: 0 | IP26: 0 | IQ26: 0 | IR26: 0 | IS26: 0 | IT26: 0 | IU26: 0 | IV26: 0 | IW26: 0 | IX26: 0 | IY26: 0 | IZ26: 0 | JA26: 0 | JB26: 0 | JC26: 0 | JD26: 0 | JE26: 0 | JF26: 0 | JG26: 0 | JH26: 0 | JI26: 0 | JY26: ○ | JZ26: 0 | KA26: 0 | KB26: 0 | KC26: 0 | KD26: 0 | KE26: 0 | KF26: 0 | KG26: ○ | KH26: 0 | KI26: 0 | KJ26: 0 | KK26: ○ | KL26: ○ | KN26: 0 | KO26: 0
A27: 0 | B27: 0 | C27: 0 | D27: 0 | E27: 0 | F27: 0 | G27: 0 | H27: 0 | I27: 0 | J27: 0 | K27: 15 | P27: =IF(O27<>"",VLOOKUP(O27,整理番号表!$Z$17:$AA$20,2,FALSE),) -> 0 | Q27: 0 | W27: =IF(V27<>0,VLOOKUP(V27,整理番号表!$B$6:$L$13,2,FALSE),) -> 0 | X27: 0 | Y27: =IF(X27<>0,VLOOKUP(X27,整理番号表!$B$16:$C$18,2,FALSE),) -> 0 | AA27: =IF(Z27<>0,VLOOKUP(Z27,整理番号表!$B$22:$C$29,2,FALSE),) -> 0 | AD27: =IF(AC27<>0,VLOOKUP(AC27,整理番号表!$B$32:$G$60,2,FALSE),) -> 0 | AF27: =IF(AE27<>0,VLOOKUP(AE27,整理番号表!$P$5:$R$39,2,FALSE),) -> 0 | AH27: 0 | AK27: =IF(AJ27<>"",VLOOKUP(AJ27,整理番号表!$Z$6:$AA$14,2,FALSE),"") ->  | AL27: 0 | AR27: =IF(AQ27<>0,VLOOKUP(AQ27,整理番号表!$P$43:$Q$49,2,FALSE),) -> 0 | AW27: 0 | AX27: 0 | AZ27: 0 | BD27: 0 | BE27: 0 | BF27: 0 | BI27: 0 | BJ27: 0 | BL27: =IF(BK27<>0,VLOOKUP(BK27,整理番号表!$T$5:$U$16,2,FALSE),) -> 0 | BN27: =IF(BM27<>0,VLOOKUP(BM27,整理番号表!$T$22:$U$30,2,FALSE),) -> 0 | BP27: 0 | BX27: 0 | CH27: 0 | CI27: 0 | CJ27: 0 | CK27: 0 | CL27: 0 | CM27: 0 | CN27: 0 | CO27: 0 | CP27: 0 | CQ27: 0 | CR27: 0 | CS27: 0 | CT27: 0 | CU27: 0 | CV27: 0 | CW27: 0 | CX27: 0 | CY27: 0 | CZ27: 0 | DA27: 0 | DB27: 0 | DC27: 0 | DD27: 0 | DE27: 0 | DF27: 0 | DG27: 0 | DH27: 0 | DI27: 0 | DO27: 0 | DP27: 0 | DQ27: 0 | DR27: 0 | DS27: 0 | DT27: 0 | DV27: 0 | ED27: 0 | FE27: 0 | FF27: 0 | FI27: 0 | FJ27: 0 | FK27: 0 | FL27: =IF(OR(AND(1<=$FK27,$FK27<=3),$FK27=6),VLOOKUP($FK27,整理番号表!$B$32:$G$60,2,FALSE),) -> 0 | FM27: =IF(OR($FK27=4,$FK27=7),VLOOKUP($FK27,整理番号表!$B$32:$G$60,2,FALSE),) -> 0 | FN27: =IF($FK27=5,VLOOKUP($FK27,整理番号表!$B$32:$G$60,2,FALSE),) -> 0 | FO27: =IF(AND(8<=$FK27,$FK27<=13),VLOOKUP($FK27,整理番号表!$B$32:$G$60,2,FALSE),) -> 0 | FP27: 0 | FQ27: 0 | FR27: =IF(AND(FE27<>1,$FP27=1,SUM($FQ27:FQ27)=0,$FF27=1,$FI27>=2),1,) -> 0 | FS27: =IF(AND(FE27<>1,$FP27=1,SUM($FQ27:FR27)=0,OR(AND($FF27=1,$FI27>0),$FI27>=4)),1,) -> 0 | FT27: =IF(AND(FE27<>1,$FP27=1,SUM($FQ27:FS27)=0,OR($FF27=1,$FI27>=2)),1,) -> 0 | FU27: =IF(AND(FE27<>1,$FP27=1,SUM($FQ27:FT27)=0,$FI27>0),1,) -> 0 | FV27: 0 | FW27: 0 | FX27: =IF(AND(FE27<>1,$FP27=2,SUM($FW27:FW27)=0,$FF27=1,$FJ27>=0.1),1,) -> 0 | FY27: =IF(AND(FE27<>1,$FP27=2,SUM($FW27:FX27)=0,OR(AND($FF27=1,$FI27>0),$FJ27>=0.2)),1,) -> 0 | FZ27: =IF(AND(FE27<>1,$FP27=2,SUM($FW27:FY27)=0,OR($FF27=1,$FJ27>=0.1)),1,) -> 0 | GA27: =IF(AND(FE27<>1,$FP27=2,SUM($FW27:FZ27)=0,$FI27>0),1,) -> 0 | GB27: 0 | GC27: =IF(AND(FE27<>1,$FP27=3,SUM($GB27:GB27)=0,AND($FF27=1,$FJ27>=0.05)),1,) -> 0 | GD27: =IF(AND(FE27<>1,$FP27=3,SUM($GB27:GC27)=0,OR(AND($FF27=1,$FI27>0),$FJ27>=0.1)),1,) -> 0 | GE27: =IF(AND(FE27<>1,$FP27=3,SUM($GB27:GD27)=0,OR($FF27=1,$FJ27>=0.05)),1,) -> 0 | GF27: =IF(AND(FE27<>1,$FP27=3,SUM($GB27:GE27)=0,$FI27>0),1,) -> 0 | GG27: 0 | GI27: 0 | GJ27: 0 | GK27: 0 | GL27: 0 | GM27: 0 | GN27: 0 | GO27: 0 | GP27: 0 | GQ27: 0 | GR27: 0 | GS27: 0 | GT27: 0 | GU27: 0 | GV27: 0 | GW27: 0 | GX27: 0 | GY27: 0 | GZ27: 0 | HA27: 0 | HB27: 0 | HC27: 0 | HD27: 0 | HE27: 0 | HF27: 0 | HG27: 0 | HH27: 0 | HI27: 0 | HJ27: 0 | HK27: 0 | HL27: 0 | HM27: 0 | HN27: 0 | HO27: 0 | HP27: 0 | HQ27: 0 | HR27: 0 | HS27: 0 | HT27: 0 | HU27: 0 | HV27: 0 | HW27: 0 | HX27: 0 | HY27: 0 | HZ27: 0 | IA27: 0 | IB27: 0 | IC27: 0 | ID27: 0 | IE27: 0 | IF27: 0 | IG27: 0 | IH27: 0 | II27: 0 | IJ27: 0 | IK27: 0 | IL27: 0 | IM27: 0 | IN27: 0 | IO27: 0 | IP27: 0 | IQ27: 0 | IR27: 0 | IS27: 0 | IT27: 0 | IU27: 0 | IV27: 0 | IW27: 0 | IX27: 0 | IY27: 0 | IZ27: 0 | JA27: 0 | JB27: 0 | JC27: 0 | JD27: 0 | JE27: 0 | JF27: 0 | JG27: 0 | JH27: 0 | JI27: 0 | JY27: ○ | JZ27: 0 | KA27: 0 | KB27: 0 | KC27: 0 | KD27: 0 | KE27: 0 | KF27: 0 | KG27: ○ | KH27: 0 | KI27: 0 | KJ27: 0 | KK27: ○ | KL27: ○ | KN27: 0 | KO27: 0
A28: 0 | B28: 0 | C28: 0 | D28: 0 | E28: 0 | F28: 0 | G28: 0 | H28: 0 | I28: 0 | J28: 0 | K28: 16 | P28: =IF(O28<>"",VLOOKUP(O28,整理番号表!$Z$17:$AA$20,2,FALSE),) -> 0 | Q28: 0 | W28: =IF(V28<>0,VLOOKUP(V28,整理番号表!$B$6:$L$13,2,FALSE),) -> 0 | X28: 0 | Y28: =IF(X28<>0,VLOOKUP(X28,整理番号表!$B$16:$C$18,2,FALSE),) -> 0 | AA28: =IF(Z28<>0,VLOOKUP(Z28,整理番号表!$B$22:$C$29,2,FALSE),) -> 0 | AD28: =IF(AC28<>0,VLOOKUP(AC28,整理番号表!$B$32:$G$60,2,FALSE),) -> 0 | AF28: =IF(AE28<>0,VLOOKUP(AE28,整理番号表!$P$5:$R$39,2,FALSE),) -> 0 | AH28: 0 | AK28: =IF(AJ28<>"",VLOOKUP(AJ28,整理番号表!$Z$6:$AA$14,2,FALSE),"") ->  | AL28: 0 | AR28: =IF(AQ28<>0,VLOOKUP(AQ28,整理番号表!$P$43:$Q$49,2,FALSE),) -> 0 | AW28: 0 | AX28: 0 | AZ28: 0 | BD28: 0 | BE28: 0 | BF28: 0 | BI28: 0 | BJ28: 0 | BL28: =IF(BK28<>0,VLOOKUP(BK28,整理番号表!$T$5:$U$16,2,FALSE),) -> 0 | BN28: =IF(BM28<>0,VLOOKUP(BM28,整理番号表!$T$22:$U$30,2,FALSE),) -> 0 | BP28: 0 | BX28: 0 | CH28: 0 | CI28: 0 | CJ28: 0 | CK28: 0 | CL28: 0 | CM28: 0 | CN28: 0 | CO28: 0 | CP28: 0 | CQ28: 0 | CR28: 0 | CS28: 0 | CT28: 0 | CU28: 0 | CV28: 0 | CW28: 0 | CX28: 0 | CY28: 0 | CZ28: 0 | DA28: 0 | DB28: 0 | DC28: 0 | DD28: 0 | DE28: 0 | DF28: 0 | DG28: 0 | DH28: 0 | DI28: 0 | DO28: 0 | DP28: 0 | DQ28: 0 | DR28: 0 | DS28: 0 | DT28: 0 | DV28: 0 | ED28: 0 | FE28: 0 | FF28: 0 | FI28: 0 | FJ28: 0 | FK28: 0 | FL28: =IF(OR(AND(1<=$FK28,$FK28<=3),$FK28=6),VLOOKUP($FK28,整理番号表!$B$32:$G$60,2,FALSE),) -> 0 | FM28: =IF(OR($FK28=4,$FK28=7),VLOOKUP($FK28,整理番号表!$B$32:$G$60,2,FALSE),) -> 0 | FN28: =IF($FK28=5,VLOOKUP($FK28,整理番号表!$B$32:$G$60,2,FALSE),) -> 0 | FO28: =IF(AND(8<=$FK28,$FK28<=13),VLOOKUP($FK28,整理番号表!$B$32:$G$60,2,FALSE),) -> 0 | FP28: 0 | FQ28: 0 | FR28: =IF(AND(FE28<>1,$FP28=1,SUM($FQ28:FQ28)=0,$FF28=1,$FI28>=2),1,) -> 0 | FS28: =IF(AND(FE28<>1,$FP28=1,SUM($FQ28:FR28)=0,OR(AND($FF28=1,$FI28>0),$FI28>=4)),1,) -> 0 | FT28: =IF(AND(FE28<>1,$FP28=1,SUM($FQ28:FS28)=0,OR($FF28=1,$FI28>=2)),1,) -> 0 | FU28: =IF(AND(FE28<>1,$FP28=1,SUM($FQ28:FT28)=0,$FI28>0),1,) -> 0 | FV28: 0 | FW28: 0 | FX28: =IF(AND(FE28<>1,$FP28=2,SUM($FW28:FW28)=0,$FF28=1,$FJ28>=0.1),1,) -> 0 | FY28: =IF(AND(FE28<>1,$FP28=2,SUM($FW28:FX28)=0,OR(AND($FF28=1,$FI28>0),$FJ28>=0.2)),1,) -> 0 | FZ28: =IF(AND(FE28<>1,$FP28=2,SUM($FW28:FY28)=0,OR($FF28=1,$FJ28>=0.1)),1,) -> 0 | GA28: =IF(AND(FE28<>1,$FP28=2,SUM($FW28:FZ28)=0,$FI28>0),1,) -> 0 | GB28: 0 | GC28: =IF(AND(FE28<>1,$FP28=3,SUM($GB28:GB28)=0,AND($FF28=1,$FJ28>=0.05)),1,) -> 0 | GD28: =IF(AND(FE28<>1,$FP28=3,SUM($GB28:GC28)=0,OR(AND($FF28=1,$FI28>0),$FJ28>=0.1)),1,) -> 0 | GE28: =IF(AND(FE28<>1,$FP28=3,SUM($GB28:GD28)=0,OR($FF28=1,$FJ28>=0.05)),1,) -> 0 | GF28: =IF(AND(FE28<>1,$FP28=3,SUM($GB28:GE28)=0,$FI28>0),1,) -> 0 | GG28: 0 | GI28: 0 | GJ28: 0 | GK28: 0 | GL28: 0 | GM28: 0 | GN28: 0 | GO28: 0 | GP28: 0 | GQ28: 0 | GR28: 0 | GS28: 0 | GT28: 0 | GU28: 0 | GV28: 0 | GW28: 0 | GX28: 0 | GY28: 0 | GZ28: 0 | HA28: 0 | HB28: 0 | HC28: 0 | HD28: 0 | HE28: 0 | HF28: 0 | HG28: 0 | HH28: 0 | HI28: 0 | HJ28: 0 | HK28: 0 | HL28: 0 | HM28: 0 | HN28: 0 | HO28: 0 | HP28: 0 | HQ28: 0 | HR28: 0 | HS28: 0 | HT28: 0 | HU28: 0 | HV28: 0 | HW28: 0 | HX28: 0 | HY28: 0 | HZ28: 0 | IA28: 0 | IB28: 0 | IC28: 0 | ID28: 0 | IE28: 0 | IF28: 0 | IG28: 0 | IH28: 0 | II28: 0 | IJ28: 0 | IK28: 0 | IL28: 0 | IM28: 0 | IN28: 0 | IO28: 0 | IP28: 0 | IQ28: 0 | IR28: 0 | IS28: 0 | IT28: 0 | IU28: 0 | IV28: 0 | IW28: 0 | IX28: 0 | IY28: 0 | IZ28: 0 | JA28: 0 | JB28: 0 | JC28: 0 | JD28: 0 | JE28: 0 | JF28: 0 | JG28: 0 | JH28: 0 | JI28: 0 | JY28: ○ | JZ28: 0 | KA28: 0 | KB28: 0 | KC28: 0 | KD28: 0 | KE28: 0 | KF28: 0 | KG28: ○ | KH28: 0 | KI28: 0 | KJ28: 0 | KK28: ○ | KL28: ○ | KN28: 0 | KO28: 0
A29: 0 | B29: 0 | C29: 0 | D29: 0 | E29: 0 | F29: 0 | G29: 0 | H29: 0 | I29: 0 | J29: 0 | K29: 17 | P29: =IF(O29<>"",VLOOKUP(O29,整理番号表!$Z$17:$AA$20,2,FALSE),) -> 0 | Q29: 0 | W29: =IF(V29<>0,VLOOKUP(V29,整理番号表!$B$6:$L$13,2,FALSE),) -> 0 | X29: 0 | Y29: =IF(X29<>0,VLOOKUP(X29,整理番号表!$B$16:$C$18,2,FALSE),) -> 0 | AA29: =IF(Z29<>0,VLOOKUP(Z29,整理番号表!$B$22:$C$29,2,FALSE),) -> 0 | AD29: =IF(AC29<>0,VLOOKUP(AC29,整理番号表!$B$32:$G$60,2,FALSE),) -> 0 | AF29: =IF(AE29<>0,VLOOKUP(AE29,整理番号表!$P$5:$R$39,2,FALSE),) -> 0 | AH29: 0 | AK29: =IF(AJ29<>"",VLOOKUP(AJ29,整理番号表!$Z$6:$AA$14,2,FALSE),"") ->  | AL29: 0 | AR29: =IF(AQ29<>0,VLOOKUP(AQ29,整理番号表!$P$43:$Q$49,2,FALSE),) -> 0 | AW29: 0 | AX29: 0 | AZ29: 0 | BD29: 0 | BE29: 0 | BF29: 0 | BI29: 0 | BJ29: 0 | BL29: =IF(BK29<>0,VLOOKUP(BK29,整理番号表!$T$5:$U$16,2,FALSE),) -> 0 | BN29: =IF(BM29<>0,VLOOKUP(BM29,整理番号表!$T$22:$U$30,2,FALSE),) -> 0 | BP29: 0 | BX29: 0 | CH29: 0 | CI29: 0 | CJ29: 0 | CK29: 0 | CL29: 0 | CM29: 0 | CN29: 0 | CO29: 0 | CP29: 0 | CQ29: 0 | CR29: 0 | CS29: 0 | CT29: 0 | CU29: 0 | CV29: 0 | CW29: 0 | CX29: 0 | CY29: 0 | CZ29: 0 | DA29: 0 | DB29: 0 | DC29: 0 | DD29: 0 | DE29: 0 | DF29: 0 | DG29: 0 | DH29: 0 | DI29: 0 | DO29: 0 | DP29: 0 | DQ29: 0 | DR29: 0 | DS29: 0 | DT29: 0 | DV29: 0 | ED29: 0 | FE29: 0 | FF29: 0 | FI29: 0 | FJ29: 0 | FK29: 0 | FL29: =IF(OR(AND(1<=$FK29,$FK29<=3),$FK29=6),VLOOKUP($FK29,整理番号表!$B$32:$G$60,2,FALSE),) -> 0 | FM29: =IF(OR($FK29=4,$FK29=7),VLOOKUP($FK29,整理番号表!$B$32:$G$60,2,FALSE),) -> 0 | FN29: =IF($FK29=5,VLOOKUP($FK29,整理番号表!$B$32:$G$60,2,FALSE),) -> 0 | FO29: =IF(AND(8<=$FK29,$FK29<=13),VLOOKUP($FK29,整理番号表!$B$32:$G$60,2,FALSE),) -> 0 | FP29: 0 | FQ29: 0 | FR29: =IF(AND(FE29<>1,$FP29=1,SUM($FQ29:FQ29)=0,$FF29=1,$FI29>=2),1,) -> 0 | FS29: =IF(AND(FE29<>1,$FP29=1,SUM($FQ29:FR29)=0,OR(AND($FF29=1,$FI29>0),$FI29>=4)),1,) -> 0 | FT29: =IF(AND(FE29<>1,$FP29=1,SUM($FQ29:FS29)=0,OR($FF29=1,$FI29>=2)),1,) -> 0 | FU29: =IF(AND(FE29<>1,$FP29=1,SUM($FQ29:FT29)=0,$FI29>0),1,) -> 0 | FV29: 0 | FW29: 0 | FX29: =IF(AND(FE29<>1,$FP29=2,SUM($FW29:FW29)=0,$FF29=1,$FJ29>=0.1),1,) -> 0 | FY29: =IF(AND(FE29<>1,$FP29=2,SUM($FW29:FX29)=0,OR(AND($FF29=1,$FI29>0),$FJ29>=0.2)),1,) -> 0 | FZ29: =IF(AND(FE29<>1,$FP29=2,SUM($FW29:FY29)=0,OR($FF29=1,$FJ29>=0.1)),1,) -> 0 | GA29: =IF(AND(FE29<>1,$FP29=2,SUM($FW29:FZ29)=0,$FI29>0),1,) -> 0 | GB29: 0 | GC29: =IF(AND(FE29<>1,$FP29=3,SUM($GB29:GB29)=0,AND($FF29=1,$FJ29>=0.05)),1,) -> 0 | GD29: =IF(AND(FE29<>1,$FP29=3,SUM($GB29:GC29)=0,OR(AND($FF29=1,$FI29>0),$FJ29>=0.1)),1,) -> 0 | GE29: =IF(AND(FE29<>1,$FP29=3,SUM($GB29:GD29)=0,OR($FF29=1,$FJ29>=0.05)),1,) -> 0 | GF29: =IF(AND(FE29<>1,$FP29=3,SUM($GB29:GE29)=0,$FI29>0),1,) -> 0 | GG29: 0 | GI29: 0 | GJ29: 0 | GK29: 0 | GL29: 0 | GM29: 0 | GN29: 0 | GO29: 0 | GP29: 0 | GQ29: 0 | GR29: 0 | GS29: 0 | GT29: 0 | GU29: 0 | GV29: 0 | GW29: 0 | GX29: 0 | GY29: 0 | GZ29: 0 | HA29: 0 | HB29: 0 | HC29: 0 | HD29: 0 | HE29: 0 | HF29: 0 | HG29: 0 | HH29: 0 | HI29: 0 | HJ29: 0 | HK29: 0 | HL29: 0 | HM29: 0 | HN29: 0 | HO29: 0 | HP29: 0 | HQ29: 0 | HR29: 0 | HS29: 0 | HT29: 0 | HU29: 0 | HV29: 0 | HW29: 0 | HX29: 0 | HY29: 0 | HZ29: 0 | IA29: 0 | IB29: 0 | IC29: 0 | ID29: 0 | IE29: 0 | IF29: 0 | IG29: 0 | IH29: 0 | II29: 0 | IJ29: 0 | IK29: 0 | IL29: 0 | IM29: 0 | IN29: 0 | IO29: 0 | IP29: 0 | IQ29: 0 | IR29: 0 | IS29: 0 | IT29: 0 | IU29: 0 | IV29: 0 | IW29: 0 | IX29: 0 | IY29: 0 | IZ29: 0 | JA29: 0 | JB29: 0 | JC29: 0 | JD29: 0 | JE29: 0 | JF29: 0 | JG29: 0 | JH29: 0 | JI29: 0 | JY29: ○ | JZ29: 0 | KA29: 0 | KB29: 0 | KC29: 0 | KD29: 0 | KE29: 0 | KF29: 0 | KG29: ○ | KH29: 0 | KI29: 0 | KJ29: 0 | KK29: ○ | KL29: ○ | KN29: 0 | KO29: 0
A30: 0 | B30: 0 | C30: 0 | D30: 0 | E30: 0 | F30: 0 | G30: 0 | H30: 0 | I30: 0 | J30: 0 | K30: 18 | P30: =IF(O30<>"",VLOOKUP(O30,整理番号表!$Z$17:$AA$20,2,FALSE),) -> 0 | Q30: 0 | W30: =IF(V30<>0,VLOOKUP(V30,整理番号表!$B$6:$L$13,2,FALSE),) -> 0 | X30: 0 | Y30: =IF(X30<>0,VLOOKUP(X30,整理番号表!$B$16:$C$18,2,FALSE),) -> 0 | AA30: =IF(Z30<>0,VLOOKUP(Z30,整理番号表!$B$22:$C$29,2,FALSE),) -> 0 | AD30: =IF(AC30<>0,VLOOKUP(AC30,整理番号表!$B$32:$G$60,2,FALSE),) -> 0 | AF30: =IF(AE30<>0,VLOOKUP(AE30,整理番号表!$P$5:$R$39,2,FALSE),) -> 0 | AH30: 0 | AK30: =IF(AJ30<>"",VLOOKUP(AJ30,整理番号表!$Z$6:$AA$14,2,FALSE),"") ->  | AL30: 0 | AR30: =IF(AQ30<>0,VLOOKUP(AQ30,整理番号表!$P$43:$Q$49,2,FALSE),) -> 0 | AW30: 0 | AX30: 0 | AZ30: 0 | BD30: 0 | BE30: 0 | BF30: 0 | BI30: 0 | BJ30: 0 | BL30: =IF(BK30<>0,VLOOKUP(BK30,整理番号表!$T$5:$U$16,2,FALSE),) -> 0 | BN30: =IF(BM30<>0,VLOOKUP(BM30,整理番号表!$T$22:$U$30,2,FALSE),) -> 0 | BP30: 0 | BX30: 0 | CH30: 0 | CI30: 0 | CJ30: 0 | CK30: 0 | CL30: 0 | CM30: 0 | CN30: 0 | CO30: 0 | CP30: 0 | CQ30: 0 | CR30: 0 | CS30: 0 | CT30: 0 | CU30: 0 | CV30: 0 | CW30: 0 | CX30: 0 | CY30: 0 | CZ30: 0 | DA30: 0 | DB30: 0 | DC30: 0 | DD30: 0 | DE30: 0 | DF30: 0 | DG30: 0 | DH30: 0 | DI30: 0 | DO30: 0 | DP30: 0 | DQ30: 0 | DR30: 0 | DS30: 0 | DT30: 0 | DV30: 0 | ED30: 0 | FE30: 0 | FF30: 0 | FI30: 0 | FJ30: 0 | FK30: 0 | FL30: =IF(OR(AND(1<=$FK30,$FK30<=3),$FK30=6),VLOOKUP($FK30,整理番号表!$B$32:$G$60,2,FALSE),) -> 0 | FM30: =IF(OR($FK30=4,$FK30=7),VLOOKUP($FK30,整理番号表!$B$32:$G$60,2,FALSE),) -> 0 | FN30: =IF($FK30=5,VLOOKUP($FK30,整理番号表!$B$32:$G$60,2,FALSE),) -> 0 | FO30: =IF(AND(8<=$FK30,$FK30<=13),VLOOKUP($FK30,整理番号表!$B$32:$G$60,2,FALSE),) -> 0 | FP30: 0 | FQ30: 0 | FR30: =IF(AND(FE30<>1,$FP30=1,SUM($FQ30:FQ30)=0,$FF30=1,$FI30>=2),1,) -> 0 | FS30: =IF(AND(FE30<>1,$FP30=1,SUM($FQ30:FR30)=0,OR(AND($FF30=1,$FI30>0),$FI30>=4)),1,) -> 0 | FT30: =IF(AND(FE30<>1,$FP30=1,SUM($FQ30:FS30)=0,OR($FF30=1,$FI30>=2)),1,) -> 0 | FU30: =IF(AND(FE30<>1,$FP30=1,SUM($FQ30:FT30)=0,$FI30>0),1,) -> 0 | FV30: 0 | FW30: 0 | FX30: =IF(AND(FE30<>1,$FP30=2,SUM($FW30:FW30)=0,$FF30=1,$FJ30>=0.1),1,) -> 0 | FY30: =IF(AND(FE30<>1,$FP30=2,SUM($FW30:FX30)=0,OR(AND($FF30=1,$FI30>0),$FJ30>=0.2)),1,) -> 0 | FZ30: =IF(AND(FE30<>1,$FP30=2,SUM($FW30:FY30)=0,OR($FF30=1,$FJ30>=0.1)),1,) -> 0 | GA30: =IF(AND(FE30<>1,$FP30=2,SUM($FW30:FZ30)=0,$FI30>0),1,) -> 0 | GB30: 0 | GC30: =IF(AND(FE30<>1,$FP30=3,SUM($GB30:GB30)=0,AND($FF30=1,$FJ30>=0.05)),1,) -> 0 | GD30: =IF(AND(FE30<>1,$FP30=3,SUM($GB30:GC30)=0,OR(AND($FF30=1,$FI30>0),$FJ30>=0.1)),1,) -> 0 | GE30: =IF(AND(FE30<>1,$FP30=3,SUM($GB30:GD30)=0,OR($FF30=1,$FJ30>=0.05)),1,) -> 0 | GF30: =IF(AND(FE30<>1,$FP30=3,SUM($GB30:GE30)=0,$FI30>0),1,) -> 0 | GG30: 0 | GI30: 0 | GJ30: 0 | GK30: 0 | GL30: 0 | GM30: 0 | GN30: 0 | GO30: 0 | GP30: 0 | GQ30: 0 | GR30: 0 | GS30: 0 | GT30: 0 | GU30: 0 | GV30: 0 | GW30: 0 | GX30: 0 | GY30: 0 | GZ30: 0 | HA30: 0 | HB30: 0 | HC30: 0 | HD30: 0 | HE30: 0 | HF30: 0 | HG30: 0 | HH30: 0 | HI30: 0 | HJ30: 0 | HK30: 0 | HL30: 0 | HM30: 0 | HN30: 0 | HO30: 0 | HP30: 0 | HQ30: 0 | HR30: 0 | HS30: 0 | HT30: 0 | HU30: 0 | HV30: 0 | HW30: 0 | HX30: 0 | HY30: 0 | HZ30: 0 | IA30: 0 | IB30: 0 | IC30: 0 | ID30: 0 | IE30: 0 | IF30: 0 | IG30: 0 | IH30: 0 | II30: 0 | IJ30: 0 | IK30: 0 | IL30: 0 | IM30: 0 | IN30: 0 | IO30: 0 | IP30: 0 | IQ30: 0 | IR30: 0 | IS30: 0 | IT30: 0 | IU30: 0 | IV30: 0 | IW30: 0 | IX30: 0 | IY30: 0 | IZ30: 0 | JA30: 0 | JB30: 0 | JC30: 0 | JD30: 0 | JE30: 0 | JF30: 0 | JG30: 0 | JH30: 0 | JI30: 0 | JY30: ○ | JZ30: 0 | KA30: 0 | KB30: 0 | KC30: 0 | KD30: 0 | KE30: 0 | KF30: 0 | KG30: ○ | KH30: 0 | KI30: 0 | KJ30: 0 | KK30: ○ | KL30: ○ | KN30: 0 | KO30: 0
A31: 0 | B31: 0 | C31: 0 | D31: 0 | E31: 0 | F31: 0 | G31: 0 | H31: 0 | I31: 0 | J31: 0 | K31: 19 | P31: =IF(O31<>"",VLOOKUP(O31,整理番号表!$Z$17:$AA$20,2,FALSE),) -> 0 | Q31: 0 | W31: =IF(V31<>0,VLOOKUP(V31,整理番号表!$B$6:$L$13,2,FALSE),) -> 0 | X31: 0 | Y31: =IF(X31<>0,VLOOKUP(X31,整理番号表!$B$16:$C$18,2,FALSE),) -> 0 | AA31: =IF(Z31<>0,VLOOKUP(Z31,整理番号表!$B$22:$C$29,2,FALSE),) -> 0 | AD31: =IF(AC31<>0,VLOOKUP(AC31,整理番号表!$B$32:$G$60,2,FALSE),) -> 0 | AF31: =IF(AE31<>0,VLOOKUP(AE31,整理番号表!$P$5:$R$39,2,FALSE),) -> 0 | AH31: 0 | AK31: =IF(AJ31<>"",VLOOKUP(AJ31,整理番号表!$Z$6:$AA$14,2,FALSE),"") ->  | AL31: 0 | AR31: =IF(AQ31<>0,VLOOKUP(AQ31,整理番号表!$P$43:$Q$49,2,FALSE),) -> 0 | AW31: 0 | AX31: 0 | AZ31: 0 | BD31: 0 | BE31: 0 | BF31: 0 | BI31: 0 | BJ31: 0 | BL31: =IF(BK31<>0,VLOOKUP(BK31,整理番号表!$T$5:$U$16,2,FALSE),) -> 0 | BN31: =IF(BM31<>0,VLOOKUP(BM31,整理番号表!$T$22:$U$30,2,FALSE),) -> 0 | BP31: 0 | BX31: 0 | CH31: 0 | CI31: 0 | CJ31: 0 | CK31: 0 | CL31: 0 | CM31: 0 | CN31: 0 | CO31: 0 | CP31: 0 | CQ31: 0 | CR31: 0 | CS31: 0 | CT31: 0 | CU31: 0 | CV31: 0 | CW31: 0 | CX31: 0 | CY31: 0 | CZ31: 0 | DA31: 0 | DB31: 0 | DC31: 0 | DD31: 0 | DE31: 0 | DF31: 0 | DG31: 0 | DH31: 0 | DI31: 0 | DO31: 0 | DP31: 0 | DQ31: 0 | DR31: 0 | DS31: 0 | DT31: 0 | DV31: 0 | ED31: 0 | FE31: 0 | FF31: 0 | FI31: 0 | FJ31: 0 | FK31: 0 | FL31: =IF(OR(AND(1<=$FK31,$FK31<=3),$FK31=6),VLOOKUP($FK31,整理番号表!$B$32:$G$60,2,FALSE),) -> 0 | FM31: =IF(OR($FK31=4,$FK31=7),VLOOKUP($FK31,整理番号表!$B$32:$G$60,2,FALSE),) -> 0 | FN31: =IF($FK31=5,VLOOKUP($FK31,整理番号表!$B$32:$G$60,2,FALSE),) -> 0 | FO31: =IF(AND(8<=$FK31,$FK31<=13),VLOOKUP($FK31,整理番号表!$B$32:$G$60,2,FALSE),) -> 0 | FP31: 0 | FQ31: 0 | FR31: =IF(AND(FE31<>1,$FP31=1,SUM($FQ31:FQ31)=0,$FF31=1,$FI31>=2),1,) -> 0 | FS31: =IF(AND(FE31<>1,$FP31=1,SUM($FQ31:FR31)=0,OR(AND($FF31=1,$FI31>0),$FI31>=4)),1,) -> 0 | FT31: =IF(AND(FE31<>1,$FP31=1,SUM($FQ31:FS31)=0,OR($FF31=1,$FI31>=2)),1,) -> 0 | FU31: =IF(AND(FE31<>1,$FP31=1,SUM($FQ31:FT31)=0,$FI31>0),1,) -> 0 | FV31: 0 | FW31: 0 | FX31: =IF(AND(FE31<>1,$FP31=2,SUM($FW31:FW31)=0,$FF31=1,$FJ31>=0.1),1,) -> 0 | FY31: =IF(AND(FE31<>1,$FP31=2,SUM($FW31:FX31)=0,OR(AND($FF31=1,$FI31>0),$FJ31>=0.2)),1,) -> 0 | FZ31: =IF(AND(FE31<>1,$FP31=2,SUM($FW31:FY31)=0,OR($FF31=1,$FJ31>=0.1)),1,) -> 0 | GA31: =IF(AND(FE31<>1,$FP31=2,SUM($FW31:FZ31)=0,$FI31>0),1,) -> 0 | GB31: 0 | GC31: =IF(AND(FE31<>1,$FP31=3,SUM($GB31:GB31)=0,AND($FF31=1,$FJ31>=0.05)),1,) -> 0 | GD31: =IF(AND(FE31<>1,$FP31=3,SUM($GB31:GC31)=0,OR(AND($FF31=1,$FI31>0),$FJ31>=0.1)),1,) -> 0 | GE31: =IF(AND(FE31<>1,$FP31=3,SUM($GB31:GD31)=0,OR($FF31=1,$FJ31>=0.05)),1,) -> 0 | GF31: =IF(AND(FE31<>1,$FP31=3,SUM($GB31:GE31)=0,$FI31>0),1,) -> 0 | GG31: 0 | GI31: 0 | GJ31: 0 | GK31: 0 | GL31: 0 | GM31: 0 | GN31: 0 | GO31: 0 | GP31: 0 | GQ31: 0 | GR31: 0 | GS31: 0 | GT31: 0 | GU31: 0 | GV31: 0 | GW31: 0 | GX31: 0 | GY31: 0 | GZ31: 0 | HA31: 0 | HB31: 0 | HC31: 0 | HD31: 0 | HE31: 0 | HF31: 0 | HG31: 0 | HH31: 0 | HI31: 0 | HJ31: 0 | HK31: 0 | HL31: 0 | HM31: 0 | HN31: 0 | HO31: 0 | HP31: 0 | HQ31: 0 | HR31: 0 | HS31: 0 | HT31: 0 | HU31: 0 | HV31: 0 | HW31: 0 | HX31: 0 | HY31: 0 | HZ31: 0 | IA31: 0 | IB31: 0 | IC31: 0 | ID31: 0 | IE31: 0 | IF31: 0 | IG31: 0 | IH31: 0 | II31: 0 | IJ31: 0 | IK31: 0 | IL31: 0 | IM31: 0 | IN31: 0 | IO31: 0 | IP31: 0 | IQ31: 0 | IR31: 0 | IS31: 0 | IT31: 0 | IU31: 0 | IV31: 0 | IW31: 0 | IX31: 0 | IY31: 0 | IZ31: 0 | JA31: 0 | JB31: 0 | JC31: 0 | JD31: 0 | JE31: 0 | JF31: 0 | JG31: 0 | JH31: 0 | JI31: 0 | JY31: ○ | JZ31: 0 | KA31: 0 | KB31: 0 | KC31: 0 | KD31: 0 | KE31: 0 | KF31: 0 | KG31: ○ | KH31: 0 | KI31: 0 | KJ31: 0 | KK31: ○ | KL31: ○ | KN31: 0 | KO31: 0
A32: 0 | B32: 0 | C32: 0 | D32: 0 | E32: 0 | F32: 0 | G32: 0 | H32: 0 | I32: 0 | J32: 0 | K32: 20 | P32: =IF(O32<>"",VLOOKUP(O32,整理番号表!$Z$17:$AA$20,2,FALSE),) -> 0 | Q32: 0 | W32: =IF(V32<>0,VLOOKUP(V32,整理番号表!$B$6:$L$13,2,FALSE),) -> 0 | X32: 0 | Y32: =IF(X32<>0,VLOOKUP(X32,整理番号表!$B$16:$C$18,2,FALSE),) -> 0 | AA32: =IF(Z32<>0,VLOOKUP(Z32,整理番号表!$B$22:$C$29,2,FALSE),) -> 0 | AD32: =IF(AC32<>0,VLOOKUP(AC32,整理番号表!$B$32:$G$60,2,FALSE),) -> 0 | AF32: =IF(AE32<>0,VLOOKUP(AE32,整理番号表!$P$5:$R$39,2,FALSE),) -> 0 | AH32: 0 | AK32: =IF(AJ32<>"",VLOOKUP(AJ32,整理番号表!$Z$6:$AA$14,2,FALSE),"") ->  | AL32: 0 | AR32: =IF(AQ32<>0,VLOOKUP(AQ32,整理番号表!$P$43:$Q$49,2,FALSE),) -> 0 | AW32: 0 | AX32: 0 | AZ32: 0 | BD32: 0 | BE32: 0 | BF32: 0 | BI32: 0 | BJ32: 0 | BL32: =IF(BK32<>0,VLOOKUP(BK32,整理番号表!$T$5:$U$16,2,FALSE),) -> 0 | BN32: =IF(BM32<>0,VLOOKUP(BM32,整理番号表!$T$22:$U$30,2,FALSE),) -> 0 | BP32: 0 | BX32: 0 | CH32: 0 | CI32: 0 | CJ32: 0 | CK32: 0 | CL32: 0 | CM32: 0 | CN32: 0 | CO32: 0 | CP32: 0 | CQ32: 0 | CR32: 0 | CS32: 0 | CT32: 0 | CU32: 0 | CV32: 0 | CW32: 0 | CX32: 0 | CY32: 0 | CZ32: 0 | DA32: 0 | DB32: 0 | DC32: 0 | DD32: 0 | DE32: 0 | DF32: 0 | DG32: 0 | DH32: 0 | DI32: 0 | DO32: 0 | DP32: 0 | DQ32: 0 | DR32: 0 | DS32: 0 | DT32: 0 | DV32: 0 | ED32: 0 | FE32: 0 | FF32: 0 | FI32: 0 | FJ32: 0 | FK32: 0 | FL32: =IF(OR(AND(1<=$FK32,$FK32<=3),$FK32=6),VLOOKUP($FK32,整理番号表!$B$32:$G$60,2,FALSE),) -> 0 | FM32: =IF(OR($FK32=4,$FK32=7),VLOOKUP($FK32,整理番号表!$B$32:$G$60,2,FALSE),) -> 0 | FN32: =IF($FK32=5,VLOOKUP($FK32,整理番号表!$B$32:$G$60,2,FALSE),) -> 0 | FO32: =IF(AND(8<=$FK32,$FK32<=13),VLOOKUP($FK32,整理番号表!$B$32:$G$60,2,FALSE),) -> 0 | FP32: 0 | FQ32: 0 | FR32: =IF(AND(FE32<>1,$FP32=1,SUM($FQ32:FQ32)=0,$FF32=1,$FI32>=2),1,) -> 0 | FS32: =IF(AND(FE32<>1,$FP32=1,SUM($FQ32:FR32)=0,OR(AND($FF32=1,$FI32>0),$FI32>=4)),1,) -> 0 | FT32: =IF(AND(FE32<>1,$FP32=1,SUM($FQ32:FS32)=0,OR($FF32=1,$FI32>=2)),1,) -> 0 | FU32: =IF(AND(FE32<>1,$FP32=1,SUM($FQ32:FT32)=0,$FI32>0),1,) -> 0 | FV32: 0 | FW32: 0 | FX32: =IF(AND(FE32<>1,$FP32=2,SUM($FW32:FW32)=0,$FF32=1,$FJ32>=0.1),1,) -> 0 | FY32: =IF(AND(FE32<>1,$FP32=2,SUM($FW32:FX32)=0,OR(AND($FF32=1,$FI32>0),$FJ32>=0.2)),1,) -> 0 | FZ32: =IF(AND(FE32<>1,$FP32=2,SUM($FW32:FY32)=0,OR($FF32=1,$FJ32>=0.1)),1,) -> 0 | GA32: =IF(AND(FE32<>1,$FP32=2,SUM($FW32:FZ32)=0,$FI32>0),1,) -> 0 | GB32: 0 | GC32: =IF(AND(FE32<>1,$FP32=3,SUM($GB32:GB32)=0,AND($FF32=1,$FJ32>=0.05)),1,) -> 0 | GD32: =IF(AND(FE32<>1,$FP32=3,SUM($GB32:GC32)=0,OR(AND($FF32=1,$FI32>0),$FJ32>=0.1)),1,) -> 0 | GE32: =IF(AND(FE32<>1,$FP32=3,SUM($GB32:GD32)=0,OR($FF32=1,$FJ32>=0.05)),1,) -> 0 | GF32: =IF(AND(FE32<>1,$FP32=3,SUM($GB32:GE32)=0,$FI32>0),1,) -> 0 | GG32: 0 | GI32: 0 | GJ32: 0 | GK32: 0 | GL32: 0 | GM32: 0 | GN32: 0 | GO32: 0 | GP32: 0 | GQ32: 0 | GR32: 0 | GS32: 0 | GT32: 0 | GU32: 0 | GV32: 0 | GW32: 0 | GX32: 0 | GY32: 0 | GZ32: 0 | HA32: 0 | HB32: 0 | HC32: 0 | HD32: 0 | HE32: 0 | HF32: 0 | HG32: 0 | HH32: 0 | HI32: 0 | HJ32: 0 | HK32: 0 | HL32: 0 | HM32: 0 | HN32: 0 | HO32: 0 | HP32: 0 | HQ32: 0 | HR32: 0 | HS32: 0 | HT32: 0 | HU32: 0 | HV32: 0 | HW32: 0 | HX32: 0 | HY32: 0 | HZ32: 0 | IA32: 0 | IB32: 0 | IC32: 0 | ID32: 0 | IE32: 0 | IF32: 0 | IG32: 0 | IH32: 0 | II32: 0 | IJ32: 0 | IK32: 0 | IL32: 0 | IM32: 0 | IN32: 0 | IO32: 0 | IP32: 0 | IQ32: 0 | IR32: 0 | IS32: 0 | IT32: 0 | IU32: 0 | IV32: 0 | IW32: 0 | IX32: 0 | IY32: 0 | IZ32: 0 | JA32: 0 | JB32: 0 | JC32: 0 | JD32: 0 | JE32: 0 | JF32: 0 | JG32: 0 | JH32: 0 | JI32: 0 | JY32: ○ | JZ32: 0 | KA32: 0 | KB32: 0 | KC32: 0 | KD32: 0 | KE32: 0 | KF32: 0 | KG32: ○ | KH32: 0 | KI32: 0 | KJ32: 0 | KK32: ○ | KL32: ○ | KN32: 0 | KO32: 0
A33: 0 | B33: 0 | C33: 0 | D33: 0 | E33: 0 | F33: 0 | G33: 0 | H33: 0 | I33: 0 | J33: 0 | K33: 21 | P33: =IF(O33<>"",VLOOKUP(O33,整理番号表!$Z$17:$AA$20,2,FALSE),) -> 0 | Q33: 0 | W33: =IF(V33<>0,VLOOKUP(V33,整理番号表!$B$6:$L$13,2,FALSE),) -> 0 | X33: 0 | Y33: =IF(X33<>0,VLOOKUP(X33,整理番号表!$B$16:$C$18,2,FALSE),) -> 0 | AA33: =IF(Z33<>0,VLOOKUP(Z33,整理番号表!$B$22:$C$29,2,FALSE),) -> 0 | AD33: =IF(AC33<>0,VLOOKUP(AC33,整理番号表!$B$32:$G$60,2,FALSE),) -> 0 | AF33: =IF(AE33<>0,VLOOKUP(AE33,整理番号表!$P$5:$R$39,2,FALSE),) -> 0 | AH33: 0 | AK33: =IF(AJ33<>"",VLOOKUP(AJ33,整理番号表!$Z$6:$AA$14,2,FALSE),"") ->  | AL33: 0 | AR33: =IF(AQ33<>0,VLOOKUP(AQ33,整理番号表!$P$43:$Q$49,2,FALSE),) -> 0 | AW33: 0 | AX33: 0 | AZ33: 0 | BD33: 0 | BE33: 0 | BF33: 0 | BI33: 0 | BJ33: 0 | BL33: =IF(BK33<>0,VLOOKUP(BK33,整理番号表!$T$5:$U$16,2,FALSE),) -> 0 | BN33: =IF(BM33<>0,VLOOKUP(BM33,整理番号表!$T$22:$U$30,2,FALSE),) -> 0 | BP33: 0 | BX33: 0 | CH33: 0 | CI33: 0 | CJ33: 0 | CK33: 0 | CL33: 0 | CM33: 0 | CN33: 0 | CO33: 0 | CP33: 0 | CQ33: 0 | CR33: 0 | CS33: 0 | CT33: 0 | CU33: 0 | CV33: 0 | CW33: 0 | CX33: 0 | CY33: 0 | CZ33: 0 | DA33: 0 | DB33: 0 | DC33: 0 | DD33: 0 | DE33: 0 | DF33: 0 | DG33: 0 | DH33: 0 | DI33: 0 | DO33: 0 | DP33: 0 | DQ33: 0 | DR33: 0 | DS33: 0 | DT33: 0 | DV33: 0 | ED33: 0 | FE33: 0 | FF33: 0 | FI33: 0 | FJ33: 0 | FK33: 0 | FL33: =IF(OR(AND(1<=$FK33,$FK33<=3),$FK33=6),VLOOKUP($FK33,整理番号表!$B$32:$G$60,2,FALSE),) -> 0 | FM33: =IF(OR($FK33=4,$FK33=7),VLOOKUP($FK33,整理番号表!$B$32:$G$60,2,FALSE),) -> 0 | FN33: =IF($FK33=5,VLOOKUP($FK33,整理番号表!$B$32:$G$60,2,FALSE),) -> 0 | FO33: =IF(AND(8<=$FK33,$FK33<=13),VLOOKUP($FK33,整理番号表!$B$32:$G$60,2,FALSE),) -> 0 | FP33: 0 | FQ33: 0 | FR33: =IF(AND(FE33<>1,$FP33=1,SUM($FQ33:FQ33)=0,$FF33=1,$FI33>=2),1,) -> 0 | FS33: =IF(AND(FE33<>1,$FP33=1,SUM($FQ33:FR33)=0,OR(AND($FF33=1,$FI33>0),$FI33>=4)),1,) -> 0 | FT33: =IF(AND(FE33<>1,$FP33=1,SUM($FQ33:FS33)=0,OR($FF33=1,$FI33>=2)),1,) -> 0 | FU33: =IF(AND(FE33<>1,$FP33=1,SUM($FQ33:FT33)=0,$FI33>0),1,) -> 0 | FV33: 0 | FW33: 0 | FX33: =IF(AND(FE33<>1,$FP33=2,SUM($FW33:FW33)=0,$FF33=1,$FJ33>=0.1),1,) -> 0 | FY33: =IF(AND(FE33<>1,$FP33=2,SUM($FW33:FX33)=0,OR(AND($FF33=1,$FI33>0),$FJ33>=0.2)),1,) -> 0 | FZ33: =IF(AND(FE33<>1,$FP33=2,SUM($FW33:FY33)=0,OR($FF33=1,$FJ33>=0.1)),1,) -> 0 | GA33: =IF(AND(FE33<>1,$FP33=2,SUM($FW33:FZ33)=0,$FI33>0),1,) -> 0 | GB33: 0 | GC33: =IF(AND(FE33<>1,$FP33=3,SUM($GB33:GB33)=0,AND($FF33=1,$FJ33>=0.05)),1,) -> 0 | GD33: =IF(AND(FE33<>1,$FP33=3,SUM($GB33:GC33)=0,OR(AND($FF33=1,$FI33>0),$FJ33>=0.1)),1,) -> 0 | GE33: =IF(AND(FE33<>1,$FP33=3,SUM($GB33:GD33)=0,OR($FF33=1,$FJ33>=0.05)),1,) -> 0 | GF33: =IF(AND(FE33<>1,$FP33=3,SUM($GB33:GE33)=0,$FI33>0),1,) -> 0 | GG33: 0 | GI33: 0 | GJ33: 0 | GK33: 0 | GL33: 0 | GM33: 0 | GN33: 0 | GO33: 0 | GP33: 0 | GQ33: 0 | GR33: 0 | GS33: 0 | GT33: 0 | GU33: 0 | GV33: 0 | GW33: 0 | GX33: 0 | GY33: 0 | GZ33: 0 | HA33: 0 | HB33: 0 | HC33: 0 | HD33: 0 | HE33: 0 | HF33: 0 | HG33: 0 | HH33: 0 | HI33: 0 | HJ33: 0 | HK33: 0 | HL33: 0 | HM33: 0 | HN33: 0 | HO33: 0 | HP33: 0 | HQ33: 0 | HR33: 0 | HS33: 0 | HT33: 0 | HU33: 0 | HV33: 0 | HW33: 0 | HX33: 0 | HY33: 0 | HZ33: 0 | IA33: 0 | IB33: 0 | IC33: 0 | ID33: 0 | IE33: 0 | IF33: 0 | IG33: 0 | IH33: 0 | II33: 0 | IJ33: 0 | IK33: 0 | IL33: 0 | IM33: 0 | IN33: 0 | IO33: 0 | IP33: 0 | IQ33: 0 | IR33: 0 | IS33: 0 | IT33: 0 | IU33: 0 | IV33: 0 | IW33: 0 | IX33: 0 | IY33: 0 | IZ33: 0 | JA33: 0 | JB33: 0 | JC33: 0 | JD33: 0 | JE33: 0 | JF33: 0 | JG33: 0 | JH33: 0 | JI33: 0 | JY33: ○ | JZ33: 0 | KA33: 0 | KB33: 0 | KC33: 0 | KD33: 0 | KE33: 0 | KF33: 0 | KG33: ○ | KH33: 0 | KI33: 0 | KJ33: 0 | KK33: ○ | KL33: ○ | KN33: 0 | KO33: 0
A34: 0 | B34: 0 | C34: 0 | D34: 0 | E34: 0 | F34: 0 | G34: 0 | H34: 0 | I34: 0 | J34: 0 | K34: 22 | P34: =IF(O34<>"",VLOOKUP(O34,整理番号表!$Z$17:$AA$20,2,FALSE),) -> 0 | Q34: 0 | W34: =IF(V34<>0,VLOOKUP(V34,整理番号表!$B$6:$L$13,2,FALSE),) -> 0 | X34: 0 | Y34: =IF(X34<>0,VLOOKUP(X34,整理番号表!$B$16:$C$18,2,FALSE),) -> 0 | AA34: =IF(Z34<>0,VLOOKUP(Z34,整理番号表!$B$22:$C$29,2,FALSE),) -> 0 | AD34: =IF(AC34<>0,VLOOKUP(AC34,整理番号表!$B$32:$G$60,2,FALSE),) -> 0 | AF34: =IF(AE34<>0,VLOOKUP(AE34,整理番号表!$P$5:$R$39,2,FALSE),) -> 0 | AH34: 0 | AK34: =IF(AJ34<>"",VLOOKUP(AJ34,整理番号表!$Z$6:$AA$14,2,FALSE),"") ->  | AL34: 0 | AR34: =IF(AQ34<>0,VLOOKUP(AQ34,整理番号表!$P$43:$Q$49,2,FALSE),) -> 0 | AW34: 0 | AX34: 0 | AZ34: 0 | BD34: 0 | BE34: 0 | BF34: 0 | BI34: 0 | BJ34: 0 | BL34: =IF(BK34<>0,VLOOKUP(BK34,整理番号表!$T$5:$U$16,2,FALSE),) -> 0 | BN34: =IF(BM34<>0,VLOOKUP(BM34,整理番号表!$T$22:$U$30,2,FALSE),) -> 0 | BP34: 0 | BX34: 0 | CH34: 0 | CI34: 0 | CJ34: 0 | CK34: 0 | CL34: 0 | CM34: 0 | CN34: 0 | CO34: 0 | CP34: 0 | CQ34: 0 | CR34: 0 | CS34: 0 | CT34: 0 | CU34: 0 | CV34: 0 | CW34: 0 | CX34: 0 | CY34: 0 | CZ34: 0 | DA34: 0 | DB34: 0 | DC34: 0 | DD34: 0 | DE34: 0 | DF34: 0 | DG34: 0 | DH34: 0 | DI34: 0 | DO34: 0 | DP34: 0 | DQ34: 0 | DR34: 0 | DS34: 0 | DT34: 0 | DV34: 0 | ED34: 0 | FE34: 0 | FF34: 0 | FI34: 0 | FJ34: 0 | FK34: 0 | FL34: =IF(OR(AND(1<=$FK34,$FK34<=3),$FK34=6),VLOOKUP($FK34,整理番号表!$B$32:$G$60,2,FALSE),) -> 0 | FM34: =IF(OR($FK34=4,$FK34=7),VLOOKUP($FK34,整理番号表!$B$32:$G$60,2,FALSE),) -> 0 | FN34: =IF($FK34=5,VLOOKUP($FK34,整理番号表!$B$32:$G$60,2,FALSE),) -> 0 | FO34: =IF(AND(8<=$FK34,$FK34<=13),VLOOKUP($FK34,整理番号表!$B$32:$G$60,2,FALSE),) -> 0 | FP34: 0 | FQ34: 0 | FR34: =IF(AND(FE34<>1,$FP34=1,SUM($FQ34:FQ34)=0,$FF34=1,$FI34>=2),1,) -> 0 | FS34: =IF(AND(FE34<>1,$FP34=1,SUM($FQ34:FR34)=0,OR(AND($FF34=1,$FI34>0),$FI34>=4)),1,) -> 0 | FT34: =IF(AND(FE34<>1,$FP34=1,SUM($FQ34:FS34)=0,OR($FF34=1,$FI34>=2)),1,) -> 0 | FU34: =IF(AND(FE34<>1,$FP34=1,SUM($FQ34:FT34)=0,$FI34>0),1,) -> 0 | FV34: 0 | FW34: 0 | FX34: =IF(AND(FE34<>1,$FP34=2,SUM($FW34:FW34)=0,$FF34=1,$FJ34>=0.1),1,) -> 0 | FY34: =IF(AND(FE34<>1,$FP34=2,SUM($FW34:FX34)=0,OR(AND($FF34=1,$FI34>0),$FJ34>=0.2)),1,) -> 0 | FZ34: =IF(AND(FE34<>1,$FP34=2,SUM($FW34:FY34)=0,OR($FF34=1,$FJ34>=0.1)),1,) -> 0 | GA34: =IF(AND(FE34<>1,$FP34=2,SUM($FW34:FZ34)=0,$FI34>0),1,) -> 0 | GB34: 0 | GC34: =IF(AND(FE34<>1,$FP34=3,SUM($GB34:GB34)=0,AND($FF34=1,$FJ34>=0.05)),1,) -> 0 | GD34: =IF(AND(FE34<>1,$FP34=3,SUM($GB34:GC34)=0,OR(AND($FF34=1,$FI34>0),$FJ34>=0.1)),1,) -> 0 | GE34: =IF(AND(FE34<>1,$FP34=3,SUM($GB34:GD34)=0,OR($FF34=1,$FJ34>=0.05)),1,) -> 0 | GF34: =IF(AND(FE34<>1,$FP34=3,SUM($GB34:GE34)=0,$FI34>0),1,) -> 0 | GG34: 0 | GI34: 0 | GJ34: 0 | GK34: 0 | GL34: 0 | GM34: 0 | GN34: 0 | GO34: 0 | GP34: 0 | GQ34: 0 | GR34: 0 | GS34: 0 | GT34: 0 | GU34: 0 | GV34: 0 | GW34: 0 | GX34: 0 | GY34: 0 | GZ34: 0 | HA34: 0 | HB34: 0 | HC34: 0 | HD34: 0 | HE34: 0 | HF34: 0 | HG34: 0 | HH34: 0 | HI34: 0 | HJ34: 0 | HK34: 0 | HL34: 0 | HM34: 0 | HN34: 0 | HO34: 0 | HP34: 0 | HQ34: 0 | HR34: 0 | HS34: 0 | HT34: 0 | HU34: 0 | HV34: 0 | HW34: 0 | HX34: 0 | HY34: 0 | HZ34: 0 | IA34: 0 | IB34: 0 | IC34: 0 | ID34: 0 | IE34: 0 | IF34: 0 | IG34: 0 | IH34: 0 | II34: 0 | IJ34: 0 | IK34: 0 | IL34: 0 | IM34: 0 | IN34: 0 | IO34: 0 | IP34: 0 | IQ34: 0 | IR34: 0 | IS34: 0 | IT34: 0 | IU34: 0 | IV34: 0 | IW34: 0 | IX34: 0 | IY34: 0 | IZ34: 0 | JA34: 0 | JB34: 0 | JC34: 0 | JD34: 0 | JE34: 0 | JF34: 0 | JG34: 0 | JH34: 0 | JI34: 0 | JY34: ○ | JZ34: 0 | KA34: 0 | KB34: 0 | KC34: 0 | KD34: 0 | KE34: 0 | KF34: 0 | KG34: ○ | KH34: 0 | KI34: 0 | KJ34: 0 | KK34: ○ | KL34: ○ | KN34: 0 | KO34: 0
A35: 0 | B35: 0 | C35: 0 | D35: 0 | E35: 0 | F35: 0 | G35: 0 | H35: 0 | I35: 0 | J35: 0 | K35: 23 | P35: =IF(O35<>"",VLOOKUP(O35,整理番号表!$Z$17:$AA$20,2,FALSE),) -> 0 | Q35: 0 | W35: =IF(V35<>0,VLOOKUP(V35,整理番号表!$B$6:$L$13,2,FALSE),) -> 0 | X35: 0 | Y35: =IF(X35<>0,VLOOKUP(X35,整理番号表!$B$16:$C$18,2,FALSE),) -> 0 | AA35: =IF(Z35<>0,VLOOKUP(Z35,整理番号表!$B$22:$C$29,2,FALSE),) -> 0 | AD35: =IF(AC35<>0,VLOOKUP(AC35,整理番号表!$B$32:$G$60,2,FALSE),) -> 0 | AF35: =IF(AE35<>0,VLOOKUP(AE35,整理番号表!$P$5:$R$39,2,FALSE),) -> 0 | AH35: 0 | AK35: =IF(AJ35<>"",VLOOKUP(AJ35,整理番号表!$Z$6:$AA$14,2,FALSE),"") ->  | AL35: 0 | AR35: =IF(AQ35<>0,VLOOKUP(AQ35,整理番号表!$P$43:$Q$49,2,FALSE),) -> 0 | AW35: 0 | AX35: 0 | AZ35: 0 | BD35: 0 | BE35: 0 | BF35: 0 | BI35: 0 | BJ35: 0 | BL35: =IF(BK35<>0,VLOOKUP(BK35,整理番号表!$T$5:$U$16,2,FALSE),) -> 0 | BN35: =IF(BM35<>0,VLOOKUP(BM35,整理番号表!$T$22:$U$30,2,FALSE),) -> 0 | BP35: 0 | BX35: 0 | CH35: 0 | CI35: 0 | CJ35: 0 | CK35: 0 | CL35: 0 | CM35: 0 | CN35: 0 | CO35: 0 | CP35: 0 | CQ35: 0 | CR35: 0 | CS35: 0 | CT35: 0 | CU35: 0 | CV35: 0 | CW35: 0 | CX35: 0 | CY35: 0 | CZ35: 0 | DA35: 0 | DB35: 0 | DC35: 0 | DD35: 0 | DE35: 0 | DF35: 0 | DG35: 0 | DH35: 0 | DI35: 0 | DO35: 0 | DP35: 0 | DQ35: 0 | DR35: 0 | DS35: 0 | DT35: 0 | DV35: 0 | ED35: 0 | FE35: 0 | FF35: 0 | FI35: 0 | FJ35: 0 | FK35: 0 | FL35: =IF(OR(AND(1<=$FK35,$FK35<=3),$FK35=6),VLOOKUP($FK35,整理番号表!$B$32:$G$60,2,FALSE),) -> 0 | FM35: =IF(OR($FK35=4,$FK35=7),VLOOKUP($FK35,整理番号表!$B$32:$G$60,2,FALSE),) -> 0 | FN35: =IF($FK35=5,VLOOKUP($FK35,整理番号表!$B$32:$G$60,2,FALSE),) -> 0 | FO35: =IF(AND(8<=$FK35,$FK35<=13),VLOOKUP($FK35,整理番号表!$B$32:$G$60,2,FALSE),) -> 0 | FP35: 0 | FQ35: 0 | FR35: =IF(AND(FE35<>1,$FP35=1,SUM($FQ35:FQ35)=0,$FF35=1,$FI35>=2),1,) -> 0 | FS35: =IF(AND(FE35<>1,$FP35=1,SUM($FQ35:FR35)=0,OR(AND($FF35=1,$FI35>0),$FI35>=4)),1,) -> 0 | FT35: =IF(AND(FE35<>1,$FP35=1,SUM($FQ35:FS35)=0,OR($FF35=1,$FI35>=2)),1,) -> 0 | FU35: =IF(AND(FE35<>1,$FP35=1,SUM($FQ35:FT35)=0,$FI35>0),1,) -> 0 | FV35: 0 | FW35: 0 | FX35: =IF(AND(FE35<>1,$FP35=2,SUM($FW35:FW35)=0,$FF35=1,$FJ35>=0.1),1,) -> 0 | FY35: =IF(AND(FE35<>1,$FP35=2,SUM($FW35:FX35)=0,OR(AND($FF35=1,$FI35>0),$FJ35>=0.2)),1,) -> 0 | FZ35: =IF(AND(FE35<>1,$FP35=2,SUM($FW35:FY35)=0,OR($FF35=1,$FJ35>=0.1)),1,) -> 0 | GA35: =IF(AND(FE35<>1,$FP35=2,SUM($FW35:FZ35)=0,$FI35>0),1,) -> 0 | GB35: 0 | GC35: =IF(AND(FE35<>1,$FP35=3,SUM($GB35:GB35)=0,AND($FF35=1,$FJ35>=0.05)),1,) -> 0 | GD35: =IF(AND(FE35<>1,$FP35=3,SUM($GB35:GC35)=0,OR(AND($FF35=1,$FI35>0),$FJ35>=0.1)),1,) -> 0 | GE35: =IF(AND(FE35<>1,$FP35=3,SUM($GB35:GD35)=0,OR($FF35=1,$FJ35>=0.05)),1,) -> 0 | GF35: =IF(AND(FE35<>1,$FP35=3,SUM($GB35:GE35)=0,$FI35>0),1,) -> 0 | GG35: 0 | GI35: 0 | GJ35: 0 | GK35: 0 | GL35: 0 | GM35: 0 | GN35: 0 | GO35: 0 | GP35: 0 | GQ35: 0 | GR35: 0 | GS35: 0 | GT35: 0 | GU35: 0 | GV35: 0 | GW35: 0 | GX35: 0 | GY35: 0 | GZ35: 0 | HA35: 0 | HB35: 0 | HC35: 0 | HD35: 0 | HE35: 0 | HF35: 0 | HG35: 0 | HH35: 0 | HI35: 0 | HJ35: 0 | HK35: 0 | HL35: 0 | HM35: 0 | HN35: 0 | HO35: 0 | HP35: 0 | HQ35: 0 | HR35: 0 | HS35: 0 | HT35: 0 | HU35: 0 | HV35: 0 | HW35: 0 | HX35: 0 | HY35: 0 | HZ35: 0 | IA35: 0 | IB35: 0 | IC35: 0 | ID35: 0 | IE35: 0 | IF35: 0 | IG35: 0 | IH35: 0 | II35: 0 | IJ35: 0 | IK35: 0 | IL35: 0 | IM35: 0 | IN35: 0 | IO35: 0 | IP35: 0 | IQ35: 0 | IR35: 0 | IS35: 0 | IT35: 0 | IU35: 0 | IV35: 0 | IW35: 0 | IX35: 0 | IY35: 0 | IZ35: 0 | JA35: 0 | JB35: 0 | JC35: 0 | JD35: 0 | JE35: 0 | JF35: 0 | JG35: 0 | JH35: 0 | JI35: 0 | JY35: ○ | JZ35: 0 | KA35: 0 | KB35: 0 | KC35: 0 | KD35: 0 | KE35: 0 | KF35: 0 | KG35: ○ | KH35: 0 | KI35: 0 | KJ35: 0 | KK35: ○ | KL35: ○ | KN35: 0 | KO35: 0
A36: 0 | B36: 0 | C36: 0 | D36: 0 | E36: 0 | F36: 0 | G36: 0 | H36: 0 | I36: 0 | J36: 0 | K36: 24 | P36: =IF(O36<>"",VLOOKUP(O36,整理番号表!$Z$17:$AA$20,2,FALSE),) -> 0 | Q36: 0 | W36: =IF(V36<>0,VLOOKUP(V36,整理番号表!$B$6:$L$13,2,FALSE),) -> 0 | X36: 0 | Y36: =IF(X36<>0,VLOOKUP(X36,整理番号表!$B$16:$C$18,2,FALSE),) -> 0 | AA36: =IF(Z36<>0,VLOOKUP(Z36,整理番号表!$B$22:$C$29,2,FALSE),) -> 0 | AD36: =IF(AC36<>0,VLOOKUP(AC36,整理番号表!$B$32:$G$60,2,FALSE),) -> 0 | AF36: =IF(AE36<>0,VLOOKUP(AE36,整理番号表!$P$5:$R$39,2,FALSE),) -> 0 | AH36: 0 | AK36: =IF(AJ36<>"",VLOOKUP(AJ36,整理番号表!$Z$6:$AA$14,2,FALSE),"") ->  | AL36: 0 | AR36: =IF(AQ36<>0,VLOOKUP(AQ36,整理番号表!$P$43:$Q$49,2,FALSE),) -> 0 | AW36: 0 | AX36: 0 | AZ36: 0 | BD36: 0 | BE36: 0 | BF36: 0 | BI36: 0 | BJ36: 0 | BL36: =IF(BK36<>0,VLOOKUP(BK36,整理番号表!$T$5:$U$16,2,FALSE),) -> 0 | BN36: =IF(BM36<>0,VLOOKUP(BM36,整理番号表!$T$22:$U$30,2,FALSE),) -> 0 | BP36: 0 | BX36: 0 | CH36: 0 | CI36: 0 | CJ36: 0 | CK36: 0 | CL36: 0 | CM36: 0 | CN36: 0 | CO36: 0 | CP36: 0 | CQ36: 0 | CR36: 0 | CS36: 0 | CT36: 0 | CU36: 0 | CV36: 0 | CW36: 0 | CX36: 0 | CY36: 0 | CZ36: 0 | DA36: 0 | DB36: 0 | DC36: 0 | DD36: 0 | DE36: 0 | DF36: 0 | DG36: 0 | DH36: 0 | DI36: 0 | DO36: 0 | DP36: 0 | DQ36: 0 | DR36: 0 | DS36: 0 | DT36: 0 | DV36: 0 | ED36: 0 | FE36: 0 | FF36: 0 | FI36: 0 | FJ36: 0 | FK36: 0 | FL36: =IF(OR(AND(1<=$FK36,$FK36<=3),$FK36=6),VLOOKUP($FK36,整理番号表!$B$32:$G$60,2,FALSE),) -> 0 | FM36: =IF(OR($FK36=4,$FK36=7),VLOOKUP($FK36,整理番号表!$B$32:$G$60,2,FALSE),) -> 0 | FN36: =IF($FK36=5,VLOOKUP($FK36,整理番号表!$B$32:$G$60,2,FALSE),) -> 0 | FO36: =IF(AND(8<=$FK36,$FK36<=13),VLOOKUP($FK36,整理番号表!$B$32:$G$60,2,FALSE),) -> 0 | FP36: 0 | FQ36: 0 | FR36: =IF(AND(FE36<>1,$FP36=1,SUM($FQ36:FQ36)=0,$FF36=1,$FI36>=2),1,) -> 0 | FS36: =IF(AND(FE36<>1,$FP36=1,SUM($FQ36:FR36)=0,OR(AND($FF36=1,$FI36>0),$FI36>=4)),1,) -> 0 | FT36: =IF(AND(FE36<>1,$FP36=1,SUM($FQ36:FS36)=0,OR($FF36=1,$FI36>=2)),1,) -> 0 | FU36: =IF(AND(FE36<>1,$FP36=1,SUM($FQ36:FT36)=0,$FI36>0),1,) -> 0 | FV36: 0 | FW36: 0 | FX36: =IF(AND(FE36<>1,$FP36=2,SUM($FW36:FW36)=0,$FF36=1,$FJ36>=0.1),1,) -> 0 | FY36: =IF(AND(FE36<>1,$FP36=2,SUM($FW36:FX36)=0,OR(AND($FF36=1,$FI36>0),$FJ36>=0.2)),1,) -> 0 | FZ36: =IF(AND(FE36<>1,$FP36=2,SUM($FW36:FY36)=0,OR($FF36=1,$FJ36>=0.1)),1,) -> 0 | GA36: =IF(AND(FE36<>1,$FP36=2,SUM($FW36:FZ36)=0,$FI36>0),1,) -> 0 | GB36: 0 | GC36: =IF(AND(FE36<>1,$FP36=3,SUM($GB36:GB36)=0,AND($FF36=1,$FJ36>=0.05)),1,) -> 0 | GD36: =IF(AND(FE36<>1,$FP36=3,SUM($GB36:GC36)=0,OR(AND($FF36=1,$FI36>0),$FJ36>=0.1)),1,) -> 0 | GE36: =IF(AND(FE36<>1,$FP36=3,SUM($GB36:GD36)=0,OR($FF36=1,$FJ36>=0.05)),1,) -> 0 | GF36: =IF(AND(FE36<>1,$FP36=3,SUM($GB36:GE36)=0,$FI36>0),1,) -> 0 | GG36: 0 | GI36: 0 | GJ36: 0 | GK36: 0 | GL36: 0 | GM36: 0 | GN36: 0 | GO36: 0 | GP36: 0 | GQ36: 0 | GR36: 0 | GS36: 0 | GT36: 0 | GU36: 0 | GV36: 0 | GW36: 0 | GX36: 0 | GY36: 0 | GZ36: 0 | HA36: 0 | HB36: 0 | HC36: 0 | HD36: 0 | HE36: 0 | HF36: 0 | HG36: 0 | HH36: 0 | HI36: 0 | HJ36: 0 | HK36: 0 | HL36: 0 | HM36: 0 | HN36: 0 | HO36: 0 | HP36: 0 | HQ36: 0 | HR36: 0 | HS36: 0 | HT36: 0 | HU36: 0 | HV36: 0 | HW36: 0 | HX36: 0 | HY36: 0 | HZ36: 0 | IA36: 0 | IB36: 0 | IC36: 0 | ID36: 0 | IE36: 0 | IF36: 0 | IG36: 0 | IH36: 0 | II36: 0 | IJ36: 0 | IK36: 0 | IL36: 0 | IM36: 0 | IN36: 0 | IO36: 0 | IP36: 0 | IQ36: 0 | IR36: 0 | IS36: 0 | IT36: 0 | IU36: 0 | IV36: 0 | IW36: 0 | IX36: 0 | IY36: 0 | IZ36: 0 | JA36: 0 | JB36: 0 | JC36: 0 | JD36: 0 | JE36: 0 | JF36: 0 | JG36: 0 | JH36: 0 | JI36: 0 | JY36: ○ | JZ36: 0 | KA36: 0 | KB36: 0 | KC36: 0 | KD36: 0 | KE36: 0 | KF36: 0 | KG36: ○ | KH36: 0 | KI36: 0 | KJ36: 0 | KK36: ○ | KL36: ○ | KN36: 0 | KO36: 0
A37: 0 | B37: 0 | C37: 0 | D37: 0 | E37: 0 | F37: 0 | G37: 0 | H37: 0 | I37: 0 | J37: 0 | K37: 25 | P37: =IF(O37<>"",VLOOKUP(O37,整理番号表!$Z$17:$AA$20,2,FALSE),) -> 0 | Q37: 0 | W37: =IF(V37<>0,VLOOKUP(V37,整理番号表!$B$6:$L$13,2,FALSE),) -> 0 | X37: 0 | Y37: =IF(X37<>0,VLOOKUP(X37,整理番号表!$B$16:$C$18,2,FALSE),) -> 0 | AA37: =IF(Z37<>0,VLOOKUP(Z37,整理番号表!$B$22:$C$29,2,FALSE),) -> 0 | AD37: =IF(AC37<>0,VLOOKUP(AC37,整理番号表!$B$32:$G$60,2,FALSE),) -> 0 | AF37: =IF(AE37<>0,VLOOKUP(AE37,整理番号表!$P$5:$R$39,2,FALSE),) -> 0 | AH37: 0 | AK37: =IF(AJ37<>"",VLOOKUP(AJ37,整理番号表!$Z$6:$AA$14,2,FALSE),"") ->  | AL37: 0 | AR37: =IF(AQ37<>0,VLOOKUP(AQ37,整理番号表!$P$43:$Q$49,2,FALSE),) -> 0 | AW37: 0 | AX37: 0 | AZ37: 0 | BD37: 0 | BE37: 0 | BF37: 0 | BI37: 0 | BJ37: 0 | BL37: =IF(BK37<>0,VLOOKUP(BK37,整理番号表!$T$5:$U$16,2,FALSE),) -> 0 | BN37: =IF(BM37<>0,VLOOKUP(BM37,整理番号表!$T$22:$U$30,2,FALSE),) -> 0 | BP37: 0 | BX37: 0 | CH37: 0 | CI37: 0 | CJ37: 0 | CK37: 0 | CL37: 0 | CM37: 0 | CN37: 0 | CO37: 0 | CP37: 0 | CQ37: 0 | CR37: 0 | CS37: 0 | CT37: 0 | CU37: 0 | CV37: 0 | CW37: 0 | CX37: 0 | CY37: 0 | CZ37: 0 | DA37: 0 | DB37: 0 | DC37: 0 | DD37: 0 | DE37: 0 | DF37: 0 | DG37: 0 | DH37: 0 | DI37: 0 | DO37: 0 | DP37: 0 | DQ37: 0 | DR37: 0 | DS37: 0 | DT37: 0 | DV37: 0 | ED37: 0 | FE37: 0 | FF37: 0 | FI37: 0 | FJ37: 0 | FK37: 0 | FL37: =IF(OR(AND(1<=$FK37,$FK37<=3),$FK37=6),VLOOKUP($FK37,整理番号表!$B$32:$G$60,2,FALSE),) -> 0 | FM37: =IF(OR($FK37=4,$FK37=7),VLOOKUP($FK37,整理番号表!$B$32:$G$60,2,FALSE),) -> 0 | FN37: =IF($FK37=5,VLOOKUP($FK37,整理番号表!$B$32:$G$60,2,FALSE),) -> 0 | FO37: =IF(AND(8<=$FK37,$FK37<=13),VLOOKUP($FK37,整理番号表!$B$32:$G$60,2,FALSE),) -> 0 | FP37: 0 | FQ37: 0 | FR37: =IF(AND(FE37<>1,$FP37=1,SUM($FQ37:FQ37)=0,$FF37=1,$FI37>=2),1,) -> 0 | FS37: =IF(AND(FE37<>1,$FP37=1,SUM($FQ37:FR37)=0,OR(AND($FF37=1,$FI37>0),$FI37>=4)),1,) -> 0 | FT37: =IF(AND(FE37<>1,$FP37=1,SUM($FQ37:FS37)=0,OR($FF37=1,$FI37>=2)),1,) -> 0 | FU37: =IF(AND(FE37<>1,$FP37=1,SUM($FQ37:FT37)=0,$FI37>0),1,) -> 0 | FV37: 0 | FW37: 0 | FX37: =IF(AND(FE37<>1,$FP37=2,SUM($FW37:FW37)=0,$FF37=1,$FJ37>=0.1),1,) -> 0 | FY37: =IF(AND(FE37<>1,$FP37=2,SUM($FW37:FX37)=0,OR(AND($FF37=1,$FI37>0),$FJ37>=0.2)),1,) -> 0 | FZ37: =IF(AND(FE37<>1,$FP37=2,SUM($FW37:FY37)=0,OR($FF37=1,$FJ37>=0.1)),1,) -> 0 | GA37: =IF(AND(FE37<>1,$FP37=2,SUM($FW37:FZ37)=0,$FI37>0),1,) -> 0 | GB37: 0 | GC37: =IF(AND(FE37<>1,$FP37=3,SUM($GB37:GB37)=0,AND($FF37=1,$FJ37>=0.05)),1,) -> 0 | GD37: =IF(AND(FE37<>1,$FP37=3,SUM($GB37:GC37)=0,OR(AND($FF37=1,$FI37>0),$FJ37>=0.1)),1,) -> 0 | GE37: =IF(AND(FE37<>1,$FP37=3,SUM($GB37:GD37)=0,OR($FF37=1,$FJ37>=0.05)),1,) -> 0 | GF37: =IF(AND(FE37<>1,$FP37=3,SUM($GB37:GE37)=0,$FI37>0),1,) -> 0 | GG37: 0 | GI37: 0 | GJ37: 0 | GK37: 0 | GL37: 0 | GM37: 0 | GN37: 0 | GO37: 0 | GP37: 0 | GQ37: 0 | GR37: 0 | GS37: 0 | GT37: 0 | GU37: 0 | GV37: 0 | GW37: 0 | GX37: 0 | GY37: 0 | GZ37: 0 | HA37: 0 | HB37: 0 | HC37: 0 | HD37: 0 | HE37: 0 | HF37: 0 | HG37: 0 | HH37: 0 | HI37: 0 | HJ37: 0 | HK37: 0 | HL37: 0 | HM37: 0 | HN37: 0 | HO37: 0 | HP37: 0 | HQ37: 0 | HR37: 0 | HS37: 0 | HT37: 0 | HU37: 0 | HV37: 0 | HW37: 0 | HX37: 0 | HY37: 0 | HZ37: 0 | IA37: 0 | IB37: 0 | IC37: 0 | ID37: 0 | IE37: 0 | IF37: 0 | IG37: 0 | IH37: 0 | II37: 0 | IJ37: 0 | IK37: 0 | IL37: 0 | IM37: 0 | IN37: 0 | IO37: 0 | IP37: 0 | IQ37: 0 | IR37: 0 | IS37: 0 | IT37: 0 | IU37: 0 | IV37: 0 | IW37: 0 | IX37: 0 | IY37: 0 | IZ37: 0 | JA37: 0 | JB37: 0 | JC37: 0 | JD37: 0 | JE37: 0 | JF37: 0 | JG37: 0 | JH37: 0 | JI37: 0 | JY37: ○ | JZ37: 0 | KA37: 0 | KB37: 0 | KC37: 0 | KD37: 0 | KE37: 0 | KF37: 0 | KG37: ○ | KH37: 0 | KI37: 0 | KJ37: 0 | KK37: ○ | KL37: ○ | KN37: 0 | KO37: 0
A38: 0 | B38: 0 | C38: 0 | D38: 0 | E38: 0 | F38: 0 | G38: 0 | H38: 0 | I38: 0 | J38: 0 | K38: 26 | P38: =IF(O38<>"",VLOOKUP(O38,整理番号表!$Z$17:$AA$20,2,FALSE),) -> 0 | Q38: 0 | W38: =IF(V38<>0,VLOOKUP(V38,整理番号表!$B$6:$L$13,2,FALSE),) -> 0 | X38: 0 | Y38: =IF(X38<>0,VLOOKUP(X38,整理番号表!$B$16:$C$18,2,FALSE),) -> 0 | AA38: =IF(Z38<>0,VLOOKUP(Z38,整理番号表!$B$22:$C$29,2,FALSE),) -> 0 | AD38: =IF(AC38<>0,VLOOKUP(AC38,整理番号表!$B$32:$G$60,2,FALSE),) -> 0 | AF38: =IF(AE38<>0,VLOOKUP(AE38,整理番号表!$P$5:$R$39,2,FALSE),) -> 0 | AH38: 0 | AK38: =IF(AJ38<>"",VLOOKUP(AJ38,整理番号表!$Z$6:$AA$14,2,FALSE),"") ->  | AL38: 0 | AR38: =IF(AQ38<>0,VLOOKUP(AQ38,整理番号表!$P$43:$Q$49,2,FALSE),) -> 0 | AW38: 0 | AX38: 0 | AZ38: 0 | BD38: 0 | BE38: 0 | BF38: 0 | BI38: 0 | BJ38: 0 | BL38: =IF(BK38<>0,VLOOKUP(BK38,整理番号表!$T$5:$U$16,2,FALSE),) -> 0 | BN38: =IF(BM38<>0,VLOOKUP(BM38,整理番号表!$T$22:$U$30,2,FALSE),) -> 0 | BP38: 0 | BX38: 0 | CH38: 0 | CI38: 0 | CJ38: 0 | CK38: 0 | CL38: 0 | CM38: 0 | CN38: 0 | CO38: 0 | CP38: 0 | CQ38: 0 | CR38: 0 | CS38: 0 | CT38: 0 | CU38: 0 | CV38: 0 | CW38: 0 | CX38: 0 | CY38: 0 | CZ38: 0 | DA38: 0 | DB38: 0 | DC38: 0 | DD38: 0 | DE38: 0 | DF38: 0 | DG38: 0 | DH38: 0 | DI38: 0 | DO38: 0 | DP38: 0 | DQ38: 0 | DR38: 0 | DS38: 0 | DT38: 0 | DV38: 0 | ED38: 0 | FE38: 0 | FF38: 0 | FI38: 0 | FJ38: 0 | FK38: 0 | FL38: =IF(OR(AND(1<=$FK38,$FK38<=3),$FK38=6),VLOOKUP($FK38,整理番号表!$B$32:$G$60,2,FALSE),) -> 0 | FM38: =IF(OR($FK38=4,$FK38=7),VLOOKUP($FK38,整理番号表!$B$32:$G$60,2,FALSE),) -> 0 | FN38: =IF($FK38=5,VLOOKUP($FK38,整理番号表!$B$32:$G$60,2,FALSE),) -> 0 | FO38: =IF(AND(8<=$FK38,$FK38<=13),VLOOKUP($FK38,整理番号表!$B$32:$G$60,2,FALSE),) -> 0 | FP38: 0 | FQ38: 0 | FR38: =IF(AND(FE38<>1,$FP38=1,SUM($FQ38:FQ38)=0,$FF38=1,$FI38>=2),1,) -> 0 | FS38: =IF(AND(FE38<>1,$FP38=1,SUM($FQ38:FR38)=0,OR(AND($FF38=1,$FI38>0),$FI38>=4)),1,) -> 0 | FT38: =IF(AND(FE38<>1,$FP38=1,SUM($FQ38:FS38)=0,OR($FF38=1,$FI38>=2)),1,) -> 0 | FU38: =IF(AND(FE38<>1,$FP38=1,SUM($FQ38:FT38)=0,$FI38>0),1,) -> 0 | FV38: 0 | FW38: 0 | FX38: =IF(AND(FE38<>1,$FP38=2,SUM($FW38:FW38)=0,$FF38=1,$FJ38>=0.1),1,) -> 0 | FY38: =IF(AND(FE38<>1,$FP38=2,SUM($FW38:FX38)=0,OR(AND($FF38=1,$FI38>0),$FJ38>=0.2)),1,) -> 0 | FZ38: =IF(AND(FE38<>1,$FP38=2,SUM($FW38:FY38)=0,OR($FF38=1,$FJ38>=0.1)),1,) -> 0 | GA38: =IF(AND(FE38<>1,$FP38=2,SUM($FW38:FZ38)=0,$FI38>0),1,) -> 0 | GB38: 0 | GC38: =IF(AND(FE38<>1,$FP38=3,SUM($GB38:GB38)=0,AND($FF38=1,$FJ38>=0.05)),1,) -> 0 | GD38: =IF(AND(FE38<>1,$FP38=3,SUM($GB38:GC38)=0,OR(AND($FF38=1,$FI38>0),$FJ38>=0.1)),1,) -> 0 | GE38: =IF(AND(FE38<>1,$FP38=3,SUM($GB38:GD38)=0,OR($FF38=1,$FJ38>=0.05)),1,) -> 0 | GF38: =IF(AND(FE38<>1,$FP38=3,SUM($GB38:GE38)=0,$FI38>0),1,) -> 0 | GG38: 0 | GI38: 0 | GJ38: 0 | GK38: 0 | GL38: 0 | GM38: 0 | GN38: 0 | GO38: 0 | GP38: 0 | GQ38: 0 | GR38: 0 | GS38: 0 | GT38: 0 | GU38: 0 | GV38: 0 | GW38: 0 | GX38: 0 | GY38: 0 | GZ38: 0 | HA38: 0 | HB38: 0 | HC38: 0 | HD38: 0 | HE38: 0 | HF38: 0 | HG38: 0 | HH38: 0 | HI38: 0 | HJ38: 0 | HK38: 0 | HL38: 0 | HM38: 0 | HN38: 0 | HO38: 0 | HP38: 0 | HQ38: 0 | HR38: 0 | HS38: 0 | HT38: 0 | HU38: 0 | HV38: 0 | HW38: 0 | HX38: 0 | HY38: 0 | HZ38: 0 | IA38: 0 | IB38: 0 | IC38: 0 | ID38: 0 | IE38: 0 | IF38: 0 | IG38: 0 | IH38: 0 | II38: 0 | IJ38: 0 | IK38: 0 | IL38: 0 | IM38: 0 | IN38: 0 | IO38: 0 | IP38: 0 | IQ38: 0 | IR38: 0 | IS38: 0 | IT38: 0 | IU38: 0 | IV38: 0 | IW38: 0 | IX38: 0 | IY38: 0 | IZ38: 0 | JA38: 0 | JB38: 0 | JC38: 0 | JD38: 0 | JE38: 0 | JF38: 0 | JG38: 0 | JH38: 0 | JI38: 0 | JY38: ○ | JZ38: 0 | KA38: 0 | KB38: 0 | KC38: 0 | KD38: 0 | KE38: 0 | KF38: 0 | KG38: ○ | KH38: 0 | KI38: 0 | KJ38: 0 | KK38: ○ | KL38: ○ | KN38: 0 | KO38: 0
A39: 0 | B39: 0 | C39: 0 | D39: 0 | E39: 0 | F39: 0 | G39: 0 | H39: 0 | I39: 0 | J39: 0 | K39: 27 | P39: =IF(O39<>"",VLOOKUP(O39,整理番号表!$Z$17:$AA$20,2,FALSE),) -> 0 | Q39: 0 | W39: =IF(V39<>0,VLOOKUP(V39,整理番号表!$B$6:$L$13,2,FALSE),) -> 0 | X39: 0 | Y39: =IF(X39<>0,VLOOKUP(X39,整理番号表!$B$16:$C$18,2,FALSE),) -> 0 | AA39: =IF(Z39<>0,VLOOKUP(Z39,整理番号表!$B$22:$C$29,2,FALSE),) -> 0 | AD39: =IF(AC39<>0,VLOOKUP(AC39,整理番号表!$B$32:$G$60,2,FALSE),) -> 0 | AF39: =IF(AE39<>0,VLOOKUP(AE39,整理番号表!$P$5:$R$39,2,FALSE),) -> 0 | AH39: 0 | AK39: =IF(AJ39<>"",VLOOKUP(AJ39,整理番号表!$Z$6:$AA$14,2,FALSE),"") ->  | AL39: 0 | AR39: =IF(AQ39<>0,VLOOKUP(AQ39,整理番号表!$P$43:$Q$49,2,FALSE),) -> 0 | AW39: 0 | AX39: 0 | AZ39: 0 | BD39: 0 | BE39: 0 | BF39: 0 | BI39: 0 | BJ39: 0 | BL39: =IF(BK39<>0,VLOOKUP(BK39,整理番号表!$T$5:$U$16,2,FALSE),) -> 0 | BN39: =IF(BM39<>0,VLOOKUP(BM39,整理番号表!$T$22:$U$30,2,FALSE),) -> 0 | BP39: 0 | BX39: 0 | CH39: 0 | CI39: 0 | CJ39: 0 | CK39: 0 | CL39: 0 | CM39: 0 | CN39: 0 | CO39: 0 | CP39: 0 | CQ39: 0 | CR39: 0 | CS39: 0 | CT39: 0 | CU39: 0 | CV39: 0 | CW39: 0 | CX39: 0 | CY39: 0 | CZ39: 0 | DA39: 0 | DB39: 0 | DC39: 0 | DD39: 0 | DE39: 0 | DF39: 0 | DG39: 0 | DH39: 0 | DI39: 0 | DO39: 0 | DP39: 0 | DQ39: 0 | DR39: 0 | DS39: 0 | DT39: 0 | DV39: 0 | ED39: 0 | FE39: 0 | FF39: 0 | FI39: 0 | FJ39: 0 | FK39: 0 | FL39: =IF(OR(AND(1<=$FK39,$FK39<=3),$FK39=6),VLOOKUP($FK39,整理番号表!$B$32:$G$60,2,FALSE),) -> 0 | FM39: =IF(OR($FK39=4,$FK39=7),VLOOKUP($FK39,整理番号表!$B$32:$G$60,2,FALSE),) -> 0 | FN39: =IF($FK39=5,VLOOKUP($FK39,整理番号表!$B$32:$G$60,2,FALSE),) -> 0 | FO39: =IF(AND(8<=$FK39,$FK39<=13),VLOOKUP($FK39,整理番号表!$B$32:$G$60,2,FALSE),) -> 0 | FP39: 0 | FQ39: 0 | FR39: =IF(AND(FE39<>1,$FP39=1,SUM($FQ39:FQ39)=0,$FF39=1,$FI39>=2),1,) -> 0 | FS39: =IF(AND(FE39<>1,$FP39=1,SUM($FQ39:FR39)=0,OR(AND($FF39=1,$FI39>0),$FI39>=4)),1,) -> 0 | FT39: =IF(AND(FE39<>1,$FP39=1,SUM($FQ39:FS39)=0,OR($FF39=1,$FI39>=2)),1,) -> 0 | FU39: =IF(AND(FE39<>1,$FP39=1,SUM($FQ39:FT39)=0,$FI39>0),1,) -> 0 | FV39: 0 | FW39: 0 | FX39: =IF(AND(FE39<>1,$FP39=2,SUM($FW39:FW39)=0,$FF39=1,$FJ39>=0.1),1,) -> 0 | FY39: =IF(AND(FE39<>1,$FP39=2,SUM($FW39:FX39)=0,OR(AND($FF39=1,$FI39>0),$FJ39>=0.2)),1,) -> 0 | FZ39: =IF(AND(FE39<>1,$FP39=2,SUM($FW39:FY39)=0,OR($FF39=1,$FJ39>=0.1)),1,) -> 0 | GA39: =IF(AND(FE39<>1,$FP39=2,SUM($FW39:FZ39)=0,$FI39>0),1,) -> 0 | GB39: 0 | GC39: =IF(AND(FE39<>1,$FP39=3,SUM($GB39:GB39)=0,AND($FF39=1,$FJ39>=0.05)),1,) -> 0 | GD39: =IF(AND(FE39<>1,$FP39=3,SUM($GB39:GC39)=0,OR(AND($FF39=1,$FI39>0),$FJ39>=0.1)),1,) -> 0 | GE39: =IF(AND(FE39<>1,$FP39=3,SUM($GB39:GD39)=0,OR($FF39=1,$FJ39>=0.05)),1,) -> 0 | GF39: =IF(AND(FE39<>1,$FP39=3,SUM($GB39:GE39)=0,$FI39>0),1,) -> 0 | GG39: 0 | GI39: 0 | GJ39: 0 | GK39: 0 | GL39: 0 | GM39: 0 | GN39: 0 | GO39: 0 | GP39: 0 | GQ39: 0 | GR39: 0 | GS39: 0 | GT39: 0 | GU39: 0 | GV39: 0 | GW39: 0 | GX39: 0 | GY39: 0 | GZ39: 0 | HA39: 0 | HB39: 0 | HC39: 0 | HD39: 0 | HE39: 0 | HF39: 0 | HG39: 0 | HH39: 0 | HI39: 0 | HJ39: 0 | HK39: 0 | HL39: 0 | HM39: 0 | HN39: 0 | HO39: 0 | HP39: 0 | HQ39: 0 | HR39: 0 | HS39: 0 | HT39: 0 | HU39: 0 | HV39: 0 | HW39: 0 | HX39: 0 | HY39: 0 | HZ39: 0 | IA39: 0 | IB39: 0 | IC39: 0 | ID39: 0 | IE39: 0 | IF39: 0 | IG39: 0 | IH39: 0 | II39: 0 | IJ39: 0 | IK39: 0 | IL39: 0 | IM39: 0 | IN39: 0 | IO39: 0 | IP39: 0 | IQ39: 0 | IR39: 0 | IS39: 0 | IT39: 0 | IU39: 0 | IV39: 0 | IW39: 0 | IX39: 0 | IY39: 0 | IZ39: 0 | JA39: 0 | JB39: 0 | JC39: 0 | JD39: 0 | JE39: 0 | JF39: 0 | JG39: 0 | JH39: 0 | JI39: 0 | JY39: ○ | JZ39: 0 | KA39: 0 | KB39: 0 | KC39: 0 | KD39: 0 | KE39: 0 | KF39: 0 | KG39: ○ | KH39: 0 | KI39: 0 | KJ39: 0 | KK39: ○ | KL39: ○ | KN39: 0 | KO39: 0
A40: 0 | B40: 0 | C40: 0 | D40: 0 | E40: 0 | F40: 0 | G40: 0 | H40: 0 | I40: 0 | J40: 0 | K40: 28 | P40: =IF(O40<>"",VLOOKUP(O40,整理番号表!$Z$17:$AA$20,2,FALSE),) -> 0 | Q40: 0 | W40: =IF(V40<>0,VLOOKUP(V40,整理番号表!$B$6:$L$13,2,FALSE),) -> 0 | X40: 0 | Y40: =IF(X40<>0,VLOOKUP(X40,整理番号表!$B$16:$C$18,2,FALSE),) -> 0 | AA40: =IF(Z40<>0,VLOOKUP(Z40,整理番号表!$B$22:$C$29,2,FALSE),) -> 0 | AD40: =IF(AC40<>0,VLOOKUP(AC40,整理番号表!$B$32:$G$60,2,FALSE),) -> 0 | AF40: =IF(AE40<>0,VLOOKUP(AE40,整理番号表!$P$5:$R$39,2,FALSE),) -> 0 | AH40: 0 | AK40: =IF(AJ40<>"",VLOOKUP(AJ40,整理番号表!$Z$6:$AA$14,2,FALSE),"") ->  | AL40: 0 | AR40: =IF(AQ40<>0,VLOOKUP(AQ40,整理番号表!$P$43:$Q$49,2,FALSE),) -> 0 | AW40: 0 | AX40: 0 | AZ40: 0 | BD40: 0 | BE40: 0 | BF40: 0 | BI40: 0 | BJ40: 0 | BL40: =IF(BK40<>0,VLOOKUP(BK40,整理番号表!$T$5:$U$16,2,FALSE),) -> 0 | BN40: =IF(BM40<>0,VLOOKUP(BM40,整理番号表!$T$22:$U$30,2,FALSE),) -> 0 | BP40: 0 | BX40: 0 | CH40: 0 | CI40: 0 | CJ40: 0 | CK40: 0 | CL40: 0 | CM40: 0 | CN40: 0 | CO40: 0 | CP40: 0 | CQ40: 0 | CR40: 0 | CS40: 0 | CT40: 0 | CU40: 0 | CV40: 0 | CW40: 0 | CX40: 0 | CY40: 0 | CZ40: 0 | DA40: 0 | DB40: 0 | DC40: 0 | DD40: 0 | DE40: 0 | DF40: 0 | DG40: 0 | DH40: 0 | DI40: 0 | DO40: 0 | DP40: 0 | DQ40: 0 | DR40: 0 | DS40: 0 | DT40: 0 | DV40: 0 | ED40: 0 | FE40: 0 | FF40: 0 | FI40: 0 | FJ40: 0 | FK40: 0 | FL40: =IF(OR(AND(1<=$FK40,$FK40<=3),$FK40=6),VLOOKUP($FK40,整理番号表!$B$32:$G$60,2,FALSE),) -> 0 | FM40: =IF(OR($FK40=4,$FK40=7),VLOOKUP($FK40,整理番号表!$B$32:$G$60,2,FALSE),) -> 0 | FN40: =IF($FK40=5,VLOOKUP($FK40,整理番号表!$B$32:$G$60,2,FALSE),) -> 0 | FO40: =IF(AND(8<=$FK40,$FK40<=13),VLOOKUP($FK40,整理番号表!$B$32:$G$60,2,FALSE),) -> 0 | FP40: 0 | FQ40: 0 | FR40: =IF(AND(FE40<>1,$FP40=1,SUM($FQ40:FQ40)=0,$FF40=1,$FI40>=2),1,) -> 0 | FS40: =IF(AND(FE40<>1,$FP40=1,SUM($FQ40:FR40)=0,OR(AND($FF40=1,$FI40>0),$FI40>=4)),1,) -> 0 | FT40: =IF(AND(FE40<>1,$FP40=1,SUM($FQ40:FS40)=0,OR($FF40=1,$FI40>=2)),1,) -> 0 | FU40: =IF(AND(FE40<>1,$FP40=1,SUM($FQ40:FT40)=0,$FI40>0),1,) -> 0 | FV40: 0 | FW40: 0 | FX40: =IF(AND(FE40<>1,$FP40=2,SUM($FW40:FW40)=0,$FF40=1,$FJ40>=0.1),1,) -> 0 | FY40: =IF(AND(FE40<>1,$FP40=2,SUM($FW40:FX40)=0,OR(AND($FF40=1,$FI40>0),$FJ40>=0.2)),1,) -> 0 | FZ40: =IF(AND(FE40<>1,$FP40=2,SUM($FW40:FY40)=0,OR($FF40=1,$FJ40>=0.1)),1,) -> 0 | GA40: =IF(AND(FE40<>1,$FP40=2,SUM($FW40:FZ40)=0,$FI40>0),1,) -> 0 | GB40: 0 | GC40: =IF(AND(FE40<>1,$FP40=3,SUM($GB40:GB40)=0,AND($FF40=1,$FJ40>=0.05)),1,) -> 0 | GD40: =IF(AND(FE40<>1,$FP40=3,SUM($GB40:GC40)=0,OR(AND($FF40=1,$FI40>0),$FJ40>=0.1)),1,) -> 0 | GE40: =IF(AND(FE40<>1,$FP40=3,SUM($GB40:GD40)=0,OR($FF40=1,$FJ40>=0.05)),1,) -> 0 | GF40: =IF(AND(FE40<>1,$FP40=3,SUM($GB40:GE40)=0,$FI40>0),1,) -> 0 | GG40: 0 | GI40: 0 | GJ40: 0 | GK40: 0 | GL40: 0 | GM40: 0 | GN40: 0 | GO40: 0 | GP40: 0 | GQ40: 0 | GR40: 0 | GS40: 0 | GT40: 0 | GU40: 0 | GV40: 0 | GW40: 0 | GX40: 0 | GY40: 0 | GZ40: 0 | HA40: 0 | HB40: 0 | HC40: 0 | HD40: 0 | HE40: 0 | HF40: 0 | HG40: 0 | HH40: 0 | HI40: 0 | HJ40: 0 | HK40: 0 | HL40: 0 | HM40: 0 | HN40: 0 | HO40: 0 | HP40: 0 | HQ40: 0 | HR40: 0 | HS40: 0 | HT40: 0 | HU40: 0 | HV40: 0 | HW40: 0 | HX40: 0 | HY40: 0 | HZ40: 0 | IA40: 0 | IB40: 0 | IC40: 0 | ID40: 0 | IE40: 0 | IF40: 0 | IG40: 0 | IH40: 0 | II40: 0 | IJ40: 0 | IK40: 0 | IL40: 0 | IM40: 0 | IN40: 0 | IO40: 0 | IP40: 0 | IQ40: 0 | IR40: 0 | IS40: 0 | IT40: 0 | IU40: 0 | IV40: 0 | IW40: 0 | IX40: 0 | IY40: 0 | IZ40: 0 | JA40: 0 | JB40: 0 | JC40: 0 | JD40: 0 | JE40: 0 | JF40: 0 | JG40: 0 | JH40: 0 | JI40: 0 | JY40: ○ | JZ40: 0 | KA40: 0 | KB40: 0 | KC40: 0 | KD40: 0 | KE40: 0 | KF40: 0 | KG40: ○ | KH40: 0 | KI40: 0 | KJ40: 0 | KK40: ○ | KL40: ○ | KN40: 0 | KO40: 0
A41: 0 | B41: 0 | C41: 0 | D41: 0 | E41: 0 | F41: 0 | G41: 0 | H41: 0 | I41: 0 | J41: 0 | K41: 29 | P41: =IF(O41<>"",VLOOKUP(O41,整理番号表!$Z$17:$AA$20,2,FALSE),) -> 0 | Q41: 0 | W41: =IF(V41<>0,VLOOKUP(V41,整理番号表!$B$6:$L$13,2,FALSE),) -> 0 | X41: 0 | Y41: =IF(X41<>0,VLOOKUP(X41,整理番号表!$B$16:$C$18,2,FALSE),) -> 0 | AA41: =IF(Z41<>0,VLOOKUP(Z41,整理番号表!$B$22:$C$29,2,FALSE),) -> 0 | AD41: =IF(AC41<>0,VLOOKUP(AC41,整理番号表!$B$32:$G$60,2,FALSE),) -> 0 | AF41: =IF(AE41<>0,VLOOKUP(AE41,整理番号表!$P$5:$R$39,2,FALSE),) -> 0 | AH41: 0 | AK41: =IF(AJ41<>"",VLOOKUP(AJ41,整理番号表!$Z$6:$AA$14,2,FALSE),"") ->  | AL41: 0 | AR41: =IF(AQ41<>0,VLOOKUP(AQ41,整理番号表!$P$43:$Q$49,2,FALSE),) -> 0 | AW41: 0 | AX41: 0 | AZ41: 0 | BD41: 0 | BE41: 0 | BF41: 0 | BI41: 0 | BJ41: 0 | BL41: =IF(BK41<>0,VLOOKUP(BK41,整理番号表!$T$5:$U$16,2,FALSE),) -> 0 | BN41: =IF(BM41<>0,VLOOKUP(BM41,整理番号表!$T$22:$U$30,2,FALSE),) -> 0 | BP41: 0 | BX41: 0 | CH41: 0 | CI41: 0 | CJ41: 0 | CK41: 0 | CL41: 0 | CM41: 0 | CN41: 0 | CO41: 0 | CP41: 0 | CQ41: 0 | CR41: 0 | CS41: 0 | CT41: 0 | CU41: 0 | CV41: 0 | CW41: 0 | CX41: 0 | CY41: 0 | CZ41: 0 | DA41: 0 | DB41: 0 | DC41: 0 | DD41: 0 | DE41: 0 | DF41: 0 | DG41: 0 | DH41: 0 | DI41: 0 | DO41: 0 | DP41: 0 | DQ41: 0 | DR41: 0 | DS41: 0 | DT41: 0 | DV41: 0 | ED41: 0 | FE41: 0 | FF41: 0 | FI41: 0 | FJ41: 0 | FK41: 0 | FL41: =IF(OR(AND(1<=$FK41,$FK41<=3),$FK41=6),VLOOKUP($FK41,整理番号表!$B$32:$G$60,2,FALSE),) -> 0 | FM41: =IF(OR($FK41=4,$FK41=7),VLOOKUP($FK41,整理番号表!$B$32:$G$60,2,FALSE),) -> 0 | FN41: =IF($FK41=5,VLOOKUP($FK41,整理番号表!$B$32:$G$60,2,FALSE),) -> 0 | FO41: =IF(AND(8<=$FK41,$FK41<=13),VLOOKUP($FK41,整理番号表!$B$32:$G$60,2,FALSE),) -> 0 | FP41: 0 | FQ41: 0 | FR41: =IF(AND(FE41<>1,$FP41=1,SUM($FQ41:FQ41)=0,$FF41=1,$FI41>=2),1,) -> 0 | FS41: =IF(AND(FE41<>1,$FP41=1,SUM($FQ41:FR41)=0,OR(AND($FF41=1,$FI41>0),$FI41>=4)),1,) -> 0 | FT41: =IF(AND(FE41<>1,$FP41=1,SUM($FQ41:FS41)=0,OR($FF41=1,$FI41>=2)),1,) -> 0 | FU41: =IF(AND(FE41<>1,$FP41=1,SUM($FQ41:FT41)=0,$FI41>0),1,) -> 0 | FV41: 0 | FW41: 0 | FX41: =IF(AND(FE41<>1,$FP41=2,SUM($FW41:FW41)=0,$FF41=1,$FJ41>=0.1),1,) -> 0 | FY41: =IF(AND(FE41<>1,$FP41=2,SUM($FW41:FX41)=0,OR(AND($FF41=1,$FI41>0),$FJ41>=0.2)),1,) -> 0 | FZ41: =IF(AND(FE41<>1,$FP41=2,SUM($FW41:FY41)=0,OR($FF41=1,$FJ41>=0.1)),1,) -> 0 | GA41: =IF(AND(FE41<>1,$FP41=2,SUM($FW41:FZ41)=0,$FI41>0),1,) -> 0 | GB41: 0 | GC41: =IF(AND(FE41<>1,$FP41=3,SUM($GB41:GB41)=0,AND($FF41=1,$FJ41>=0.05)),1,) -> 0 | GD41: =IF(AND(FE41<>1,$FP41=3,SUM($GB41:GC41)=0,OR(AND($FF41=1,$FI41>0),$FJ41>=0.1)),1,) -> 0 | GE41: =IF(AND(FE41<>1,$FP41=3,SUM($GB41:GD41)=0,OR($FF41=1,$FJ41>=0.05)),1,) -> 0 | GF41: =IF(AND(FE41<>1,$FP41=3,SUM($GB41:GE41)=0,$FI41>0),1,) -> 0 | GG41: 0 | GI41: 0 | GJ41: 0 | GK41: 0 | GL41: 0 | GM41: 0 | GN41: 0 | GO41: 0 | GP41: 0 | GQ41: 0 | GR41: 0 | GS41: 0 | GT41: 0 | GU41: 0 | GV41: 0 | GW41: 0 | GX41: 0 | GY41: 0 | GZ41: 0 | HA41: 0 | HB41: 0 | HC41: 0 | HD41: 0 | HE41: 0 | HF41: 0 | HG41: 0 | HH41: 0 | HI41: 0 | HJ41: 0 | HK41: 0 | HL41: 0 | HM41: 0 | HN41: 0 | HO41: 0 | HP41: 0 | HQ41: 0 | HR41: 0 | HS41: 0 | HT41: 0 | HU41: 0 | HV41: 0 | HW41: 0 | HX41: 0 | HY41: 0 | HZ41: 0 | IA41: 0 | IB41: 0 | IC41: 0 | ID41: 0 | IE41: 0 | IF41: 0 | IG41: 0 | IH41: 0 | II41: 0 | IJ41: 0 | IK41: 0 | IL41: 0 | IM41: 0 | IN41: 0 | IO41: 0 | IP41: 0 | IQ41: 0 | IR41: 0 | IS41: 0 | IT41: 0 | IU41: 0 | IV41: 0 | IW41: 0 | IX41: 0 | IY41: 0 | IZ41: 0 | JA41: 0 | JB41: 0 | JC41: 0 | JD41: 0 | JE41: 0 | JF41: 0 | JG41: 0 | JH41: 0 | JI41: 0 | JY41: ○ | JZ41: 0 | KA41: 0 | KB41: 0 | KC41: 0 | KD41: 0 | KE41: 0 | KF41: 0 | KG41: ○ | KH41: 0 | KI41: 0 | KJ41: 0 | KK41: ○ | KL41: ○ | KN41: 0 | KO41: 0
A42: 0 | B42: 0 | C42: 0 | D42: 0 | E42: 0 | F42: 0 | G42: 0 | H42: 0 | I42: 0 | J42: 0 | K42: 30 | P42: =IF(O42<>"",VLOOKUP(O42,整理番号表!$Z$17:$AA$20,2,FALSE),) -> 0 | Q42: 0 | W42: =IF(V42<>0,VLOOKUP(V42,整理番号表!$B$6:$L$13,2,FALSE),) -> 0 | X42: 0 | Y42: =IF(X42<>0,VLOOKUP(X42,整理番号表!$B$16:$C$18,2,FALSE),) -> 0 | AA42: =IF(Z42<>0,VLOOKUP(Z42,整理番号表!$B$22:$C$29,2,FALSE),) -> 0 | AD42: =IF(AC42<>0,VLOOKUP(AC42,整理番号表!$B$32:$G$60,2,FALSE),) -> 0 | AF42: =IF(AE42<>0,VLOOKUP(AE42,整理番号表!$P$5:$R$39,2,FALSE),) -> 0 | AH42: 0 | AK42: =IF(AJ42<>"",VLOOKUP(AJ42,整理番号表!$Z$6:$AA$14,2,FALSE),"") ->  | AL42: 0 | AR42: =IF(AQ42<>0,VLOOKUP(AQ42,整理番号表!$P$43:$Q$49,2,FALSE),) -> 0 | AW42: 0 | AX42: 0 | AZ42: 0 | BD42: 0 | BE42: 0 | BF42: 0 | BI42: 0 | BJ42: 0 | BL42: =IF(BK42<>0,VLOOKUP(BK42,整理番号表!$T$5:$U$16,2,FALSE),) -> 0 | BN42: =IF(BM42<>0,VLOOKUP(BM42,整理番号表!$T$22:$U$30,2,FALSE),) -> 0 | BP42: 0 | BX42: 0 | CH42: 0 | CI42: 0 | CJ42: 0 | CK42: 0 | CL42: 0 | CM42: 0 | CN42: 0 | CO42: 0 | CP42: 0 | CQ42: 0 | CR42: 0 | CS42: 0 | CT42: 0 | CU42: 0 | CV42: 0 | CW42: 0 | CX42: 0 | CY42: 0 | CZ42: 0 | DA42: 0 | DB42: 0 | DC42: 0 | DD42: 0 | DE42: 0 | DF42: 0 | DG42: 0 | DH42: 0 | DI42: 0 | DO42: 0 | DP42: 0 | DQ42: 0 | DR42: 0 | DS42: 0 | DT42: 0 | DV42: 0 | ED42: 0 | FE42: 0 | FF42: 0 | FI42: 0 | FJ42: 0 | FK42: 0 | FL42: =IF(OR(AND(1<=$FK42,$FK42<=3),$FK42=6),VLOOKUP($FK42,整理番号表!$B$32:$G$60,2,FALSE),) -> 0 | FM42: =IF(OR($FK42=4,$FK42=7),VLOOKUP($FK42,整理番号表!$B$32:$G$60,2,FALSE),) -> 0 | FN42: =IF($FK42=5,VLOOKUP($FK42,整理番号表!$B$32:$G$60,2,FALSE),) -> 0 | FO42: =IF(AND(8<=$FK42,$FK42<=13),VLOOKUP($FK42,整理番号表!$B$32:$G$60,2,FALSE),) -> 0 | FP42: 0 | FQ42: 0 | FR42: =IF(AND(FE42<>1,$FP42=1,SUM($FQ42:FQ42)=0,$FF42=1,$FI42>=2),1,) -> 0 | FS42: =IF(AND(FE42<>1,$FP42=1,SUM($FQ42:FR42)=0,OR(AND($FF42=1,$FI42>0),$FI42>=4)),1,) -> 0 | FT42: =IF(AND(FE42<>1,$FP42=1,SUM($FQ42:FS42)=0,OR($FF42=1,$FI42>=2)),1,) -> 0 | FU42: =IF(AND(FE42<>1,$FP42=1,SUM($FQ42:FT42)=0,$FI42>0),1,) -> 0 | FV42: 0 | FW42: 0 | FX42: =IF(AND(FE42<>1,$FP42=2,SUM($FW42:FW42)=0,$FF42=1,$FJ42>=0.1),1,) -> 0 | FY42: =IF(AND(FE42<>1,$FP42=2,SUM($FW42:FX42)=0,OR(AND($FF42=1,$FI42>0),$FJ42>=0.2)),1,) -> 0 | FZ42: =IF(AND(FE42<>1,$FP42=2,SUM($FW42:FY42)=0,OR($FF42=1,$FJ42>=0.1)),1,) -> 0 | GA42: =IF(AND(FE42<>1,$FP42=2,SUM($FW42:FZ42)=0,$FI42>0),1,) -> 0 | GB42: 0 | GC42: =IF(AND(FE42<>1,$FP42=3,SUM($GB42:GB42)=0,AND($FF42=1,$FJ42>=0.05)),1,) -> 0 | GD42: =IF(AND(FE42<>1,$FP42=3,SUM($GB42:GC42)=0,OR(AND($FF42=1,$FI42>0),$FJ42>=0.1)),1,) -> 0 | GE42: =IF(AND(FE42<>1,$FP42=3,SUM($GB42:GD42)=0,OR($FF42=1,$FJ42>=0.05)),1,) -> 0 | GF42: =IF(AND(FE42<>1,$FP42=3,SUM($GB42:GE42)=0,$FI42>0),1,) -> 0 | GG42: 0 | GI42: 0 | GJ42: 0 | GK42: 0 | GL42: 0 | GM42: 0 | GN42: 0 | GO42: 0 | GP42: 0 | GQ42: 0 | GR42: 0 | GS42: 0 | GT42: 0 | GU42: 0 | GV42: 0 | GW42: 0 | GX42: 0 | GY42: 0 | GZ42: 0 | HA42: 0 | HB42: 0 | HC42: 0 | HD42: 0 | HE42: 0 | HF42: 0 | HG42: 0 | HH42: 0 | HI42: 0 | HJ42: 0 | HK42: 0 | HL42: 0 | HM42: 0 | HN42: 0 | HO42: 0 | HP42: 0 | HQ42: 0 | HR42: 0 | HS42: 0 | HT42: 0 | HU42: 0 | HV42: 0 | HW42: 0 | HX42: 0 | HY42: 0 | HZ42: 0 | IA42: 0 | IB42: 0 | IC42: 0 | ID42: 0 | IE42: 0 | IF42: 0 | IG42: 0 | IH42: 0 | II42: 0 | IJ42: 0 | IK42: 0 | IL42: 0 | IM42: 0 | IN42: 0 | IO42: 0 | IP42: 0 | IQ42: 0 | IR42: 0 | IS42: 0 | IT42: 0 | IU42: 0 | IV42: 0 | IW42: 0 | IX42: 0 | IY42: 0 | IZ42: 0 | JA42: 0 | JB42: 0 | JC42: 0 | JD42: 0 | JE42: 0 | JF42: 0 | JG42: 0 | JH42: 0 | JI42: 0 | JY42: ○ | JZ42: 0 | KA42: 0 | KB42: 0 | KC42: 0 | KD42: 0 | KE42: 0 | KF42: 0 | KG42: ○ | KH42: 0 | KI42: 0 | KJ42: 0 | KK42: ○ | KL42: ○ | KN42: 0 | KO42: 0
A43: 0 | B43: 0 | C43: 0 | D43: 0 | E43: 0 | F43: 0 | G43: 0 | H43: 0 | I43: 0 | J43: 0 | K43: 31 | P43: =IF(O43<>"",VLOOKUP(O43,整理番号表!$Z$17:$AA$20,2,FALSE),) -> 0 | Q43: 0 | W43: =IF(V43<>0,VLOOKUP(V43,整理番号表!$B$6:$L$13,2,FALSE),) -> 0 | X43: 0 | Y43: =IF(X43<>0,VLOOKUP(X43,整理番号表!$B$16:$C$18,2,FALSE),) -> 0 | AA43: =IF(Z43<>0,VLOOKUP(Z43,整理番号表!$B$22:$C$29,2,FALSE),) -> 0 | AD43: =IF(AC43<>0,VLOOKUP(AC43,整理番号表!$B$32:$G$60,2,FALSE),) -> 0 | AF43: =IF(AE43<>0,VLOOKUP(AE43,整理番号表!$P$5:$R$39,2,FALSE),) -> 0 | AH43: 0 | AK43: =IF(AJ43<>"",VLOOKUP(AJ43,整理番号表!$Z$6:$AA$14,2,FALSE),"") ->  | AL43: 0 | AR43: =IF(AQ43<>0,VLOOKUP(AQ43,整理番号表!$P$43:$Q$49,2,FALSE),) -> 0 | AW43: 0 | AX43: 0 | AZ43: 0 | BD43: 0 | BE43: 0 | BF43: 0 | BI43: 0 | BJ43: 0 | BL43: =IF(BK43<>0,VLOOKUP(BK43,整理番号表!$T$5:$U$16,2,FALSE),) -> 0 | BN43: =IF(BM43<>0,VLOOKUP(BM43,整理番号表!$T$22:$U$30,2,FALSE),) -> 0 | BP43: 0 | BX43: 0 | CH43: 0 | CI43: 0 | CJ43: 0 | CK43: 0 | CL43: 0 | CM43: 0 | CN43: 0 | CO43: 0 | CP43: 0 | CQ43: 0 | CR43: 0 | CS43: 0 | CT43: 0 | CU43: 0 | CV43: 0 | CW43: 0 | CX43: 0 | CY43: 0 | CZ43: 0 | DA43: 0 | DB43: 0 | DC43: 0 | DD43: 0 | DE43: 0 | DF43: 0 | DG43: 0 | DH43: 0 | DI43: 0 | DO43: 0 | DP43: 0 | DQ43: 0 | DR43: 0 | DS43: 0 | DT43: 0 | DV43: 0 | ED43: 0 | FE43: 0 | FF43: 0 | FI43: 0 | FJ43: 0 | FK43: 0 | FL43: =IF(OR(AND(1<=$FK43,$FK43<=3),$FK43=6),VLOOKUP($FK43,整理番号表!$B$32:$G$60,2,FALSE),) -> 0 | FM43: =IF(OR($FK43=4,$FK43=7),VLOOKUP($FK43,整理番号表!$B$32:$G$60,2,FALSE),) -> 0 | FN43: =IF($FK43=5,VLOOKUP($FK43,整理番号表!$B$32:$G$60,2,FALSE),) -> 0 | FO43: =IF(AND(8<=$FK43,$FK43<=13),VLOOKUP($FK43,整理番号表!$B$32:$G$60,2,FALSE),) -> 0 | FP43: 0 | FQ43: 0 | FR43: =IF(AND(FE43<>1,$FP43=1,SUM($FQ43:FQ43)=0,$FF43=1,$FI43>=2),1,) -> 0 | FS43: =IF(AND(FE43<>1,$FP43=1,SUM($FQ43:FR43)=0,OR(AND($FF43=1,$FI43>0),$FI43>=4)),1,) -> 0 | FT43: =IF(AND(FE43<>1,$FP43=1,SUM($FQ43:FS43)=0,OR($FF43=1,$FI43>=2)),1,) -> 0 | FU43: =IF(AND(FE43<>1,$FP43=1,SUM($FQ43:FT43)=0,$FI43>0),1,) -> 0 | FV43: 0 | FW43: 0 | FX43: =IF(AND(FE43<>1,$FP43=2,SUM($FW43:FW43)=0,$FF43=1,$FJ43>=0.1),1,) -> 0 | FY43: =IF(AND(FE43<>1,$FP43=2,SUM($FW43:FX43)=0,OR(AND($FF43=1,$FI43>0),$FJ43>=0.2)),1,) -> 0 | FZ43: =IF(AND(FE43<>1,$FP43=2,SUM($FW43:FY43)=0,OR($FF43=1,$FJ43>=0.1)),1,) -> 0 | GA43: =IF(AND(FE43<>1,$FP43=2,SUM($FW43:FZ43)=0,$FI43>0),1,) -> 0 | GB43: 0 | GC43: =IF(AND(FE43<>1,$FP43=3,SUM($GB43:GB43)=0,AND($FF43=1,$FJ43>=0.05)),1,) -> 0 | GD43: =IF(AND(FE43<>1,$FP43=3,SUM($GB43:GC43)=0,OR(AND($FF43=1,$FI43>0),$FJ43>=0.1)),1,) -> 0 | GE43: =IF(AND(FE43<>1,$FP43=3,SUM($GB43:GD43)=0,OR($FF43=1,$FJ43>=0.05)),1,) -> 0 | GF43: =IF(AND(FE43<>1,$FP43=3,SUM($GB43:GE43)=0,$FI43>0),1,) -> 0 | GG43: 0 | GI43: 0 | GJ43: 0 | GK43: 0 | GL43: 0 | GM43: 0 | GN43: 0 | GO43: 0 | GP43: 0 | GQ43: 0 | GR43: 0 | GS43: 0 | GT43: 0 | GU43: 0 | GV43: 0 | GW43: 0 | GX43: 0 | GY43: 0 | GZ43: 0 | HA43: 0 | HB43: 0 | HC43: 0 | HD43: 0 | HE43: 0 | HF43: 0 | HG43: 0 | HH43: 0 | HI43: 0 | HJ43: 0 | HK43: 0 | HL43: 0 | HM43: 0 | HN43: 0 | HO43: 0 | HP43: 0 | HQ43: 0 | HR43: 0 | HS43: 0 | HT43: 0 | HU43: 0 | HV43: 0 | HW43: 0 | HX43: 0 | HY43: 0 | HZ43: 0 | IA43: 0 | IB43: 0 | IC43: 0 | ID43: 0 | IE43: 0 | IF43: 0 | IG43: 0 | IH43: 0 | II43: 0 | IJ43: 0 | IK43: 0 | IL43: 0 | IM43: 0 | IN43: 0 | IO43: 0 | IP43: 0 | IQ43: 0 | IR43: 0 | IS43: 0 | IT43: 0 | IU43: 0 | IV43: 0 | IW43: 0 | IX43: 0 | IY43: 0 | IZ43: 0 | JA43: 0 | JB43: 0 | JC43: 0 | JD43: 0 | JE43: 0 | JF43: 0 | JG43: 0 | JH43: 0 | JI43: 0 | JY43: ○ | JZ43: 0 | KA43: 0 | KB43: 0 | KC43: 0 | KD43: 0 | KE43: 0 | KF43: 0 | KG43: ○ | KH43: 0 | KI43: 0 | KJ43: 0 | KK43: ○ | KL43: ○ | KN43: 0 | KO43: 0
A44: 0 | B44: 0 | C44: 0 | D44: 0 | E44: 0 | F44: 0 | G44: 0 | H44: 0 | I44: 0 | J44: 0 | K44: 32 | P44: =IF(O44<>"",VLOOKUP(O44,整理番号表!$Z$17:$AA$20,2,FALSE),) -> 0 | Q44: 0 | W44: =IF(V44<>0,VLOOKUP(V44,整理番号表!$B$6:$L$13,2,FALSE),) -> 0 | X44: 0 | Y44: =IF(X44<>0,VLOOKUP(X44,整理番号表!$B$16:$C$18,2,FALSE),) -> 0 | AA44: =IF(Z44<>0,VLOOKUP(Z44,整理番号表!$B$22:$C$29,2,FALSE),) -> 0 | AD44: =IF(AC44<>0,VLOOKUP(AC44,整理番号表!$B$32:$G$60,2,FALSE),) -> 0 | AF44: =IF(AE44<>0,VLOOKUP(AE44,整理番号表!$P$5:$R$39,2,FALSE),) -> 0 | AH44: 0 | AK44: =IF(AJ44<>"",VLOOKUP(AJ44,整理番号表!$Z$6:$AA$14,2,FALSE),"") ->  | AL44: 0 | AR44: =IF(AQ44<>0,VLOOKUP(AQ44,整理番号表!$P$43:$Q$49,2,FALSE),) -> 0 | AW44: 0 | AX44: 0 | AZ44: 0 | BD44: 0 | BE44: 0 | BF44: 0 | BI44: 0 | BJ44: 0 | BL44: =IF(BK44<>0,VLOOKUP(BK44,整理番号表!$T$5:$U$16,2,FALSE),) -> 0 | BN44: =IF(BM44<>0,VLOOKUP(BM44,整理番号表!$T$22:$U$30,2,FALSE),) -> 0 | BP44: 0 | BX44: 0 | CH44: 0 | CI44: 0 | CJ44: 0 | CK44: 0 | CL44: 0 | CM44: 0 | CN44: 0 | CO44: 0 | CP44: 0 | CQ44: 0 | CR44: 0 | CS44: 0 | CT44: 0 | CU44: 0 | CV44: 0 | CW44: 0 | CX44: 0 | CY44: 0 | CZ44: 0 | DA44: 0 | DB44: 0 | DC44: 0 | DD44: 0 | DE44: 0 | DF44: 0 | DG44: 0 | DH44: 0 | DI44: 0 | DO44: 0 | DP44: 0 | DQ44: 0 | DR44: 0 | DS44: 0 | DT44: 0 | DV44: 0 | ED44: 0 | FE44: 0 | FF44: 0 | FI44: 0 | FJ44: 0 | FK44: 0 | FL44: =IF(OR(AND(1<=$FK44,$FK44<=3),$FK44=6),VLOOKUP($FK44,整理番号表!$B$32:$G$60,2,FALSE),) -> 0 | FM44: =IF(OR($FK44=4,$FK44=7),VLOOKUP($FK44,整理番号表!$B$32:$G$60,2,FALSE),) -> 0 | FN44: =IF($FK44=5,VLOOKUP($FK44,整理番号表!$B$32:$G$60,2,FALSE),) -> 0 | FO44: =IF(AND(8<=$FK44,$FK44<=13),VLOOKUP($FK44,整理番号表!$B$32:$G$60,2,FALSE),) -> 0 | FP44: 0 | FQ44: 0 | FR44: =IF(AND(FE44<>1,$FP44=1,SUM($FQ44:FQ44)=0,$FF44=1,$FI44>=2),1,) -> 0 | FS44: =IF(AND(FE44<>1,$FP44=1,SUM($FQ44:FR44)=0,OR(AND($FF44=1,$FI44>0),$FI44>=4)),1,) -> 0 | FT44: =IF(AND(FE44<>1,$FP44=1,SUM($FQ44:FS44)=0,OR($FF44=1,$FI44>=2)),1,) -> 0 | FU44: =IF(AND(FE44<>1,$FP44=1,SUM($FQ44:FT44)=0,$FI44>0),1,) -> 0 | FV44: 0 | FW44: 0 | FX44: =IF(AND(FE44<>1,$FP44=2,SUM($FW44:FW44)=0,$FF44=1,$FJ44>=0.1),1,) -> 0 | FY44: =IF(AND(FE44<>1,$FP44=2,SUM($FW44:FX44)=0,OR(AND($FF44=1,$FI44>0),$FJ44>=0.2)),1,) -> 0 | FZ44: =IF(AND(FE44<>1,$FP44=2,SUM($FW44:FY44)=0,OR($FF44=1,$FJ44>=0.1)),1,) -> 0 | GA44: =IF(AND(FE44<>1,$FP44=2,SUM($FW44:FZ44)=0,$FI44>0),1,) -> 0 | GB44: 0 | GC44: =IF(AND(FE44<>1,$FP44=3,SUM($GB44:GB44)=0,AND($FF44=1,$FJ44>=0.05)),1,) -> 0 | GD44: =IF(AND(FE44<>1,$FP44=3,SUM($GB44:GC44)=0,OR(AND($FF44=1,$FI44>0),$FJ44>=0.1)),1,) -> 0 | GE44: =IF(AND(FE44<>1,$FP44=3,SUM($GB44:GD44)=0,OR($FF44=1,$FJ44>=0.05)),1,) -> 0 | GF44: =IF(AND(FE44<>1,$FP44=3,SUM($GB44:GE44)=0,$FI44>0),1,) -> 0 | GG44: 0 | GI44: 0 | GJ44: 0 | GK44: 0 | GL44: 0 | GM44: 0 | GN44: 0 | GO44: 0 | GP44: 0 | GQ44: 0 | GR44: 0 | GS44: 0 | GT44: 0 | GU44: 0 | GV44: 0 | GW44: 0 | GX44: 0 | GY44: 0 | GZ44: 0 | HA44: 0 | HB44: 0 | HC44: 0 | HD44: 0 | HE44: 0 | HF44: 0 | HG44: 0 | HH44: 0 | HI44: 0 | HJ44: 0 | HK44: 0 | HL44: 0 | HM44: 0 | HN44: 0 | HO44: 0 | HP44: 0 | HQ44: 0 | HR44: 0 | HS44: 0 | HT44: 0 | HU44: 0 | HV44: 0 | HW44: 0 | HX44: 0 | HY44: 0 | HZ44: 0 | IA44: 0 | IB44: 0 | IC44: 0 | ID44: 0 | IE44: 0 | IF44: 0 | IG44: 0 | IH44: 0 | II44: 0 | IJ44: 0 | IK44: 0 | IL44: 0 | IM44: 0 | IN44: 0 | IO44: 0 | IP44: 0 | IQ44: 0 | IR44: 0 | IS44: 0 | IT44: 0 | IU44: 0 | IV44: 0 | IW44: 0 | IX44: 0 | IY44: 0 | IZ44: 0 | JA44: 0 | JB44: 0 | JC44: 0 | JD44: 0 | JE44: 0 | JF44: 0 | JG44: 0 | JH44: 0 | JI44: 0 | JY44: ○ | JZ44: 0 | KA44: 0 | KB44: 0 | KC44: 0 | KD44: 0 | KE44: 0 | KF44: 0 | KG44: ○ | KH44: 0 | KI44: 0 | KJ44: 0 | KK44: ○ | KL44: ○ | KN44: 0 | KO44: 0
A45: 0 | B45: 0 | C45: 0 | D45: 0 | E45: 0 | F45: 0 | G45: 0 | H45: 0 | I45: 0 | J45: 0 | K45: 33 | P45: =IF(O45<>"",VLOOKUP(O45,整理番号表!$Z$17:$AA$20,2,FALSE),) -> 0 | Q45: 0 | W45: =IF(V45<>0,VLOOKUP(V45,整理番号表!$B$6:$L$13,2,FALSE),) -> 0 | X45: 0 | Y45: =IF(X45<>0,VLOOKUP(X45,整理番号表!$B$16:$C$18,2,FALSE),) -> 0 | AA45: =IF(Z45<>0,VLOOKUP(Z45,整理番号表!$B$22:$C$29,2,FALSE),) -> 0 | AD45: =IF(AC45<>0,VLOOKUP(AC45,整理番号表!$B$32:$G$60,2,FALSE),) -> 0 | AF45: =IF(AE45<>0,VLOOKUP(AE45,整理番号表!$P$5:$R$39,2,FALSE),) -> 0 | AH45: 0 | AK45: =IF(AJ45<>"",VLOOKUP(AJ45,整理番号表!$Z$6:$AA$14,2,FALSE),"") ->  | AL45: 0 | AR45: =IF(AQ45<>0,VLOOKUP(AQ45,整理番号表!$P$43:$Q$49,2,FALSE),) -> 0 | AW45: 0 | AX45: 0 | AZ45: 0 | BD45: 0 | BE45: 0 | BF45: 0 | BI45: 0 | BJ45: 0 | BL45: =IF(BK45<>0,VLOOKUP(BK45,整理番号表!$T$5:$U$16,2,FALSE),) -> 0 | BN45: =IF(BM45<>0,VLOOKUP(BM45,整理番号表!$T$22:$U$30,2,FALSE),) -> 0 | BP45: 0 | BX45: 0 | CH45: 0 | CI45: 0 | CJ45: 0 | CK45: 0 | CL45: 0 | CM45: 0 | CN45: 0 | CO45: 0 | CP45: 0 | CQ45: 0 | CR45: 0 | CS45: 0 | CT45: 0 | CU45: 0 | CV45: 0 | CW45: 0 | CX45: 0 | CY45: 0 | CZ45: 0 | DA45: 0 | DB45: 0 | DC45: 0 | DD45: 0 | DE45: 0 | DF45: 0 | DG45: 0 | DH45: 0 | DI45: 0 | DO45: 0 | DP45: 0 | DQ45: 0 | DR45: 0 | DS45: 0 | DT45: 0 | DV45: 0 | ED45: 0 | FE45: 0 | FF45: 0 | FI45: 0 | FJ45: 0 | FK45: 0 | FL45: =IF(OR(AND(1<=$FK45,$FK45<=3),$FK45=6),VLOOKUP($FK45,整理番号表!$B$32:$G$60,2,FALSE),) -> 0 | FM45: =IF(OR($FK45=4,$FK45=7),VLOOKUP($FK45,整理番号表!$B$32:$G$60,2,FALSE),) -> 0 | FN45: =IF($FK45=5,VLOOKUP($FK45,整理番号表!$B$32:$G$60,2,FALSE),) -> 0 | FO45: =IF(AND(8<=$FK45,$FK45<=13),VLOOKUP($FK45,整理番号表!$B$32:$G$60,2,FALSE),) -> 0 | FP45: 0 | FQ45: 0 | FR45: =IF(AND(FE45<>1,$FP45=1,SUM($FQ45:FQ45)=0,$FF45=1,$FI45>=2),1,) -> 0 | FS45: =IF(AND(FE45<>1,$FP45=1,SUM($FQ45:FR45)=0,OR(AND($FF45=1,$FI45>0),$FI45>=4)),1,) -> 0 | FT45: =IF(AND(FE45<>1,$FP45=1,SUM($FQ45:FS45)=0,OR($FF45=1,$FI45>=2)),1,) -> 0 | FU45: =IF(AND(FE45<>1,$FP45=1,SUM($FQ45:FT45)=0,$FI45>0),1,) -> 0 | FV45: 0 | FW45: 0 | FX45: =IF(AND(FE45<>1,$FP45=2,SUM($FW45:FW45)=0,$FF45=1,$FJ45>=0.1),1,) -> 0 | FY45: =IF(AND(FE45<>1,$FP45=2,SUM($FW45:FX45)=0,OR(AND($FF45=1,$FI45>0),$FJ45>=0.2)),1,) -> 0 | FZ45: =IF(AND(FE45<>1,$FP45=2,SUM($FW45:FY45)=0,OR($FF45=1,$FJ45>=0.1)),1,) -> 0 | GA45: =IF(AND(FE45<>1,$FP45=2,SUM($FW45:FZ45)=0,$FI45>0),1,) -> 0 | GB45: 0 | GC45: =IF(AND(FE45<>1,$FP45=3,SUM($GB45:GB45)=0,AND($FF45=1,$FJ45>=0.05)),1,) -> 0 | GD45: =IF(AND(FE45<>1,$FP45=3,SUM($GB45:GC45)=0,OR(AND($FF45=1,$FI45>0),$FJ45>=0.1)),1,) -> 0 | GE45: =IF(AND(FE45<>1,$FP45=3,SUM($GB45:GD45)=0,OR($FF45=1,$FJ45>=0.05)),1,) -> 0 | GF45: =IF(AND(FE45<>1,$FP45=3,SUM($GB45:GE45)=0,$FI45>0),1,) -> 0 | GG45: 0 | GI45: 0 | GJ45: 0 | GK45: 0 | GL45: 0 | GM45: 0 | GN45: 0 | GO45: 0 | GP45: 0 | GQ45: 0 | GR45: 0 | GS45: 0 | GT45: 0 | GU45: 0 | GV45: 0 | GW45: 0 | GX45: 0 | GY45: 0 | GZ45: 0 | HA45: 0 | HB45: 0 | HC45: 0 | HD45: 0 | HE45: 0 | HF45: 0 | HG45: 0 | HH45: 0 | HI45: 0 | HJ45: 0 | HK45: 0 | HL45: 0 | HM45: 0 | HN45: 0 | HO45: 0 | HP45: 0 | HQ45: 0 | HR45: 0 | HS45: 0 | HT45: 0 | HU45: 0 | HV45: 0 | HW45: 0 | HX45: 0 | HY45: 0 | HZ45: 0 | IA45: 0 | IB45: 0 | IC45: 0 | ID45: 0 | IE45: 0 | IF45: 0 | IG45: 0 | IH45: 0 | II45: 0 | IJ45: 0 | IK45: 0 | IL45: 0 | IM45: 0 | IN45: 0 | IO45: 0 | IP45: 0 | IQ45: 0 | IR45: 0 | IS45: 0 | IT45: 0 | IU45: 0 | IV45: 0 | IW45: 0 | IX45: 0 | IY45: 0 | IZ45: 0 | JA45: 0 | JB45: 0 | JC45: 0 | JD45: 0 | JE45: 0 | JF45: 0 | JG45: 0 | JH45: 0 | JI45: 0 | JY45: ○ | JZ45: 0 | KA45: 0 | KB45: 0 | KC45: 0 | KD45: 0 | KE45: 0 | KF45: 0 | KG45: ○ | KH45: 0 | KI45: 0 | KJ45: 0 | KK45: ○ | KL45: ○ | KN45: 0 | KO45: 0
A46: 0 | B46: 0 | C46: 0 | D46: 0 | E46: 0 | F46: 0 | G46: 0 | H46: 0 | I46: 0 | J46: 0 | K46: 34 | P46: =IF(O46<>"",VLOOKUP(O46,整理番号表!$Z$17:$AA$20,2,FALSE),) -> 0 | Q46: 0 | W46: =IF(V46<>0,VLOOKUP(V46,整理番号表!$B$6:$L$13,2,FALSE),) -> 0 | X46: 0 | Y46: =IF(X46<>0,VLOOKUP(X46,整理番号表!$B$16:$C$18,2,FALSE),) -> 0 | AA46: =IF(Z46<>0,VLOOKUP(Z46,整理番号表!$B$22:$C$29,2,FALSE),) -> 0 | AD46: =IF(AC46<>0,VLOOKUP(AC46,整理番号表!$B$32:$G$60,2,FALSE),) -> 0 | AF46: =IF(AE46<>0,VLOOKUP(AE46,整理番号表!$P$5:$R$39,2,FALSE),) -> 0 | AH46: 0 | AK46: =IF(AJ46<>"",VLOOKUP(AJ46,整理番号表!$Z$6:$AA$14,2,FALSE),"") ->  | AL46: 0 | AR46: =IF(AQ46<>0,VLOOKUP(AQ46,整理番号表!$P$43:$Q$49,2,FALSE),) -> 0 | AW46: 0 | AX46: 0 | AZ46: 0 | BD46: 0 | BE46: 0 | BF46: 0 | BI46: 0 | BJ46: 0 | BL46: =IF(BK46<>0,VLOOKUP(BK46,整理番号表!$T$5:$U$16,2,FALSE),) -> 0 | BN46: =IF(BM46<>0,VLOOKUP(BM46,整理番号表!$T$22:$U$30,2,FALSE),) -> 0 | BP46: 0 | BX46: 0 | CH46: 0 | CI46: 0 | CJ46: 0 | CK46: 0 | CL46: 0 | CM46: 0 | CN46: 0 | CO46: 0 | CP46: 0 | CQ46: 0 | CR46: 0 | CS46: 0 | CT46: 0 | CU46: 0 | CV46: 0 | CW46: 0 | CX46: 0 | CY46: 0 | CZ46: 0 | DA46: 0 | DB46: 0 | DC46: 0 | DD46: 0 | DE46: 0 | DF46: 0 | DG46: 0 | DH46: 0 | DI46: 0 | DO46: 0 | DP46: 0 | DQ46: 0 | DR46: 0 | DS46: 0 | DT46: 0 | DV46: 0 | ED46: 0 | FE46: 0 | FF46: 0 | FI46: 0 | FJ46: 0 | FK46: 0 | FL46: =IF(OR(AND(1<=$FK46,$FK46<=3),$FK46=6),VLOOKUP($FK46,整理番号表!$B$32:$G$60,2,FALSE),) -> 0 | FM46: =IF(OR($FK46=4,$FK46=7),VLOOKUP($FK46,整理番号表!$B$32:$G$60,2,FALSE),) -> 0 | FN46: =IF($FK46=5,VLOOKUP($FK46,整理番号表!$B$32:$G$60,2,FALSE),) -> 0 | FO46: =IF(AND(8<=$FK46,$FK46<=13),VLOOKUP($FK46,整理番号表!$B$32:$G$60,2,FALSE),) -> 0 | FP46: 0 | FQ46: 0 | FR46: =IF(AND(FE46<>1,$FP46=1,SUM($FQ46:FQ46)=0,$FF46=1,$FI46>=2),1,) -> 0 | FS46: =IF(AND(FE46<>1,$FP46=1,SUM($FQ46:FR46)=0,OR(AND($FF46=1,$FI46>0),$FI46>=4)),1,) -> 0 | FT46: =IF(AND(FE46<>1,$FP46=1,SUM($FQ46:FS46)=0,OR($FF46=1,$FI46>=2)),1,) -> 0 | FU46: =IF(AND(FE46<>1,$FP46=1,SUM($FQ46:FT46)=0,$FI46>0),1,) -> 0 | FV46: 0 | FW46: 0 | FX46: =IF(AND(FE46<>1,$FP46=2,SUM($FW46:FW46)=0,$FF46=1,$FJ46>=0.1),1,) -> 0 | FY46: =IF(AND(FE46<>1,$FP46=2,SUM($FW46:FX46)=0,OR(AND($FF46=1,$FI46>0),$FJ46>=0.2)),1,) -> 0 | FZ46: =IF(AND(FE46<>1,$FP46=2,SUM($FW46:FY46)=0,OR($FF46=1,$FJ46>=0.1)),1,) -> 0 | GA46: =IF(AND(FE46<>1,$FP46=2,SUM($FW46:FZ46)=0,$FI46>0),1,) -> 0 | GB46: 0 | GC46: =IF(AND(FE46<>1,$FP46=3,SUM($GB46:GB46)=0,AND($FF46=1,$FJ46>=0.05)),1,) -> 0 | GD46: =IF(AND(FE46<>1,$FP46=3,SUM($GB46:GC46)=0,OR(AND($FF46=1,$FI46>0),$FJ46>=0.1)),1,) -> 0 | GE46: =IF(AND(FE46<>1,$FP46=3,SUM($GB46:GD46)=0,OR($FF46=1,$FJ46>=0.05)),1,) -> 0 | GF46: =IF(AND(FE46<>1,$FP46=3,SUM($GB46:GE46)=0,$FI46>0),1,) -> 0 | GG46: 0 | GI46: 0 | GJ46: 0 | GK46: 0 | GL46: 0 | GM46: 0 | GN46: 0 | GO46: 0 | GP46: 0 | GQ46: 0 | GR46: 0 | GS46: 0 | GT46: 0 | GU46: 0 | GV46: 0 | GW46: 0 | GX46: 0 | GY46: 0 | GZ46: 0 | HA46: 0 | HB46: 0 | HC46: 0 | HD46: 0 | HE46: 0 | HF46: 0 | HG46: 0 | HH46: 0 | HI46: 0 | HJ46: 0 | HK46: 0 | HL46: 0 | HM46: 0 | HN46: 0 | HO46: 0 | HP46: 0 | HQ46: 0 | HR46: 0 | HS46: 0 | HT46: 0 | HU46: 0 | HV46: 0 | HW46: 0 | HX46: 0 | HY46: 0 | HZ46: 0 | IA46: 0 | IB46: 0 | IC46: 0 | ID46: 0 | IE46: 0 | IF46: 0 | IG46: 0 | IH46: 0 | II46: 0 | IJ46: 0 | IK46: 0 | IL46: 0 | IM46: 0 | IN46: 0 | IO46: 0 | IP46: 0 | IQ46: 0 | IR46: 0 | IS46: 0 | IT46: 0 | IU46: 0 | IV46: 0 | IW46: 0 | IX46: 0 | IY46: 0 | IZ46: 0 | JA46: 0 | JB46: 0 | JC46: 0 | JD46: 0 | JE46: 0 | JF46: 0 | JG46: 0 | JH46: 0 | JI46: 0 | JY46: ○ | JZ46: 0 | KA46: 0 | KB46: 0 | KC46: 0 | KD46: 0 | KE46: 0 | KF46: 0 | KG46: ○ | KH46: 0 | KI46: 0 | KJ46: 0 | KK46: ○ | KL46: ○ | KN46: 0 | KO46: 0
A47: 0 | B47: 0 | C47: 0 | D47: 0 | E47: 0 | F47: 0 | G47: 0 | H47: 0 | I47: 0 | J47: 0 | K47: 35 | P47: =IF(O47<>"",VLOOKUP(O47,整理番号表!$Z$17:$AA$20,2,FALSE),) -> 0 | Q47: 0 | W47: =IF(V47<>0,VLOOKUP(V47,整理番号表!$B$6:$L$13,2,FALSE),) -> 0 | X47: 0 | Y47: =IF(X47<>0,VLOOKUP(X47,整理番号表!$B$16:$C$18,2,FALSE),) -> 0 | AA47: =IF(Z47<>0,VLOOKUP(Z47,整理番号表!$B$22:$C$29,2,FALSE),) -> 0 | AD47: =IF(AC47<>0,VLOOKUP(AC47,整理番号表!$B$32:$G$60,2,FALSE),) -> 0 | AF47: =IF(AE47<>0,VLOOKUP(AE47,整理番号表!$P$5:$R$39,2,FALSE),) -> 0 | AH47: 0 | AK47: =IF(AJ47<>"",VLOOKUP(AJ47,整理番号表!$Z$6:$AA$14,2,FALSE),"") ->  | AL47: 0 | AR47: =IF(AQ47<>0,VLOOKUP(AQ47,整理番号表!$P$43:$Q$49,2,FALSE),) -> 0 | AW47: 0 | AX47: 0 | AZ47: 0 | BD47: 0 | BE47: 0 | BF47: 0 | BI47: 0 | BJ47: 0 | BL47: =IF(BK47<>0,VLOOKUP(BK47,整理番号表!$T$5:$U$16,2,FALSE),) -> 0 | BN47: =IF(BM47<>0,VLOOKUP(BM47,整理番号表!$T$22:$U$30,2,FALSE),) -> 0 | BP47: 0 | BX47: 0 | CH47: 0 | CI47: 0 | CJ47: 0 | CK47: 0 | CL47: 0 | CM47: 0 | CN47: 0 | CO47: 0 | CP47: 0 | CQ47: 0 | CR47: 0 | CS47: 0 | CT47: 0 | CU47: 0 | CV47: 0 | CW47: 0 | CX47: 0 | CY47: 0 | CZ47: 0 | DA47: 0 | DB47: 0 | DC47: 0 | DD47: 0 | DE47: 0 | DF47: 0 | DG47: 0 | DH47: 0 | DI47: 0 | DO47: 0 | DP47: 0 | DQ47: 0 | DR47: 0 | DS47: 0 | DT47: 0 | DV47: 0 | ED47: 0 | FE47: 0 | FF47: 0 | FI47: 0 | FJ47: 0 | FK47: 0 | FL47: =IF(OR(AND(1<=$FK47,$FK47<=3),$FK47=6),VLOOKUP($FK47,整理番号表!$B$32:$G$60,2,FALSE),) -> 0 | FM47: =IF(OR($FK47=4,$FK47=7),VLOOKUP($FK47,整理番号表!$B$32:$G$60,2,FALSE),) -> 0 | FN47: =IF($FK47=5,VLOOKUP($FK47,整理番号表!$B$32:$G$60,2,FALSE),) -> 0 | FO47: =IF(AND(8<=$FK47,$FK47<=13),VLOOKUP($FK47,整理番号表!$B$32:$G$60,2,FALSE),) -> 0 | FP47: 0 | FQ47: 0 | FR47: =IF(AND(FE47<>1,$FP47=1,SUM($FQ47:FQ47)=0,$FF47=1,$FI47>=2),1,) -> 0 | FS47: =IF(AND(FE47<>1,$FP47=1,SUM($FQ47:FR47)=0,OR(AND($FF47=1,$FI47>0),$FI47>=4)),1,) -> 0 | FT47: =IF(AND(FE47<>1,$FP47=1,SUM($FQ47:FS47)=0,OR($FF47=1,$FI47>=2)),1,) -> 0 | FU47: =IF(AND(FE47<>1,$FP47=1,SUM($FQ47:FT47)=0,$FI47>0),1,) -> 0 | FV47: 0 | FW47: 0 | FX47: =IF(AND(FE47<>1,$FP47=2,SUM($FW47:FW47)=0,$FF47=1,$FJ47>=0.1),1,) -> 0 | FY47: =IF(AND(FE47<>1,$FP47=2,SUM($FW47:FX47)=0,OR(AND($FF47=1,$FI47>0),$FJ47>=0.2)),1,) -> 0 | FZ47: =IF(AND(FE47<>1,$FP47=2,SUM($FW47:FY47)=0,OR($FF47=1,$FJ47>=0.1)),1,) -> 0 | GA47: =IF(AND(FE47<>1,$FP47=2,SUM($FW47:FZ47)=0,$FI47>0),1,) -> 0 | GB47: 0 | GC47: =IF(AND(FE47<>1,$FP47=3,SUM($GB47:GB47)=0,AND($FF47=1,$FJ47>=0.05)),1,) -> 0 | GD47: =IF(AND(FE47<>1,$FP47=3,SUM($GB47:GC47)=0,OR(AND($FF47=1,$FI47>0),$FJ47>=0.1)),1,) -> 0 | GE47: =IF(AND(FE47<>1,$FP47=3,SUM($GB47:GD47)=0,OR($FF47=1,$FJ47>=0.05)),1,) -> 0 | GF47: =IF(AND(FE47<>1,$FP47=3,SUM($GB47:GE47)=0,$FI47>0),1,) -> 0 | GG47: 0 | GI47: 0 | GJ47: 0 | GK47: 0 | GL47: 0 | GM47: 0 | GN47: 0 | GO47: 0 | GP47: 0 | GQ47: 0 | GR47: 0 | GS47: 0 | GT47: 0 | GU47: 0 | GV47: 0 | GW47: 0 | GX47: 0 | GY47: 0 | GZ47: 0 | HA47: 0 | HB47: 0 | HC47: 0 | HD47: 0 | HE47: 0 | HF47: 0 | HG47: 0 | HH47: 0 | HI47: 0 | HJ47: 0 | HK47: 0 | HL47: 0 | HM47: 0 | HN47: 0 | HO47: 0 | HP47: 0 | HQ47: 0 | HR47: 0 | HS47: 0 | HT47: 0 | HU47: 0 | HV47: 0 | HW47: 0 | HX47: 0 | HY47: 0 | HZ47: 0 | IA47: 0 | IB47: 0 | IC47: 0 | ID47: 0 | IE47: 0 | IF47: 0 | IG47: 0 | IH47: 0 | II47: 0 | IJ47: 0 | IK47: 0 | IL47: 0 | IM47: 0 | IN47: 0 | IO47: 0 | IP47: 0 | IQ47: 0 | IR47: 0 | IS47: 0 | IT47: 0 | IU47: 0 | IV47: 0 | IW47: 0 | IX47: 0 | IY47: 0 | IZ47: 0 | JA47: 0 | JB47: 0 | JC47: 0 | JD47: 0 | JE47: 0 | JF47: 0 | JG47: 0 | JH47: 0 | JI47: 0 | JY47: ○ | JZ47: 0 | KA47: 0 | KB47: 0 | KC47: 0 | KD47: 0 | KE47: 0 | KF47: 0 | KG47: ○ | KH47: 0 | KI47: 0 | KJ47: 0 | KK47: ○ | KL47: ○ | KN47: 0 | KO47: 0
A48: 0 | B48: 0 | C48: 0 | D48: 0 | E48: 0 | F48: 0 | G48: 0 | H48: 0 | I48: 0 | J48: 0 | K48: 36 | P48: =IF(O48<>"",VLOOKUP(O48,整理番号表!$Z$17:$AA$20,2,FALSE),) -> 0 | Q48: 0 | W48: =IF(V48<>0,VLOOKUP(V48,整理番号表!$B$6:$L$13,2,FALSE),) -> 0 | X48: 0 | Y48: =IF(X48<>0,VLOOKUP(X48,整理番号表!$B$16:$C$18,2,FALSE),) -> 0 | AA48: =IF(Z48<>0,VLOOKUP(Z48,整理番号表!$B$22:$C$29,2,FALSE),) -> 0 | AD48: =IF(AC48<>0,VLOOKUP(AC48,整理番号表!$B$32:$G$60,2,FALSE),) -> 0 | AF48: =IF(AE48<>0,VLOOKUP(AE48,整理番号表!$P$5:$R$39,2,FALSE),) -> 0 | AH48: 0 | AK48: =IF(AJ48<>"",VLOOKUP(AJ48,整理番号表!$Z$6:$AA$14,2,FALSE),"") ->  | AL48: 0 | AR48: =IF(AQ48<>0,VLOOKUP(AQ48,整理番号表!$P$43:$Q$49,2,FALSE),) -> 0 | AW48: 0 | AX48: 0 | AZ48: 0 | BD48: 0 | BE48: 0 | BF48: 0 | BI48: 0 | BJ48: 0 | BL48: =IF(BK48<>0,VLOOKUP(BK48,整理番号表!$T$5:$U$16,2,FALSE),) -> 0 | BN48: =IF(BM48<>0,VLOOKUP(BM48,整理番号表!$T$22:$U$30,2,FALSE),) -> 0 | BP48: 0 | BX48: 0 | CH48: 0 | CI48: 0 | CJ48: 0 | CK48: 0 | CL48: 0 | CM48: 0 | CN48: 0 | CO48: 0 | CP48: 0 | CQ48: 0 | CR48: 0 | CS48: 0 | CT48: 0 | CU48: 0 | CV48: 0 | CW48: 0 | CX48: 0 | CY48: 0 | CZ48: 0 | DA48: 0 | DB48: 0 | DC48: 0 | DD48: 0 | DE48: 0 | DF48: 0 | DG48: 0 | DH48: 0 | DI48: 0 | DO48: 0 | DP48: 0 | DQ48: 0 | DR48: 0 | DS48: 0 | DT48: 0 | DV48: 0 | ED48: 0 | FE48: 0 | FF48: 0 | FI48: 0 | FJ48: 0 | FK48: 0 | FL48: =IF(OR(AND(1<=$FK48,$FK48<=3),$FK48=6),VLOOKUP($FK48,整理番号表!$B$32:$G$60,2,FALSE),) -> 0 | FM48: =IF(OR($FK48=4,$FK48=7),VLOOKUP($FK48,整理番号表!$B$32:$G$60,2,FALSE),) -> 0 | FN48: =IF($FK48=5,VLOOKUP($FK48,整理番号表!$B$32:$G$60,2,FALSE),) -> 0 | FO48: =IF(AND(8<=$FK48,$FK48<=13),VLOOKUP($FK48,整理番号表!$B$32:$G$60,2,FALSE),) -> 0 | FP48: 0 | FQ48: 0 | FR48: =IF(AND(FE48<>1,$FP48=1,SUM($FQ48:FQ48)=0,$FF48=1,$FI48>=2),1,) -> 0 | FS48: =IF(AND(FE48<>1,$FP48=1,SUM($FQ48:FR48)=0,OR(AND($FF48=1,$FI48>0),$FI48>=4)),1,) -> 0 | FT48: =IF(AND(FE48<>1,$FP48=1,SUM($FQ48:FS48)=0,OR($FF48=1,$FI48>=2)),1,) -> 0 | FU48: =IF(AND(FE48<>1,$FP48=1,SUM($FQ48:FT48)=0,$FI48>0),1,) -> 0 | FV48: 0 | FW48: 0 | FX48: =IF(AND(FE48<>1,$FP48=2,SUM($FW48:FW48)=0,$FF48=1,$FJ48>=0.1),1,) -> 0 | FY48: =IF(AND(FE48<>1,$FP48=2,SUM($FW48:FX48)=0,OR(AND($FF48=1,$FI48>0),$FJ48>=0.2)),1,) -> 0 | FZ48: =IF(AND(FE48<>1,$FP48=2,SUM($FW48:FY48)=0,OR($FF48=1,$FJ48>=0.1)),1,) -> 0 | GA48: =IF(AND(FE48<>1,$FP48=2,SUM($FW48:FZ48)=0,$FI48>0),1,) -> 0 | GB48: 0 | GC48: =IF(AND(FE48<>1,$FP48=3,SUM($GB48:GB48)=0,AND($FF48=1,$FJ48>=0.05)),1,) -> 0 | GD48: =IF(AND(FE48<>1,$FP48=3,SUM($GB48:GC48)=0,OR(AND($FF48=1,$FI48>0),$FJ48>=0.1)),1,) -> 0 | GE48: =IF(AND(FE48<>1,$FP48=3,SUM($GB48:GD48)=0,OR($FF48=1,$FJ48>=0.05)),1,) -> 0 | GF48: =IF(AND(FE48<>1,$FP48=3,SUM($GB48:GE48)=0,$FI48>0),1,) -> 0 | GG48: 0 | GI48: 0 | GJ48: 0 | GK48: 0 | GL48: 0 | GM48: 0 | GN48: 0 | GO48: 0 | GP48: 0 | GQ48: 0 | GR48: 0 | GS48: 0 | GT48: 0 | GU48: 0 | GV48: 0 | GW48: 0 | GX48: 0 | GY48: 0 | GZ48: 0 | HA48: 0 | HB48: 0 | HC48: 0 | HD48: 0 | HE48: 0 | HF48: 0 | HG48: 0 | HH48: 0 | HI48: 0 | HJ48: 0 | HK48: 0 | HL48: 0 | HM48: 0 | HN48: 0 | HO48: 0 | HP48: 0 | HQ48: 0 | HR48: 0 | HS48: 0 | HT48: 0 | HU48: 0 | HV48: 0 | HW48: 0 | HX48: 0 | HY48: 0 | HZ48: 0 | IA48: 0 | IB48: 0 | IC48: 0 | ID48: 0 | IE48: 0 | IF48: 0 | IG48: 0 | IH48: 0 | II48: 0 | IJ48: 0 | IK48: 0 | IL48: 0 | IM48: 0 | IN48: 0 | IO48: 0 | IP48: 0 | IQ48: 0 | IR48: 0 | IS48: 0 | IT48: 0 | IU48: 0 | IV48: 0 | IW48: 0 | IX48: 0 | IY48: 0 | IZ48: 0 | JA48: 0 | JB48: 0 | JC48: 0 | JD48: 0 | JE48: 0 | JF48: 0 | JG48: 0 | JH48: 0 | JI48: 0 | JY48: ○ | JZ48: 0 | KA48: 0 | KB48: 0 | KC48: 0 | KD48: 0 | KE48: 0 | KF48: 0 | KG48: ○ | KH48: 0 | KI48: 0 | KJ48: 0 | KK48: ○ | KL48: ○ | KN48: 0 | KO48: 0
A49: 0 | B49: 0 | C49: 0 | D49: 0 | E49: 0 | F49: 0 | G49: 0 | H49: 0 | I49: 0 | J49: 0 | K49: 37 | P49: =IF(O49<>"",VLOOKUP(O49,整理番号表!$Z$17:$AA$20,2,FALSE),) -> 0 | Q49: 0 | W49: =IF(V49<>0,VLOOKUP(V49,整理番号表!$B$6:$L$13,2,FALSE),) -> 0 | X49: 0 | Y49: =IF(X49<>0,VLOOKUP(X49,整理番号表!$B$16:$C$18,2,FALSE),) -> 0 | AA49: =IF(Z49<>0,VLOOKUP(Z49,整理番号表!$B$22:$C$29,2,FALSE),) -> 0 | AD49: =IF(AC49<>0,VLOOKUP(AC49,整理番号表!$B$32:$G$60,2,FALSE),) -> 0 | AF49: =IF(AE49<>0,VLOOKUP(AE49,整理番号表!$P$5:$R$39,2,FALSE),) -> 0 | AH49: 0 | AK49: =IF(AJ49<>"",VLOOKUP(AJ49,整理番号表!$Z$6:$AA$14,2,FALSE),"") ->  | AL49: 0 | AR49: =IF(AQ49<>0,VLOOKUP(AQ49,整理番号表!$P$43:$Q$49,2,FALSE),) -> 0 | AW49: 0 | AX49: 0 | AZ49: 0 | BD49: 0 | BE49: 0 | BF49: 0 | BI49: 0 | BJ49: 0 | BL49: =IF(BK49<>0,VLOOKUP(BK49,整理番号表!$T$5:$U$16,2,FALSE),) -> 0 | BN49: =IF(BM49<>0,VLOOKUP(BM49,整理番号表!$T$22:$U$30,2,FALSE),) -> 0 | BP49: 0 | BX49: 0 | CH49: 0 | CI49: 0 | CJ49: 0 | CK49: 0 | CL49: 0 | CM49: 0 | CN49: 0 | CO49: 0 | CP49: 0 | CQ49: 0 | CR49: 0 | CS49: 0 | CT49: 0 | CU49: 0 | CV49: 0 | CW49: 0 | CX49: 0 | CY49: 0 | CZ49: 0 | DA49: 0 | DB49: 0 | DC49: 0 | DD49: 0 | DE49: 0 | DF49: 0 | DG49: 0 | DH49: 0 | DI49: 0 | DO49: 0 | DP49: 0 | DQ49: 0 | DR49: 0 | DS49: 0 | DT49: 0 | DV49: 0 | ED49: 0 | FE49: 0 | FF49: 0 | FI49: 0 | FJ49: 0 | FK49: 0 | FL49: =IF(OR(AND(1<=$FK49,$FK49<=3),$FK49=6),VLOOKUP($FK49,整理番号表!$B$32:$G$60,2,FALSE),) -> 0 | FM49: =IF(OR($FK49=4,$FK49=7),VLOOKUP($FK49,整理番号表!$B$32:$G$60,2,FALSE),) -> 0 | FN49: =IF($FK49=5,VLOOKUP($FK49,整理番号表!$B$32:$G$60,2,FALSE),) -> 0 | FO49: =IF(AND(8<=$FK49,$FK49<=13),VLOOKUP($FK49,整理番号表!$B$32:$G$60,2,FALSE),) -> 0 | FP49: 0 | FQ49: 0 | FR49: =IF(AND(FE49<>1,$FP49=1,SUM($FQ49:FQ49)=0,$FF49=1,$FI49>=2),1,) -> 0 | FS49: =IF(AND(FE49<>1,$FP49=1,SUM($FQ49:FR49)=0,OR(AND($FF49=1,$FI49>0),$FI49>=4)),1,) -> 0 | FT49: =IF(AND(FE49<>1,$FP49=1,SUM($FQ49:FS49)=0,OR($FF49=1,$FI49>=2)),1,) -> 0 | FU49: =IF(AND(FE49<>1,$FP49=1,SUM($FQ49:FT49)=0,$FI49>0),1,) -> 0 | FV49: 0 | FW49: 0 | FX49: =IF(AND(FE49<>1,$FP49=2,SUM($FW49:FW49)=0,$FF49=1,$FJ49>=0.1),1,) -> 0 | FY49: =IF(AND(FE49<>1,$FP49=2,SUM($FW49:FX49)=0,OR(AND($FF49=1,$FI49>0),$FJ49>=0.2)),1,) -> 0 | FZ49: =IF(AND(FE49<>1,$FP49=2,SUM($FW49:FY49)=0,OR($FF49=1,$FJ49>=0.1)),1,) -> 0 | GA49: =IF(AND(FE49<>1,$FP49=2,SUM($FW49:FZ49)=0,$FI49>0),1,) -> 0 | GB49: 0 | GC49: =IF(AND(FE49<>1,$FP49=3,SUM($GB49:GB49)=0,AND($FF49=1,$FJ49>=0.05)),1,) -> 0 | GD49: =IF(AND(FE49<>1,$FP49=3,SUM($GB49:GC49)=0,OR(AND($FF49=1,$FI49>0),$FJ49>=0.1)),1,) -> 0 | GE49: =IF(AND(FE49<>1,$FP49=3,SUM($GB49:GD49)=0,OR($FF49=1,$FJ49>=0.05)),1,) -> 0 | GF49: =IF(AND(FE49<>1,$FP49=3,SUM($GB49:GE49)=0,$FI49>0),1,) -> 0 | GG49: 0 | GI49: 0 | GJ49: 0 | GK49: 0 | GL49: 0 | GM49: 0 | GN49: 0 | GO49: 0 | GP49: 0 | GQ49: 0 | GR49: 0 | GS49: 0 | GT49: 0 | GU49: 0 | GV49: 0 | GW49: 0 | GX49: 0 | GY49: 0 | GZ49: 0 | HA49: 0 | HB49: 0 | HC49: 0 | HD49: 0 | HE49: 0 | HF49: 0 | HG49: 0 | HH49: 0 | HI49: 0 | HJ49: 0 | HK49: 0 | HL49: 0 | HM49: 0 | HN49: 0 | HO49: 0 | HP49: 0 | HQ49: 0 | HR49: 0 | HS49: 0 | HT49: 0 | HU49: 0 | HV49: 0 | HW49: 0 | HX49: 0 | HY49: 0 | HZ49: 0 | IA49: 0 | IB49: 0 | IC49: 0 | ID49: 0 | IE49: 0 | IF49: 0 | IG49: 0 | IH49: 0 | II49: 0 | IJ49: 0 | IK49: 0 | IL49: 0 | IM49: 0 | IN49: 0 | IO49: 0 | IP49: 0 | IQ49: 0 | IR49: 0 | IS49: 0 | IT49: 0 | IU49: 0 | IV49: 0 | IW49: 0 | IX49: 0 | IY49: 0 | IZ49: 0 | JA49: 0 | JB49: 0 | JC49: 0 | JD49: 0 | JE49: 0 | JF49: 0 | JG49: 0 | JH49: 0 | JI49: 0 | JY49: ○ | JZ49: 0 | KA49: 0 | KB49: 0 | KC49: 0 | KD49: 0 | KE49: 0 | KF49: 0 | KG49: ○ | KH49: 0 | KI49: 0 | KJ49: 0 | KK49: ○ | KL49: ○ | KN49: 0 | KO49: 0
A50: 0 | B50: 0 | C50: 0 | D50: 0 | E50: 0 | F50: 0 | G50: 0 | H50: 0 | I50: 0 | J50: 0 | K50: 38 | P50: =IF(O50<>"",VLOOKUP(O50,整理番号表!$Z$17:$AA$20,2,FALSE),) -> 0 | Q50: 0 | W50: =IF(V50<>0,VLOOKUP(V50,整理番号表!$B$6:$L$13,2,FALSE),) -> 0 | X50: 0 | Y50: =IF(X50<>0,VLOOKUP(X50,整理番号表!$B$16:$C$18,2,FALSE),) -> 0 | AA50: =IF(Z50<>0,VLOOKUP(Z50,整理番号表!$B$22:$C$29,2,FALSE),) -> 0 | AD50: =IF(AC50<>0,VLOOKUP(AC50,整理番号表!$B$32:$G$60,2,FALSE),) -> 0 | AF50: =IF(AE50<>0,VLOOKUP(AE50,整理番号表!$P$5:$R$39,2,FALSE),) -> 0 | AH50: 0 | AK50: =IF(AJ50<>"",VLOOKUP(AJ50,整理番号表!$Z$6:$AA$14,2,FALSE),"") ->  | AL50: 0 | AR50: =IF(AQ50<>0,VLOOKUP(AQ50,整理番号表!$P$43:$Q$49,2,FALSE),) -> 0 | AW50: 0 | AX50: 0 | AZ50: 0 | BD50: 0 | BE50: 0 | BF50: 0 | BI50: 0 | BJ50: 0 | BL50: =IF(BK50<>0,VLOOKUP(BK50,整理番号表!$T$5:$U$16,2,FALSE),) -> 0 | BN50: =IF(BM50<>0,VLOOKUP(BM50,整理番号表!$T$22:$U$30,2,FALSE),) -> 0 | BP50: 0 | BX50: 0 | CH50: 0 | CI50: 0 | CJ50: 0 | CK50: 0 | CL50: 0 | CM50: 0 | CN50: 0 | CO50: 0 | CP50: 0 | CQ50: 0 | CR50: 0 | CS50: 0 | CT50: 0 | CU50: 0 | CV50: 0 | CW50: 0 | CX50: 0 | CY50: 0 | CZ50: 0 | DA50: 0 | DB50: 0 | DC50: 0 | DD50: 0 | DE50: 0 | DF50: 0 | DG50: 0 | DH50: 0 | DI50: 0 | DO50: 0 | DP50: 0 | DQ50: 0 | DR50: 0 | DS50: 0 | DT50: 0 | DV50: 0 | ED50: 0 | FE50: 0 | FF50: 0 | FI50: 0 | FJ50: 0 | FK50: 0 | FL50: =IF(OR(AND(1<=$FK50,$FK50<=3),$FK50=6),VLOOKUP($FK50,整理番号表!$B$32:$G$60,2,FALSE),) -> 0 | FM50: =IF(OR($FK50=4,$FK50=7),VLOOKUP($FK50,整理番号表!$B$32:$G$60,2,FALSE),) -> 0 | FN50: =IF($FK50=5,VLOOKUP($FK50,整理番号表!$B$32:$G$60,2,FALSE),) -> 0 | FO50: =IF(AND(8<=$FK50,$FK50<=13),VLOOKUP($FK50,整理番号表!$B$32:$G$60,2,FALSE),) -> 0 | FP50: 0 | FQ50: 0 | FR50: =IF(AND(FE50<>1,$FP50=1,SUM($FQ50:FQ50)=0,$FF50=1,$FI50>=2),1,) -> 0 | FS50: =IF(AND(FE50<>1,$FP50=1,SUM($FQ50:FR50)=0,OR(AND($FF50=1,$FI50>0),$FI50>=4)),1,) -> 0 | FT50: =IF(AND(FE50<>1,$FP50=1,SUM($FQ50:FS50)=0,OR($FF50=1,$FI50>=2)),1,) -> 0 | FU50: =IF(AND(FE50<>1,$FP50=1,SUM($FQ50:FT50)=0,$FI50>0),1,) -> 0 | FV50: 0 | FW50: 0 | FX50: =IF(AND(FE50<>1,$FP50=2,SUM($FW50:FW50)=0,$FF50=1,$FJ50>=0.1),1,) -> 0 | FY50: =IF(AND(FE50<>1,$FP50=2,SUM($FW50:FX50)=0,OR(AND($FF50=1,$FI50>0),$FJ50>=0.2)),1,) -> 0 | FZ50: =IF(AND(FE50<>1,$FP50=2,SUM($FW50:FY50)=0,OR($FF50=1,$FJ50>=0.1)),1,) -> 0 | GA50: =IF(AND(FE50<>1,$FP50=2,SUM($FW50:FZ50)=0,$FI50>0),1,) -> 0 | GB50: 0 | GC50: =IF(AND(FE50<>1,$FP50=3,SUM($GB50:GB50)=0,AND($FF50=1,$FJ50>=0.05)),1,) -> 0 | GD50: =IF(AND(FE50<>1,$FP50=3,SUM($GB50:GC50)=0,OR(AND($FF50=1,$FI50>0),$FJ50>=0.1)),1,) -> 0 | GE50: =IF(AND(FE50<>1,$FP50=3,SUM($GB50:GD50)=0,OR($FF50=1,$FJ50>=0.05)),1,) -> 0 | GF50: =IF(AND(FE50<>1,$FP50=3,SUM($GB50:GE50)=0,$FI50>0),1,) -> 0 | GG50: 0 | GI50: 0 | GJ50: 0 | GK50: 0 | GL50: 0 | GM50: 0 | GN50: 0 | GO50: 0 | GP50: 0 | GQ50: 0 | GR50: 0 | GS50: 0 | GT50: 0 | GU50: 0 | GV50: 0 | GW50: 0 | GX50: 0 | GY50: 0 | GZ50: 0 | HA50: 0 | HB50: 0 | HC50: 0 | HD50: 0 | HE50: 0 | HF50: 0 | HG50: 0 | HH50: 0 | HI50: 0 | HJ50: 0 | HK50: 0 | HL50: 0 | HM50: 0 | HN50: 0 | HO50: 0 | HP50: 0 | HQ50: 0 | HR50: 0 | HS50: 0 | HT50: 0 | HU50: 0 | HV50: 0 | HW50: 0 | HX50: 0 | HY50: 0 | HZ50: 0 | IA50: 0 | IB50: 0 | IC50: 0 | ID50: 0 | IE50: 0 | IF50: 0 | IG50: 0 | IH50: 0 | II50: 0 | IJ50: 0 | IK50: 0 | IL50: 0 | IM50: 0 | IN50: 0 | IO50: 0 | IP50: 0 | IQ50: 0 | IR50: 0 | IS50: 0 | IT50: 0 | IU50: 0 | IV50: 0 | IW50: 0 | IX50: 0 | IY50: 0 | IZ50: 0 | JA50: 0 | JB50: 0 | JC50: 0 | JD50: 0 | JE50: 0 | JF50: 0 | JG50: 0 | JH50: 0 | JI50: 0 | JY50: ○ | JZ50: 0 | KA50: 0 | KB50: 0 | KC50: 0 | KD50: 0 | KE50: 0 | KF50: 0 | KG50: ○ | KH50: 0 | KI50: 0 | KJ50: 0 | KK50: ○ | KL50: ○ | KN50: 0 | KO50: 0
A51: 0 | B51: 0 | C51: 0 | D51: 0 | E51: 0 | F51: 0 | G51: 0 | H51: 0 | I51: 0 | J51: 0 | K51: 39 | P51: =IF(O51<>"",VLOOKUP(O51,整理番号表!$Z$17:$AA$20,2,FALSE),) -> 0 | Q51: 0 | W51: =IF(V51<>0,VLOOKUP(V51,整理番号表!$B$6:$L$13,2,FALSE),) -> 0 | X51: 0 | Y51: =IF(X51<>0,VLOOKUP(X51,整理番号表!$B$16:$C$18,2,FALSE),) -> 0 | AA51: =IF(Z51<>0,VLOOKUP(Z51,整理番号表!$B$22:$C$29,2,FALSE),) -> 0 | AD51: =IF(AC51<>0,VLOOKUP(AC51,整理番号表!$B$32:$G$60,2,FALSE),) -> 0 | AF51: =IF(AE51<>0,VLOOKUP(AE51,整理番号表!$P$5:$R$39,2,FALSE),) -> 0 | AH51: 0 | AK51: =IF(AJ51<>"",VLOOKUP(AJ51,整理番号表!$Z$6:$AA$14,2,FALSE),"") ->  | AL51: 0 | AR51: =IF(AQ51<>0,VLOOKUP(AQ51,整理番号表!$P$43:$Q$49,2,FALSE),) -> 0 | AW51: 0 | AX51: 0 | AZ51: 0 | BD51: 0 | BE51: 0 | BF51: 0 | BI51: 0 | BJ51: 0 | BL51: =IF(BK51<>0,VLOOKUP(BK51,整理番号表!$T$5:$U$16,2,FALSE),) -> 0 | BN51: =IF(BM51<>0,VLOOKUP(BM51,整理番号表!$T$22:$U$30,2,FALSE),) -> 0 | BP51: 0 | BX51: 0 | CH51: 0 | CI51: 0 | CJ51: 0 | CK51: 0 | CL51: 0 | CM51: 0 | CN51: 0 | CO51: 0 | CP51: 0 | CQ51: 0 | CR51: 0 | CS51: 0 | CT51: 0 | CU51: 0 | CV51: 0 | CW51: 0 | CX51: 0 | CY51: 0 | CZ51: 0 | DA51: 0 | DB51: 0 | DC51: 0 | DD51: 0 | DE51: 0 | DF51: 0 | DG51: 0 | DH51: 0 | DI51: 0 | DO51: 0 | DP51: 0 | DQ51: 0 | DR51: 0 | DS51: 0 | DT51: 0 | DV51: 0 | ED51: 0 | FE51: 0 | FF51: 0 | FI51: 0 | FJ51: 0 | FK51: 0 | FL51: =IF(OR(AND(1<=$FK51,$FK51<=3),$FK51=6),VLOOKUP($FK51,整理番号表!$B$32:$G$60,2,FALSE),) -> 0 | FM51: =IF(OR($FK51=4,$FK51=7),VLOOKUP($FK51,整理番号表!$B$32:$G$60,2,FALSE),) -> 0 | FN51: =IF($FK51=5,VLOOKUP($FK51,整理番号表!$B$32:$G$60,2,FALSE),) -> 0 | FO51: =IF(AND(8<=$FK51,$FK51<=13),VLOOKUP($FK51,整理番号表!$B$32:$G$60,2,FALSE),) -> 0 | FP51: 0 | FQ51: 0 | FR51: =IF(AND(FE51<>1,$FP51=1,SUM($FQ51:FQ51)=0,$FF51=1,$FI51>=2),1,) -> 0 | FS51: =IF(AND(FE51<>1,$FP51=1,SUM($FQ51:FR51)=0,OR(AND($FF51=1,$FI51>0),$FI51>=4)),1,) -> 0 | FT51: =IF(AND(FE51<>1,$FP51=1,SUM($FQ51:FS51)=0,OR($FF51=1,$FI51>=2)),1,) -> 0 | FU51: =IF(AND(FE51<>1,$FP51=1,SUM($FQ51:FT51)=0,$FI51>0),1,) -> 0 | FV51: 0 | FW51: 0 | FX51: =IF(AND(FE51<>1,$FP51=2,SUM($FW51:FW51)=0,$FF51=1,$FJ51>=0.1),1,) -> 0 | FY51: =IF(AND(FE51<>1,$FP51=2,SUM($FW51:FX51)=0,OR(AND($FF51=1,$FI51>0),$FJ51>=0.2)),1,) -> 0 | FZ51: =IF(AND(FE51<>1,$FP51=2,SUM($FW51:FY51)=0,OR($FF51=1,$FJ51>=0.1)),1,) -> 0 | GA51: =IF(AND(FE51<>1,$FP51=2,SUM($FW51:FZ51)=0,$FI51>0),1,) -> 0 | GB51: 0 | GC51: =IF(AND(FE51<>1,$FP51=3,SUM($GB51:GB51)=0,AND($FF51=1,$FJ51>=0.05)),1,) -> 0 | GD51: =IF(AND(FE51<>1,$FP51=3,SUM($GB51:GC51)=0,OR(AND($FF51=1,$FI51>0),$FJ51>=0.1)),1,) -> 0 | GE51: =IF(AND(FE51<>1,$FP51=3,SUM($GB51:GD51)=0,OR($FF51=1,$FJ51>=0.05)),1,) -> 0 | GF51: =IF(AND(FE51<>1,$FP51=3,SUM($GB51:GE51)=0,$FI51>0),1,) -> 0 | GG51: 0 | GI51: 0 | GJ51: 0 | GK51: 0 | GL51: 0 | GM51: 0 | GN51: 0 | GO51: 0 | GP51: 0 | GQ51: 0 | GR51: 0 | GS51: 0 | GT51: 0 | GU51: 0 | GV51: 0 | GW51: 0 | GX51: 0 | GY51: 0 | GZ51: 0 | HA51: 0 | HB51: 0 | HC51: 0 | HD51: 0 | HE51: 0 | HF51: 0 | HG51: 0 | HH51: 0 | HI51: 0 | HJ51: 0 | HK51: 0 | HL51: 0 | HM51: 0 | HN51: 0 | HO51: 0 | HP51: 0 | HQ51: 0 | HR51: 0 | HS51: 0 | HT51: 0 | HU51: 0 | HV51: 0 | HW51: 0 | HX51: 0 | HY51: 0 | HZ51: 0 | IA51: 0 | IB51: 0 | IC51: 0 | ID51: 0 | IE51: 0 | IF51: 0 | IG51: 0 | IH51: 0 | II51: 0 | IJ51: 0 | IK51: 0 | IL51: 0 | IM51: 0 | IN51: 0 | IO51: 0 | IP51: 0 | IQ51: 0 | IR51: 0 | IS51: 0 | IT51: 0 | IU51: 0 | IV51: 0 | IW51: 0 | IX51: 0 | IY51: 0 | IZ51: 0 | JA51: 0 | JB51: 0 | JC51: 0 | JD51: 0 | JE51: 0 | JF51: 0 | JG51: 0 | JH51: 0 | JI51: 0 | JY51: ○ | JZ51: 0 | KA51: 0 | KB51: 0 | KC51: 0 | KD51: 0 | KE51: 0 | KF51: 0 | KG51: ○ | KH51: 0 | KI51: 0 | KJ51: 0 | KK51: ○ | KL51: ○ | KN51: 0 | KO51: 0
A52: 0 | B52: 0 | C52: 0 | D52: 0 | E52: 0 | F52: 0 | G52: 0 | H52: 0 | I52: 0 | J52: 0 | K52: 40 | P52: =IF(O52<>"",VLOOKUP(O52,整理番号表!$Z$17:$AA$20,2,FALSE),) -> 0 | Q52: 0 | W52: =IF(V52<>0,VLOOKUP(V52,整理番号表!$B$6:$L$13,2,FALSE),) -> 0 | X52: 0 | Y52: =IF(X52<>0,VLOOKUP(X52,整理番号表!$B$16:$C$18,2,FALSE),) -> 0 | AA52: =IF(Z52<>0,VLOOKUP(Z52,整理番号表!$B$22:$C$29,2,FALSE),) -> 0 | AD52: =IF(AC52<>0,VLOOKUP(AC52,整理番号表!$B$32:$G$60,2,FALSE),) -> 0 | AF52: =IF(AE52<>0,VLOOKUP(AE52,整理番号表!$P$5:$R$39,2,FALSE),) -> 0 | AH52: 0 | AK52: =IF(AJ52<>"",VLOOKUP(AJ52,整理番号表!$Z$6:$AA$14,2,FALSE),"") ->  | AL52: 0 | AR52: =IF(AQ52<>0,VLOOKUP(AQ52,整理番号表!$P$43:$Q$49,2,FALSE),) -> 0 | AW52: 0 | AX52: 0 | AZ52: 0 | BD52: 0 | BE52: 0 | BF52: 0 | BI52: 0 | BJ52: 0 | BL52: =IF(BK52<>0,VLOOKUP(BK52,整理番号表!$T$5:$U$16,2,FALSE),) -> 0 | BN52: =IF(BM52<>0,VLOOKUP(BM52,整理番号表!$T$22:$U$30,2,FALSE),) -> 0 | BP52: 0 | BX52: 0 | CH52: 0 | CI52: 0 | CJ52: 0 | CK52: 0 | CL52: 0 | CM52: 0 | CN52: 0 | CO52: 0 | CP52: 0 | CQ52: 0 | CR52: 0 | CS52: 0 | CT52: 0 | CU52: 0 | CV52: 0 | CW52: 0 | CX52: 0 | CY52: 0 | CZ52: 0 | DA52: 0 | DB52: 0 | DC52: 0 | DD52: 0 | DE52: 0 | DF52: 0 | DG52: 0 | DH52: 0 | DI52: 0 | DO52: 0 | DP52: 0 | DQ52: 0 | DR52: 0 | DS52: 0 | DT52: 0 | DV52: 0 | ED52: 0 | FE52: 0 | FF52: 0 | FI52: 0 | FJ52: 0 | FK52: 0 | FL52: =IF(OR(AND(1<=$FK52,$FK52<=3),$FK52=6),VLOOKUP($FK52,整理番号表!$B$32:$G$60,2,FALSE),) -> 0 | FM52: =IF(OR($FK52=4,$FK52=7),VLOOKUP($FK52,整理番号表!$B$32:$G$60,2,FALSE),) -> 0 | FN52: =IF($FK52=5,VLOOKUP($FK52,整理番号表!$B$32:$G$60,2,FALSE),) -> 0 | FO52: =IF(AND(8<=$FK52,$FK52<=13),VLOOKUP($FK52,整理番号表!$B$32:$G$60,2,FALSE),) -> 0 | FP52: 0 | FQ52: 0 | FR52: =IF(AND(FE52<>1,$FP52=1,SUM($FQ52:FQ52)=0,$FF52=1,$FI52>=2),1,) -> 0 | FS52: =IF(AND(FE52<>1,$FP52=1,SUM($FQ52:FR52)=0,OR(AND($FF52=1,$FI52>0),$FI52>=4)),1,) -> 0 | FT52: =IF(AND(FE52<>1,$FP52=1,SUM($FQ52:FS52)=0,OR($FF52=1,$FI52>=2)),1,) -> 0 | FU52: =IF(AND(FE52<>1,$FP52=1,SUM($FQ52:FT52)=0,$FI52>0),1,) -> 0 | FV52: 0 | FW52: 0 | FX52: =IF(AND(FE52<>1,$FP52=2,SUM($FW52:FW52)=0,$FF52=1,$FJ52>=0.1),1,) -> 0 | FY52: =IF(AND(FE52<>1,$FP52=2,SUM($FW52:FX52)=0,OR(AND($FF52=1,$FI52>0),$FJ52>=0.2)),1,) -> 0 | FZ52: =IF(AND(FE52<>1,$FP52=2,SUM($FW52:FY52)=0,OR($FF52=1,$FJ52>=0.1)),1,) -> 0 | GA52: =IF(AND(FE52<>1,$FP52=2,SUM($FW52:FZ52)=0,$FI52>0),1,) -> 0 | GB52: 0 | GC52: =IF(AND(FE52<>1,$FP52=3,SUM($GB52:GB52)=0,AND($FF52=1,$FJ52>=0.05)),1,) -> 0 | GD52: =IF(AND(FE52<>1,$FP52=3,SUM($GB52:GC52)=0,OR(AND($FF52=1,$FI52>0),$FJ52>=0.1)),1,) -> 0 | GE52: =IF(AND(FE52<>1,$FP52=3,SUM($GB52:GD52)=0,OR($FF52=1,$FJ52>=0.05)),1,) -> 0 | GF52: =IF(AND(FE52<>1,$FP52=3,SUM($GB52:GE52)=0,$FI52>0),1,) -> 0 | GG52: 0 | GI52: 0 | GJ52: 0 | GK52: 0 | GL52: 0 | GM52: 0 | GN52: 0 | GO52: 0 | GP52: 0 | GQ52: 0 | GR52: 0 | GS52: 0 | GT52: 0 | GU52: 0 | GV52: 0 | GW52: 0 | GX52: 0 | GY52: 0 | GZ52: 0 | HA52: 0 | HB52: 0 | HC52: 0 | HD52: 0 | HE52: 0 | HF52: 0 | HG52: 0 | HH52: 0 | HI52: 0 | HJ52: 0 | HK52: 0 | HL52: 0 | HM52: 0 | HN52: 0 | HO52: 0 | HP52: 0 | HQ52: 0 | HR52: 0 | HS52: 0 | HT52: 0 | HU52: 0 | HV52: 0 | HW52: 0 | HX52: 0 | HY52: 0 | HZ52: 0 | IA52: 0 | IB52: 0 | IC52: 0 | ID52: 0 | IE52: 0 | IF52: 0 | IG52: 0 | IH52: 0 | II52: 0 | IJ52: 0 | IK52: 0 | IL52: 0 | IM52: 0 | IN52: 0 | IO52: 0 | IP52: 0 | IQ52: 0 | IR52: 0 | IS52: 0 | IT52: 0 | IU52: 0 | IV52: 0 | IW52: 0 | IX52: 0 | IY52: 0 | IZ52: 0 | JA52: 0 | JB52: 0 | JC52: 0 | JD52: 0 | JE52: 0 | JF52: 0 | JG52: 0 | JH52: 0 | JI52: 0 | JY52: ○ | JZ52: 0 | KA52: 0 | KB52: 0 | KC52: 0 | KD52: 0 | KE52: 0 | KF52: 0 | KG52: ○ | KH52: 0 | KI52: 0 | KJ52: 0 | KK52: ○ | KL52: ○ | KN52: 0 | KO52: 0
A53: 0 | B53: 0 | C53: 0 | D53: 0 | E53: 0 | F53: 0 | G53: 0 | H53: 0 | I53: 0 | J53: 0 | K53: 41 | P53: =IF(O53<>"",VLOOKUP(O53,整理番号表!$Z$17:$AA$20,2,FALSE),) -> 0 | Q53: 0 | W53: =IF(V53<>0,VLOOKUP(V53,整理番号表!$B$6:$L$13,2,FALSE),) -> 0 | X53: 0 | Y53: =IF(X53<>0,VLOOKUP(X53,整理番号表!$B$16:$C$18,2,FALSE),) -> 0 | AA53: =IF(Z53<>0,VLOOKUP(Z53,整理番号表!$B$22:$C$29,2,FALSE),) -> 0 | AD53: =IF(AC53<>0,VLOOKUP(AC53,整理番号表!$B$32:$G$60,2,FALSE),) -> 0 | AF53: =IF(AE53<>0,VLOOKUP(AE53,整理番号表!$P$5:$R$39,2,FALSE),) -> 0 | AH53: 0 | AK53: =IF(AJ53<>"",VLOOKUP(AJ53,整理番号表!$Z$6:$AA$14,2,FALSE),"") ->  | AL53: 0 | AR53: =IF(AQ53<>0,VLOOKUP(AQ53,整理番号表!$P$43:$Q$49,2,FALSE),) -> 0 | AW53: 0 | AX53: 0 | AZ53: 0 | BD53: 0 | BE53: 0 | BF53: 0 | BI53: 0 | BJ53: 0 | BL53: =IF(BK53<>0,VLOOKUP(BK53,整理番号表!$T$5:$U$16,2,FALSE),) -> 0 | BN53: =IF(BM53<>0,VLOOKUP(BM53,整理番号表!$T$22:$U$30,2,FALSE),) -> 0 | BP53: 0 | BX53: 0 | CH53: 0 | CI53: 0 | CJ53: 0 | CK53: 0 | CL53: 0 | CM53: 0 | CN53: 0 | CO53: 0 | CP53: 0 | CQ53: 0 | CR53: 0 | CS53: 0 | CT53: 0 | CU53: 0 | CV53: 0 | CW53: 0 | CX53: 0 | CY53: 0 | CZ53: 0 | DA53: 0 | DB53: 0 | DC53: 0 | DD53: 0 | DE53: 0 | DF53: 0 | DG53: 0 | DH53: 0 | DI53: 0 | DO53: 0 | DP53: 0 | DQ53: 0 | DR53: 0 | DS53: 0 | DT53: 0 | DV53: 0 | ED53: 0 | FE53: 0 | FF53: 0 | FI53: 0 | FJ53: 0 | FK53: 0 | FL53: =IF(OR(AND(1<=$FK53,$FK53<=3),$FK53=6),VLOOKUP($FK53,整理番号表!$B$32:$G$60,2,FALSE),) -> 0 | FM53: =IF(OR($FK53=4,$FK53=7),VLOOKUP($FK53,整理番号表!$B$32:$G$60,2,FALSE),) -> 0 | FN53: =IF($FK53=5,VLOOKUP($FK53,整理番号表!$B$32:$G$60,2,FALSE),) -> 0 | FO53: =IF(AND(8<=$FK53,$FK53<=13),VLOOKUP($FK53,整理番号表!$B$32:$G$60,2,FALSE),) -> 0 | FP53: 0 | FQ53: 0 | FR53: =IF(AND(FE53<>1,$FP53=1,SUM($FQ53:FQ53)=0,$FF53=1,$FI53>=2),1,) -> 0 | FS53: =IF(AND(FE53<>1,$FP53=1,SUM($FQ53:FR53)=0,OR(AND($FF53=1,$FI53>0),$FI53>=4)),1,) -> 0 | FT53: =IF(AND(FE53<>1,$FP53=1,SUM($FQ53:FS53)=0,OR($FF53=1,$FI53>=2)),1,) -> 0 | FU53: =IF(AND(FE53<>1,$FP53=1,SUM($FQ53:FT53)=0,$FI53>0),1,) -> 0 | FV53: 0 | FW53: 0 | FX53: =IF(AND(FE53<>1,$FP53=2,SUM($FW53:FW53)=0,$FF53=1,$FJ53>=0.1),1,) -> 0 | FY53: =IF(AND(FE53<>1,$FP53=2,SUM($FW53:FX53)=0,OR(AND($FF53=1,$FI53>0),$FJ53>=0.2)),1,) -> 0 | FZ53: =IF(AND(FE53<>1,$FP53=2,SUM($FW53:FY53)=0,OR($FF53=1,$FJ53>=0.1)),1,) -> 0 | GA53: =IF(AND(FE53<>1,$FP53=2,SUM($FW53:FZ53)=0,$FI53>0),1,) -> 0 | GB53: 0 | GC53: =IF(AND(FE53<>1,$FP53=3,SUM($GB53:GB53)=0,AND($FF53=1,$FJ53>=0.05)),1,) -> 0 | GD53: =IF(AND(FE53<>1,$FP53=3,SUM($GB53:GC53)=0,OR(AND($FF53=1,$FI53>0),$FJ53>=0.1)),1,) -> 0 | GE53: =IF(AND(FE53<>1,$FP53=3,SUM($GB53:GD53)=0,OR($FF53=1,$FJ53>=0.05)),1,) -> 0 | GF53: =IF(AND(FE53<>1,$FP53=3,SUM($GB53:GE53)=0,$FI53>0),1,) -> 0 | GG53: 0 | GI53: 0 | GJ53: 0 | GK53: 0 | GL53: 0 | GM53: 0 | GN53: 0 | GO53: 0 | GP53: 0 | GQ53: 0 | GR53: 0 | GS53: 0 | GT53: 0 | GU53: 0 | GV53: 0 | GW53: 0 | GX53: 0 | GY53: 0 | GZ53: 0 | HA53: 0 | HB53: 0 | HC53: 0 | HD53: 0 | HE53: 0 | HF53: 0 | HG53: 0 | HH53: 0 | HI53: 0 | HJ53: 0 | HK53: 0 | HL53: 0 | HM53: 0 | HN53: 0 | HO53: 0 | HP53: 0 | HQ53: 0 | HR53: 0 | HS53: 0 | HT53: 0 | HU53: 0 | HV53: 0 | HW53: 0 | HX53: 0 | HY53: 0 | HZ53: 0 | IA53: 0 | IB53: 0 | IC53: 0 | ID53: 0 | IE53: 0 | IF53: 0 | IG53: 0 | IH53: 0 | II53: 0 | IJ53: 0 | IK53: 0 | IL53: 0 | IM53: 0 | IN53: 0 | IO53: 0 | IP53: 0 | IQ53: 0 | IR53: 0 | IS53: 0 | IT53: 0 | IU53: 0 | IV53: 0 | IW53: 0 | IX53: 0 | IY53: 0 | IZ53: 0 | JA53: 0 | JB53: 0 | JC53: 0 | JD53: 0 | JE53: 0 | JF53: 0 | JG53: 0 | JH53: 0 | JI53: 0 | JY53: ○ | JZ53: 0 | KA53: 0 | KB53: 0 | KC53: 0 | KD53: 0 | KE53: 0 | KF53: 0 | KG53: ○ | KH53: 0 | KI53: 0 | KJ53: 0 | KK53: ○ | KL53: ○ | KN53: 0 | KO53: 0
